Workbook

Sheet Main
C2: Rang | D2: N° de voile | E2: Nom | F2: Type | G2: YEAR | H2: LOA | I2: IMSL | J2: BMAX | K2: DRAFT | L2: DSPL | M2: CREW | N2: GPH | O2: TMF | P2: WL | Q2: NSP | R2: UpAngl | S2: DwnA | T2: DA(%) | V2: 0 | W2: V@UA | X2: 52 | Y2: 60 | Z2: 75 | AA2: 90 | AB2: 110 | AC2: 120 | AD2: 135 | AE2: 150 | AF2: 180
C3: 5389 | D3: =D52 -> NED 8940 | E3: =E52 -> Jeanne | F3: Jeaneau Poker | G3: 1972 | H3: 8.14 | I3: 6.545 | J3: 2.86 | K3: 1.768 | L3: 3226 | M3: =+M52 -> 320 | N3: =N52 -> 832.6 | O3: 0.756 | P3: 713.6 | Q3: 620.3 | R3: 40.2 | S3: 180 | T3: 0.72 | V3: =V52 -> 4.182642036 | W3: =W52 -> 5.476124356 | X3: 5.988023952 | Y3: 6.181318681 | Z3: 6.4366172 | AA3: 6.551410373 | AB3: 7.006617361 | AC3: 7.137192704 | AD3: 7.001166861 | AE3: 6.697674419 | AF3: 6.354810238
D4: =D53 ->  | M4: =+M53 ->  | N4: =N53 ->  | R4: =IF($B4=1,#REF!,R53) ->  | S4: =S53 -> 0 | V4: =V53 -> 
D5: =D54 ->  | N5: =N54 ->  | R5: =IF($B5=1,#REF!,R54) ->  | S5: =S54 -> 0 | V5: =V54 -> 
D6: =D55 ->  | N6: =N55 ->  | R6: =IF($B6=1,#REF!,R55) ->  | S6: =S55 -> 0 | V6: =V55 -> 
D7: =D56 ->  | N7: =N56 ->  | R7: =IF($B7=1,#REF!,R56) ->  | S7: =S56 -> 0 | V7: =V56 -> 
D8: =D57 ->  | N8: =N57 ->  | R8: =IF($B8=1,#REF!,R57) ->  | S8: =S57 -> 0 | V8: =V57 -> 
A9: Wind:1..7, (C8=kn) | B9: 7 | C9: =IF(B9=7,20,B9*2+4) -> 20 | D9: Knots | E9: Vent Réel
A10: Favoris | B10: Klasse | C10: Rijnr. | N10: =CONCATENATE(C9," Nœuds") -> 20 Nœuds
A11: =OFFSET(ORC!$E$6,(C11-6),1) -> SWAN 42 CS | C11: 1327
A12: =OFFSET(ORC!$E$6,(C12-6),1) -> SUN ODYSSEY 40 | C12: 1520
A13: =OFFSET(ORC!$E$6,(C13-6),1) -> UFO 22 | C13: 3938
A14: =OFFSET(ORC!$E$6,(C14-6),1) -> UFO 22 | C14: 3942
A15: =OFFSET(ORC!$E$6,(C15-6),1) -> UFO 22 | C15: 3943
A16: =OFFSET(ORC!$E$6,(C16-6),1) -> JV 56 | C16: 6757
C17: 4
C18: 5
C19: 6
A20: =OFFSET(ORC!$E$6,(C20-6),1) -> FAYD 30 | C20: 7
A21: =OFFSET(ORC!$E$6,(C21-6),1) -> K 37 | C21: 8
A22: =OFFSET(ORC!$E$6,(C22-6),1) -> FAYD 30 | C22: 9
A23: =OFFSET(ORC!$E$6,(C23-6),1) -> F&C 44 | C23: 10
A24: =OFFSET(ORC!$E$6,(C24-6),1) -> PLENAMAR 350 | C24: 11
A25: =OFFSET(ORC!$E$6,(C25-6),1) -> CORUM 280 CR | C25: 12
A26: =OFFSET(ORC!$E$6,(C26-6),1) -> PANDORA 34 | C26: 13
A27: =OFFSET(ORC!$E$6,(C27-6),1) -> MYSTIC 290 | C27: 14
A28: =OFFSET(ORC!$E$6,(C28-6),1) -> PETERSON 42 | C28: 15
A29: =OFFSET(ORC!$E$6,(C29-6),1) -> FARR 44 | C29: 16
A30: =OFFSET(ORC!$E$6,(C30-6),1) -> D'ANGELO 30 R | C30: 17
A31: =OFFSET(ORC!$E$6,(C31-6),1) -> 32DUE | C31: 18
A32: =OFFSET(ORC!$E$6,(C32-6),1) -> BORA BORA 42 | C32: 19
A33: =OFFSET(ORC!$E$6,(C33-6),1) -> MARTINOLI 31 | C33: 20
A34: =OFFSET(ORC!$E$6,(C34-6),1) -> LOTZ 270 | C34: 21
A35: =OFFSET(ORC!$E$6,(C35-6),1) -> DUFOUR 34 | C35: 22 | E35: Opmerkingen:
A36: =OFFSET(ORC!$E$6,(C36-6),1) -> SOTO 40 | C36: 23
A40: 1
A41: 2
A42: 3
A43: 4
A44: 5
A45: 6
A46: 7
C49: ORC
D50: Données ORC
D51: N° de voile | E51: NOM | F51: TYPE | G51: YEAR | H51: LOA | I51: IMSL | J51: BMAX | K51: DRAFT | L51: DSPL | M51: CREW | N51: GPH | O51: TMF | P51: WL | Q51: NSP | R51: UpAngl | S51: DwnA | T51: DA(%) | V51: 0 | W51: V@UA | X51: 52 | Y51: 60 | Z51: 75 | AA51: 90 | AB51: 110 | AC51: 120 | AD51: 135 | AE51: 150 | AF51: 180
D52: =OFFSET(ORC!$D$6,($C3-6),0) -> NED 8940 | E52: =OFFSET(ORC!$E$6,($C3-6),0) -> Jeanne | F52: =OFFSET(ORC!$F$6,($C3-6),0) -> Jeaneau Poker | G52: =OFFSET(ORC!$I$6,($C3-6),0) -> 1972 | H52: =OFFSET(ORC!$P$6,($C3-6),0) -> 8.14 | I52: =OFFSET(ORC!$Q$6,($C3-6),0) -> 6.545 | J52: =OFFSET(ORC!$S$6,($C3-6),0) -> 2.86 | K52: =OFFSET(ORC!$R$6,($C3-6),0) -> 1.768 | L52: =OFFSET(ORC!$T$6,($C3-6),0) -> 3226 | M52: =OFFSET(ORC!$N$6,($C3-6),0) -> 320 | N52: =OFFSET(ORC!$W$6,($C3-6),0) -> 832.6 | O52: =OFFSET(ORC!$X$6,($C3-6),0) -> 0.756 | P52: =OFFSET(ORC!$AB$6,($C3-6),($B$9-1)) -> 713.6 | Q52: =OFFSET(ORC!$AW$6,($C3-6),($B$9-1)) -> 620.3 | R52: =OFFSET(ORC!$BK$6,($C3-6),($B$9-1)) -> 40.2 | S52: =OFFSET(ORC!$BR$6,($C3-6),($B$9-1)) -> 180 | T52: =OFFSET(ORC!$V$6,($C3-6),0) -> 0.72 | V52: =3600/OFFSET(ORC!$BY$6,($C3-6),($B$9-1)) -> 4.182642036 | W52: =(3600/OFFSET(ORC!$BY$6,($C3-6),($B$9-1)))/COS(R52/180*PI()) -> 5.476124356 | X52: =3600/OFFSET(ORC!$CF$6,($C3-6),($B$9-1)) -> 5.988023952 | Y52: =3600/OFFSET(ORC!$CM$6,($C3-6),($B$9-1)) -> 6.181318681 | Z52: =3600/OFFSET(ORC!$CT$6,($C3-6),($B$9-1)) -> 6.4366172 | AA52: =3600/OFFSET(ORC!$DA$6,($C3-6),($B$9-1)) -> 6.551410373 | AB52: =3600/OFFSET(ORC!$DH$6,($C3-6),($B$9-1)) -> 7.006617361 | AC52: =3600/OFFSET(ORC!$DO$6,($C3-6),($B$9-1)) -> 7.137192704 | AD52: =3600/OFFSET(ORC!$DV$6,($C3-6),($B$9-1)) -> 7.001166861 | AE52: =3600/OFFSET(ORC!$EC$6,($C3-6),($B$9-1)) -> 6.697674419 | AF52: =3600/OFFSET(ORC!$EJ$6,($C3-6),($B$9-1)) -> 6.354810238
D53: =OFFSET(ORC!$D$6,($C4-6),0) ->  | E53: =OFFSET(ORC!$E$6,($C4-6),0) ->  | F53: =OFFSET(ORC!$F$6,($C4-6),0) ->  | G53: =OFFSET(ORC!$I$6,($C4-6),0) ->  | H53: =OFFSET(ORC!$P$6,($C4-6),0) ->  | I53: =OFFSET(ORC!$Q$6,($C4-6),0) ->  | J53: =OFFSET(ORC!$S$6,($C4-6),0) ->  | K53: =OFFSET(ORC!$R$6,($C4-6),0) ->  | L53: =OFFSET(ORC!$T$6,($C4-6),0) ->  | M53: =OFFSET(ORC!$N$6,($C4-6),0) ->  | N53: =OFFSET(ORC!$W$6,($C4-6),0) ->  | O53: =OFFSET(ORC!$X$6,($C4-6),0) ->  | P53: =OFFSET(ORC!$AB$6,($C4-6),($B$9-1)) ->  | Q53: =OFFSET(ORC!$AW$6,($C4-6),($B$9-1)) ->  | R53: =OFFSET(ORC!$BK$6,($C4-6),($B$9-1)) ->  | S53: =OFFSET(ORC!$BR$6,($C4-1),($B$9-1)) -> 0 | T53: =OFFSET(ORC!$V$6,($C4-6),0) ->  | V53: =3600/OFFSET(ORC!$BY$6,($C4-6),($B$9-1)) ->  | W53: =(3600/OFFSET(ORC!$BY$6,($C4-6),($B$9-1)))/COS(R53/180*PI()) ->  | X53: =3600/OFFSET(ORC!$CF$6,($C4-6),($B$9-1)) ->  | Y53: =3600/OFFSET(ORC!$CM$6,($C4-6),($B$9-1)) ->  | Z53: =3600/OFFSET(ORC!$CT$6,($C4-6),($B$9-1)) ->  | AA53: =3600/OFFSET(ORC!$DA$6,($C4-6),($B$9-1)) ->  | AB53: =3600/OFFSET(ORC!$DH$6,($C4-6),($B$9-1)) ->  | AC53: =3600/OFFSET(ORC!$DO$6,($C4-6),($B$9-1)) ->  | AD53: =3600/OFFSET(ORC!$DV$6,($C4-6),($B$9-1)) ->  | AE53: =3600/OFFSET(ORC!$EC$6,($C4-6),($B$9-1)) ->  | AF53: =3600/OFFSET(ORC!$EJ$6,($C4-6),($B$9-1)) -> 
D54: =OFFSET(ORC!$D$6,($C5-6),0) ->  | E54: =OFFSET(ORC!$E$6,($C5-6),0) ->  | F54: =OFFSET(ORC!$F$6,($C5-6),0) ->  | G54: =OFFSET(ORC!$I$6,($C5-6),0) ->  | H54: =OFFSET(ORC!$P$6,($C5-6),0) ->  | I54: =OFFSET(ORC!$Q$6,($C5-6),0) ->  | J54: =OFFSET(ORC!$S$6,($C5-6),0) ->  | K54: =OFFSET(ORC!$R$6,($C5-6),0) ->  | L54: =OFFSET(ORC!$T$6,($C5-6),0) ->  | M54: =OFFSET(ORC!$N$6,($C5-6),0) ->  | N54: =OFFSET(ORC!$W$6,($C5-6),0) ->  | O54: =OFFSET(ORC!$X$6,($C5-6),0) ->  | P54: =OFFSET(ORC!$AB$6,($C5-6),($B$9-1)) ->  | Q54: =OFFSET(ORC!$AW$6,($C5-6),($B$9-1)) ->  | R54: =OFFSET(ORC!$BK$6,($C5-6),($B$9-1)) ->  | S54: =OFFSET(ORC!$BR$6,($C5-1),($B$9-1)) -> 0 | T54: =OFFSET(ORC!$V$6,($C5-6),0) ->  | V54: =3600/OFFSET(ORC!$BY$6,($C5-6),($B$9-1)) ->  | W54: =(3600/OFFSET(ORC!$BY$6,($C5-6),($B$9-1)))/COS(R54/180*PI()) ->  | X54: =3600/OFFSET(ORC!$CF$6,($C5-6),($B$9-1)) ->  | Y54: =3600/OFFSET(ORC!$CM$6,($C5-6),($B$9-1)) ->  | Z54: =3600/OFFSET(ORC!$CT$6,($C5-6),($B$9-1)) ->  | AA54: =3600/OFFSET(ORC!$DA$6,($C5-6),($B$9-1)) ->  | AB54: =3600/OFFSET(ORC!$DH$6,($C5-6),($B$9-1)) ->  | AC54: =3600/OFFSET(ORC!$DO$6,($C5-6),($B$9-1)) ->  | AD54: =3600/OFFSET(ORC!$DV$6,($C5-6),($B$9-1)) ->  | AE54: =3600/OFFSET(ORC!$EC$6,($C5-6),($B$9-1)) ->  | AF54: =3600/OFFSET(ORC!$EJ$6,($C5-6),($B$9-1)) -> 
D55: =OFFSET(ORC!$D$6,($C6-6),0) ->  | E55: =OFFSET(ORC!$E$6,($C6-6),0) ->  | F55: =OFFSET(ORC!$F$6,($C6-6),0) ->  | G55: =OFFSET(ORC!$I$6,($C6-6),0) ->  | H55: =OFFSET(ORC!$P$6,($C6-6),0) ->  | I55: =OFFSET(ORC!$Q$6,($C6-6),0) ->  | J55: =OFFSET(ORC!$S$6,($C6-6),0) ->  | K55: =OFFSET(ORC!$R$6,($C6-6),0) ->  | L55: =OFFSET(ORC!$T$6,($C6-6),0) ->  | M55: =OFFSET(ORC!$N$6,($C6-6),0) ->  | N55: =OFFSET(ORC!$W$6,($C6-6),0) ->  | O55: =OFFSET(ORC!$X$6,($C6-6),0) ->  | P55: =OFFSET(ORC!$AB$6,($C6-6),($B$9-1)) ->  | Q55: =OFFSET(ORC!$AW$6,($C6-6),($B$9-1)) ->  | R55: =OFFSET(ORC!$BK$6,($C6-6),($B$9-1)) ->  | S55: =OFFSET(ORC!$BR$6,($C6-1),($B$9-1)) -> 0 | T55: =OFFSET(ORC!$V$6,($C6-6),0) ->  | V55: =3600/OFFSET(ORC!$BY$6,($C6-6),($B$9-1)) ->  | W55: =(3600/OFFSET(ORC!$BY$6,($C6-6),($B$9-1)))/COS(R55/180*PI()) ->  | X55: =3600/OFFSET(ORC!$CF$6,($C6-6),($B$9-1)) ->  | Y55: =3600/OFFSET(ORC!$CM$6,($C6-6),($B$9-1)) ->  | Z55: =3600/OFFSET(ORC!$CT$6,($C6-6),($B$9-1)) ->  | AA55: =3600/OFFSET(ORC!$DA$6,($C6-6),($B$9-1)) ->  | AB55: =3600/OFFSET(ORC!$DH$6,($C6-6),($B$9-1)) ->  | AC55: =3600/OFFSET(ORC!$DO$6,($C6-6),($B$9-1)) ->  | AD55: =3600/OFFSET(ORC!$DV$6,($C6-6),($B$9-1)) ->  | AE55: =3600/OFFSET(ORC!$EC$6,($C6-6),($B$9-1)) ->  | AF55: =3600/OFFSET(ORC!$EJ$6,($C6-6),($B$9-1)) -> 
D56: =OFFSET(ORC!$D$6,($C7-6),0) ->  | E56: =OFFSET(ORC!$E$6,($C7-6),0) ->  | F56: =OFFSET(ORC!$F$6,($C7-6),0) ->  | G56: =OFFSET(ORC!$I$6,($C7-6),0) ->  | H56: =OFFSET(ORC!$P$6,($C7-6),0) ->  | I56: =OFFSET(ORC!$Q$6,($C7-6),0) ->  | J56: =OFFSET(ORC!$S$6,($C7-6),0) ->  | K56: =OFFSET(ORC!$R$6,($C7-6),0) ->  | L56: =OFFSET(ORC!$T$6,($C7-6),0) ->  | M56: =OFFSET(ORC!$N$6,($C7-6),0) ->  | N56: =OFFSET(ORC!$W$6,($C7-6),0) ->  | O56: =OFFSET(ORC!$X$6,($C7-6),0) ->  | P56: =OFFSET(ORC!$AB$6,($C7-6),($B$9-1)) ->  | Q56: =OFFSET(ORC!$AW$6,($C7-6),($B$9-1)) ->  | R56: =OFFSET(ORC!$BK$6,($C7-6),($B$9-1)) ->  | S56: =OFFSET(ORC!$BR$6,($C7-1),($B$9-1)) -> 0 | T56: =OFFSET(ORC!$V$6,($C7-6),0) ->  | V56: =3600/OFFSET(ORC!$BY$6,($C7-6),($B$9-1)) ->  | W56: =(3600/OFFSET(ORC!$BY$6,($C7-6),($B$9-1)))/COS(R56/180*PI()) ->  | X56: =3600/OFFSET(ORC!$CF$6,($C7-6),($B$9-1)) ->  | Y56: =3600/OFFSET(ORC!$CM$6,($C7-6),($B$9-1)) ->  | Z56: =3600/OFFSET(ORC!$CT$6,($C7-6),($B$9-1)) ->  | AA56: =3600/OFFSET(ORC!$DA$6,($C7-6),($B$9-1)) ->  | AB56: =3600/OFFSET(ORC!$DH$6,($C7-6),($B$9-1)) ->  | AC56: =3600/OFFSET(ORC!$DO$6,($C7-6),($B$9-1)) ->  | AD56: =3600/OFFSET(ORC!$DV$6,($C7-6),($B$9-1)) ->  | AE56: =3600/OFFSET(ORC!$EC$6,($C7-6),($B$9-1)) ->  | AF56: =3600/OFFSET(ORC!$EJ$6,($C7-6),($B$9-1)) -> 
D57: =OFFSET(ORC!$D$6,($C8-6),0) ->  | E57: =OFFSET(ORC!$E$6,($C8-6),0) ->  | F57: =OFFSET(ORC!$F$6,($C8-6),0) ->  | G57: =OFFSET(ORC!$I$6,($C8-6),0) ->  | H57: =OFFSET(ORC!$P$6,($C8-6),0) ->  | I57: =OFFSET(ORC!$Q$6,($C8-6),0) ->  | J57: =OFFSET(ORC!$S$6,($C8-6),0) ->  | K57: =OFFSET(ORC!$R$6,($C8-6),0) ->  | L57: =OFFSET(ORC!$T$6,($C8-6),0) ->  | M57: =OFFSET(ORC!$N$6,($C8-6),0) ->  | N57: =OFFSET(ORC!$W$6,($C8-6),0) ->  | O57: =OFFSET(ORC!$X$6,($C8-6),0) ->  | P57: =OFFSET(ORC!$AB$6,($C8-6),($B$9-1)) ->  | Q57: =OFFSET(ORC!$AW$6,($C8-6),($B$9-1)) ->  | R57: =OFFSET(ORC!$BK$6,($C8-6),($B$9-1)) ->  | S57: =OFFSET(ORC!$BR$6,($C8-1),($B$9-1)) -> 0 | T57: =OFFSET(ORC!$V$6,($C8-6),0) ->  | V57: =3600/OFFSET(ORC!$BY$6,($C8-6),($B$9-1)) ->  | W57: =(3600/OFFSET(ORC!$BY$6,($C8-6),($B$9-1)))/COS(R57/180*PI()) ->  | X57: =3600/OFFSET(ORC!$CF$6,($C8-6),($B$9-1)) ->  | Y57: =3600/OFFSET(ORC!$CM$6,($C8-6),($B$9-1)) ->  | Z57: =3600/OFFSET(ORC!$CT$6,($C8-6),($B$9-1)) ->  | AA57: =3600/OFFSET(ORC!$DA$6,($C8-6),($B$9-1)) ->  | AB57: =3600/OFFSET(ORC!$DH$6,($C8-6),($B$9-1)) ->  | AC57: =3600/OFFSET(ORC!$DO$6,($C8-6),($B$9-1)) ->  | AD57: =3600/OFFSET(ORC!$DV$6,($C8-6),($B$9-1)) ->  | AE57: =3600/OFFSET(ORC!$EC$6,($C8-6),($B$9-1)) ->  | AF57: =3600/OFFSET(ORC!$EJ$6,($C8-6),($B$9-1)) -> 
E60: Table de données pour le graphe polaire
E61: True Wind | O61: Apparent Wind
D62: UpAngl | E62: V@UA | F62: 52 | G62: 60 | H62: 75 | I62: 90 | J62: 110 | K62: 120 | L62: 135 | M62: 150 | N62: VMG180 | O62: 150 | P62: 135 | Q62: 120 | R62: 110 | S62: 90 | T62: 75 | U62: 60 | V62: 52 | W62: V@UA
D63: =R3 -> 40.2 | E63: =W3*SIN(D63/180*PI()) -> 3.534606565 | F63: =X3*SIN(F$62/180*PI()) -> 4.718627267 | G63: =Y3*SIN(G$62/180*PI()) -> 5.353179007 | H63: 6.217294787 | I63: 6.551410373 | J63: 6.584066631 | K63: 6.180990194 | L63: 4.950572564 | M63: 3.348837209 | N63: 0 | O63: =-AE3*SIN((O$62/180*PI())-ATAN((AE3*SIN(O$62/180*PI())/($C$9+AE3*COS(O$62/180*PI()))))) -> -4.590845943 | P63: =-AD3*SIN((P$62/180*PI())-ATAN((AD3*SIN(P$62/180*PI())/($C$9+AD3*COS(P$62/180*PI()))))) -> -6.249629122 | Q63: =-AC3*SIN((Q$62/180*PI())-ATAN((AC3*SIN(Q$62/180*PI())/($C$9+AC3*COS(Q$62/180*PI()))))) -> -7.041655706 | R63: =-AB3*SIN((R$62/180*PI())-ATAN((AB3*SIN(R$62/180*PI())/($C$9+AB3*COS(R$62/180*PI()))))) -> -7.006343355 | S63: =-AA3*SIN((S$62/180*PI())-ATAN((AA3*SIN(S$62/180*PI())/($C$9+AA3*COS(S$62/180*PI()))))) -> -6.225893317 | T63: =-Z3*SIN((T$62/180*PI())-ATAN((Z3*SIN(T$62/180*PI())/($C$9+Z3*COS(T$62/180*PI()))))) -> -5.516594277 | U63: =-Y3*SIN((U$62/180*PI())-ATAN((Y3*SIN(U$62/180*PI())/($C$9+Y3*COS(U$62/180*PI()))))) -> -4.516867364 | V63: =-X3*SIN((V$62/180*PI())-ATAN((X3*SIN(V$62/180*PI())/($C$9+X3*COS(V$62/180*PI()))))) -> -3.907438392 | W63: =-W3*SIN((D63/180*PI())-ATAN((W3*SIN(D63/180*PI())/($C$9+W3*COS(D63/180*PI()))))) -> -2.892525109
E64: =V3 -> 4.182642036 | F64: =X3*COS(F$62/180*PI()) -> 3.686595661 | G64: =Y3*COS(G$62/180*PI()) -> 3.090659341 | H64: 1.665919117 | I64: 4.013225148e-16 | J64: -2.396404274 | K64: -3.568596352 | L64: -4.950572564 | M64: -5.800356193 | N64: =-AF3 -> -6.354810238 | O64: =AE3*COS((O$62/180*PI())-ATAN((AE3*SIN(O$62/180*PI())/($C$9+AE3*COS(O$62/180*PI()))))) -> -4.87677928 | P64: =AD3*COS((P$62/180*PI())-ATAN((AD3*SIN(P$62/180*PI())/($C$9+AD3*COS(P$62/180*PI()))))) -> -3.155704875 | Q64: =AC3*COS((Q$62/180*PI())-ATAN((AC3*SIN(Q$62/180*PI())/($C$9+AC3*COS(Q$62/180*PI()))))) -> -1.163874826 | R64: =AB3*COS((R$62/180*PI())-ATAN((AB3*SIN(R$62/180*PI())/($C$9+AB3*COS(R$62/180*PI()))))) -> 0.06196472081 | S64: =AA3*COS((S$62/180*PI())-ATAN((AA3*SIN(S$62/180*PI())/($C$9+AA3*COS(S$62/180*PI()))))) -> 2.039419103 | T64: =Z3*COS((T$62/180*PI())-ATAN((Z3*SIN(T$62/180*PI())/($C$9+Z3*COS(T$62/180*PI()))))) -> 3.316206955 | U64: =Y3*COS((U$62/180*PI())-ATAN((Y3*SIN(U$62/180*PI())/($C$9+Y3*COS(U$62/180*PI()))))) -> 4.219787892 | V64: =X3*COS((V$62/180*PI())-ATAN((X3*SIN(V$62/180*PI())/($C$9+X3*COS(V$62/180*PI()))))) -> 4.537439373 | W64: =W3*COS((D63/180*PI())-ATAN((W3*SIN(D63/180*PI())/($C$9+W3*COS(D63/180*PI()))))) -> 4.649864133
D65: =R4 ->  | E65: =W4*SIN(D65/180*PI()) ->  | F65: =X4*SIN(F$62/180*PI()) ->  | N65: 0 | O65: =-AE4*SIN((O$62/180*PI())-ATAN((AE4*SIN(O$62/180*PI())/($C$9+AE4*COS(O$62/180*PI()))))) ->  | P65: =-AD4*SIN((P$62/180*PI())-ATAN((AD4*SIN(P$62/180*PI())/($C$9+AD4*COS(P$62/180*PI()))))) ->  | Q65: =-AC4*SIN((Q$62/180*PI())-ATAN((AC4*SIN(Q$62/180*PI())/($C$9+AC4*COS(Q$62/180*PI()))))) ->  | R65: =-AB4*SIN((R$62/180*PI())-ATAN((AB4*SIN(R$62/180*PI())/($C$9+AB4*COS(R$62/180*PI()))))) ->  | S65: =-AA4*SIN((S$62/180*PI())-ATAN((AA4*SIN(S$62/180*PI())/($C$9+AA4*COS(S$62/180*PI()))))) ->  | T65: =-Z4*SIN((T$62/180*PI())-ATAN((Z4*SIN(T$62/180*PI())/($C$9+Z4*COS(T$62/180*PI()))))) ->  | U65: =-Y4*SIN((U$62/180*PI())-ATAN((Y4*SIN(U$62/180*PI())/($C$9+Y4*COS(U$62/180*PI()))))) ->  | V65: =-X4*SIN((V$62/180*PI())-ATAN((X4*SIN(V$62/180*PI())/($C$9+X4*COS(V$62/180*PI()))))) ->  | W65: =-W4*SIN((D65/180*PI())-ATAN((W4*SIN(D65/180*PI())/($C$9+W4*COS(D65/180*PI()))))) -> 
E66: =V4 ->  | F66: =X4*COS(F$62/180*PI()) ->  | N66: =-AF4 ->  | O66: =AE4*COS((O$62/180*PI())-ATAN((AE4*SIN(O$62/180*PI())/($C$9+AE4*COS(O$62/180*PI()))))) ->  | P66: =AD4*COS((P$62/180*PI())-ATAN((AD4*SIN(P$62/180*PI())/($C$9+AD4*COS(P$62/180*PI()))))) ->  | Q66: =AC4*COS((Q$62/180*PI())-ATAN((AC4*SIN(Q$62/180*PI())/($C$9+AC4*COS(Q$62/180*PI()))))) ->  | R66: =AB4*COS((R$62/180*PI())-ATAN((AB4*SIN(R$62/180*PI())/($C$9+AB4*COS(R$62/180*PI()))))) ->  | S66: =AA4*COS((S$62/180*PI())-ATAN((AA4*SIN(S$62/180*PI())/($C$9+AA4*COS(S$62/180*PI()))))) ->  | T66: =Z4*COS((T$62/180*PI())-ATAN((Z4*SIN(T$62/180*PI())/($C$9+Z4*COS(T$62/180*PI()))))) ->  | U66: =Y4*COS((U$62/180*PI())-ATAN((Y4*SIN(U$62/180*PI())/($C$9+Y4*COS(U$62/180*PI()))))) ->  | V66: =X4*COS((V$62/180*PI())-ATAN((X4*SIN(V$62/180*PI())/($C$9+X4*COS(V$62/180*PI()))))) ->  | W66: =W4*COS((D65/180*PI())-ATAN((W4*SIN(D65/180*PI())/($C$9+W4*COS(D65/180*PI()))))) -> 
D67: =R5 ->  | E67: =W5*SIN(D67/180*PI()) ->  | F67: =X5*SIN(F$62/180*PI()) ->  | N67: 0 | O67: =-AE5*SIN((O$62/180*PI())-ATAN((AE5*SIN(O$62/180*PI())/($C$9+AE5*COS(O$62/180*PI()))))) ->  | P67: =-AD5*SIN((P$62/180*PI())-ATAN((AD5*SIN(P$62/180*PI())/($C$9+AD5*COS(P$62/180*PI()))))) ->  | Q67: =-AC5*SIN((Q$62/180*PI())-ATAN((AC5*SIN(Q$62/180*PI())/($C$9+AC5*COS(Q$62/180*PI()))))) ->  | R67: =-AB5*SIN((R$62/180*PI())-ATAN((AB5*SIN(R$62/180*PI())/($C$9+AB5*COS(R$62/180*PI()))))) ->  | S67: =-AA5*SIN((S$62/180*PI())-ATAN((AA5*SIN(S$62/180*PI())/($C$9+AA5*COS(S$62/180*PI()))))) ->  | T67: =-Z5*SIN((T$62/180*PI())-ATAN((Z5*SIN(T$62/180*PI())/($C$9+Z5*COS(T$62/180*PI()))))) ->  | U67: =-Y5*SIN((U$62/180*PI())-ATAN((Y5*SIN(U$62/180*PI())/($C$9+Y5*COS(U$62/180*PI()))))) ->  | V67: =-X5*SIN((V$62/180*PI())-ATAN((X5*SIN(V$62/180*PI())/($C$9+X5*COS(V$62/180*PI()))))) ->  | W67: =-W5*SIN((D67/180*PI())-ATAN((W5*SIN(D67/180*PI())/($C$9+W5*COS(D67/180*PI()))))) -> 
E68: =V5 ->  | F68: =X5*COS(F$62/180*PI()) ->  | N68: =-AF5 ->  | O68: =AE5*COS((O$62/180*PI())-ATAN((AE5*SIN(O$62/180*PI())/($C$9+AE5*COS(O$62/180*PI()))))) ->  | P68: =AD5*COS((P$62/180*PI())-ATAN((AD5*SIN(P$62/180*PI())/($C$9+AD5*COS(P$62/180*PI()))))) ->  | Q68: =AC5*COS((Q$62/180*PI())-ATAN((AC5*SIN(Q$62/180*PI())/($C$9+AC5*COS(Q$62/180*PI()))))) ->  | R68: =AB5*COS((R$62/180*PI())-ATAN((AB5*SIN(R$62/180*PI())/($C$9+AB5*COS(R$62/180*PI()))))) ->  | S68: =AA5*COS((S$62/180*PI())-ATAN((AA5*SIN(S$62/180*PI())/($C$9+AA5*COS(S$62/180*PI()))))) ->  | T68: =Z5*COS((T$62/180*PI())-ATAN((Z5*SIN(T$62/180*PI())/($C$9+Z5*COS(T$62/180*PI()))))) ->  | U68: =Y5*COS((U$62/180*PI())-ATAN((Y5*SIN(U$62/180*PI())/($C$9+Y5*COS(U$62/180*PI()))))) ->  | V68: =X5*COS((V$62/180*PI())-ATAN((X5*SIN(V$62/180*PI())/($C$9+X5*COS(V$62/180*PI()))))) ->  | W68: =W5*COS((D67/180*PI())-ATAN((W5*SIN(D67/180*PI())/($C$9+W5*COS(D67/180*PI()))))) -> 
D69: =R6 ->  | E69: =W6*SIN(D69/180*PI()) ->  | F69: =X6*SIN(F$62/180*PI()) ->  | N69: 0 | O69: =-AE6*SIN((O$62/180*PI())-ATAN((AE6*SIN(O$62/180*PI())/($C$9+AE6*COS(O$62/180*PI()))))) ->  | P69: =-AD6*SIN((P$62/180*PI())-ATAN((AD6*SIN(P$62/180*PI())/($C$9+AD6*COS(P$62/180*PI()))))) ->  | Q69: =-AC6*SIN((Q$62/180*PI())-ATAN((AC6*SIN(Q$62/180*PI())/($C$9+AC6*COS(Q$62/180*PI()))))) ->  | R69: =-AB6*SIN((R$62/180*PI())-ATAN((AB6*SIN(R$62/180*PI())/($C$9+AB6*COS(R$62/180*PI()))))) ->  | S69: =-AA6*SIN((S$62/180*PI())-ATAN((AA6*SIN(S$62/180*PI())/($C$9+AA6*COS(S$62/180*PI()))))) ->  | T69: =-Z6*SIN((T$62/180*PI())-ATAN((Z6*SIN(T$62/180*PI())/($C$9+Z6*COS(T$62/180*PI()))))) ->  | U69: =-Y6*SIN((U$62/180*PI())-ATAN((Y6*SIN(U$62/180*PI())/($C$9+Y6*COS(U$62/180*PI()))))) ->  | V69: =-X6*SIN((V$62/180*PI())-ATAN((X6*SIN(V$62/180*PI())/($C$9+X6*COS(V$62/180*PI()))))) ->  | W69: =-W6*SIN((D69/180*PI())-ATAN((W6*SIN(D69/180*PI())/($C$9+W6*COS(D69/180*PI()))))) -> 
E70: =V6 ->  | F70: =X6*COS(F$62/180*PI()) ->  | N70: =-AF6 ->  | O70: =AE6*COS((O$62/180*PI())-ATAN((AE6*SIN(O$62/180*PI())/($C$9+AE6*COS(O$62/180*PI()))))) ->  | P70: =AD6*COS((P$62/180*PI())-ATAN((AD6*SIN(P$62/180*PI())/($C$9+AD6*COS(P$62/180*PI()))))) ->  | Q70: =AC6*COS((Q$62/180*PI())-ATAN((AC6*SIN(Q$62/180*PI())/($C$9+AC6*COS(Q$62/180*PI()))))) ->  | R70: =AB6*COS((R$62/180*PI())-ATAN((AB6*SIN(R$62/180*PI())/($C$9+AB6*COS(R$62/180*PI()))))) ->  | S70: =AA6*COS((S$62/180*PI())-ATAN((AA6*SIN(S$62/180*PI())/($C$9+AA6*COS(S$62/180*PI()))))) ->  | T70: =Z6*COS((T$62/180*PI())-ATAN((Z6*SIN(T$62/180*PI())/($C$9+Z6*COS(T$62/180*PI()))))) ->  | U70: =Y6*COS((U$62/180*PI())-ATAN((Y6*SIN(U$62/180*PI())/($C$9+Y6*COS(U$62/180*PI()))))) ->  | V70: =X6*COS((V$62/180*PI())-ATAN((X6*SIN(V$62/180*PI())/($C$9+X6*COS(V$62/180*PI()))))) ->  | W70: =W6*COS((D69/180*PI())-ATAN((W6*SIN(D69/180*PI())/($C$9+W6*COS(D69/180*PI()))))) -> 
D71: =R7 ->  | E71: =W7*SIN(D71/180*PI()) ->  | F71: =X7*SIN(F$62/180*PI()) ->  | N71: 0 | O71: =-AE7*SIN((O$62/180*PI())-ATAN((AE7*SIN(O$62/180*PI())/($C$9+AE7*COS(O$62/180*PI()))))) ->  | P71: =-AD7*SIN((P$62/180*PI())-ATAN((AD7*SIN(P$62/180*PI())/($C$9+AD7*COS(P$62/180*PI()))))) ->  | Q71: =-AC7*SIN((Q$62/180*PI())-ATAN((AC7*SIN(Q$62/180*PI())/($C$9+AC7*COS(Q$62/180*PI()))))) ->  | R71: =-AB7*SIN((R$62/180*PI())-ATAN((AB7*SIN(R$62/180*PI())/($C$9+AB7*COS(R$62/180*PI()))))) ->  | S71: =-AA7*SIN((S$62/180*PI())-ATAN((AA7*SIN(S$62/180*PI())/($C$9+AA7*COS(S$62/180*PI()))))) ->  | T71: =-Z7*SIN((T$62/180*PI())-ATAN((Z7*SIN(T$62/180*PI())/($C$9+Z7*COS(T$62/180*PI()))))) ->  | U71: =-Y7*SIN((U$62/180*PI())-ATAN((Y7*SIN(U$62/180*PI())/($C$9+Y7*COS(U$62/180*PI()))))) ->  | V71: =-X7*SIN((V$62/180*PI())-ATAN((X7*SIN(V$62/180*PI())/($C$9+X7*COS(V$62/180*PI()))))) ->  | W71: =-W7*SIN((D71/180*PI())-ATAN((W7*SIN(D71/180*PI())/($C$9+W7*COS(D71/180*PI()))))) -> 
E72: =V7 ->  | F72: =X7*COS(F$62/180*PI()) ->  | N72: =-AF7 ->  | O72: =AE7*COS((O$62/180*PI())-ATAN((AE7*SIN(O$62/180*PI())/($C$9+AE7*COS(O$62/180*PI()))))) ->  | P72: =AD7*COS((P$62/180*PI())-ATAN((AD7*SIN(P$62/180*PI())/($C$9+AD7*COS(P$62/180*PI()))))) ->  | Q72: =AC7*COS((Q$62/180*PI())-ATAN((AC7*SIN(Q$62/180*PI())/($C$9+AC7*COS(Q$62/180*PI()))))) ->  | R72: =AB7*COS((R$62/180*PI())-ATAN((AB7*SIN(R$62/180*PI())/($C$9+AB7*COS(R$62/180*PI()))))) ->  | S72: =AA7*COS((S$62/180*PI())-ATAN((AA7*SIN(S$62/180*PI())/($C$9+AA7*COS(S$62/180*PI()))))) ->  | T72: =Z7*COS((T$62/180*PI())-ATAN((Z7*SIN(T$62/180*PI())/($C$9+Z7*COS(T$62/180*PI()))))) ->  | U72: =Y7*COS((U$62/180*PI())-ATAN((Y7*SIN(U$62/180*PI())/($C$9+Y7*COS(U$62/180*PI()))))) ->  | V72: =X7*COS((V$62/180*PI())-ATAN((X7*SIN(V$62/180*PI())/($C$9+X7*COS(V$62/180*PI()))))) ->  | W72: =W7*COS((D71/180*PI())-ATAN((W7*SIN(D71/180*PI())/($C$9+W7*COS(D71/180*PI()))))) -> 
D73: =R8 ->  | E73: =W8*SIN(D73/180*PI()) ->  | F73: =X8*SIN(F$62/180*PI()) ->  | N73: 0 | O73: =-AE8*SIN((O$62/180*PI())-ATAN((AE8*SIN(O$62/180*PI())/($C$9+AE8*COS(O$62/180*PI()))))) ->  | P73: =-AD8*SIN((P$62/180*PI())-ATAN((AD8*SIN(P$62/180*PI())/($C$9+AD8*COS(P$62/180*PI()))))) ->  | Q73: =-AC8*SIN((Q$62/180*PI())-ATAN((AC8*SIN(Q$62/180*PI())/($C$9+AC8*COS(Q$62/180*PI()))))) ->  | R73: =-AB8*SIN((R$62/180*PI())-ATAN((AB8*SIN(R$62/180*PI())/($C$9+AB8*COS(R$62/180*PI()))))) ->  | S73: =-AA8*SIN((S$62/180*PI())-ATAN((AA8*SIN(S$62/180*PI())/($C$9+AA8*COS(S$62/180*PI()))))) ->  | T73: =-Z8*SIN((T$62/180*PI())-ATAN((Z8*SIN(T$62/180*PI())/($C$9+Z8*COS(T$62/180*PI()))))) ->  | U73: =-Y8*SIN((U$62/180*PI())-ATAN((Y8*SIN(U$62/180*PI())/($C$9+Y8*COS(U$62/180*PI()))))) ->  | V73: =-X8*SIN((V$62/180*PI())-ATAN((X8*SIN(V$62/180*PI())/($C$9+X8*COS(V$62/180*PI()))))) ->  | W73: =-W8*SIN((D73/180*PI())-ATAN((W8*SIN(D73/180*PI())/($C$9+W8*COS(D73/180*PI()))))) -> 
A74: =3600/1259.6/COS(45/180*PI()) -> 4.041893319 | E74: =V8 ->  | F74: =X8*COS(F$62/180*PI()) ->  | N74: =-AF8 ->  | O74: =AE8*COS((O$62/180*PI())-ATAN((AE8*SIN(O$62/180*PI())/($C$9+AE8*COS(O$62/180*PI()))))) ->  | P74: =AD8*COS((P$62/180*PI())-ATAN((AD8*SIN(P$62/180*PI())/($C$9+AD8*COS(P$62/180*PI()))))) ->  | Q74: =AC8*COS((Q$62/180*PI())-ATAN((AC8*SIN(Q$62/180*PI())/($C$9+AC8*COS(Q$62/180*PI()))))) ->  | R74: =AB8*COS((R$62/180*PI())-ATAN((AB8*SIN(R$62/180*PI())/($C$9+AB8*COS(R$62/180*PI()))))) ->  | S74: =AA8*COS((S$62/180*PI())-ATAN((AA8*SIN(S$62/180*PI())/($C$9+AA8*COS(S$62/180*PI()))))) ->  | T74: =Z8*COS((T$62/180*PI())-ATAN((Z8*SIN(T$62/180*PI())/($C$9+Z8*COS(T$62/180*PI()))))) ->  | U74: =Y8*COS((U$62/180*PI())-ATAN((Y8*SIN(U$62/180*PI())/($C$9+Y8*COS(U$62/180*PI()))))) ->  | V74: =X8*COS((V$62/180*PI())-ATAN((X8*SIN(V$62/180*PI())/($C$9+X8*COS(V$62/180*PI()))))) ->  | W74: =W8*COS((D73/180*PI())-ATAN((W8*SIN(D73/180*PI())/($C$9+W8*COS(D73/180*PI()))))) -> 
A75: =3600/1259.6 -> 2.858050175
D77: données bateau N°1 | S77: vent apparent | AD77: AWA
C78: Wind(kn) | D78: Up Angle | E78: 0 | F78: V@UA | G78: 52 | H78: 60 | I78: 75 | J78: 90 | K78: 110 | L78: 120 | M78: 135 | N78: 150 | O78: 180 | P78: V@DA | Q78: DA | S78: UA | T78: 52 | U78: 60 | V78: 75 | W78: 90 | X78: 110 | Y78: 120 | Z78: 135 | AA78: 150 | AB78: DA | AD78: UA | AE78: 52 | AF78: 60 | AG78: 75 | AH78: 90 | AI78: 110 | AJ78: 120 | AK78: 135 | AL78: 150 | AM78: DA
B79: Wind=1 | C79: 6 | D79: =OFFSET(ORC!$BK$6,($C$3-6),(0)) -> 43 | E79: =3600/OFFSET(ORC!$BY$6,($C$3-6),(0)) -> 2.358336063 | F79: =3600/OFFSET(ORC!$BY$6,($C$3-6),(0))/COS(D79/180*PI()) -> 3.224617661 | G79: =3600/OFFSET(ORC!$CF$6,($C$3-6),(0)) -> 3.593172971 | H79: =3600/OFFSET(ORC!$CM$6,($C$3-6),(0)) -> 3.789473684 | I79: =3600/OFFSET(ORC!$CT$6,($C$3-6),(0)) -> 3.941749699 | J79: =3600/OFFSET(ORC!$DA$6,($C$3-6),(0)) -> 4.085338175 | K79: =3600/OFFSET(ORC!$DH$6,($C$3-6),(0)) -> 4.189944134 | L79: =3600/OFFSET(ORC!$DO$6,($C$3-6),(0)) -> 4.073319756 | M79: =3600/OFFSET(ORC!$DV$6,($C$3-6),(0)) -> 3.703322703 | N79: =3600/OFFSET(ORC!$EC$6,($C$3-6),(0)) -> 3.212851406 | O79: =3600/OFFSET(ORC!$EJ$6,($C$3-6),(0)) -> 2.782286112 | P79: =Main!O79/COS((180-Main!Q79)/180*PI()) -> 3.263142212 | Q79: =OFFSET(ORC!$BR$6,($C$3-6),(0)) -> 148.5 | S79: =SQRT(SUMSQ(($C79*SIN(D79/180*PI())),(F79+$C79*COS(D79/180*PI())))) -> 8.642811569 | T79: =SQRT(SUMSQ(($C79*SIN(G$78/180*PI())),(G79+$C79*COS(G$78/180*PI())))) -> 8.686600605 | U79: 8.549675603 | V79: 7.986224978 | W79: 7.258786951 | X79: 6.029849777 | Y79: 5.305847274 | Z79: 4.276781955 | AA79: 3.596315187 | AB79: =SQRT(SUMSQ(($C79*SIN(Q79/180*PI())),(P79+$C79*COS(Q79/180*PI())))) -> 3.641519429 | AD79: =DEGREES(ACOS((F79+$C79*COS(D79/180*PI()))/S79)) -> 28.25886159 | AE79: =DEGREES(ACOS((G79+$C79*COS(G$78/180*PI()))/T79)) -> 32.97643072 | AF79: 37.42772534 | AG79: 46.52660493 | AH79: 55.74945464 | AI79: 69.23474192 | AJ79: 78.32909695 | AK79: 97.24449692 | AL79: 123.4687043 | AM79: =DEGREES(ACOS((P79+$C79*COS(Q79/180*PI()))/AB79)) -> 120.5819884
B80: Wind=2 | C80: 8 | D80: =OFFSET(ORC!$BK$6,($C$3-6),(1)) -> 41.5 | E80: =3600/OFFSET(ORC!$BY$6,($C$3-6),(1)) -> 2.888550108 | F80: =3600/OFFSET(ORC!$BY$6,($C$3-6),(1))/COS(D80/180*PI()) -> 3.856770204 | G80: =3600/OFFSET(ORC!$CF$6,($C$3-6),(1)) -> 4.316029253 | H80: =3600/OFFSET(ORC!$CM$6,($C$3-6),(1)) -> 4.523181304 | I80: =3600/OFFSET(ORC!$CT$6,($C$3-6),(1)) -> 4.702808622 | J80: =3600/OFFSET(ORC!$DA$6,($C$3-6),(1)) -> 5.009741163 | K80: =3600/OFFSET(ORC!$DH$6,($C$3-6),(1)) -> 5.128205128 | L80: =3600/OFFSET(ORC!$DO$6,($C$3-6),(1)) -> 5 | M80: =3600/OFFSET(ORC!$DV$6,($C$3-6),(1)) -> 4.59887583 | N80: =3600/OFFSET(ORC!$EC$6,($C$3-6),(1)) -> 4.085338175 | O80: =3600/OFFSET(ORC!$EJ$6,($C$3-6),(1)) -> 3.54679803 | P80: =Main!O80/COS((180-Main!Q80)/180*PI()) -> 4.002238439 | Q80: =OFFSET(ORC!$BR$6,($C$3-6),(1)) -> 152.4 | S80: =SQRT(SUMSQ(($C80*SIN(D80/180*PI())),(F80+$C80*COS(D80/180*PI())))) -> 11.18443017 | T80: 11.18675626 | U80: 10.98383446 | V80: 10.27575943 | W80: 9.439147553 | X80: 7.888935073 | Y80: 7 | Z80: 5.754938604 | AA80: 4.907329388 | AB80: =SQRT(SUMSQ(($C80*SIN(Q80/180*PI())),(P80+$C80*COS(Q80/180*PI())))) -> 4.823810117 | AD80: 28.29158671 | AE80: 34.30035635 | AF80: 39.10648381 | AG80: 48.76422276 | AH80: 57.94447548 | AI80: 72.34918972 | AJ80: 81.7867893 | AK80: 100.5934132 | AL80: 125.4020273 | AM80: =DEGREES(ACOS((P80+$C80*COS(Q80/180*PI()))/AB80)) -> 129.7941649
B81: Wind=3 | C81: 10 | D81: =OFFSET(ORC!$BK$6,($C$3-6),(2)) -> 41.3 | E81: =3600/OFFSET(ORC!$BY$6,($C$3-6),(2)) -> 3.267084127 | F81: =3600/OFFSET(ORC!$BY$6,($C$3-6),(2))/COS(D81/180*PI()) -> 4.348782248 | G81: =3600/OFFSET(ORC!$CF$6,($C$3-6),(2)) -> 4.891304348 | H81: =3600/OFFSET(ORC!$CM$6,($C$3-6),(2)) -> 5.1494779 | I81: =3600/OFFSET(ORC!$CT$6,($C$3-6),(2)) -> 5.370729524 | J81: =3600/OFFSET(ORC!$DA$6,($C$3-6),(2)) -> 5.718824464 | K81: =3600/OFFSET(ORC!$DH$6,($C$3-6),(2)) -> 5.796168089 | L81: =3600/OFFSET(ORC!$DO$6,($C$3-6),(2)) -> 5.717008099 | M81: =3600/OFFSET(ORC!$DV$6,($C$3-6),(2)) -> 5.401350338 | N81: =3600/OFFSET(ORC!$EC$6,($C$3-6),(2)) -> 4.843266514 | O81: =3600/OFFSET(ORC!$EJ$6,($C$3-6),(2)) -> 4.207573633 | P81: =Main!O81/COS((180-Main!Q81)/180*PI()) -> 4.63877559 | Q81: =OFFSET(ORC!$BR$6,($C$3-6),(2)) -> 155.1 | S81: 13.57400418 | T81: 13.57028413 | U81: 13.34211009 | V81: 12.51581709 | W81: 11.51976359 | X81: 9.692648746 | Y81: 8.68988496 | Z81: 7.265532083 | AA81: 6.290420793 | AB81: 6.112836193 | AD81: 29.09274536 | AE81: 35.49898058 | AF81: 40.47316122 | AG81: 50.51256852 | AH81: 60.23551868 | AI81: 75.81043679 | AJ81: 85.26710705 | AK81: 103.2860929 | AL81: 127.3580238 | AM81: 136.4669197
B82: Wind=4 | C82: 12 | D82: =OFFSET(ORC!$BK$6,($C$3-6),(3)) -> 41.7 | E82: =3600/OFFSET(ORC!$BY$6,($C$3-6),(3)) -> 3.603242919 | F82: =3600/OFFSET(ORC!$BY$6,($C$3-6),(3))/COS(D82/180*PI()) -> 4.82595587 | G82: =3600/OFFSET(ORC!$CF$6,($C$3-6),(3)) -> 5.394066527 | H82: =3600/OFFSET(ORC!$CM$6,($C$3-6),(3)) -> 5.604857543 | I82: =3600/OFFSET(ORC!$CT$6,($C$3-6),(3)) -> 5.763688761 | J82: =3600/OFFSET(ORC!$DA$6,($C$3-6),(3)) -> 6.046355391 | K82: =3600/OFFSET(ORC!$DH$6,($C$3-6),(3)) -> 6.134969325 | L82: =3600/OFFSET(ORC!$DO$6,($C$3-6),(3)) -> 6.080054045 | M82: =3600/OFFSET(ORC!$DV$6,($C$3-6),(3)) -> 5.889088827 | N82: =3600/OFFSET(ORC!$EC$6,($C$3-6),(3)) -> 5.510485229 | O82: =3600/OFFSET(ORC!$EJ$6,($C$3-6),(3)) -> 4.83546004 | P82: =Main!O82/COS((180-Main!Q82)/180*PI()) -> 4.914659593 | Q82: =OFFSET(ORC!$BR$6,($C$3-6),(3)) -> 169.7 | S82: 15.93008726 | T82: 15.89962291 | U82: 15.57795618 | V82: 14.5952789 | W82: 13.43720259 | X82: 11.45770721 | Y82: 10.39261318 | Z82: 8.873568377 | AA82: 7.735125259 | AB82: 7.218229558 | AD82: 30.07362311 | AE82: 36.49404265 | AF82: 41.84486973 | AG82: 52.57678337 | AH82: 63.25815801 | AI82: 79.79114635 | AJ82: 89.55864765 | AK82: 107.0122365 | AL82: 129.1330638 | AM82: 162.7074284
B83: Wind=5 | C83: 14 | D83: =OFFSET(ORC!$BK$6,($C$3-6),(4)) -> 41.2 | E83: =3600/OFFSET(ORC!$BY$6,($C$3-6),(4)) -> 3.902016042 | F83: =3600/OFFSET(ORC!$BY$6,($C$3-6),(4))/COS(D83/180*PI()) -> 5.185989798 | G83: =3600/OFFSET(ORC!$CF$6,($C$3-6),(4)) -> 5.695301376 | H83: =3600/OFFSET(ORC!$CM$6,($C$3-6),(4)) -> 5.857468272 | I83: =3600/OFFSET(ORC!$CT$6,($C$3-6),(4)) -> 5.99101348 | J83: =3600/OFFSET(ORC!$DA$6,($C$3-6),(4)) -> 6.243496358 | K83: =3600/OFFSET(ORC!$DH$6,($C$3-6),(4)) -> 6.412540078 | L83: =3600/OFFSET(ORC!$DO$6,($C$3-6),(4)) -> 6.359300477 | M83: =3600/OFFSET(ORC!$DV$6,($C$3-6),(4)) -> 6.182380216 | N83: =3600/OFFSET(ORC!$EC$6,($C$3-6),(4)) -> 5.916187346 | O83: =3600/OFFSET(ORC!$EJ$6,($C$3-6),(4)) -> 5.429864253 | P83: =Main!O83/COS((180-Main!Q83)/180*PI()) -> 5.429864253 | Q83: =OFFSET(ORC!$BR$6,($C$3-6),(4)) -> 180 | S83: 18.22500862 | T83: 18.07249379 | U83: 17.67242175 | V83: 16.59242952 | W83: 15.32909804 | X83: 13.25558636 | Y83: 12.14127242 | Z83: 10.57435302 | AA83: 9.356353656 | AB83: 8.570135747 | AD83: 30.39702114 | AE83: 37.62123433 | AF83: 43.31908961 | AG83: 54.58814559 | AH83: 65.96484779 | AI83: 82.96163889 | AJ83: 93.02492492 | AK83: 110.5804183 | AL83: 131.5692155 | AM83: 180
B84: Wind=6 | C84: 16 | D84: =OFFSET(ORC!$BK$6,($C$3-6),(5)) -> 40.4 | E84: =3600/OFFSET(ORC!$BY$6,($C$3-6),(5)) -> 4.097427726 | F84: =3600/OFFSET(ORC!$BY$6,($C$3-6),(5))/COS(D84/180*PI()) -> 5.380461738 | G84: =3600/OFFSET(ORC!$CF$6,($C$3-6),(5)) -> 5.864147255 | H84: =3600/OFFSET(ORC!$CM$6,($C$3-6),(5)) -> 6.012024048 | I84: =3600/OFFSET(ORC!$CT$6,($C$3-6),(5)) -> 6.164383562 | J84: =3600/OFFSET(ORC!$DA$6,($C$3-6),(5)) -> 6.330226833 | K84: =3600/OFFSET(ORC!$DH$6,($C$3-6),(5)) -> 6.676557864 | L84: =3600/OFFSET(ORC!$DO$6,($C$3-6),(5)) -> 6.650655829 | M84: =3600/OFFSET(ORC!$DV$6,($C$3-6),(5)) -> 6.456241033 | N84: =3600/OFFSET(ORC!$EC$6,($C$3-6),(5)) -> 6.182380216 | O84: =3600/OFFSET(ORC!$EJ$6,($C$3-6),(5)) -> 5.845104725 | P84: =Main!O84/COS((180-Main!Q84)/180*PI()) -> 5.845104725 | Q84: =OFFSET(ORC!$BR$6,($C$3-6),(5)) -> 180 | S84: 20.39772183 | T84: 20.14742586 | U84: 19.70626342 | V84: 18.57563836 | W84: 17.20673623 | X84: 15.08323148 | Y84: 13.92195136 | Z84: 12.31239173 | AA84: 11.08560683 | AB84: 10.15489528 | AD84: 30.5563889 | AE84: 38.74061208 | AF84: 44.68006313 | AG84: 56.30408239 | AH84: 68.41430763 | AI84: 85.42066771 | AJ84: 95.56195619 | AK84: 113.2359533 | AL84: 133.8085877 | AM84: 180
B85: Wind=7 | C85: 20 | D85: =OFFSET(ORC!$BK$6,($C$3-6),(6)) -> 40.2 | E85: =3600/OFFSET(ORC!$BY$6,($C$3-6),(6)) -> 4.182642036 | F85: =3600/OFFSET(ORC!$BY$6,($C$3-6),(6))/COS(D85/180*PI()) -> 5.476124356 | G85: =3600/OFFSET(ORC!$CF$6,($C$3-6),(6)) -> 5.988023952 | H85: =3600/OFFSET(ORC!$CM$6,($C$3-6),(6)) -> 6.181318681 | I85: =3600/OFFSET(ORC!$CT$6,($C$3-6),(6)) -> 6.4366172 | J85: =3600/OFFSET(ORC!$DA$6,($C$3-6),(6)) -> 6.551410373 | K85: =3600/OFFSET(ORC!$DH$6,($C$3-6),(6)) -> 7.006617361 | L85: =3600/OFFSET(ORC!$DO$6,($C$3-6),(6)) -> 7.137192704 | M85: =3600/OFFSET(ORC!$DV$6,($C$3-6),(6)) -> 7.001166861 | N85: =3600/OFFSET(ORC!$EC$6,($C$3-6),(6)) -> 6.697674419 | O85: =3600/OFFSET(ORC!$EJ$6,($C$3-6),(6)) -> 6.354810238 | P85: =Main!O85/COS((180-Main!Q85)/180*PI()) -> 6.354810238 | Q85: =OFFSET(ORC!$BR$6,($C$3-6),(6)) -> 180 | S85: 24.43959123 | T85: 24.15202388 | U85: 23.70306044 | V85: 22.5403373 | W85: 21.04568787 | X85: 18.79458741 | Y85: 17.55550243 | Z85: 15.84277232 | AA85: 14.58919446 | AB85: 13.64518976 | AD85: 31.88436292 | AE85: 40.73354909 | AF85: 46.94752381 | AG85: 58.98853422 | AH85: 71.86272961 | AI85: 89.49328427 | AJ85: 99.3852394 | AK85: 116.7911616 | AL85: 136.7298736 | AM85: 180
D87: Bateau N°1
E88: True Wind | O88: vent apparent
E89: V@UA | F89: 52 | G89: 60 | H89: 75 | I89: 90 | J89: 110 | K89: 120 | L89: 135 | M89: 150 | N89: VMG180 | O89: 150 | P89: 135 | Q89: 120 | R89: 110 | S89: 90 | T89: 75 | U89: 60 | V89: 52 | W89: V@UA
E90: =F79*SIN(D79/180*PI()) -> 2.199183957 | F90: =G79*SIN(G$78/180*PI()) -> 2.831458941 | G90: =H79*SIN(H$78/180*PI()) -> 3.281780477 | H90: 3.807437835 | I90: 4.085338175 | J90: 3.937259584 | K90: 3.527598386 | L90: 2.618644597 | M90: 1.606425703 | N90: 0 | O90: =-N79*SIN((O$89/180*PI())-ATAN((N79*SIN(O$89/180*PI())/(C79+N79*COS(O$89/180*PI()))))) -> -2.680119432 | P90: =-M79*SIN((P$89/180*PI())-ATAN((M79*SIN(P$89/180*PI())/(C79+M79*COS(P$89/180*PI()))))) -> -3.673759323 | Q90: =-L79*SIN((Q$89/180*PI())-ATAN((L79*SIN(Q$89/180*PI())/(C79+L79*COS(Q$89/180*PI()))))) -> -3.989106588 | R90: =-K79*SIN((R$89/180*PI())-ATAN((K79*SIN(R$89/180*PI())/(C79+K79*COS(R$89/180*PI()))))) -> -3.91776883 | S90: =-J79*SIN((S$89/180*PI())-ATAN((J79*SIN(S$89/180*PI())/(C79+J79*COS(S$89/180*PI()))))) -> -3.376876772 | T90: =-I79*SIN((T$89/180*PI())-ATAN((I79*SIN(T$89/180*PI())/(C79+I79*COS(T$89/180*PI()))))) -> -2.860503814 | U90: =-H79*SIN((U$89/180*PI())-ATAN((H79*SIN(U$89/180*PI())/(C79+H79*COS(U$89/180*PI()))))) -> -2.303091226 | V90: =-G79*SIN((V$89/180*PI())-ATAN((G79*SIN(V$89/180*PI())/(C79+G79*COS(V$89/180*PI()))))) -> -1.955742461 | W90: =-F79*SIN((D79/180*PI())-ATAN((F79*SIN(D79/180*PI())/(C79+F79*COS(D79/180*PI()))))) -> -1.526714268
E91: =E79 -> 2.358336063 | F91: =G79*COS(G$78/180*PI()) -> 2.212178173 | G91: =H79*COS(H$78/180*PI()) -> 1.894736842 | H91: 1.020199893 | I91: 2.502572877e-16 | J91: -1.433045293 | K91: -2.036659878 | L91: -2.618644597 | M91: -2.782410936 | N91: =-O79 -> -2.782286112 | O91: =N79*COS((O$89/180*PI())-ATAN((N79*SIN(O$89/180*PI())/(C79+N79*COS(O$89/180*PI()))))) -> -1.771827865 | P91: =M79*COS((P$89/180*PI())-ATAN((M79*SIN(P$89/180*PI())/(C79+M79*COS(P$89/180*PI()))))) -> -0.4670026563 | Q91: =L79*COS((Q$89/180*PI())-ATAN((L79*SIN(Q$89/180*PI())/(C79+L79*COS(Q$89/180*PI()))))) -> 0.8239917846 | R91: =K79*COS((R$89/180*PI())-ATAN((K79*SIN(R$89/180*PI())/(C79+K79*COS(R$89/180*PI()))))) -> 1.485503026 | S91: =J79*COS((S$89/180*PI())-ATAN((J79*SIN(S$89/180*PI())/(C79+J79*COS(S$89/180*PI()))))) -> 2.299280598 | T91: =I79*COS((T$89/180*PI())-ATAN((I79*SIN(T$89/180*PI())/(C79+I79*COS(T$89/180*PI()))))) -> 2.711993477 | U91: =H79*COS((U$89/180*PI())-ATAN((H79*SIN(U$89/180*PI())/(C79+H79*COS(U$89/180*PI()))))) -> 3.009299189 | V91: =G79*COS((V$89/180*PI())-ATAN((G79*SIN(V$89/180*PI())/(C79+G79*COS(V$89/180*PI()))))) -> 3.014293189 | W91: =F79*COS((D79/180*PI())-ATAN((F79*SIN(D79/180*PI())/(C79+F79*COS(D79/180*PI()))))) -> 2.840299738
E92: =F80*SIN(D80/180*PI()) -> 2.555573259 | F92: =G80*SIN(G$78/180*PI()) -> 3.401077464 | G92: 3.917189915 | H92: 4.542564304 | I92: 5.009741163 | J92: 4.818936517 | K92: 4.330127019 | L92: 3.251896285 | M92: 2.042669088 | N92: 0 | O92: =-N80*SIN((O$89/180*PI())-ATAN((N80*SIN(O$89/180*PI())/(C80+N80*COS(O$89/180*PI()))))) -> -3.329988963 | P92: =-M80*SIN((P$89/180*PI())-ATAN((M80*SIN(P$89/180*PI())/(C80+M80*COS(P$89/180*PI()))))) -> -4.520494843 | Q92: =-L80*SIN((Q$89/180*PI())-ATAN((L80*SIN(Q$89/180*PI())/(C80+L80*COS(Q$89/180*PI()))))) -> -4.948716593 | R92: =-K80*SIN((R$89/180*PI())-ATAN((K80*SIN(R$89/180*PI())/(C80+K80*COS(R$89/180*PI()))))) -> -4.886780253 | S92: =-J80*SIN((S$89/180*PI())-ATAN((J80*SIN(S$89/180*PI())/(C80+J80*COS(S$89/180*PI()))))) -> -4.245926773 | T92: =-I80*SIN((T$89/180*PI())-ATAN((I80*SIN(T$89/180*PI())/(C80+I80*COS(T$89/180*PI()))))) -> -3.536528338 | U92: =-H80*SIN((U$89/180*PI())-ATAN((H80*SIN(U$89/180*PI())/(C80+H80*COS(U$89/180*PI()))))) -> -2.853058231 | V92: =-G80*SIN((V$89/180*PI())-ATAN((G80*SIN(V$89/180*PI())/(C80+G80*COS(V$89/180*PI()))))) -> -2.432217087 | W92: =-F80*SIN((D80/180*PI())-ATAN((F80*SIN(D80/180*PI())/(C80+F80*COS(D80/180*PI()))))) -> -1.827950621
E93: =E80 -> 2.888550108 | F93: =G80*COS(G$78/180*PI()) -> 2.657212938 | G93: 2.261590652 | H93: 1.217176437 | I93: 3.068838323e-16 | J93: -1.753949453 | K93: -2.5 | L93: -3.251896285 | M93: -3.538006643 | N93: =-O80 -> -3.54679803 | O93: =N80*COS((O$89/180*PI())-ATAN((N80*SIN(O$89/180*PI())/(C80+N80*COS(O$89/180*PI()))))) -> -2.366677314 | P93: =M80*COS((P$89/180*PI())-ATAN((M80*SIN(P$89/180*PI())/(C80+M80*COS(P$89/180*PI()))))) -> -0.845449746 | Q93: =L80*COS((Q$89/180*PI())-ATAN((L80*SIN(Q$89/180*PI())/(C80+L80*COS(Q$89/180*PI()))))) -> 0.7142857143 | R93: =K80*COS((R$89/180*PI())-ATAN((K80*SIN(R$89/180*PI())/(C80+K80*COS(R$89/180*PI()))))) -> 1.554949065 | S93: =J80*COS((S$89/180*PI())-ATAN((J80*SIN(S$89/180*PI())/(C80+J80*COS(S$89/180*PI()))))) -> 2.658874266 | T93: =I80*COS((T$89/180*PI())-ATAN((I80*SIN(T$89/180*PI())/(C80+I80*COS(T$89/180*PI()))))) -> 3.099899393 | U93: =H80*COS((U$89/180*PI())-ATAN((H80*SIN(U$89/180*PI())/(C80+H80*COS(U$89/180*PI()))))) -> 3.509875759 | V93: =G80*COS((V$89/180*PI())-ATAN((G80*SIN(V$89/180*PI())/(C80+G80*COS(V$89/180*PI()))))) -> 3.565449278 | W93: =F80*COS((D80/180*PI())-ATAN((F80*SIN(D80/180*PI())/(C80+F80*COS(D80/180*PI()))))) -> 3.396067275
E94: =F81*SIN(D81/180*PI()) -> 2.870203537 | F94: =G81*SIN(G$78/180*PI()) -> 3.854400425 | G94: 4.459578678 | H94: 5.187726353 | I94: 5.718824464 | J94: 5.446616382 | K94: 4.951074247 | L94: 3.819331451 | M94: 2.421633257 | N94: 0 | O94: =-N81*SIN((O$89/180*PI())-ATAN((N81*SIN(O$89/180*PI())/(C81+N81*COS(O$89/180*PI()))))) -> -3.84971584 | P94: =-M81*SIN((P$89/180*PI())-ATAN((M81*SIN(P$89/180*PI())/(C81+M81*COS(P$89/180*PI()))))) -> -5.256781483 | Q94: =-L81*SIN((Q$89/180*PI())-ATAN((L81*SIN(Q$89/180*PI())/(C81+L81*COS(Q$89/180*PI()))))) -> -5.697514145 | R94: =-K81*SIN((R$89/180*PI())-ATAN((K81*SIN(R$89/180*PI())/(C81+K81*COS(R$89/180*PI()))))) -> -5.619327105 | S94: =-J81*SIN((S$89/180*PI())-ATAN((J81*SIN(S$89/180*PI())/(C81+J81*COS(S$89/180*PI()))))) -> -4.964359223 | T94: =-I81*SIN((T$89/180*PI())-ATAN((I81*SIN(T$89/180*PI())/(C81+I81*COS(T$89/180*PI()))))) -> -4.144936217 | U94: =-H81*SIN((U$89/180*PI())-ATAN((H81*SIN(U$89/180*PI())/(C81+H81*COS(U$89/180*PI()))))) -> -3.342483796 | V94: =-G81*SIN((V$89/180*PI())-ATAN((G81*SIN(V$89/180*PI())/(C81+G81*COS(V$89/180*PI()))))) -> -2.840324042 | W94: =-F81*SIN((D81/180*PI())-ATAN((F81*SIN(D81/180*PI())/(C81+F81*COS(D81/180*PI()))))) -> -2.114485526
E95: =E81 -> 3.267084127 | F95: =G81*COS(G$78/180*PI()) -> 3.011387651 | G95: 2.57473895 | H95: 1.390047087 | I95: 3.503204478e-16 | J95: -1.98240624 | K95: -2.85850405 | L95: -3.819331451 | M95: -4.194391839 | N95: =-O81 -> -4.207573633 | O95: =N81*COS((O$89/180*PI())-ATAN((N81*SIN(O$89/180*PI())/(C81+N81*COS(O$89/180*PI()))))) -> -2.938863467 | P95: =M81*COS((P$89/180*PI())-ATAN((M81*SIN(P$89/180*PI())/(C81+M81*COS(P$89/180*PI()))))) -> -1.241303313 | Q95: =L81*COS((Q$89/180*PI())-ATAN((L81*SIN(Q$89/180*PI())/(C81+L81*COS(Q$89/180*PI()))))) -> 0.4717140824 | R95: =K81*COS((R$89/180*PI())-ATAN((K81*SIN(R$89/180*PI())/(C81+K81*COS(R$89/180*PI()))))) -> 1.420819269 | S95: =J81*COS((S$89/180*PI())-ATAN((J81*SIN(S$89/180*PI())/(C81+J81*COS(S$89/180*PI()))))) -> 2.839029897 | T95: =I81*COS((T$89/180*PI())-ATAN((I81*SIN(T$89/180*PI())/(C81+I81*COS(T$89/180*PI()))))) -> 3.415294918 | U95: =H81*COS((U$89/180*PI())-ATAN((H81*SIN(U$89/180*PI())/(C81+H81*COS(U$89/180*PI()))))) -> 3.917259848 | V95: =G81*COS((V$89/180*PI())-ATAN((G81*SIN(V$89/180*PI())/(C81+G81*COS(V$89/180*PI()))))) -> 3.982137311 | W95: =F81*COS((D81/180*PI())-ATAN((F81*SIN(D81/180*PI())/(C81+F81*COS(D81/180*PI()))))) -> 3.800112893
E96: =F82*SIN(D82/180*PI()) -> 3.210372335 | F96: =G82*SIN(G$78/180*PI()) -> 4.250582429 | G96: 4.853949017 | H96: 5.567295829 | I96: 6.046355391 | J96: 5.764985404 | K96: 5.265481259 | L96: 4.164214645 | M96: 2.755242614 | N96: 0 | O96: =-N82*SIN((O$89/180*PI())-ATAN((N82*SIN(O$89/180*PI())/(C82+N82*COS(O$89/180*PI()))))) -> -4.274386033 | P96: =-M82*SIN((P$89/180*PI())-ATAN((M82*SIN(P$89/180*PI())/(C82+M82*COS(P$89/180*PI()))))) -> -5.631395805 | Q96: =-L82*SIN((Q$89/180*PI())-ATAN((L82*SIN(Q$89/180*PI())/(C82+L82*COS(Q$89/180*PI()))))) -> -6.07987366 | R96: =-K82*SIN((R$89/180*PI())-ATAN((K82*SIN(R$89/180*PI())/(C82+K82*COS(R$89/180*PI()))))) -> -6.037841915 | S96: =-J82*SIN((S$89/180*PI())-ATAN((J82*SIN(S$89/180*PI())/(C82+J82*COS(S$89/180*PI()))))) -> -5.399655486 | T96: =-I82*SIN((T$89/180*PI())-ATAN((I82*SIN(T$89/180*PI())/(C82+I82*COS(T$89/180*PI()))))) -> -4.577339727 | U96: =-H82*SIN((U$89/180*PI())-ATAN((H82*SIN(U$89/180*PI())/(C82+H82*COS(U$89/180*PI()))))) -> -3.739090517 | V96: =-G82*SIN((V$89/180*PI())-ATAN((G82*SIN(V$89/180*PI())/(C82+G82*COS(V$89/180*PI()))))) -> -3.208062823 | W96: =-F82*SIN((D82/180*PI())-ATAN((F82*SIN(D82/180*PI())/(C82+F82*COS(D82/180*PI()))))) -> -2.418346327
E97: =E82 -> 3.603242919 | F97: =G82*COS(G$78/180*PI()) -> 3.320918956 | G97: 2.802428772 | H97: 1.491752421 | I97: 3.703841483e-16 | J97: -2.098283088 | K97: -3.040027022 | L97: -4.164214645 | M97: -4.772220195 | N97: =-O82 -> -4.83546004 | O97: =N82*COS((O$89/180*PI())-ATAN((N82*SIN(O$89/180*PI())/(C82+N82*COS(O$89/180*PI()))))) -> -3.477796931 | P97: =M82*COS((P$89/180*PI())-ATAN((M82*SIN(P$89/180*PI())/(C82+M82*COS(P$89/180*PI()))))) -> -1.723005658 | Q97: =L82*COS((Q$89/180*PI())-ATAN((L82*SIN(Q$89/180*PI())/(C82+L82*COS(Q$89/180*PI()))))) -> 0.04683450749 | R97: =K82*COS((R$89/180*PI())-ATAN((K82*SIN(R$89/180*PI())/(C82+K82*COS(R$89/180*PI()))))) -> 1.087342462 | S97: =J82*COS((S$89/180*PI())-ATAN((J82*SIN(S$89/180*PI())/(C82+J82*COS(S$89/180*PI()))))) -> 2.720686338 | T97: =I82*COS((T$89/180*PI())-ATAN((I82*SIN(T$89/180*PI())/(C82+I82*COS(T$89/180*PI()))))) -> 3.502580357 | U97: =H82*COS((U$89/180*PI())-ATAN((H82*SIN(U$89/180*PI())/(C82+H82*COS(U$89/180*PI()))))) -> 4.175359887 | V97: =G82*COS((V$89/180*PI())-ATAN((G82*SIN(V$89/180*PI())/(C82+G82*COS(V$89/180*PI()))))) -> 4.336390967 | W97: =F82*COS((D82/180*PI())-ATAN((F82*SIN(D82/180*PI())/(C82+F82*COS(D82/180*PI()))))) -> 4.176296338
E98: =F83*SIN(D83/180*PI()) -> 3.41595682 | F98: =G83*SIN(G$78/180*PI()) -> 4.48795873 | G98: 5.072716325 | H98: 5.786874646 | I98: 6.243496358 | J98: 6.025816592 | K98: 5.507315763 | L98: 4.371602975 | M98: 2.958093673 | N98: 0 | O98: =-N83*SIN((O$89/180*PI())-ATAN((N83*SIN(O$89/180*PI())/(C83+N83*COS(O$89/180*PI()))))) -> -4.426223393 | P98: =-M83*SIN((P$89/180*PI())-ATAN((M83*SIN(P$89/180*PI())/(C83+M83*COS(P$89/180*PI()))))) -> -5.78781903 | Q98: =-L83*SIN((Q$89/180*PI())-ATAN((L83*SIN(Q$89/180*PI())/(C83+L83*COS(Q$89/180*PI()))))) -> -6.350439892 | R98: =-K83*SIN((R$89/180*PI())-ATAN((K83*SIN(R$89/180*PI())/(C83+K83*COS(R$89/180*PI()))))) -> -6.36421732 | S98: =-J83*SIN((S$89/180*PI())-ATAN((J83*SIN(S$89/180*PI())/(C83+J83*COS(S$89/180*PI()))))) -> -5.702158651 | T98: =-I83*SIN((T$89/180*PI())-ATAN((I83*SIN(T$89/180*PI())/(C83+I83*COS(T$89/180*PI()))))) -> -4.88272347 | U98: =-H83*SIN((U$89/180*PI())-ATAN((H83*SIN(U$89/180*PI())/(C83+H83*COS(U$89/180*PI()))))) -> -4.01857932 | V98: =-G83*SIN((V$89/180*PI())-ATAN((G83*SIN(V$89/180*PI())/(C83+G83*COS(V$89/180*PI()))))) -> -3.476632663 | W98: =-F83*SIN((D83/180*PI())-ATAN((F83*SIN(D83/180*PI())/(C83+F83*COS(D83/180*PI()))))) -> -2.62405338
E99: =E83 -> 3.902016042 | F99: =G83*COS(G$78/180*PI()) -> 3.506377648 | G99: 2.928734136 | H99: 1.550588388 | I99: 3.824604958e-16 | J99: -2.193217877 | K99: -3.179650238 | L99: -4.371602975 | M99: -5.123568535 | N99: =-O83 -> -5.429864253 | O99: =N83*COS((O$89/180*PI())-ATAN((N83*SIN(O$89/180*PI())/(C83+N83*COS(O$89/180*PI()))))) -> -3.925534255 | P99: =M83*COS((P$89/180*PI())-ATAN((M83*SIN(P$89/180*PI())/(C83+M83*COS(P$89/180*PI()))))) -> -2.173240903 | Q99: =L83*COS((Q$89/180*PI())-ATAN((L83*SIN(Q$89/180*PI())/(C83+L83*COS(Q$89/180*PI()))))) -> -0.3355826838 | R99: =K83*COS((R$89/180*PI())-ATAN((K83*SIN(R$89/180*PI())/(C83+K83*COS(R$89/180*PI()))))) -> 0.7857532441 | S99: =J83*COS((S$89/180*PI())-ATAN((J83*SIN(S$89/180*PI())/(C83+J83*COS(S$89/180*PI()))))) -> 2.542957626 | T99: =I83*COS((T$89/180*PI())-ATAN((I83*SIN(T$89/180*PI())/(C83+I83*COS(T$89/180*PI()))))) -> 3.471491615 | U99: =H83*COS((U$89/180*PI())-ATAN((H83*SIN(U$89/180*PI())/(C83+H83*COS(U$89/180*PI()))))) -> 4.261567178 | V99: =G83*COS((V$89/180*PI())-ATAN((G83*SIN(V$89/180*PI())/(C83+G83*COS(V$89/180*PI()))))) -> 4.511040135 | W99: =F83*COS((D83/180*PI())-ATAN((F83*SIN(D83/180*PI())/(C83+F83*COS(D83/180*PI()))))) -> 4.473123522
E100: =F84*SIN(D84/180*PI()) -> 3.487184329 | F100: =G84*SIN(G$78/180*PI()) -> 4.621011098 | G100: 5.206565554 | H100: 5.954337285 | I100: 6.330226833 | J100: 6.273912157 | K100: 5.759636899 | L100: 4.565251815 | M100: 3.091190108 | N100: 0 | O100: =-N84*SIN((O$89/180*PI())-ATAN((N84*SIN(O$89/180*PI())/(C84+N84*COS(O$89/180*PI()))))) -> -4.461554743 | P100: =-M84*SIN((P$89/180*PI())-ATAN((M84*SIN(P$89/180*PI())/(C84+M84*COS(P$89/180*PI()))))) -> -5.93256214 | Q100: =-L84*SIN((Q$89/180*PI())-ATAN((L84*SIN(Q$89/180*PI())/(C84+L84*COS(Q$89/180*PI()))))) -> -6.619344372 | R100: =-K84*SIN((R$89/180*PI())-ATAN((K84*SIN(R$89/180*PI())/(C84+K84*COS(R$89/180*PI()))))) -> -6.655244574 | S100: =-J84*SIN((S$89/180*PI())-ATAN((J84*SIN(S$89/180*PI())/(C84+J84*COS(S$89/180*PI()))))) -> -5.886277791 | T100: =-I84*SIN((T$89/180*PI())-ATAN((I84*SIN(T$89/180*PI())/(C84+I84*COS(T$89/180*PI()))))) -> -5.128728 | U100: =-H84*SIN((U$89/180*PI())-ATAN((H84*SIN(U$89/180*PI())/(C84+H84*COS(U$89/180*PI()))))) -> -4.227338643 | V100: =-G84*SIN((V$89/180*PI())-ATAN((G84*SIN(V$89/180*PI())/(C84+G84*COS(V$89/180*PI()))))) -> -3.669758017 | W100: =-F84*SIN((D84/180*PI())-ATAN((F84*SIN(D84/180*PI())/(C84+F84*COS(D84/180*PI()))))) -> -2.735352004
E101: =E84 -> 4.097427726 | F101: =G84*COS(G$78/180*PI()) -> 3.610329551 | G101: 3.006012024 | H101: 1.595459867 | I101: 3.877733812e-16 | J101: -2.283517277 | K101: -3.325327914 | L101: -4.565251815 | M101: -5.354098323 | N101: =-O84 -> -5.845104725 | O101: =N84*COS((O$89/180*PI())-ATAN((N84*SIN(O$89/180*PI())/(C84+N84*COS(O$89/180*PI()))))) -> -4.279761023 | P101: =M84*COS((P$89/180*PI())-ATAN((M84*SIN(P$89/180*PI())/(C84+M84*COS(P$89/180*PI()))))) -> -2.54710713 | Q101: =L84*COS((Q$89/180*PI())-ATAN((L84*SIN(Q$89/180*PI())/(C84+L84*COS(Q$89/180*PI()))))) -> -0.6445952472 | R101: =K84*COS((R$89/180*PI())-ATAN((K84*SIN(R$89/180*PI())/(C84+K84*COS(R$89/180*PI()))))) -> 0.5330521165 | S101: =J84*COS((S$89/180*PI())-ATAN((J84*SIN(S$89/180*PI())/(C84+J84*COS(S$89/180*PI()))))) -> 2.328842101 | T101: =I84*COS((T$89/180*PI())-ATAN((I84*SIN(T$89/180*PI())/(C84+I84*COS(T$89/180*PI()))))) -> 3.419908449 | U101: =H84*COS((U$89/180*PI())-ATAN((H84*SIN(U$89/180*PI())/(C84+H84*COS(U$89/180*PI()))))) -> 4.274814751 | V101: =G84*COS((V$89/180*PI())-ATAN((G84*SIN(V$89/180*PI())/(C84+G84*COS(V$89/180*PI()))))) -> 4.573958802 | W101: =F84*COS((D84/180*PI())-ATAN((F84*SIN(D84/180*PI())/(C84+F84*COS(D84/180*PI()))))) -> 4.633272918
E102: =F85*SIN(D85/180*PI()) -> 3.534606565 | F102: =G85*SIN(G$78/180*PI()) -> 4.718627267 | G102: 5.353179007 | H102: 6.217294787 | I102: 6.551410373 | J102: 6.584066631 | K102: 6.180990194 | L102: 4.950572564 | M102: 3.348837209 | N102: 0 | O102: =-N85*SIN((O$89/180*PI())-ATAN((N85*SIN(O$89/180*PI())/(C85+N85*COS(O$89/180*PI()))))) -> -4.590845943 | P102: =-M85*SIN((P$89/180*PI())-ATAN((M85*SIN(P$89/180*PI())/(C85+M85*COS(P$89/180*PI()))))) -> -6.249629122 | Q102: =-L85*SIN((Q$89/180*PI())-ATAN((L85*SIN(Q$89/180*PI())/(C85+L85*COS(Q$89/180*PI()))))) -> -7.041655706 | R102: =-K85*SIN((R$89/180*PI())-ATAN((K85*SIN(R$89/180*PI())/(C85+K85*COS(R$89/180*PI()))))) -> -7.006343355 | S102: =-J85*SIN((S$89/180*PI())-ATAN((J85*SIN(S$89/180*PI())/(C85+J85*COS(S$89/180*PI()))))) -> -6.225893317 | T102: =-I85*SIN((T$89/180*PI())-ATAN((I85*SIN(T$89/180*PI())/(C85+I85*COS(T$89/180*PI()))))) -> -5.516594277 | U102: =-H85*SIN((U$89/180*PI())-ATAN((H85*SIN(U$89/180*PI())/(C85+H85*COS(U$89/180*PI()))))) -> -4.516867364 | V102: =-G85*SIN((V$89/180*PI())-ATAN((G85*SIN(V$89/180*PI())/(C85+G85*COS(V$89/180*PI()))))) -> -3.907438392 | W102: =-F85*SIN((D85/180*PI())-ATAN((F85*SIN(D85/180*PI())/(C85+F85*COS(D85/180*PI()))))) -> -2.892525109
E103: =E85 -> 4.182642036 | F103: =G85*COS(G$78/180*PI()) -> 3.686595661 | G103: 3.090659341 | H103: 1.665919117 | I103: 4.013225148e-16 | J103: -2.396404274 | K103: -3.568596352 | L103: -4.950572564 | M103: -5.800356193 | N103: =-O85 -> -6.354810238 | O103: =N85*COS((O$89/180*PI())-ATAN((N85*SIN(O$89/180*PI())/(C85+N85*COS(O$89/180*PI()))))) -> -4.87677928 | P103: =M85*COS((P$89/180*PI())-ATAN((M85*SIN(P$89/180*PI())/(C85+M85*COS(P$89/180*PI()))))) -> -3.155704875 | Q103: =L85*COS((Q$89/180*PI())-ATAN((L85*SIN(Q$89/180*PI())/(C85+L85*COS(Q$89/180*PI()))))) -> -1.163874826 | R103: =K85*COS((R$89/180*PI())-ATAN((K85*SIN(R$89/180*PI())/(C85+K85*COS(R$89/180*PI()))))) -> 0.06196472081 | S103: =J85*COS((S$89/180*PI())-ATAN((J85*SIN(S$89/180*PI())/(C85+J85*COS(S$89/180*PI()))))) -> 2.039419103 | T103: =I85*COS((T$89/180*PI())-ATAN((I85*SIN(T$89/180*PI())/(C85+I85*COS(T$89/180*PI()))))) -> 3.316206955 | U103: =H85*COS((U$89/180*PI())-ATAN((H85*SIN(U$89/180*PI())/(C85+H85*COS(U$89/180*PI()))))) -> 4.219787892 | V103: =G85*COS((V$89/180*PI())-ATAN((G85*SIN(V$89/180*PI())/(C85+G85*COS(V$89/180*PI()))))) -> 4.537439373 | W103: =F85*COS((D85/180*PI())-ATAN((F85*SIN(D85/180*PI())/(C85+F85*COS(D85/180*PI()))))) -> 4.649864133
F106: Hulptabel voor TN berekening
G107: CR6 | H107: CR8 | I107: CR10 | J107: CR12 | K107: CR14 | L107: CR16 | M107: CR20 | O107: WL6 | P107: WL8 | Q107: WL10 | R107: WL12 | S107: WL14 | T107: WL16 | U107: WL20
G108: =IF($B$3=1,(0.242*OFFSET(#REF!,($C$3-1),(0))+0.0455*OFFSET(#REF!,($C$3-1),(0))+0.0657*OFFSET(#REF!,($C$3-1),(0))+0.0859*OFFSET(#REF!,($C$3-1),(0))+0.1002*OFFSET(#REF!,($C$3-1),(0))+0.0859*OFFSET(#REF!,($C$3-1),(0))+0.0716*OFFSET(#REF!,($C$3-1),(0))+0.0859*OFFSET(#REF!,($C$3-1),(0))+0.1301*OFFSET(#REF!,($C$3-1),(0))+0.0872*OFFSET(#REF!,($C$3-1),(0))),(0)) -> 0 | H108: =IF($B$3=1,(0.242*OFFSET(#REF!,($C$3-1),(0))+0.0455*OFFSET(#REF!,($C$3-1),(0))+0.0657*OFFSET(#REF!,($C$3-1),(0))+0.0859*OFFSET(#REF!,($C$3-1),(0))+0.1002*OFFSET(#REF!,($C$3-1),(0))+0.0859*OFFSET(#REF!,($C$3-1),(0))+0.0716*OFFSET(#REF!,($C$3-1),(0))+0.0859*OFFSET(#REF!,($C$3-1),(0))+0.1301*OFFSET(#REF!,($C$3-1),(0))+0.0872*OFFSET(#REF!,($C$3-1),(0))),(0)) -> 0 | I108: =IF($B$3=1,(0.242*OFFSET(#REF!,($C$3-1),(0))+0.0455*OFFSET(#REF!,($C$3-1),(0))+0.0657*OFFSET(#REF!,($C$3-1),(0))+0.0859*OFFSET(#REF!,($C$3-1),(0))+0.1002*OFFSET(#REF!,($C$3-1),(0))+0.0859*OFFSET(#REF!,($C$3-1),(0))+0.0716*OFFSET(#REF!,($C$3-1),(0))+0.0859*OFFSET(#REF!,($C$3-1),(0))+0.1301*OFFSET(#REF!,($C$3-1),(0))+0.0872*OFFSET(#REF!,($C$3-1),(0))),(0)) -> 0 | J108: =IF($B$3=1,(0.242*OFFSET(#REF!,($C$3-1),(0))+0.0455*OFFSET(#REF!,($C$3-1),(0))+0.0657*OFFSET(#REF!,($C$3-1),(0))+0.0859*OFFSET(#REF!,($C$3-1),(0))+0.1002*OFFSET(#REF!,($C$3-1),(0))+0.0859*OFFSET(#REF!,($C$3-1),(0))+0.0716*OFFSET(#REF!,($C$3-1),(0))+0.0859*OFFSET(#REF!,($C$3-1),(0))+0.1301*OFFSET(#REF!,($C$3-1),(0))+0.0872*OFFSET(#REF!,($C$3-1),(0))),(0)) -> 0 | K108: =IF($B$3=1,(0.242*OFFSET(#REF!,($C$3-1),(0))+0.0455*OFFSET(#REF!,($C$3-1),(0))+0.0657*OFFSET(#REF!,($C$3-1),(0))+0.0859*OFFSET(#REF!,($C$3-1),(0))+0.1002*OFFSET(#REF!,($C$3-1),(0))+0.0859*OFFSET(#REF!,($C$3-1),(0))+0.0716*OFFSET(#REF!,($C$3-1),(0))+0.0859*OFFSET(#REF!,($C$3-1),(0))+0.1301*OFFSET(#REF!,($C$3-1),(0))+0.0872*OFFSET(#REF!,($C$3-1),(0))),(0)) -> 0 | L108: =IF($B$3=1,(0.242*OFFSET(#REF!,($C$3-1),(0))+0.0455*OFFSET(#REF!,($C$3-1),(0))+0.0657*OFFSET(#REF!,($C$3-1),(0))+0.0859*OFFSET(#REF!,($C$3-1),(0))+0.1002*OFFSET(#REF!,($C$3-1),(0))+0.0859*OFFSET(#REF!,($C$3-1),(0))+0.0716*OFFSET(#REF!,($C$3-1),(0))+0.0859*OFFSET(#REF!,($C$3-1),(0))+0.1301*OFFSET(#REF!,($C$3-1),(0))+0.0872*OFFSET(#REF!,($C$3-1),(0))),(0)) -> 0 | M108: =IF($B$3=1,(0.242*OFFSET(#REF!,($C$3-1),(0))+0.0455*OFFSET(#REF!,($C$3-1),(0))+0.0657*OFFSET(#REF!,($C$3-1),(0))+0.0859*OFFSET(#REF!,($C$3-1),(0))+0.1002*OFFSET(#REF!,($C$3-1),(0))+0.0859*OFFSET(#REF!,($C$3-1),(0))+0.0716*OFFSET(#REF!,($C$3-1),(0))+0.0859*OFFSET(#REF!,($C$3-1),(0))+0.1301*OFFSET(#REF!,($C$3-1),(0))+0.0872*OFFSET(#REF!,($C$3-1),(0))),(0)) -> 0 | O108: =IF($B$3=1,(0.5*OFFSET(#REF!,($C$3-1),(0))+0.5*OFFSET(#REF!,($C$3-1),(0))),(0)) -> 0 | P108: =IF($B$3=1,(0.5*OFFSET(#REF!,($C$3-1),(0))+0.5*OFFSET(#REF!,($C$3-1),(0))),(0)) -> 0 | Q108: =IF($B$3=1,(0.5*OFFSET(#REF!,($C$3-1),(0))+0.5*OFFSET(#REF!,($C$3-1),(0))),(0)) -> 0 | R108: =IF($B$3=1,(0.5*OFFSET(#REF!,($C$3-1),(0))+0.5*OFFSET(#REF!,($C$3-1),(0))),(0)) -> 0 | S108: =IF($B$3=1,(0.5*OFFSET(#REF!,($C$3-1),(0))+0.5*OFFSET(#REF!,($C$3-1),(0))),(0)) -> 0 | T108: =IF($B$3=1,(0.5*OFFSET(#REF!,($C$3-1),(0))+0.5*OFFSET(#REF!,($C$3-1),(0))),(0)) -> 0 | U108: =IF($B$3=1,(0.5*OFFSET(#REF!,($C$3-1),(0))+0.5*OFFSET(#REF!,($C$3-1),(0))),(0)) -> 0
G110: CR-L | I110: CR-M | K110: CR-H | O110: WL-L | Q110: WL-M | S110: WL-H
E111: Tripple Numbers voor IMS boot op 1 => | G111: =IF($B$3=1,(675/(G108/2+H108/2)),(0)) -> 0 | I111: =IF($B$3=1,(675/(H108/12+I108/3+J108/3+K108/4)),(0)) -> 0 | K111: =IF($B$3=1,(675/(K108/4+3*L108/8+3*M108/8)),(0)) -> 0 | O111: =IF($B$3=1,(675/(O108/2+P108/2)),(0)) -> 0 | Q111: =IF($B$3=1,(675/(P108/12+Q108/3+R108/3+S108/4)),(0)) -> 0 | S111: =IF($B$3=1,(675/(S108/4+3*T108/8+3*U108/8)),(0)) -> 0
D112: données bateau N°2 | S112: vent apparent | AD112: AWA
C113: Wind(kn) | D113: Up Angle | E113: 0 | F113: V@UA | G113: 52 | H113: 60 | I113: 75 | J113: 90 | K113: 110 | L113: 120 | M113: 135 | N113: 150 | O113: 180 | P113: V@DA | Q113: DA | S113: UA | T113: 52 | U113: 60 | V113: 75 | W113: 90 | X113: 110 | Y113: 120 | Z113: 135 | AA113: 150 | AB113: DA | AD113: UA | AE113: 52 | AF113: 60 | AG113: 75 | AH113: 90 | AI113: 110 | AJ113: 120 | AK113: 135 | AL113: 150 | AM113: DA
B114: Wind=1 | C114: 6 | D114: =OFFSET(ORC!$BK$6,($C$4-6),(0)) ->  | E114: =3600/OFFSET(ORC!$BY$6,($C$4-6),(0)) ->  | F114: =3600/OFFSET(ORC!$BY$6,($C$4-6),(0))/COS(D114/180*PI()) ->  | G114: =3600/OFFSET(ORC!$CF$6,($C$4-6),(0)) ->  | H114: =3600/OFFSET(ORC!$CM$6,($C$4-6),(0)) ->  | I114: =3600/OFFSET(ORC!$CT$6,($C$4-6),(0)) ->  | J114: =3600/OFFSET(ORC!$DA$6,($C$4-6),(0)) ->  | K114: =3600/OFFSET(ORC!$DH$6,($C$4-6),(0)) ->  | L114: =3600/OFFSET(ORC!$DO$6,($C$4-6),(0)) ->  | M114: =3600/OFFSET(ORC!$DV$6,($C$4-6),(0)) ->  | N114: =3600/OFFSET(ORC!$EC$6,($C$4-6),(0)) ->  | O114: =3600/OFFSET(ORC!$EJ$6,($C$4-6),(0)) ->  | P114: =Main!O114/COS((180-Main!Q114)/180*PI()) ->  | Q114: =OFFSET(ORC!$BR$6,($C$4-6),(0)) ->  | S114: =SQRT(SUMSQ(($C114*SIN(D114/180*PI())),(F114+$C114*COS(D114/180*PI())))) ->  | T114: =SQRT(SUMSQ(($C114*SIN(G$78/180*PI())),(G114+$C114*COS(G$78/180*PI())))) ->  | U114: =SQRT(SUMSQ(($C114*SIN(H$78/180*PI())),(H114+$C114*COS(H$78/180*PI())))) ->  | V114: =SQRT(SUMSQ(($C114*SIN(I$78/180*PI())),(I114+$C114*COS(I$78/180*PI())))) ->  | W114: =SQRT(SUMSQ(($C114*SIN(J$78/180*PI())),(J114+$C114*COS(J$78/180*PI())))) ->  | X114: =SQRT(SUMSQ(($C114*SIN(K$78/180*PI())),(K114+$C114*COS(K$78/180*PI())))) ->  | Y114: =SQRT(SUMSQ(($C114*SIN(L$78/180*PI())),(L114+$C114*COS(L$78/180*PI())))) ->  | Z114: =SQRT(SUMSQ(($C114*SIN(M$78/180*PI())),(M114+$C114*COS(M$78/180*PI())))) ->  | AA114: =SQRT(SUMSQ(($C114*SIN(N$78/180*PI())),(N114+$C114*COS(N$78/180*PI())))) ->  | AB114: =SQRT(SUMSQ(($C114*SIN(Q114/180*PI())),(P114+$C114*COS(Q114/180*PI())))) ->  | AD114: =DEGREES(ACOS((F114+$C114*COS(D114/180*PI()))/S114)) ->  | AE114: =DEGREES(ACOS((G114+$C114*COS(G$78/180*PI()))/T114)) ->  | AF114: =DEGREES(ACOS((H114+$C114*COS(H$78/180*PI()))/U114)) ->  | AG114: =DEGREES(ACOS((I114+$C114*COS(I$78/180*PI()))/V114)) ->  | AH114: =DEGREES(ACOS((J114+$C114*COS(J$78/180*PI()))/W114)) ->  | AI114: =DEGREES(ACOS((K114+$C114*COS(K$78/180*PI()))/X114)) ->  | AJ114: =DEGREES(ACOS((L114+$C114*COS(L$78/180*PI()))/Y114)) ->  | AK114: =DEGREES(ACOS((M114+$C114*COS(M$78/180*PI()))/Z114)) ->  | AL114: =DEGREES(ACOS((N114+$C114*COS(N$78/180*PI()))/AA114)) ->  | AM114: =DEGREES(ACOS((P114+$C114*COS(Q114/180*PI()))/AB114)) -> 
B115: Wind=2 | C115: 8 | D115: =OFFSET(ORC!$BK$6,($C$4-6),(1)) ->  | E115: =3600/OFFSET(ORC!$BY$6,($C$4-6),(1)) ->  | F115: =3600/OFFSET(ORC!$BY$6,($C$4-6),(1))/COS(D115/180*PI()) ->  | G115: =3600/OFFSET(ORC!$CF$6,($C$4-6),(1)) ->  | H115: =3600/OFFSET(ORC!$CM$6,($C$4-6),(1)) ->  | I115: =3600/OFFSET(ORC!$CT$6,($C$4-6),(1)) ->  | J115: =3600/OFFSET(ORC!$DA$6,($C$4-6),(1)) ->  | K115: =3600/OFFSET(ORC!$DH$6,($C$4-6),(1)) ->  | L115: =3600/OFFSET(ORC!$DO$6,($C$4-6),(1)) ->  | M115: =3600/OFFSET(ORC!$DV$6,($C$4-6),(1)) ->  | N115: =3600/OFFSET(ORC!$EC$6,($C$4-6),(1)) ->  | O115: =3600/OFFSET(ORC!$EJ$6,($C$4-6),(1)) ->  | P115: =Main!O115/COS((180-Main!Q115)/180*PI()) ->  | Q115: =OFFSET(ORC!$BR$6,($C$4-6),(1)) ->  | S115: =SQRT(SUMSQ(($C115*SIN(D115/180*PI())),(F115+$C115*COS(D115/180*PI())))) ->  | AB115: =SQRT(SUMSQ(($C115*SIN(Q115/180*PI())),(P115+$C115*COS(Q115/180*PI())))) ->  | AM115: =DEGREES(ACOS((P115+$C115*COS(Q115/180*PI()))/AB115)) -> 
B116: Wind=3 | C116: 10 | D116: =OFFSET(ORC!$BK$6,($C$4-6),(2)) ->  | E116: =3600/OFFSET(ORC!$BY$6,($C$4-6),(2)) ->  | F116: =3600/OFFSET(ORC!$BY$6,($C$4-6),(2))/COS(D116/180*PI()) ->  | G116: =3600/OFFSET(ORC!$CF$6,($C$4-6),(2)) ->  | H116: =3600/OFFSET(ORC!$CM$6,($C$4-6),(2)) ->  | I116: =3600/OFFSET(ORC!$CT$6,($C$4-6),(2)) ->  | J116: =3600/OFFSET(ORC!$DA$6,($C$4-6),(2)) ->  | K116: =3600/OFFSET(ORC!$DH$6,($C$4-6),(2)) ->  | L116: =3600/OFFSET(ORC!$DO$6,($C$4-6),(2)) ->  | M116: =3600/OFFSET(ORC!$DV$6,($C$4-6),(2)) ->  | N116: =3600/OFFSET(ORC!$EC$6,($C$4-6),(2)) ->  | O116: =3600/OFFSET(ORC!$EJ$6,($C$4-6),(2)) ->  | P116: =Main!O116/COS((180-Main!Q116)/180*PI()) ->  | Q116: =OFFSET(ORC!$BR$6,($C$4-6),(2)) -> 
B117: Wind=4 | C117: 12 | D117: =OFFSET(ORC!$BK$6,($C$4-6),(3)) ->  | E117: =3600/OFFSET(ORC!$BY$6,($C$4-6),(3)) ->  | F117: =3600/OFFSET(ORC!$BY$6,($C$4-6),(3))/COS(D117/180*PI()) ->  | G117: =3600/OFFSET(ORC!$CF$6,($C$4-6),(3)) ->  | H117: =3600/OFFSET(ORC!$CM$6,($C$4-6),(3)) ->  | I117: =3600/OFFSET(ORC!$CT$6,($C$4-6),(3)) ->  | J117: =3600/OFFSET(ORC!$DA$6,($C$4-6),(3)) ->  | K117: =3600/OFFSET(ORC!$DH$6,($C$4-6),(3)) ->  | L117: =3600/OFFSET(ORC!$DO$6,($C$4-6),(3)) ->  | M117: =3600/OFFSET(ORC!$DV$6,($C$4-6),(3)) ->  | N117: =3600/OFFSET(ORC!$EC$6,($C$4-6),(3)) ->  | O117: =3600/OFFSET(ORC!$EJ$6,($C$4-6),(3)) ->  | P117: =Main!O117/COS((180-Main!Q117)/180*PI()) ->  | Q117: =OFFSET(ORC!$BR$6,($C$4-6),(3)) -> 
B118: Wind=5 | C118: 14 | D118: =OFFSET(ORC!$BK$6,($C$4-6),(4)) ->  | E118: =3600/OFFSET(ORC!$BY$6,($C$4-6),(4)) ->  | F118: =3600/OFFSET(ORC!$BY$6,($C$4-6),(4))/COS(D118/180*PI()) ->  | G118: =3600/OFFSET(ORC!$CF$6,($C$4-6),(4)) ->  | H118: =3600/OFFSET(ORC!$CM$6,($C$4-6),(4)) ->  | I118: =3600/OFFSET(ORC!$CT$6,($C$4-6),(4)) ->  | J118: =3600/OFFSET(ORC!$DA$6,($C$4-6),(4)) ->  | K118: =3600/OFFSET(ORC!$DH$6,($C$4-6),(4)) ->  | L118: =3600/OFFSET(ORC!$DO$6,($C$4-6),(4)) ->  | M118: =3600/OFFSET(ORC!$DV$6,($C$4-6),(4)) ->  | N118: =3600/OFFSET(ORC!$EC$6,($C$4-6),(4)) ->  | O118: =3600/OFFSET(ORC!$EJ$6,($C$4-6),(4)) ->  | P118: =Main!O118/COS((180-Main!Q118)/180*PI()) ->  | Q118: =OFFSET(ORC!$BR$6,($C$4-6),(4)) -> 
B119: Wind=6 | C119: 16 | D119: =OFFSET(ORC!$BK$6,($C$4-6),(5)) ->  | E119: =3600/OFFSET(ORC!$BY$6,($C$4-6),(5)) ->  | F119: =3600/OFFSET(ORC!$BY$6,($C$4-6),(5))/COS(D119/180*PI()) ->  | G119: =3600/OFFSET(ORC!$CF$6,($C$4-6),(5)) ->  | H119: =3600/OFFSET(ORC!$CM$6,($C$4-6),(5)) ->  | I119: =3600/OFFSET(ORC!$CT$6,($C$4-6),(5)) ->  | J119: =3600/OFFSET(ORC!$DA$6,($C$4-6),(5)) ->  | K119: =3600/OFFSET(ORC!$DH$6,($C$4-6),(5)) ->  | L119: =3600/OFFSET(ORC!$DO$6,($C$4-6),(5)) ->  | M119: =3600/OFFSET(ORC!$DV$6,($C$4-6),(5)) ->  | N119: =3600/OFFSET(ORC!$EC$6,($C$4-6),(5)) ->  | O119: =3600/OFFSET(ORC!$EJ$6,($C$4-6),(5)) ->  | P119: =Main!O119/COS((180-Main!Q119)/180*PI()) ->  | Q119: =OFFSET(ORC!$BR$6,($C$4-6),(5)) -> 
B120: Wind=7 | C120: 20 | D120: =OFFSET(ORC!$BK$6,($C$4-6),(6)) ->  | E120: =3600/OFFSET(ORC!$BY$6,($C$4-6),(6)) ->  | F120: =3600/OFFSET(ORC!$BY$6,($C$4-6),(6))/COS(D120/180*PI()) ->  | G120: =3600/OFFSET(ORC!$CF$6,($C$4-6),(6)) ->  | H120: =3600/OFFSET(ORC!$CM$6,($C$4-6),(6)) ->  | I120: =3600/OFFSET(ORC!$CT$6,($C$4-6),(6)) ->  | J120: =3600/OFFSET(ORC!$DA$6,($C$4-6),(6)) ->  | K120: =3600/OFFSET(ORC!$DH$6,($C$4-6),(6)) ->  | L120: =3600/OFFSET(ORC!$DO$6,($C$4-6),(6)) ->  | M120: =3600/OFFSET(ORC!$DV$6,($C$4-6),(6)) ->  | N120: =3600/OFFSET(ORC!$EC$6,($C$4-6),(6)) ->  | O120: =3600/OFFSET(ORC!$EJ$6,($C$4-6),(6)) ->  | P120: =Main!O120/COS((180-Main!Q120)/180*PI()) ->  | Q120: =OFFSET(ORC!$BR$6,($C$4-6),(6)) -> 
D122: Bateau N°2
E123: True Wind | O123: vent apparent
E124: V@UA | F124: 52 | G124: 60 | H124: 75 | I124: 90 | J124: 110 | K124: 120 | L124: 135 | M124: 150 | N124: VMG180 | O124: 150 | P124: 135 | Q124: 120 | R124: 110 | S124: 90 | T124: 75 | U124: 60 | V124: 52 | W124: V@UA
E125: =F114*SIN(D114/180*PI()) ->  | F125: =G114*SIN(G$78/180*PI()) ->  | G125: =H114*SIN(H$78/180*PI()) ->  | H125: =I114*SIN(I$78/180*PI()) ->  | I125: =J114*SIN(J$78/180*PI()) ->  | J125: =K114*SIN(K$78/180*PI()) ->  | K125: =L114*SIN(L$78/180*PI()) ->  | L125: =M114*SIN(M$78/180*PI()) ->  | M125: =N114*SIN(N$78/180*PI()) ->  | N125: 0 | O125: =-N114*SIN((O$89/180*PI())-ATAN((N114*SIN(O$89/180*PI())/(C114+N114*COS(O$89/180*PI()))))) ->  | P125: =-M114*SIN((P$89/180*PI())-ATAN((M114*SIN(P$89/180*PI())/(C114+M114*COS(P$89/180*PI()))))) ->  | Q125: =-L114*SIN((Q$89/180*PI())-ATAN((L114*SIN(Q$89/180*PI())/(C114+L114*COS(Q$89/180*PI()))))) ->  | R125: =-K114*SIN((R$89/180*PI())-ATAN((K114*SIN(R$89/180*PI())/(C114+K114*COS(R$89/180*PI()))))) ->  | S125: =-J114*SIN((S$89/180*PI())-ATAN((J114*SIN(S$89/180*PI())/(C114+J114*COS(S$89/180*PI()))))) ->  | T125: =-I114*SIN((T$89/180*PI())-ATAN((I114*SIN(T$89/180*PI())/(C114+I114*COS(T$89/180*PI()))))) ->  | U125: =-H114*SIN((U$89/180*PI())-ATAN((H114*SIN(U$89/180*PI())/(C114+H114*COS(U$89/180*PI()))))) ->  | V125: =-G114*SIN((V$89/180*PI())-ATAN((G114*SIN(V$89/180*PI())/(C114+G114*COS(V$89/180*PI()))))) ->  | W125: =-F114*SIN((D114/180*PI())-ATAN((F114*SIN(D114/180*PI())/(C114+F114*COS(D114/180*PI()))))) -> 
E126: =E114 ->  | F126: =G114*COS(G$78/180*PI()) ->  | G126: =H114*COS(H$78/180*PI()) ->  | H126: =I114*COS(I$78/180*PI()) ->  | I126: =J114*COS(J$78/180*PI()) ->  | J126: =K114*COS(K$78/180*PI()) ->  | K126: =L114*COS(L$78/180*PI()) ->  | L126: =M114*COS(M$78/180*PI()) ->  | M126: =N114*COS(N$78/180*PI()) ->  | N126: =-O114 ->  | O126: =N114*COS((O$89/180*PI())-ATAN((N114*SIN(O$89/180*PI())/(C114+N114*COS(O$89/180*PI()))))) ->  | P126: =M114*COS((P$89/180*PI())-ATAN((M114*SIN(P$89/180*PI())/(C114+M114*COS(P$89/180*PI()))))) ->  | Q126: =L114*COS((Q$89/180*PI())-ATAN((L114*SIN(Q$89/180*PI())/(C114+L114*COS(Q$89/180*PI()))))) ->  | R126: =K114*COS((R$89/180*PI())-ATAN((K114*SIN(R$89/180*PI())/(C114+K114*COS(R$89/180*PI()))))) ->  | S126: =J114*COS((S$89/180*PI())-ATAN((J114*SIN(S$89/180*PI())/(C114+J114*COS(S$89/180*PI()))))) ->  | T126: =I114*COS((T$89/180*PI())-ATAN((I114*SIN(T$89/180*PI())/(C114+I114*COS(T$89/180*PI()))))) ->  | U126: =H114*COS((U$89/180*PI())-ATAN((H114*SIN(U$89/180*PI())/(C114+H114*COS(U$89/180*PI()))))) ->  | V126: =G114*COS((V$89/180*PI())-ATAN((G114*SIN(V$89/180*PI())/(C114+G114*COS(V$89/180*PI()))))) ->  | W126: =F114*COS((D114/180*PI())-ATAN((F114*SIN(D114/180*PI())/(C114+F114*COS(D114/180*PI()))))) -> 
E127: =F115*SIN(D115/180*PI()) ->  | F127: =G115*SIN(G$78/180*PI()) ->  | G127: =H115*SIN(H$78/180*PI()) ->  | H127: =I115*SIN(I$78/180*PI()) ->  | I127: =J115*SIN(J$78/180*PI()) ->  | J127: =K115*SIN(K$78/180*PI()) ->  | K127: =L115*SIN(L$78/180*PI()) ->  | L127: =M115*SIN(M$78/180*PI()) ->  | M127: =N115*SIN(N$78/180*PI()) ->  | N127: 0 | O127: =-N115*SIN((O$89/180*PI())-ATAN((N115*SIN(O$89/180*PI())/(C115+N115*COS(O$89/180*PI()))))) ->  | P127: =-M115*SIN((P$89/180*PI())-ATAN((M115*SIN(P$89/180*PI())/(C115+M115*COS(P$89/180*PI()))))) ->  | Q127: =-L115*SIN((Q$89/180*PI())-ATAN((L115*SIN(Q$89/180*PI())/(C115+L115*COS(Q$89/180*PI()))))) ->  | R127: =-K115*SIN((R$89/180*PI())-ATAN((K115*SIN(R$89/180*PI())/(C115+K115*COS(R$89/180*PI()))))) ->  | S127: =-J115*SIN((S$89/180*PI())-ATAN((J115*SIN(S$89/180*PI())/(C115+J115*COS(S$89/180*PI()))))) ->  | T127: =-I115*SIN((T$89/180*PI())-ATAN((I115*SIN(T$89/180*PI())/(C115+I115*COS(T$89/180*PI()))))) ->  | U127: =-H115*SIN((U$89/180*PI())-ATAN((H115*SIN(U$89/180*PI())/(C115+H115*COS(U$89/180*PI()))))) ->  | V127: =-G115*SIN((V$89/180*PI())-ATAN((G115*SIN(V$89/180*PI())/(C115+G115*COS(V$89/180*PI()))))) ->  | W127: =-F115*SIN((D115/180*PI())-ATAN((F115*SIN(D115/180*PI())/(C115+F115*COS(D115/180*PI()))))) -> 
E128: =E115 ->  | F128: =G115*COS(G$78/180*PI()) ->  | G128: =H115*COS(H$78/180*PI()) ->  | H128: =I115*COS(I$78/180*PI()) ->  | I128: =J115*COS(J$78/180*PI()) ->  | J128: =K115*COS(K$78/180*PI()) ->  | K128: =L115*COS(L$78/180*PI()) ->  | L128: =M115*COS(M$78/180*PI()) ->  | M128: =N115*COS(N$78/180*PI()) ->  | N128: =-O115 ->  | O128: =N115*COS((O$89/180*PI())-ATAN((N115*SIN(O$89/180*PI())/(C115+N115*COS(O$89/180*PI()))))) ->  | P128: =M115*COS((P$89/180*PI())-ATAN((M115*SIN(P$89/180*PI())/(C115+M115*COS(P$89/180*PI()))))) ->  | Q128: =L115*COS((Q$89/180*PI())-ATAN((L115*SIN(Q$89/180*PI())/(C115+L115*COS(Q$89/180*PI()))))) ->  | R128: =K115*COS((R$89/180*PI())-ATAN((K115*SIN(R$89/180*PI())/(C115+K115*COS(R$89/180*PI()))))) ->  | S128: =J115*COS((S$89/180*PI())-ATAN((J115*SIN(S$89/180*PI())/(C115+J115*COS(S$89/180*PI()))))) ->  | T128: =I115*COS((T$89/180*PI())-ATAN((I115*SIN(T$89/180*PI())/(C115+I115*COS(T$89/180*PI()))))) ->  | U128: =H115*COS((U$89/180*PI())-ATAN((H115*SIN(U$89/180*PI())/(C115+H115*COS(U$89/180*PI()))))) ->  | V128: =G115*COS((V$89/180*PI())-ATAN((G115*SIN(V$89/180*PI())/(C115+G115*COS(V$89/180*PI()))))) ->  | W128: =F115*COS((D115/180*PI())-ATAN((F115*SIN(D115/180*PI())/(C115+F115*COS(D115/180*PI()))))) -> 
E129: =F116*SIN(D116/180*PI()) ->  | F129: =G116*SIN(G$78/180*PI()) ->  | G129: =H116*SIN(H$78/180*PI()) ->  | H129: =I116*SIN(I$78/180*PI()) ->  | I129: =J116*SIN(J$78/180*PI()) ->  | J129: =K116*SIN(K$78/180*PI()) ->  | K129: =L116*SIN(L$78/180*PI()) ->  | L129: =M116*SIN(M$78/180*PI()) ->  | M129: =N116*SIN(N$78/180*PI()) ->  | N129: 0 | O129: =-N116*SIN((O$89/180*PI())-ATAN((N116*SIN(O$89/180*PI())/(C116+N116*COS(O$89/180*PI()))))) ->  | P129: =-M116*SIN((P$89/180*PI())-ATAN((M116*SIN(P$89/180*PI())/(C116+M116*COS(P$89/180*PI()))))) ->  | Q129: =-L116*SIN((Q$89/180*PI())-ATAN((L116*SIN(Q$89/180*PI())/(C116+L116*COS(Q$89/180*PI()))))) ->  | R129: =-K116*SIN((R$89/180*PI())-ATAN((K116*SIN(R$89/180*PI())/(C116+K116*COS(R$89/180*PI()))))) ->  | S129: =-J116*SIN((S$89/180*PI())-ATAN((J116*SIN(S$89/180*PI())/(C116+J116*COS(S$89/180*PI()))))) ->  | T129: =-I116*SIN((T$89/180*PI())-ATAN((I116*SIN(T$89/180*PI())/(C116+I116*COS(T$89/180*PI()))))) ->  | U129: =-H116*SIN((U$89/180*PI())-ATAN((H116*SIN(U$89/180*PI())/(C116+H116*COS(U$89/180*PI()))))) ->  | V129: =-G116*SIN((V$89/180*PI())-ATAN((G116*SIN(V$89/180*PI())/(C116+G116*COS(V$89/180*PI()))))) ->  | W129: =-F116*SIN((D116/180*PI())-ATAN((F116*SIN(D116/180*PI())/(C116+F116*COS(D116/180*PI()))))) -> 
E130: =E116 ->  | F130: =G116*COS(G$78/180*PI()) ->  | G130: =H116*COS(H$78/180*PI()) ->  | H130: =I116*COS(I$78/180*PI()) ->  | I130: =J116*COS(J$78/180*PI()) ->  | J130: =K116*COS(K$78/180*PI()) ->  | K130: =L116*COS(L$78/180*PI()) ->  | L130: =M116*COS(M$78/180*PI()) ->  | M130: =N116*COS(N$78/180*PI()) ->  | N130: =-O116 ->  | O130: =N116*COS((O$89/180*PI())-ATAN((N116*SIN(O$89/180*PI())/(C116+N116*COS(O$89/180*PI()))))) ->  | P130: =M116*COS((P$89/180*PI())-ATAN((M116*SIN(P$89/180*PI())/(C116+M116*COS(P$89/180*PI()))))) ->  | Q130: =L116*COS((Q$89/180*PI())-ATAN((L116*SIN(Q$89/180*PI())/(C116+L116*COS(Q$89/180*PI()))))) ->  | R130: =K116*COS((R$89/180*PI())-ATAN((K116*SIN(R$89/180*PI())/(C116+K116*COS(R$89/180*PI()))))) ->  | S130: =J116*COS((S$89/180*PI())-ATAN((J116*SIN(S$89/180*PI())/(C116+J116*COS(S$89/180*PI()))))) ->  | T130: =I116*COS((T$89/180*PI())-ATAN((I116*SIN(T$89/180*PI())/(C116+I116*COS(T$89/180*PI()))))) ->  | U130: =H116*COS((U$89/180*PI())-ATAN((H116*SIN(U$89/180*PI())/(C116+H116*COS(U$89/180*PI()))))) ->  | V130: =G116*COS((V$89/180*PI())-ATAN((G116*SIN(V$89/180*PI())/(C116+G116*COS(V$89/180*PI()))))) ->  | W130: =F116*COS((D116/180*PI())-ATAN((F116*SIN(D116/180*PI())/(C116+F116*COS(D116/180*PI()))))) -> 
E131: =F117*SIN(D117/180*PI()) ->  | F131: =G117*SIN(G$78/180*PI()) ->  | G131: =H117*SIN(H$78/180*PI()) ->  | H131: =I117*SIN(I$78/180*PI()) ->  | I131: =J117*SIN(J$78/180*PI()) ->  | J131: =K117*SIN(K$78/180*PI()) ->  | K131: =L117*SIN(L$78/180*PI()) ->  | L131: =M117*SIN(M$78/180*PI()) ->  | M131: =N117*SIN(N$78/180*PI()) ->  | N131: 0 | O131: =-N117*SIN((O$89/180*PI())-ATAN((N117*SIN(O$89/180*PI())/(C117+N117*COS(O$89/180*PI()))))) ->  | P131: =-M117*SIN((P$89/180*PI())-ATAN((M117*SIN(P$89/180*PI())/(C117+M117*COS(P$89/180*PI()))))) ->  | Q131: =-L117*SIN((Q$89/180*PI())-ATAN((L117*SIN(Q$89/180*PI())/(C117+L117*COS(Q$89/180*PI()))))) ->  | R131: =-K117*SIN((R$89/180*PI())-ATAN((K117*SIN(R$89/180*PI())/(C117+K117*COS(R$89/180*PI()))))) ->  | S131: =-J117*SIN((S$89/180*PI())-ATAN((J117*SIN(S$89/180*PI())/(C117+J117*COS(S$89/180*PI()))))) ->  | T131: =-I117*SIN((T$89/180*PI())-ATAN((I117*SIN(T$89/180*PI())/(C117+I117*COS(T$89/180*PI()))))) ->  | U131: =-H117*SIN((U$89/180*PI())-ATAN((H117*SIN(U$89/180*PI())/(C117+H117*COS(U$89/180*PI()))))) ->  | V131: =-G117*SIN((V$89/180*PI())-ATAN((G117*SIN(V$89/180*PI())/(C117+G117*COS(V$89/180*PI()))))) ->  | W131: =-F117*SIN((D117/180*PI())-ATAN((F117*SIN(D117/180*PI())/(C117+F117*COS(D117/180*PI()))))) -> 
E132: =E117 ->  | F132: =G117*COS(G$78/180*PI()) ->  | G132: =H117*COS(H$78/180*PI()) ->  | H132: =I117*COS(I$78/180*PI()) ->  | I132: =J117*COS(J$78/180*PI()) ->  | J132: =K117*COS(K$78/180*PI()) ->  | K132: =L117*COS(L$78/180*PI()) ->  | L132: =M117*COS(M$78/180*PI()) ->  | M132: =N117*COS(N$78/180*PI()) ->  | N132: =-O117 ->  | O132: =N117*COS((O$89/180*PI())-ATAN((N117*SIN(O$89/180*PI())/(C117+N117*COS(O$89/180*PI()))))) ->  | P132: =M117*COS((P$89/180*PI())-ATAN((M117*SIN(P$89/180*PI())/(C117+M117*COS(P$89/180*PI()))))) ->  | Q132: =L117*COS((Q$89/180*PI())-ATAN((L117*SIN(Q$89/180*PI())/(C117+L117*COS(Q$89/180*PI()))))) ->  | R132: =K117*COS((R$89/180*PI())-ATAN((K117*SIN(R$89/180*PI())/(C117+K117*COS(R$89/180*PI()))))) ->  | S132: =J117*COS((S$89/180*PI())-ATAN((J117*SIN(S$89/180*PI())/(C117+J117*COS(S$89/180*PI()))))) ->  | T132: =I117*COS((T$89/180*PI())-ATAN((I117*SIN(T$89/180*PI())/(C117+I117*COS(T$89/180*PI()))))) ->  | U132: =H117*COS((U$89/180*PI())-ATAN((H117*SIN(U$89/180*PI())/(C117+H117*COS(U$89/180*PI()))))) ->  | V132: =G117*COS((V$89/180*PI())-ATAN((G117*SIN(V$89/180*PI())/(C117+G117*COS(V$89/180*PI()))))) ->  | W132: =F117*COS((D117/180*PI())-ATAN((F117*SIN(D117/180*PI())/(C117+F117*COS(D117/180*PI()))))) -> 
E133: =F118*SIN(D118/180*PI()) ->  | F133: =G118*SIN(G$78/180*PI()) ->  | G133: =H118*SIN(H$78/180*PI()) ->  | H133: =I118*SIN(I$78/180*PI()) ->  | I133: =J118*SIN(J$78/180*PI()) ->  | J133: =K118*SIN(K$78/180*PI()) ->  | K133: =L118*SIN(L$78/180*PI()) ->  | L133: =M118*SIN(M$78/180*PI()) ->  | M133: =N118*SIN(N$78/180*PI()) ->  | N133: 0 | O133: =-N118*SIN((O$89/180*PI())-ATAN((N118*SIN(O$89/180*PI())/(C118+N118*COS(O$89/180*PI()))))) ->  | P133: =-M118*SIN((P$89/180*PI())-ATAN((M118*SIN(P$89/180*PI())/(C118+M118*COS(P$89/180*PI()))))) ->  | Q133: =-L118*SIN((Q$89/180*PI())-ATAN((L118*SIN(Q$89/180*PI())/(C118+L118*COS(Q$89/180*PI()))))) ->  | R133: =-K118*SIN((R$89/180*PI())-ATAN((K118*SIN(R$89/180*PI())/(C118+K118*COS(R$89/180*PI()))))) ->  | S133: =-J118*SIN((S$89/180*PI())-ATAN((J118*SIN(S$89/180*PI())/(C118+J118*COS(S$89/180*PI()))))) ->  | T133: =-I118*SIN((T$89/180*PI())-ATAN((I118*SIN(T$89/180*PI())/(C118+I118*COS(T$89/180*PI()))))) ->  | U133: =-H118*SIN((U$89/180*PI())-ATAN((H118*SIN(U$89/180*PI())/(C118+H118*COS(U$89/180*PI()))))) ->  | V133: =-G118*SIN((V$89/180*PI())-ATAN((G118*SIN(V$89/180*PI())/(C118+G118*COS(V$89/180*PI()))))) ->  | W133: =-F118*SIN((D118/180*PI())-ATAN((F118*SIN(D118/180*PI())/(C118+F118*COS(D118/180*PI()))))) -> 
E134: =E118 ->  | F134: =G118*COS(G$78/180*PI()) ->  | G134: =H118*COS(H$78/180*PI()) ->  | H134: =I118*COS(I$78/180*PI()) ->  | I134: =J118*COS(J$78/180*PI()) ->  | J134: =K118*COS(K$78/180*PI()) ->  | K134: =L118*COS(L$78/180*PI()) ->  | L134: =M118*COS(M$78/180*PI()) ->  | M134: =N118*COS(N$78/180*PI()) ->  | N134: =-O118 ->  | O134: =N118*COS((O$89/180*PI())-ATAN((N118*SIN(O$89/180*PI())/(C118+N118*COS(O$89/180*PI()))))) ->  | P134: =M118*COS((P$89/180*PI())-ATAN((M118*SIN(P$89/180*PI())/(C118+M118*COS(P$89/180*PI()))))) ->  | Q134: =L118*COS((Q$89/180*PI())-ATAN((L118*SIN(Q$89/180*PI())/(C118+L118*COS(Q$89/180*PI()))))) ->  | R134: =K118*COS((R$89/180*PI())-ATAN((K118*SIN(R$89/180*PI())/(C118+K118*COS(R$89/180*PI()))))) ->  | S134: =J118*COS((S$89/180*PI())-ATAN((J118*SIN(S$89/180*PI())/(C118+J118*COS(S$89/180*PI()))))) ->  | T134: =I118*COS((T$89/180*PI())-ATAN((I118*SIN(T$89/180*PI())/(C118+I118*COS(T$89/180*PI()))))) ->  | U134: =H118*COS((U$89/180*PI())-ATAN((H118*SIN(U$89/180*PI())/(C118+H118*COS(U$89/180*PI()))))) ->  | V134: =G118*COS((V$89/180*PI())-ATAN((G118*SIN(V$89/180*PI())/(C118+G118*COS(V$89/180*PI()))))) ->  | W134: =F118*COS((D118/180*PI())-ATAN((F118*SIN(D118/180*PI())/(C118+F118*COS(D118/180*PI()))))) -> 
E135: =F119*SIN(D119/180*PI()) ->  | F135: =G119*SIN(G$78/180*PI()) ->  | G135: =H119*SIN(H$78/180*PI()) ->  | H135: =I119*SIN(I$78/180*PI()) ->  | I135: =J119*SIN(J$78/180*PI()) ->  | J135: =K119*SIN(K$78/180*PI()) ->  | K135: =L119*SIN(L$78/180*PI()) ->  | L135: =M119*SIN(M$78/180*PI()) ->  | M135: =N119*SIN(N$78/180*PI()) ->  | N135: 0 | O135: =-N119*SIN((O$89/180*PI())-ATAN((N119*SIN(O$89/180*PI())/(C119+N119*COS(O$89/180*PI()))))) ->  | P135: =-M119*SIN((P$89/180*PI())-ATAN((M119*SIN(P$89/180*PI())/(C119+M119*COS(P$89/180*PI()))))) ->  | Q135: =-L119*SIN((Q$89/180*PI())-ATAN((L119*SIN(Q$89/180*PI())/(C119+L119*COS(Q$89/180*PI()))))) ->  | R135: =-K119*SIN((R$89/180*PI())-ATAN((K119*SIN(R$89/180*PI())/(C119+K119*COS(R$89/180*PI()))))) ->  | S135: =-J119*SIN((S$89/180*PI())-ATAN((J119*SIN(S$89/180*PI())/(C119+J119*COS(S$89/180*PI()))))) ->  | T135: =-I119*SIN((T$89/180*PI())-ATAN((I119*SIN(T$89/180*PI())/(C119+I119*COS(T$89/180*PI()))))) ->  | U135: =-H119*SIN((U$89/180*PI())-ATAN((H119*SIN(U$89/180*PI())/(C119+H119*COS(U$89/180*PI()))))) ->  | V135: =-G119*SIN((V$89/180*PI())-ATAN((G119*SIN(V$89/180*PI())/(C119+G119*COS(V$89/180*PI()))))) ->  | W135: =-F119*SIN((D119/180*PI())-ATAN((F119*SIN(D119/180*PI())/(C119+F119*COS(D119/180*PI()))))) -> 
E136: =E119 ->  | F136: =G119*COS(G$78/180*PI()) ->  | G136: =H119*COS(H$78/180*PI()) ->  | H136: =I119*COS(I$78/180*PI()) ->  | I136: =J119*COS(J$78/180*PI()) ->  | J136: =K119*COS(K$78/180*PI()) ->  | K136: =L119*COS(L$78/180*PI()) ->  | L136: =M119*COS(M$78/180*PI()) ->  | M136: =N119*COS(N$78/180*PI()) ->  | N136: =-O119 ->  | O136: =N119*COS((O$89/180*PI())-ATAN((N119*SIN(O$89/180*PI())/(C119+N119*COS(O$89/180*PI()))))) ->  | P136: =M119*COS((P$89/180*PI())-ATAN((M119*SIN(P$89/180*PI())/(C119+M119*COS(P$89/180*PI()))))) ->  | Q136: =L119*COS((Q$89/180*PI())-ATAN((L119*SIN(Q$89/180*PI())/(C119+L119*COS(Q$89/180*PI()))))) ->  | R136: =K119*COS((R$89/180*PI())-ATAN((K119*SIN(R$89/180*PI())/(C119+K119*COS(R$89/180*PI()))))) ->  | S136: =J119*COS((S$89/180*PI())-ATAN((J119*SIN(S$89/180*PI())/(C119+J119*COS(S$89/180*PI()))))) ->  | T136: =I119*COS((T$89/180*PI())-ATAN((I119*SIN(T$89/180*PI())/(C119+I119*COS(T$89/180*PI()))))) ->  | U136: =H119*COS((U$89/180*PI())-ATAN((H119*SIN(U$89/180*PI())/(C119+H119*COS(U$89/180*PI()))))) ->  | V136: =G119*COS((V$89/180*PI())-ATAN((G119*SIN(V$89/180*PI())/(C119+G119*COS(V$89/180*PI()))))) ->  | W136: =F119*COS((D119/180*PI())-ATAN((F119*SIN(D119/180*PI())/(C119+F119*COS(D119/180*PI()))))) -> 
E137: =F120*SIN(D120/180*PI()) ->  | F137: =G120*SIN(G$78/180*PI()) ->  | G137: =H120*SIN(H$78/180*PI()) ->  | H137: =I120*SIN(I$78/180*PI()) ->  | I137: =J120*SIN(J$78/180*PI()) ->  | J137: =K120*SIN(K$78/180*PI()) ->  | K137: =L120*SIN(L$78/180*PI()) ->  | L137: =M120*SIN(M$78/180*PI()) ->  | M137: =N120*SIN(N$78/180*PI()) ->  | N137: 0 | O137: =-N120*SIN((O$89/180*PI())-ATAN((N120*SIN(O$89/180*PI())/(C120+N120*COS(O$89/180*PI()))))) ->  | P137: =-M120*SIN((P$89/180*PI())-ATAN((M120*SIN(P$89/180*PI())/(C120+M120*COS(P$89/180*PI()))))) ->  | Q137: =-L120*SIN((Q$89/180*PI())-ATAN((L120*SIN(Q$89/180*PI())/(C120+L120*COS(Q$89/180*PI()))))) ->  | R137: =-K120*SIN((R$89/180*PI())-ATAN((K120*SIN(R$89/180*PI())/(C120+K120*COS(R$89/180*PI()))))) ->  | S137: =-J120*SIN((S$89/180*PI())-ATAN((J120*SIN(S$89/180*PI())/(C120+J120*COS(S$89/180*PI()))))) ->  | T137: =-I120*SIN((T$89/180*PI())-ATAN((I120*SIN(T$89/180*PI())/(C120+I120*COS(T$89/180*PI()))))) ->  | U137: =-H120*SIN((U$89/180*PI())-ATAN((H120*SIN(U$89/180*PI())/(C120+H120*COS(U$89/180*PI()))))) ->  | V137: =-G120*SIN((V$89/180*PI())-ATAN((G120*SIN(V$89/180*PI())/(C120+G120*COS(V$89/180*PI()))))) ->  | W137: =-F120*SIN((D120/180*PI())-ATAN((F120*SIN(D120/180*PI())/(C120+F120*COS(D120/180*PI()))))) -> 
E138: =E120 ->  | F138: =G120*COS(G$78/180*PI()) ->  | G138: =H120*COS(H$78/180*PI()) ->  | H138: =I120*COS(I$78/180*PI()) ->  | I138: =J120*COS(J$78/180*PI()) ->  | J138: =K120*COS(K$78/180*PI()) ->  | K138: =L120*COS(L$78/180*PI()) ->  | L138: =M120*COS(M$78/180*PI()) ->  | M138: =N120*COS(N$78/180*PI()) ->  | N138: =-O120 ->  | O138: =N120*COS((O$89/180*PI())-ATAN((N120*SIN(O$89/180*PI())/(C120+N120*COS(O$89/180*PI()))))) ->  | P138: =M120*COS((P$89/180*PI())-ATAN((M120*SIN(P$89/180*PI())/(C120+M120*COS(P$89/180*PI()))))) ->  | Q138: =L120*COS((Q$89/180*PI())-ATAN((L120*SIN(Q$89/180*PI())/(C120+L120*COS(Q$89/180*PI()))))) ->  | R138: =K120*COS((R$89/180*PI())-ATAN((K120*SIN(R$89/180*PI())/(C120+K120*COS(R$89/180*PI()))))) ->  | S138: =J120*COS((S$89/180*PI())-ATAN((J120*SIN(S$89/180*PI())/(C120+J120*COS(S$89/180*PI()))))) ->  | T138: =I120*COS((T$89/180*PI())-ATAN((I120*SIN(T$89/180*PI())/(C120+I120*COS(T$89/180*PI()))))) ->  | U138: =H120*COS((U$89/180*PI())-ATAN((H120*SIN(U$89/180*PI())/(C120+H120*COS(U$89/180*PI()))))) ->  | V138: =G120*COS((V$89/180*PI())-ATAN((G120*SIN(V$89/180*PI())/(C120+G120*COS(V$89/180*PI()))))) ->  | W138: =F120*COS((D120/180*PI())-ATAN((F120*SIN(D120/180*PI())/(C120+F120*COS(D120/180*PI()))))) -> 

Sheet Detail 1
A2: N° de Voile | C2: =Main!$D$3 -> NED 8940 | G2: GPH: | H2: =Main!$N$3 -> 832.6
A3: Nom | C3: =Main!$E$3 -> Jeanne | G3: TMF: | H3: =Main!$O$3 -> 0.756
A4: Type: | C4: =Main!$F$3 -> Jeaneau Poker | G4: DSPL: | H4: =Main!L3 -> 3226
A5: GV: | B5: =OFFSET(ORC!$B$6,(Main!$C3-6),163) -> 12.8 | C5: GENOA: | D5: =OFFSET(ORC!$B$6,(Main!$C3-6),164) -> 20.4 | F5: SPI: | G5: =OFFSET(ORC!$B$6,(Main!$C3-6),165) -> 45.7 | H5: ASYM: | I5: =OFFSET(ORC!$B$6,(Main!$C3-6),166) -> 0
A11: VENT REEL | B11: ANGLE OPTIMAL | F11: VITESSE | O11: ANGLE OPTIMAL
B12: UA | C12: VMG | D12: V@UA | E12: 52 | F12: 60 | G12: 75 | H12: 90 | I12: 110 | J12: 120 | K12: 135 | L12: 150 | M12: V@DA | N12: VMG | O12: DA
A13: 6 | B13: =Main!D79 -> 43 | C13: =Main!E79 -> 2.358336063 | D13: =Main!F79 -> 3.224617661 | E13: =Main!G79 -> 3.593172971 | F13: =Main!H79 -> 3.789473684 | G13: =Main!I79 -> 3.941749699 | H13: =Main!J79 -> 4.085338175 | I13: =Main!K79 -> 4.189944134 | J13: =Main!L79 -> 4.073319756 | K13: =Main!M79 -> 3.703322703 | L13: =Main!N79 -> 3.212851406 | M13: =Main!P79 -> 3.263142212 | N13: =Main!O79 -> 2.782286112 | O13: =Main!Q79 -> 148.5
A14: 8 | B14: =Main!D80 -> 41.5 | C14: =Main!E80 -> 2.888550108 | D14: =Main!F80 -> 3.856770204 | E14: =Main!G80 -> 4.316029253 | F14: =Main!H80 -> 4.523181304 | G14: =Main!I80 -> 4.702808622 | H14: =Main!J80 -> 5.009741163 | I14: =Main!K80 -> 5.128205128 | J14: =Main!L80 -> 5 | K14: =Main!M80 -> 4.59887583 | L14: =Main!N80 -> 4.085338175 | M14: =Main!P80 -> 4.002238439 | N14: =Main!O80 -> 3.54679803 | O14: =Main!Q80 -> 152.4
A15: 10 | B15: =Main!D81 -> 41.3 | C15: =Main!E81 -> 3.267084127 | D15: =Main!F81 -> 4.348782248 | E15: =Main!G81 -> 4.891304348 | F15: =Main!H81 -> 5.1494779 | G15: =Main!I81 -> 5.370729524 | H15: =Main!J81 -> 5.718824464 | I15: =Main!K81 -> 5.796168089 | J15: =Main!L81 -> 5.717008099 | K15: =Main!M81 -> 5.401350338 | L15: =Main!N81 -> 4.843266514 | M15: =Main!P81 -> 4.63877559 | N15: =Main!O81 -> 4.207573633 | O15: =Main!Q81 -> 155.1
A16: 12 | B16: =Main!D82 -> 41.7 | C16: =Main!E82 -> 3.603242919 | D16: =Main!F82 -> 4.82595587 | E16: =Main!G82 -> 5.394066527 | F16: =Main!H82 -> 5.604857543 | G16: =Main!I82 -> 5.763688761 | H16: =Main!J82 -> 6.046355391 | I16: =Main!K82 -> 6.134969325 | J16: =Main!L82 -> 6.080054045 | K16: =Main!M82 -> 5.889088827 | L16: =Main!N82 -> 5.510485229 | M16: =Main!P82 -> 4.914659593 | N16: =Main!O82 -> 4.83546004 | O16: =Main!Q82 -> 169.7
A17: 14 | B17: =Main!D83 -> 41.2 | C17: =Main!E83 -> 3.902016042 | D17: =Main!F83 -> 5.185989798 | E17: =Main!G83 -> 5.695301376 | F17: =Main!H83 -> 5.857468272 | G17: =Main!I83 -> 5.99101348 | H17: =Main!J83 -> 6.243496358 | I17: =Main!K83 -> 6.412540078 | J17: =Main!L83 -> 6.359300477 | K17: =Main!M83 -> 6.182380216 | L17: =Main!N83 -> 5.916187346 | M17: =Main!P83 -> 5.429864253 | N17: =Main!O83 -> 5.429864253 | O17: =Main!Q83 -> 180
A18: 16 | B18: =Main!D84 -> 40.4 | C18: =Main!E84 -> 4.097427726 | D18: =Main!F84 -> 5.380461738 | E18: =Main!G84 -> 5.864147255 | F18: =Main!H84 -> 6.012024048 | G18: =Main!I84 -> 6.164383562 | H18: =Main!J84 -> 6.330226833 | I18: =Main!K84 -> 6.676557864 | J18: =Main!L84 -> 6.650655829 | K18: =Main!M84 -> 6.456241033 | L18: =Main!N84 -> 6.182380216 | M18: =Main!P84 -> 5.845104725 | N18: =Main!O84 -> 5.845104725 | O18: =Main!Q84 -> 180
A19: 20 | B19: =Main!D85 -> 40.2 | C19: =Main!E85 -> 4.182642036 | D19: =Main!F85 -> 5.476124356 | E19: =Main!G85 -> 5.988023952 | F19: =Main!H85 -> 6.181318681 | G19: =Main!I85 -> 6.4366172 | H19: =Main!J85 -> 6.551410373 | I19: =Main!K85 -> 7.006617361 | J19: =Main!L85 -> 7.137192704 | K19: =Main!M85 -> 7.001166861 | L19: =Main!N85 -> 6.697674419 | M19: =Main!P85 -> 6.354810238 | N19: =Main!O85 -> 6.354810238 | O19: =Main!Q85 -> 180
A20: Snelheden in knopen | D20: UA=Up Angle, VMG=resulterende snelheid recht tegen de wind (bijUA), V@UA=snelheid bij optimale opkruishoek
A21: Hoeken in graden | D21: DA=Down Angle, VMG=resulterende snelheid recht voor de wind (bijDA), V@DA=snelheid bij afkruis opkruishoek
A22: Vent réel | B22: ANGLE OPTIMAL | D22: vitesse du bateau en vent réel / vitesse du vent apparent et l'angle | M22: Optimale afkruis hoek / VMG
B23: UA/VMG | C23: V@UA | D23: 52 | E23: 60 | F23: 75 | G23: 90 | H23: 110 | I23: 120 | J23: 135 | K23: 150 | L23: V@DA | M23: DA/VMG | N23: TWA
A24: 6 | B24: =Main!D79 -> 43 | C24: =Main!F79 -> 3.224617661 | D24: =Main!G79 -> 3.593172971 | E24: =Main!H79 -> 3.789473684 | F24: =Main!I79 -> 3.941749699 | G24: =Main!J79 -> 4.085338175 | H24: =Main!K79 -> 4.189944134 | I24: =Main!L79 -> 4.073319756 | J24: =Main!M79 -> 3.703322703 | K24: =Main!N79 -> 3.212851406 | L24: =Main!P79 -> 3.263142212 | M24: =Main!Q79 -> 148.5 | N24: SPEED
B25: =Main!E79 -> 2.358336063 | C25: =Main!S79 -> 8.642811569 | D25: =Main!T79 -> 8.686600605 | E25: =Main!U79 -> 8.549675603 | F25: =Main!V79 -> 7.986224978 | G25: =Main!W79 -> 7.258786951 | H25: =Main!X79 -> 6.029849777 | I25: =Main!Y79 -> 5.305847274 | J25: =Main!Z79 -> 4.276781955 | K25: =Main!AA79 -> 3.596315187 | L25: =Main!AB79 -> 3.641519429 | M25: =Main!O79 -> 2.782286112 | N25: AWS
C26: =Main!AD79 -> 28.25886159 | D26: =Main!AE79 -> 32.97643072 | E26: =Main!AF79 -> 37.42772534 | F26: =Main!AG79 -> 46.52660493 | G26: =Main!AH79 -> 55.74945464 | H26: =Main!AI79 -> 69.23474192 | I26: =Main!AJ79 -> 78.32909695 | J26: =Main!AK79 -> 97.24449692 | K26: =Main!AL79 -> 123.4687043 | L26: =Main!AM79 -> 120.5819884 | N26: AWA
A27: 8 | B27: =Main!D80 -> 41.5 | C27: =Main!F80 -> 3.856770204 | D27: =Main!G80 -> 4.316029253 | E27: =Main!H80 -> 4.523181304 | F27: =Main!I80 -> 4.702808622 | G27: =Main!J80 -> 5.009741163 | H27: =Main!K80 -> 5.128205128 | I27: =Main!L80 -> 5 | J27: =Main!M80 -> 4.59887583 | K27: =Main!N80 -> 4.085338175 | L27: =Main!P80 -> 4.002238439 | M27: =Main!Q80 -> 152.4 | N27: SPEED
B28: =Main!E80 -> 2.888550108 | C28: =Main!S80 -> 11.18443017 | D28: =Main!T80 -> 11.18675626 | E28: =Main!U80 -> 10.98383446 | F28: =Main!V80 -> 10.27575943 | G28: =Main!W80 -> 9.439147553 | H28: =Main!X80 -> 7.888935073 | I28: =Main!Y80 -> 7 | J28: =Main!Z80 -> 5.754938604 | K28: =Main!AA80 -> 4.907329388 | L28: =Main!AB80 -> 4.823810117 | M28: =Main!O80 -> 3.54679803 | N28: AWS
C29: =Main!AD80 -> 28.29158671 | D29: =Main!AE80 -> 34.30035635 | E29: =Main!AF80 -> 39.10648381 | F29: =Main!AG80 -> 48.76422276 | G29: =Main!AH80 -> 57.94447548 | H29: =Main!AI80 -> 72.34918972 | I29: =Main!AJ80 -> 81.7867893 | J29: =Main!AK80 -> 100.5934132 | K29: =Main!AL80 -> 125.4020273 | L29: =Main!AM80 -> 129.7941649 | N29: AWA
A30: 10 | B30: =Main!D81 -> 41.3 | C30: =Main!F81 -> 4.348782248 | D30: =Main!G81 -> 4.891304348 | E30: =Main!H81 -> 5.1494779 | F30: =Main!I81 -> 5.370729524 | G30: =Main!J81 -> 5.718824464 | H30: =Main!K81 -> 5.796168089 | I30: =Main!L81 -> 5.717008099 | J30: =Main!M81 -> 5.401350338 | K30: =Main!N81 -> 4.843266514 | L30: =Main!P81 -> 4.63877559 | M30: =Main!Q81 -> 155.1 | N30: SPEED
B31: =Main!E81 -> 3.267084127 | C31: =Main!S81 -> 13.57400418 | D31: =Main!T81 -> 13.57028413 | E31: =Main!U81 -> 13.34211009 | F31: =Main!V81 -> 12.51581709 | G31: =Main!W81 -> 11.51976359 | H31: =Main!X81 -> 9.692648746 | I31: =Main!Y81 -> 8.68988496 | J31: =Main!Z81 -> 7.265532083 | K31: =Main!AA81 -> 6.290420793 | L31: =Main!AB81 -> 6.112836193 | M31: =Main!O81 -> 4.207573633 | N31: AWS
C32: =Main!AD81 -> 29.09274536 | D32: =Main!AE81 -> 35.49898058 | E32: =Main!AF81 -> 40.47316122 | F32: =Main!AG81 -> 50.51256852 | G32: =Main!AH81 -> 60.23551868 | H32: =Main!AI81 -> 75.81043679 | I32: =Main!AJ81 -> 85.26710705 | J32: =Main!AK81 -> 103.2860929 | K32: =Main!AL81 -> 127.3580238 | L32: =Main!AM81 -> 136.4669197 | N32: AWA
A33: 12 | B33: =Main!D82 -> 41.7 | C33: =Main!F82 -> 4.82595587 | D33: =Main!G82 -> 5.394066527 | E33: =Main!H82 -> 5.604857543 | F33: =Main!I82 -> 5.763688761 | G33: =Main!J82 -> 6.046355391 | H33: =Main!K82 -> 6.134969325 | I33: =Main!L82 -> 6.080054045 | J33: =Main!M82 -> 5.889088827 | K33: =Main!N82 -> 5.510485229 | L33: =Main!P82 -> 4.914659593 | M33: =Main!Q82 -> 169.7 | N33: SPEED
B34: =Main!E82 -> 3.603242919 | C34: =Main!S82 -> 15.93008726 | D34: =Main!T82 -> 15.89962291 | E34: =Main!U82 -> 15.57795618 | F34: =Main!V82 -> 14.5952789 | G34: =Main!W82 -> 13.43720259 | H34: =Main!X82 -> 11.45770721 | I34: =Main!Y82 -> 10.39261318 | J34: =Main!Z82 -> 8.873568377 | K34: =Main!AA82 -> 7.735125259 | L34: =Main!AB82 -> 7.218229558 | M34: =Main!O82 -> 4.83546004 | N34: AWS
C35: =Main!AD82 -> 30.07362311 | D35: =Main!AE82 -> 36.49404265 | E35: =Main!AF82 -> 41.84486973 | F35: =Main!AG82 -> 52.57678337 | G35: =Main!AH82 -> 63.25815801 | H35: =Main!AI82 -> 79.79114635 | I35: =Main!AJ82 -> 89.55864765 | J35: =Main!AK82 -> 107.0122365 | K35: =Main!AL82 -> 129.1330638 | L35: =Main!AM82 -> 162.7074284 | N35: AWA
A36: 14 | B36: =Main!D83 -> 41.2 | C36: =Main!F83 -> 5.185989798 | D36: =Main!G83 -> 5.695301376 | E36: =Main!H83 -> 5.857468272 | F36: =Main!I83 -> 5.99101348 | G36: =Main!J83 -> 6.243496358 | H36: =Main!K83 -> 6.412540078 | I36: =Main!L83 -> 6.359300477 | J36: =Main!M83 -> 6.182380216 | K36: =Main!N83 -> 5.916187346 | L36: =Main!P83 -> 5.429864253 | M36: =Main!Q83 -> 180 | N36: SPEED
B37: =Main!E83 -> 3.902016042 | C37: =Main!S83 -> 18.22500862 | D37: =Main!T83 -> 18.07249379 | E37: =Main!U83 -> 17.67242175 | F37: =Main!V83 -> 16.59242952 | G37: =Main!W83 -> 15.32909804 | H37: =Main!X83 -> 13.25558636 | I37: =Main!Y83 -> 12.14127242 | J37: =Main!Z83 -> 10.57435302 | K37: =Main!AA83 -> 9.356353656 | L37: =Main!AB83 -> 8.570135747 | M37: =Main!O83 -> 5.429864253 | N37: AWS
C38: =Main!AD83 -> 30.39702114 | D38: =Main!AE83 -> 37.62123433 | E38: =Main!AF83 -> 43.31908961 | F38: =Main!AG83 -> 54.58814559 | G38: =Main!AH83 -> 65.96484779 | H38: =Main!AI83 -> 82.96163889 | I38: =Main!AJ83 -> 93.02492492 | J38: =Main!AK83 -> 110.5804183 | K38: =Main!AL83 -> 131.5692155 | L38: =Main!AM83 -> 180 | N38: AWA
A39: 16 | B39: =Main!D84 -> 40.4 | C39: =Main!F84 -> 5.380461738 | D39: =Main!G84 -> 5.864147255 | E39: =Main!H84 -> 6.012024048 | F39: =Main!I84 -> 6.164383562 | G39: =Main!J84 -> 6.330226833 | H39: =Main!K84 -> 6.676557864 | I39: =Main!L84 -> 6.650655829 | J39: =Main!M84 -> 6.456241033 | K39: =Main!N84 -> 6.182380216 | L39: =Main!P84 -> 5.845104725 | M39: =Main!Q84 -> 180 | N39: SPEED
B40: =Main!E84 -> 4.097427726 | C40: =Main!S84 -> 20.39772183 | D40: =Main!T84 -> 20.14742586 | E40: =Main!U84 -> 19.70626342 | F40: =Main!V84 -> 18.57563836 | G40: =Main!W84 -> 17.20673623 | H40: =Main!X84 -> 15.08323148 | I40: =Main!Y84 -> 13.92195136 | J40: =Main!Z84 -> 12.31239173 | K40: =Main!AA84 -> 11.08560683 | L40: =Main!AB84 -> 10.15489528 | M40: =Main!O84 -> 5.845104725 | N40: AWS
C41: =Main!AD84 -> 30.5563889 | D41: =Main!AE84 -> 38.74061208 | E41: =Main!AF84 -> 44.68006313 | F41: =Main!AG84 -> 56.30408239 | G41: =Main!AH84 -> 68.41430763 | H41: =Main!AI84 -> 85.42066771 | I41: =Main!AJ84 -> 95.56195619 | J41: =Main!AK84 -> 113.2359533 | K41: =Main!AL84 -> 133.8085877 | L41: =Main!AM84 -> 180 | N41: AWA
A42: 20 | B42: =Main!D85 -> 40.2 | C42: =Main!F85 -> 5.476124356 | D42: =Main!G85 -> 5.988023952 | E42: =Main!H85 -> 6.181318681 | F42: =Main!I85 -> 6.4366172 | G42: =Main!J85 -> 6.551410373 | H42: =Main!K85 -> 7.006617361 | I42: =Main!L85 -> 7.137192704 | J42: =Main!M85 -> 7.001166861 | K42: =Main!N85 -> 6.697674419 | L42: =Main!P85 -> 6.354810238 | M42: =Main!Q85 -> 180 | N42: SPEED
B43: =Main!E85 -> 4.182642036 | C43: =Main!S85 -> 24.43959123 | D43: =Main!T85 -> 24.15202388 | E43: =Main!U85 -> 23.70306044 | F43: =Main!V85 -> 22.5403373 | G43: =Main!W85 -> 21.04568787 | H43: =Main!X85 -> 18.79458741 | I43: =Main!Y85 -> 17.55550243 | J43: =Main!Z85 -> 15.84277232 | K43: =Main!AA85 -> 14.58919446 | L43: =Main!AB85 -> 13.64518976 | M43: =Main!O85 -> 6.354810238 | N43: AWS
C44: =Main!AD85 -> 31.88436292 | D44: =Main!AE85 -> 40.73354909 | E44: =Main!AF85 -> 46.94752381 | F44: =Main!AG85 -> 58.98853422 | G44: =Main!AH85 -> 71.86272961 | H44: =Main!AI85 -> 89.49328427 | I44: =Main!AJ85 -> 99.3852394 | J44: =Main!AK85 -> 116.7911616 | K44: =Main!AL85 -> 136.7298736 | L44: =Main!AM85 -> 180 | N44: AWA
A45: Snelheden in knopen | D45: UA=Up Angle, VMG=resulterende snelheid recht tegen de wind (bijUA), V@UA=snelheid bij optimale opkruishoek
A46: Hoeken in graden | D46: DA=Down Angle, VMG=resulterende snelheid recht voor de wind (bijDA), V@DA=snelheid bij afkruis opkruishoek

Sheet Detail 2
A2: N° de Voile | C2: =Main!$D$4 ->  | G2: GPH: | H2: =Main!$N$4 -> 
A3: Nom | C3: =Main!$E$4 ->  | G3: TMF: | H3: =Main!$O$4 -> 
A4: Type: | C4: =Main!$F$4 ->  | G4: DSPL: | H4: =Main!L4 -> 
A5: GV: | B5: =OFFSET(ORC!$B$6,(Main!$C4-6),163) ->  | C5: GENOA: | D5: =OFFSET(ORC!$B$6,(Main!$C4-6),164) ->  | F5: SPI: | G5: =OFFSET(ORC!$B$6,(Main!$C4-6),165) ->  | H5: ASYM: | I5: =OFFSET(ORC!$B$6,(Main!$C4-6),166) -> 
A11: VENT REEL | B11: ANGLE OPTIMAL | F11: VITESSE | O11: ANGLE OPTIMAL
B12: UA | C12: VMG | D12: V@UA | E12: 52 | F12: 60 | G12: 75 | H12: 90 | I12: 110 | J12: 120 | K12: 135 | L12: 150 | M12: V@DA | N12: VMG | O12: DA
A13: 6 | B13: =Main!D114 ->  | C13: =Main!E114 ->  | D13: =Main!F114 ->  | E13: =Main!G114 ->  | F13: =Main!H114 ->  | G13: =Main!I114 ->  | H13: =Main!J114 ->  | I13: =Main!K114 ->  | J13: =Main!L114 ->  | K13: =Main!M114 ->  | L13: =Main!N114 ->  | M13: =Main!P114 ->  | N13: =Main!O114 ->  | O13: =Main!Q114 -> 
A14: 8 | B14: =Main!D115 ->  | C14: =Main!E115 ->  | D14: =Main!F115 ->  | E14: =Main!G115 ->  | F14: =Main!H115 ->  | G14: =Main!I115 ->  | H14: =Main!J115 ->  | I14: =Main!K115 ->  | J14: =Main!L115 ->  | K14: =Main!M115 ->  | L14: =Main!N115 ->  | M14: =Main!P115 ->  | N14: =Main!O115 ->  | O14: =Main!Q115 -> 
A15: 10 | B15: =Main!D116 ->  | C15: =Main!E116 ->  | D15: =Main!F116 ->  | E15: =Main!G116 ->  | F15: =Main!H116 ->  | G15: =Main!I116 ->  | H15: =Main!J116 ->  | I15: =Main!K116 ->  | J15: =Main!L116 ->  | K15: =Main!M116 ->  | L15: =Main!N116 ->  | M15: =Main!P116 ->  | N15: =Main!O116 ->  | O15: =Main!Q116 -> 
A16: 12 | B16: =Main!D117 ->  | C16: =Main!E117 ->  | D16: =Main!F117 ->  | E16: =Main!G117 ->  | F16: =Main!H117 ->  | G16: =Main!I117 ->  | H16: =Main!J117 ->  | I16: =Main!K117 ->  | J16: =Main!L117 ->  | K16: =Main!M117 ->  | L16: =Main!N117 ->  | M16: =Main!P117 ->  | N16: =Main!O117 ->  | O16: =Main!Q117 -> 
A17: 14 | B17: =Main!D118 ->  | C17: =Main!E118 ->  | D17: =Main!F118 ->  | E17: =Main!G118 ->  | F17: =Main!H118 ->  | G17: =Main!I118 ->  | H17: =Main!J118 ->  | I17: =Main!K118 ->  | J17: =Main!L118 ->  | K17: =Main!M118 ->  | L17: =Main!N118 ->  | M17: =Main!P118 ->  | N17: =Main!O118 ->  | O17: =Main!Q118 -> 
A18: 16 | B18: =Main!D119 ->  | C18: =Main!E119 ->  | D18: =Main!F119 ->  | E18: =Main!G119 ->  | F18: =Main!H119 ->  | G18: =Main!I119 ->  | H18: =Main!J119 ->  | I18: =Main!K119 ->  | J18: =Main!L119 ->  | K18: =Main!M119 ->  | L18: =Main!N119 ->  | M18: =Main!P119 ->  | N18: =Main!O119 ->  | O18: =Main!Q119 -> 
A19: 20 | B19: =Main!D120 ->  | C19: =Main!E120 ->  | D19: =Main!F120 ->  | E19: =Main!G120 ->  | F19: =Main!H120 ->  | G19: =Main!I120 ->  | H19: =Main!J120 ->  | I19: =Main!K120 ->  | J19: =Main!L120 ->  | K19: =Main!M120 ->  | L19: =Main!N120 ->  | M19: =Main!P120 ->  | N19: =Main!O120 ->  | O19: =Main!Q120 -> 
A20: Snelheden in knopen | D20: UA=Up Angle, VMG=resulterende snelheid recht tegen de wind (bijUA), V@UA=snelheid bij optimale opkruishoek
A21: Hoeken in graden | D21: DA=Down Angle, VMG=resulterende snelheid recht voor de wind (bijDA), V@DA=snelheid bij afkruis opkruishoek
A22: Vent réel | B22: ANGLE OPTIMAL | D22: vitesse du bateau en vent réel / vitesse du vent apparent et l'angle | M22: Optimale afkruis hoek / VMG
B23: UA/VMG | C23: V@UA | D23: 52 | E23: 60 | F23: 75 | G23: 90 | H23: 110 | I23: 120 | J23: 135 | K23: 150 | L23: V@DA | M23: DA/VMG | N23: TWA
A24: 6 | B24: =Main!D114 ->  | C24: =Main!F114 ->  | D24: =Main!G114 ->  | E24: =Main!H114 ->  | F24: =Main!I114 ->  | G24: =Main!J114 ->  | H24: =Main!K114 ->  | I24: =Main!L114 ->  | J24: =Main!M114 ->  | K24: =Main!N114 ->  | L24: =Main!P114 ->  | M24: =Main!Q114 ->  | N24: SPEED
B25: =Main!E114 ->  | C25: =Main!S114 ->  | D25: =Main!T114 ->  | E25: =Main!U114 ->  | F25: =Main!V114 ->  | G25: =Main!W114 ->  | H25: =Main!X114 ->  | I25: =Main!Y114 ->  | J25: =Main!Z114 ->  | K25: =Main!AA114 ->  | L25: =Main!AB114 ->  | M25: =Main!O114 ->  | N25: AWS
C26: =Main!AD114 ->  | D26: =Main!AE114 ->  | E26: =Main!AF114 ->  | F26: =Main!AG114 ->  | G26: =Main!AH114 ->  | H26: =Main!AI114 ->  | I26: =Main!AJ114 ->  | J26: =Main!AK114 ->  | K26: =Main!AL114 ->  | L26: =Main!AM114 ->  | N26: AWA
A27: 8 | B27: =Main!D115 ->  | C27: =Main!F115 ->  | D27: =Main!G115 ->  | E27: =Main!H115 ->  | F27: =Main!I115 ->  | G27: =Main!J115 ->  | H27: =Main!K115 ->  | I27: =Main!L115 ->  | J27: =Main!M115 ->  | K27: =Main!N115 ->  | L27: =Main!O115 ->  | M27: =Main!Q115 ->  | N27: SPEED
B28: =Main!E115 ->  | C28: =Main!S115 ->  | D28: =Main!T115 ->  | E28: =Main!U115 ->  | F28: =Main!V115 ->  | G28: =Main!W115 ->  | H28: =Main!X115 ->  | I28: =Main!Y115 ->  | J28: =Main!Z115 ->  | K28: =Main!AA115 ->  | L28: =Main!AB115 ->  | M28: =Main!O115 ->  | N28: AWS
C29: =Main!AD115 ->  | D29: =Main!AE115 ->  | E29: =Main!AF115 ->  | F29: =Main!AG115 ->  | G29: =Main!AH115 ->  | H29: =Main!AI115 ->  | I29: =Main!AJ115 ->  | J29: =Main!AK115 ->  | K29: =Main!AL115 ->  | L29: =Main!AM115 ->  | N29: AWA
A30: 10 | B30: =Main!D116 ->  | C30: =Main!F116 ->  | D30: =Main!G116 ->  | E30: =Main!H116 ->  | F30: =Main!I116 ->  | G30: =Main!J116 ->  | H30: =Main!K116 ->  | I30: =Main!L116 ->  | J30: =Main!M116 ->  | K30: =Main!N116 ->  | L30: =Main!O116 ->  | M30: =Main!Q116 ->  | N30: SPEED
B31: =Main!E116 ->  | C31: =Main!S116 ->  | D31: =Main!T116 ->  | E31: =Main!U116 ->  | F31: =Main!V116 ->  | G31: =Main!W116 ->  | H31: =Main!X116 ->  | I31: =Main!Y116 ->  | J31: =Main!Z116 ->  | K31: =Main!AA116 ->  | L31: =Main!AB116 ->  | M31: =Main!O116 ->  | N31: AWS
C32: =Main!AD116 ->  | D32: =Main!AE116 ->  | E32: =Main!AF116 ->  | F32: =Main!AG116 ->  | G32: =Main!AH116 ->  | H32: =Main!AI116 ->  | I32: =Main!AJ116 ->  | J32: =Main!AK116 ->  | K32: =Main!AL116 ->  | L32: =Main!AM116 ->  | N32: AWA
A33: 12 | B33: =Main!D117 ->  | C33: =Main!F117 ->  | D33: =Main!G117 ->  | E33: =Main!H117 ->  | F33: =Main!I117 ->  | G33: =Main!J117 ->  | H33: =Main!K117 ->  | I33: =Main!L117 ->  | J33: =Main!M117 ->  | K33: =Main!N117 ->  | L33: =Main!O117 ->  | M33: =Main!Q117 ->  | N33: SPEED
B34: =Main!E117 ->  | C34: =Main!S117 ->  | D34: =Main!T117 ->  | E34: =Main!U117 ->  | F34: =Main!V117 ->  | G34: =Main!W117 ->  | H34: =Main!X117 ->  | I34: =Main!Y117 ->  | J34: =Main!Z117 ->  | K34: =Main!AA117 ->  | L34: =Main!AB117 ->  | M34: =Main!O117 ->  | N34: AWS
C35: =Main!AD117 ->  | D35: =Main!AE117 ->  | E35: =Main!AF117 ->  | F35: =Main!AG117 ->  | G35: =Main!AH117 ->  | H35: =Main!AI117 ->  | I35: =Main!AJ117 ->  | J35: =Main!AK117 ->  | K35: =Main!AL117 ->  | L35: =Main!AM117 ->  | N35: AWA
A36: 14 | B36: =Main!D118 ->  | C36: =Main!F118 ->  | D36: =Main!G118 ->  | E36: =Main!H118 ->  | F36: =Main!I118 ->  | G36: =Main!J118 ->  | H36: =Main!K118 ->  | I36: =Main!L118 ->  | J36: =Main!M118 ->  | K36: =Main!N118 ->  | L36: =Main!O118 ->  | M36: =Main!Q118 ->  | N36: SPEED
B37: =Main!E118 ->  | C37: =Main!S118 ->  | D37: =Main!T118 ->  | E37: =Main!U118 ->  | F37: =Main!V118 ->  | G37: =Main!W118 ->  | H37: =Main!X118 ->  | I37: =Main!Y118 ->  | J37: =Main!Z118 ->  | K37: =Main!AA118 ->  | L37: =Main!AB118 ->  | M37: =Main!O118 ->  | N37: AWS
C38: =Main!AD118 ->  | D38: =Main!AE118 ->  | E38: =Main!AF118 ->  | F38: =Main!AG118 ->  | G38: =Main!AH118 ->  | H38: =Main!AI118 ->  | I38: =Main!AJ118 ->  | J38: =Main!AK118 ->  | K38: =Main!AL118 ->  | L38: =Main!AM118 ->  | N38: AWA
A39: 16 | B39: =Main!D119 ->  | C39: =Main!F119 ->  | D39: =Main!G119 ->  | E39: =Main!H119 ->  | F39: =Main!I119 ->  | G39: =Main!J119 ->  | H39: =Main!K119 ->  | I39: =Main!L119 ->  | J39: =Main!M119 ->  | K39: =Main!N119 ->  | L39: =Main!O119 ->  | M39: =Main!Q119 ->  | N39: SPEED
B40: =Main!E119 ->  | C40: =Main!S119 ->  | D40: =Main!T119 ->  | E40: =Main!U119 ->  | F40: =Main!V119 ->  | G40: =Main!W119 ->  | H40: =Main!X119 ->  | I40: =Main!Y119 ->  | J40: =Main!Z119 ->  | K40: =Main!AA119 ->  | L40: =Main!AB119 ->  | M40: =Main!O119 ->  | N40: AWS
C41: =Main!AD119 ->  | D41: =Main!AE119 ->  | E41: =Main!AF119 ->  | F41: =Main!AG119 ->  | G41: =Main!AH119 ->  | H41: =Main!AI119 ->  | I41: =Main!AJ119 ->  | J41: =Main!AK119 ->  | K41: =Main!AL119 ->  | L41: =Main!AM119 ->  | N41: AWA
A42: 20 | B42: =Main!D120 ->  | C42: =Main!F120 ->  | D42: =Main!G120 ->  | E42: =Main!H120 ->  | F42: =Main!I120 ->  | G42: =Main!J120 ->  | H42: =Main!K120 ->  | I42: =Main!L120 ->  | J42: =Main!M120 ->  | K42: =Main!N120 ->  | L42: =Main!O120 ->  | M42: =Main!Q120 ->  | N42: SPEED
B43: =Main!E120 ->  | C43: =Main!S120 ->  | D43: =Main!T120 ->  | E43: =Main!U120 ->  | F43: =Main!V120 ->  | G43: =Main!W120 ->  | H43: =Main!X120 ->  | I43: =Main!Y120 ->  | J43: =Main!Z120 ->  | K43: =Main!AA120 ->  | L43: =Main!AB120 ->  | M43: =Main!O120 ->  | N43: AWS
C44: =Main!AD120 ->  | D44: =Main!AE120 ->  | E44: =Main!AF120 ->  | F44: =Main!AG120 ->  | G44: =Main!AH120 ->  | H44: =Main!AI120 ->  | I44: =Main!AJ120 ->  | J44: =Main!AK120 ->  | K44: =Main!AL120 ->  | L44: =Main!AM120 ->  | N44: AWA
A45: Snelheden in knopen | D45: UA=Up Angle, VMG=resulterende snelheid recht tegen de wind (bijUA), V@UA=snelheid bij optimale opkruishoek
A46: Hoeken in graden | D46: DA=Down Angle, VMG=resulterende snelheid recht voor de wind (bijDA), V@DA=snelheid bij afkruis opkruishoek

Sheet ORC
E1: NAME | F1: TYPE | G1: BUILDER | K1: OWNER | L1: C_Type | M1: D | N1: CREW | O1: DD-MM-yyYY | P1: LOA | Q1: IMSL | R1: DRAFT | S1: BMAX | T1: DSPL | U1: INDEX | V1: DA | W1: GPH | X1: TMF | Y1: ILCGA | Z1: PLT-O | AA1: PLD-O | AB1: WL6 | AC1: WL8 | AD1: WL10 | AE1: WL12 | AF1: WL14 | AG1: WL16 | AH1: WL20 | AI1: OL6 | AJ1: OL8 | AK1: OL10 | AL1: OL12 | AM1: OL14 | AN1: OL16 | AO1: OL20 | AP1: CR6 | AQ1: CR8 | AR1: CR10 | AS1: CR12 | AT1: CR14 | AU1: CR16 | AV1: CR20 | AW1: NSP6 | AX1: NSP8 | AY1: NSP10 | AZ1: NSP12 | BA1: NSP14 | BB1: NSP16 | BC1: NSP20 | BD1: OC6 | BE1: OC8 | BF1: OC10 | BG1: OC12 | BH1: OC14 | BI1: OC16 | BJ1: OC20 | BK1: UA6 | BL1: UA8 | BM1: UA10 | BN1: UA12 | BO1: UA14 | BP1: UA16 | BQ1: UA20 | BR1: DA6 | BS1: DA8 | BT1: DA10 | BU1: DA12 | BV1: DA14 | BW1: DA16 | BX1: DA20 | BY1: UP6 | BZ1: UP8 | CA1: UP10 | CB1: UP12 | CC1: UP14 | CD1: UP16 | CE1: UP20 | CF1: R526 | CG1: R528 | CH1: R5210 | CI1: R5212 | CJ1: R5214 | CK1: R5216 | CL1: R5220 | CM1: R606 | CN1: R608 | CO1: R6010 | CP1: R6012 | CQ1: R6014 | CR1: R6016 | CS1: R6020 | CT1: R756 | CU1: R758 | CV1: R7510 | CW1: R7512 | CX1: R7514 | CY1: R7516 | CZ1: R7520 | DA1: R906 | DB1: R908 | DC1: R9010 | DD1: R9012 | DE1: R9014 | DF1: R9016 | DG1: R9020 | DH1: R1106 | DI1: R1108 | DJ1: R11010 | DK1: R11012 | DL1: R11014 | DM1: R11016 | DN1: R11020 | DO1: R1206 | DP1: R1208 | DQ1: R12010 | DR1: R12012 | DS1: R12014 | DT1: R12016 | DU1: R12020 | DV1: R1356 | DW1: R1358 | DX1: R13510 | DY1: R13512 | DZ1: R13514 | EA1: R13516 | EB1: R13520 | EC1: R1506 | ED1: R1508 | EE1: R15010 | EF1: R15012 | EG1: R15014 | EH1: R15016 | EI1: R15020 | EJ1: D6 | EK1: D8 | EL1: D10 | EM1: D12 | EN1: D14 | EO1: D16 | EP1: D20 | EQ1: OTNLOW | ER1: OTNMED | ES1: OTNHIG | ET1: ITNLOW | EU1: ITNMED | EV1: ITNHIG | EW1: DH_TOD | EX1: DH_TOT | EY1: PLT-I | EZ1: PLD-I | FA1: TMF-OF | FB1: PLT2H | FC1: PLD2H | FD1: OSN | FE1: ReferenceNo | FF1: CDL | FG1: DSPS | FH1: WSS | FI1: MAIN | FJ1: GENOA | FK1: SYM | FL1: ASYM
F2: Jeaneau Poker
B6: NATCERTN, | C6: FILE_ID | D6: SAILNUMB | E6: NAME | F6: TYPE | G6: BUILDER | H6: DESIGNER | I6: YEAR | J6: CLUB | K6: OWNER | L6: C_Type | M6: D | N6: CREW | O6: DD-MM-yyYY | P6: LOA | Q6: IMSL | R6: DRAFT | S6: BMAX | T6: DSPL | U6: INDEX | V6: DA | W6: GPH | X6: TMF | Y6: ILCGA | Z6: PLT-O | AA6: PLD-O | AB6: WL6 | AC6: WL8 | AD6: WL10 | AE6: WL12 | AF6: WL14 | AG6: WL16 | AH6: WL20 | AI6: OL6 | AJ6: OL8 | AK6: OL10 | AL6: OL12 | AM6: OL14 | AN6: OL16 | AO6: OL20 | AP6: CR6 | AQ6: CR8 | AR6: CR10 | AS6: CR12 | AT6: CR14 | AU6: CR16 | AV6: CR20 | AW6: NSP6 | AX6: NSP8 | AY6: NSP10 | AZ6: NSP12 | BA6: NSP14 | BB6: NSP16 | BC6: NSP20 | BD6: OC6 | BE6: OC8 | BF6: OC10 | BG6: OC12 | BH6: OC14 | BI6: OC16 | BJ6: OC20 | BK6: UA6 | BL6: UA8 | BM6: UA10 | BN6: UA12 | BO6: UA14 | BP6: UA16 | BQ6: UA20 | BR6: DA6 | BS6: DA8 | BT6: DA10 | BU6: DA12 | BV6: DA14 | BW6: DA16 | BX6: DA20 | BY6: UP6 | BZ6: UP8 | CA6: UP10 | CB6: UP12 | CC6: UP14 | CD6: UP16 | CE6: UP20 | CF6: R526 | CG6: R528 | CH6: R5210 | CI6: R5212 | CJ6: R5214 | CK6: R5216 | CL6: R5220 | CM6: R606 | CN6: R608 | CO6: R6010 | CP6: R6012 | CQ6: R6014 | CR6: R6016 | CS6: R6020 | CT6: R756 | CU6: R758 | CV6: R7510 | CW6: R7512 | CX6: R7514 | CY6: R7516 | CZ6: R7520 | DA6: R906 | DB6: R908 | DC6: R9010 | DD6: R9012 | DE6: R9014 | DF6: R9016 | DG6: R9020 | DH6: R1106 | DI6: R1108 | DJ6: R11010 | DK6: R11012 | DL6: R11014 | DM6: R11016 | DN6: R11020 | DO6: R1206 | DP6: R1208 | DQ6: R12010 | DR6: R12012 | DS6: R12014 | DT6: R12016 | DU6: R12020 | DV6: R1356 | DW6: R1358 | DX6: R13510 | DY6: R13512 | DZ6: R13514 | EA6: R13516 | EB6: R13520 | EC6: R1506 | ED6: R1508 | EE6: R15010 | EF6: R15012 | EG6: R15014 | EH6: R15016 | EI6: R15020 | EJ6: D6 | EK6: D8 | EL6: D10 | EM6: D12 | EN6: D14 | EO6: D16 | EP6: D20 | EQ6: OTNLOW | ER6: OTNMED | ES6: OTNHIG | ET6: ITNLOW | EU6: ITNMED | EV6: ITNHIG | EW6: DH_TOD | EX6: DH_TOT | EY6: PLT-I | EZ6: PLD-I | FA6: TMF-OF | FB6: PLT2H | FC6: PLD2H | FD6: OSN | FE6: ReferenceNo | FF6: CDL | FG6: DSPS | FH6: WSS | FI6: MAIN | FJ6: GENOA | FK6: SYM | FL6: ASYM | FM6: OTDLOW | FN6: OTDMED | FO6: OTDHIG | FP6: ITDLOW | FQ6: ITDMED | FR6: ITDHIG | FS6: NS_TOD | FT6: NS_TOT | FU6: GNSTOD | FV6: GNSTOT | FW6: GDHTOD | FX6: GDHTOT
B7: ARG454507 | C7: 2ARG4545 | D7: ARG-4545 | E7: ALTO RIESGO | F7: FAYD 30 | G7: AST, FAYD | H7: MARTIN BILLOCH | I7: 1996 | L7: CLUB | M7: C | N7: 170 | O7: 02 01 2018 19:31:20 | P7: 9.35 | Q7: 8.796 | R7: 1.73 | S7: 3.28 | T7: 3250 | U7: 111.3 | V7: 0.16 | W7: 654 | X7: 0.947 | Y7: 712.8 | Z7: 0 | AA7: 0 | AB7: 1052.7 | AC7: 853.9 | AD7: 748.6 | AE7: 692.6 | AF7: 657.1 | AG7: 635.1 | AH7: 609.3 | AI7: 1002.2 | AJ7: 819.4 | AK7: 728.1 | AL7: 682.8 | AM7: 656.3 | AN7: 637 | AO7: 612.9 | AP7: 893 | AQ7: 724 | AR7: 634.9 | AS7: 584 | AT7: 552.9 | AU7: 532.4 | AV7: 505.5 | AW7: 943.5 | AX7: 759.7 | AY7: 661.4 | AZ7: 604.8 | BA7: 570.3 | BB7: 547.7 | BC7: 519 | BD7: 1051.2 | BE7: 803.3 | BF7: 676.4 | BG7: 606.2 | BH7: 566.3 | BI7: 532.9 | BJ7: 479.1 | BK7: 42.6 | BL7: 40.9 | BM7: 40.2 | BN7: 39.4 | BO7: 39.2 | BP7: 39 | BQ7: 39.9 | BR7: 145.4 | BS7: 150.3 | BT7: 152.8 | BU7: 160.1 | BV7: 180 | BW7: 180 | BX7: 180 | BY7: 1067.8 | BZ7: 886.7 | CA7: 802.5 | CB7: 773.4 | CC7: 762.1 | CD7: 753.2 | CE7: 754.9 | CF7: 704 | CG7: 595.9 | CH7: 551.6 | CI7: 537.8 | CJ7: 532 | CK7: 529.4 | CL7: 522.8 | CM7: 669.1 | CN7: 572.6 | CO7: 535.7 | CP7: 521.8 | CQ7: 515.9 | CR7: 512.9 | CS7: 505.1 | CT7: 643.8 | CU7: 557 | CV7: 523.5 | CW7: 504.9 | CX7: 492.8 | CY7: 486.2 | CZ7: 481.4 | DA7: 651.4 | DB7: 553 | DC7: 515.9 | DD7: 498.9 | DE7: 480 | DF7: 463.4 | DG7: 446.3 | DH7: 659.4 | DI7: 552.5 | DJ7: 511.4 | DK7: 482.6 | DL7: 456.2 | DM7: 439.5 | DN7: 417.6 | DO7: 681.7 | DP7: 566.1 | DQ7: 518.2 | DR7: 487.5 | DS7: 458 | DT7: 431.6 | DU7: 395.9 | DV7: 757.5 | DW7: 618.5 | DX7: 544.4 | DY7: 509.4 | DZ7: 480 | EA7: 450.4 | EB7: 392.9 | EC7: 898.6 | ED7: 711.1 | EE7: 603.8 | EF7: 541 | EG7: 508.8 | EH7: 481.2 | EI7: 426.8 | EJ7: 1037.7 | EK7: 821.1 | EL7: 694.8 | EM7: 611.8 | EN7: 552.2 | EO7: 517 | EP7: 463.6 | EQ7: 0.9119 | ER7: 1.1605 | ES7: 1.2907 | ET7: 0.708 | EU7: 0.9429 | EV7: 1.0699 | EW7: 0 | EX7: 0 | EY7: 0 | EZ7: 0 | FA7: 0.9417 | FB7: 0 | FC7: 0 | FD7: 637.2 | FE7: ARG00006555 | FF7: 8.126 | FG7: 3994 | FH7: 21.4 | FI7: 34.1 | FJ7: 23.2 | FK7: 59.5 | FL7: 49.8 | FM7: 740.2 | FN7: 581.6 | FO7: 523 | FP7: 953.4 | FQ7: 715.9 | FR7: 630.9 | FS7: 662.9 | FT7: 0.9052 | FU7: 682.2 | FV7: 0.8795 | FW7: 0 | FX7: 0
B8: ARG540001 | C8: ARG5400O | D8: ARG-5400 | E8: B 612 | F8: K 37 | G8: MARTINOLI MARINE | H8: JUAN YACHT DESIGN | I8: 2010 | L8: CLUB | M8: C | N8: 745 | O8: 02 01 2018 19:31:26 | P8: 11.3 | Q8: 10.582 | R8: 2.5 | S8: 3.7 | T8: 5187 | U8: 117.9 | V8: 0 | W8: 555.8 | X8: 1.1056 | Y8: 610.5 | Z8: 0 | AA8: 0 | AB8: 899.6 | AC8: 723.1 | AD8: 632.2 | AE8: 593.9 | AF8: 573.1 | AG8: 549.1 | AH8: 510 | AI8: 857.7 | AJ8: 692.2 | AK8: 615 | AL8: 579.3 | AM8: 555.9 | AN8: 532.8 | AO8: 506.4 | AP8: 759.4 | AQ8: 615.2 | AR8: 539.6 | AS8: 496.4 | AT8: 469.3 | AU8: 449.9 | AV8: 420.1 | AW8: 824.4 | AX8: 661.6 | AY8: 574.1 | AZ8: 522.9 | BA8: 490.8 | BB8: 469.2 | BC8: 440.8 | BD8: 896.6 | BE8: 680.2 | BF8: 572.2 | BG8: 515.8 | BH8: 484 | BI8: 453.1 | BJ8: 401.7 | BK8: 43.3 | BL8: 42.5 | BM8: 40 | BN8: 38.9 | BO8: 38.5 | BP8: 37.9 | BQ8: 38.6 | BR8: 143.2 | BS8: 146.1 | BT8: 148.5 | BU8: 151.7 | BV8: 149 | BW8: 146.3 | BX8: 139.2 | BY8: 930 | BZ8: 754.4 | CA8: 680.4 | CB8: 660 | CC8: 648.7 | CD8: 634.7 | CE8: 637.2 | CF8: 606.9 | CG8: 502.2 | CH8: 473.2 | CI8: 465.5 | CJ8: 461.8 | CK8: 455.4 | CL8: 451.8 | CM8: 573.2 | CN8: 486.5 | CO8: 459.9 | CP8: 452.1 | CQ8: 447.9 | CR8: 442.4 | CS8: 435 | CT8: 548.5 | CU8: 477.7 | CV8: 447.9 | CW8: 432.2 | CX8: 424.3 | CY8: 419.7 | CZ8: 403.9 | DA8: 554.1 | DB8: 475.9 | DC8: 448.8 | DD8: 421.9 | DE8: 401.6 | DF8: 391.6 | DG8: 382.4 | DH8: 550 | DI8: 465.3 | DJ8: 433.3 | DK8: 414.1 | DL8: 395.4 | DM8: 380.2 | DN8: 345.1 | DO8: 563.2 | DP8: 471.7 | DQ8: 432.3 | DR8: 400.1 | DS8: 379.9 | DT8: 362 | DU8: 325.4 | DV8: 633.7 | DW8: 504.5 | DX8: 454.8 | DY8: 419.9 | DZ8: 384.2 | EA8: 346 | EB8: 286.6 | EC8: 752.8 | ED8: 599.1 | EE8: 505.7 | EF8: 457.5 | EG8: 430.7 | EH8: 401.5 | EI8: 331.5 | EJ8: 869.3 | EK8: 691.8 | EL8: 583.9 | EM8: 527.8 | EN8: 497.4 | EO8: 463.6 | EP8: 382.8 | EQ8: 1.0749 | ER8: 1.3639 | ES8: 1.5271 | ET8: 0.8319 | EU8: 1.1025 | EV8: 1.249 | EW8: 0 | EX8: 0 | EY8: 0 | EZ8: 0 | FA8: 1.1086 | FB8: 0 | FC8: 0 | FD8: 541.2 | FE8: ARG00006556 | FF8: 10.409 | FG8: 6131 | FH8: 31.9 | FI8: 58.9 | FJ8: 44 | FK8: 0 | FL8: 165.9 | FM8: 628 | FN8: 494.9 | FO8: 442 | FP8: 811.4 | FQ8: 612.2 | FR8: 540.4 | FS8: 577.4 | FT8: 1.0392 | FU8: 592.3 | FV8: 1.013 | FW8: 0 | FX8: 0
B9: ARG467502 | C9: ARG4675 | D9: ARG-4675 | E9: GARRAS | F9: FAYD 30 | G9: AST, FAYD | H9: MARTIN BILLOCH | I9: 1996 | L9: CLUB | M9: C | N9: 483 | O9: 02 01 2018 19:31:54 | P9: 9.35 | Q9: 8.751 | R9: 1.63 | S9: 3.27 | T9: 3274 | U9: 109.3 | V9: 0.01 | W9: 648.3 | X9: 0.9588 | Y9: 704 | Z9: 0 | AA9: 0 | AB9: 1051.5 | AC9: 852.7 | AD9: 739.8 | AE9: 680.4 | AF9: 644.2 | AG9: 624.8 | AH9: 599.5 | AI9: 999.7 | AJ9: 815.3 | AK9: 718.3 | AL9: 669.4 | AM9: 642.6 | AN9: 625.5 | AO9: 600.1 | AP9: 889.1 | AQ9: 719.5 | AR9: 629.2 | AS9: 577.1 | AT9: 545.1 | AU9: 523.9 | AV9: 496.1 | AW9: 932.4 | AX9: 750.2 | AY9: 652.3 | AZ9: 595.5 | BA9: 560.7 | BB9: 537.8 | BC9: 507.8 | BD9: 1050.8 | BE9: 802.5 | BF9: 669.9 | BG9: 597.4 | BH9: 557.5 | BI9: 525.3 | BJ9: 470.2 | BK9: 42.8 | BL9: 41.5 | BM9: 40.2 | BN9: 38.9 | BO9: 38.5 | BP9: 39.1 | BQ9: 39.9 | BR9: 145.7 | BS9: 150.3 | BT9: 152.7 | BU9: 160.1 | BV9: 180 | BW9: 180 | BX9: 180 | BY9: 1059.1 | BZ9: 880.3 | CA9: 782.6 | CB9: 747.7 | CC9: 734.8 | CD9: 731.1 | CE9: 733 | CF9: 696.9 | CG9: 589.2 | CH9: 543.3 | CI9: 526.7 | CJ9: 520.5 | CK9: 517.8 | CL9: 516.1 | CM9: 661.9 | CN9: 567.3 | CO9: 530.3 | CP9: 513.2 | CQ9: 505.6 | CR9: 501.7 | CS9: 500.6 | CT9: 637.2 | CU9: 553.6 | CV9: 520.7 | CW9: 499.7 | CX9: 483.2 | CY9: 473.8 | CZ9: 467 | DA9: 644.5 | DB9: 555.8 | DC9: 516.9 | DD9: 494.1 | DE9: 474.9 | DF9: 455.7 | DG9: 433.5 | DH9: 665.3 | DI9: 555.2 | DJ9: 512.6 | DK9: 481.6 | DL9: 453 | DM9: 430.7 | DN9: 405.6 | DO9: 687.4 | DP9: 568.8 | DQ9: 519.9 | DR9: 489 | DS9: 458.5 | DT9: 430.4 | DU9: 381.7 | DV9: 763.3 | DW9: 621.4 | DX9: 546.1 | DY9: 511 | DZ9: 482.1 | EA9: 452.9 | EB9: 395.4 | EC9: 904.2 | ED9: 714.5 | EE9: 605.5 | EF9: 542.3 | EG9: 510.3 | EH9: 483.2 | EI9: 429.9 | EJ9: 1044 | EK9: 825.1 | EL9: 696.9 | EM9: 613.2 | EN9: 553.6 | EO9: 518.5 | EP9: 466.1 | EQ9: 0.9133 | ER9: 1.1731 | ES9: 1.3127 | ET9: 0.7089 | EU9: 0.9568 | EV9: 1.0884 | EW9: 0 | EX9: 0 | EY9: 0 | EZ9: 0 | FA9: 0.9514 | FB9: 0 | FC9: 0 | FD9: 630.6 | FE9: ARG00006561 | FF9: 8.365 | FG9: 4012 | FH9: 20.9 | FI9: 32 | FJ9: 28.7 | FK9: 60 | FL9: 0 | FM9: 739.1 | FN9: 575.4 | FO9: 514.2 | FP9: 952.2 | FQ9: 705.5 | FR9: 620.2 | FS9: 653.3 | FT9: 0.9184 | FU9: 672.8 | FV9: 0.8918 | FW9: 0 | FX9: 0
B10: ARG235701 | C10: HELENE | D10: ARG-2357 | E10: HELENE | F10: F&C 44 | G10: AST, F&C | H10: GERMAN FRERS | I10: 1988 | L10: CLUB | M10: C | N10: 600 | O10: 02 01 2018 19:32:00 | P10: 13.18 | Q10: 10.334 | R10: 2.083 | S10: 3.83 | T10: 11299 | U10: 115.1 | V10: 0.62 | W10: 643.5 | X10: 0.9621 | Y10: 701.6 | Z10: 0 | AA10: 0 | AB10: 1043.2 | AC10: 855.8 | AD10: 749.6 | AE10: 681.8 | AF10: 641.2 | AG10: 614 | AH10: 589.7 | AI10: 1001.9 | AJ10: 824.4 | AK10: 726.7 | AL10: 670.7 | AM10: 639 | AN10: 619 | AO10: 598.1 | AP10: 886.2 | AQ10: 715.8 | AR10: 624.3 | AS10: 571.1 | AT10: 538.8 | AU10: 518.3 | AV10: 495 | AW10: 946.1 | AX10: 758.6 | AY10: 656.2 | AZ10: 595.5 | BA10: 557.8 | BB10: 533.5 | BC10: 504.9 | BD10: 1038.8 | BE10: 804.1 | BF10: 671.9 | BG10: 590.8 | BH10: 548.1 | BI10: 516.7 | BJ10: 470.3 | BK10: 42.9 | BL10: 41.1 | BM10: 41.4 | BN10: 42.5 | BO10: 41.9 | BP10: 41.7 | BQ10: 41.3 | BR10: 146.1 | BS10: 150.9 | BT10: 151.5 | BU10: 154.5 | BV10: 169 | BW10: 180 | BX10: 180 | BY10: 1086.5 | BZ10: 912.1 | CA10: 816.4 | CB10: 765.3 | CC10: 740.8 | CD10: 728.6 | CE10: 721.1 | CF10: 714.4 | CG10: 609.7 | CH10: 542.6 | CI10: 512.7 | CJ10: 500.7 | CK10: 494.8 | CL10: 490.3 | CM10: 679 | CN10: 579 | CO10: 520.1 | CP10: 496 | CQ10: 484 | CR10: 478.4 | CS10: 474 | CT10: 653.4 | CU10: 555.7 | CV10: 504.9 | CW10: 483.6 | CX10: 470.8 | CY10: 461.3 | CZ10: 452.8 | DA10: 660.2 | DB10: 556.5 | DC10: 499.8 | DD10: 479.8 | DE10: 467.6 | DF10: 456 | DG10: 437.3 | DH10: 662.2 | DI10: 546.1 | DJ10: 491.4 | DK10: 468.2 | DL10: 452.3 | DM10: 440.9 | DN10: 427.3 | DO10: 678.2 | DP10: 559.9 | DQ10: 497 | DR10: 470.5 | DS10: 451.9 | DT10: 435.2 | DU10: 412.7 | DV10: 739.7 | DW10: 608.8 | DX10: 524.9 | DY10: 485.6 | DZ10: 464.2 | EA10: 446 | EB10: 412.4 | EC10: 865.8 | ED10: 692.5 | EE10: 591.8 | EF10: 523.2 | EG10: 486.4 | EH10: 466.2 | EI10: 432.3 | EJ10: 999.8 | EK10: 799.6 | EL10: 682.7 | EM10: 598.3 | EN10: 541.5 | EO10: 499.4 | EP10: 458.2 | EQ10: 0.9121 | ER10: 1.1854 | ES10: 1.3271 | ET10: 0.7109 | EU10: 0.9524 | EV10: 1.1035 | EW10: 0 | EX10: 0 | EY10: 0 | EZ10: 0 | FA10: 0.9591 | FB10: 0 | FC10: 0 | FD10: 625.6 | FE10: ARG00006562 | FF10: 8.974 | FG10: 12271 | FH10: 36.4 | FI10: 42.3 | FJ10: 53.7 | FK10: 127 | FL10: 113 | FM10: 740.1 | FN10: 569.4 | FO10: 508.6 | FP10: 949.5 | FQ10: 708.7 | FR10: 611.7 | FS10: 657.1 | FT10: 0.9131 | FU10: 677.1 | FV10: 0.8861 | FW10: 0 | FX10: 0
B11: ARG534901 | C11: ARG5349 | D11: ARG-5349 | E11: VENTARRON | F11: PLENAMAR 350 | G11: PLENAMAR | H11: N, VOLKER | I11: 1998 | L11: CLUB | M11: C | N11: 690 | O11: 02 01 2018 19:33:18 | P11: 10.71 | Q11: 9.822 | R11: 2.199 | S11: 3.5 | T11: 4337 | U11: 115.7 | V11: 0 | W11: 611 | X11: 1.0237 | Y11: 659.4 | Z11: 0 | AA11: 0 | AB11: 992.3 | AC11: 803.1 | AD11: 694.7 | AE11: 637.4 | AF11: 603.3 | AG11: 581.9 | AH11: 554.1 | AI11: 941.6 | AJ11: 765.3 | AK11: 672.3 | AL11: 624.8 | AM11: 597.8 | AN11: 579 | AO11: 550.4 | AP11: 840.1 | AQ11: 678.9 | AR11: 592.9 | AS11: 543 | AT11: 512 | AU11: 491 | AV11: 463 | AW11: 889.2 | AX11: 713.8 | AY11: 619 | AZ11: 563.6 | BA11: 529.2 | BB11: 506.3 | BC11: 476.5 | BD11: 992.2 | BE11: 756.5 | BF11: 630.3 | BG11: 561 | BH11: 522.9 | BI11: 492 | BJ11: 442.2 | BK11: 42.1 | BL11: 40.8 | BM11: 39.3 | BN11: 37.7 | BO11: 36.9 | BP11: 36.6 | BQ11: 36.8 | BR11: 144.9 | BS11: 149.1 | BT11: 150.6 | BU11: 157.1 | BV11: 174.9 | BW11: 180 | BX11: 180 | BY11: 994.2 | BZ11: 822.4 | CA11: 728.2 | CB11: 692.3 | CC11: 677 | CD11: 669.8 | CE11: 664 | CF11: 658.7 | CG11: 554.9 | CH11: 512.4 | CI11: 496.6 | CJ11: 489.9 | CK11: 486.4 | CL11: 484.9 | CM11: 627.1 | CN11: 536 | CO11: 501.5 | CP11: 485.2 | CQ11: 476.8 | CR11: 472 | CS11: 468.7 | CT11: 605.4 | CU11: 524.6 | CV11: 493.5 | CW11: 473.8 | CX11: 457.7 | CY11: 447.2 | CZ11: 438.1 | DA11: 612.8 | DB11: 526.5 | DC11: 493 | DD11: 471.2 | DE11: 449.9 | DF11: 431.6 | DG11: 407.7 | DH11: 637.3 | DI11: 527.2 | DJ11: 485.3 | DK11: 457 | DL11: 432 | DM11: 415.8 | DN11: 391.2 | DO11: 654.8 | DP11: 538.6 | DQ11: 491.4 | DR11: 461.6 | DS11: 431.4 | DT11: 405.1 | DU11: 369.5 | DV11: 722.8 | DW11: 584.9 | DX11: 514 | DY11: 481.5 | DZ11: 453.5 | EA11: 424.4 | EB11: 366.5 | EC11: 857.8 | ED11: 678.8 | EE11: 573 | EF11: 512.1 | EG11: 482.2 | EH11: 456.4 | EI11: 403.7 | EJ11: 990.5 | EK11: 783.8 | EL11: 661.3 | EM11: 582.4 | EN11: 529.5 | EO11: 494 | EP11: 444.1 | EQ11: 0.9664 | ER11: 1.2456 | ES11: 1.4013 | ET11: 0.7519 | EU11: 1.02 | EV11: 1.1703 | EW11: 0 | EX11: 0 | EY11: 0 | EZ11: 0 | FA11: 1.0125 | FB11: 0 | FC11: 0 | FD11: 592.6 | FE11: ARG00006576 | FF11: 9.564 | FG11: 5211 | FH11: 24.7 | FI11: 35.6 | FJ11: 37.2 | FK11: 84 | FL11: 0 | FM11: 698.5 | FN11: 541.9 | FO11: 481.7 | FP11: 897.7 | FQ11: 661.8 | FR11: 576.8 | FS11: 619.6 | FT11: 0.9684 | FU11: 638.7 | FV11: 0.9394 | FW11: 0 | FX11: 0
B12: ARG533301 | C12: ARG5623 | D12: ARG-5623 | E12: ATILA | F12: CORUM 280 CR | G12: Ast, CORUM | H12: PGYD | I12: 2007 | L12: CLUB | M12: C | N12: 500 | O12: 18 01 2018 12:34:08 | P12: 8.751 | Q12: 8.186 | R12: 1.649 | S12: 3.15 | T12: 3175 | U12: 118 | V12: 0.2 | W12: 676.6 | X12: 0.9254 | Y12: 729.4 | Z12: 0 | AA12: 0 | AB12: 1107.5 | AC12: 900 | AD12: 777.3 | AE12: 702.3 | AF12: 660.4 | AG12: 638.6 | AH12: 610.2 | AI12: 1063.4 | AJ12: 866.7 | AK12: 757.7 | AL12: 695.3 | AM12: 661 | AN12: 640.6 | AO12: 612.1 | AP12: 934.2 | AQ12: 753.5 | AR12: 656.3 | AS12: 599.6 | AT12: 564.5 | AU12: 541.3 | AV12: 510.8 | AW12: 995.1 | AX12: 796.5 | AY12: 688.4 | AZ12: 624.8 | BA12: 585.6 | BB12: 560 | BC12: 528.5 | BD12: 1101.8 | BE12: 844.4 | BF12: 701.9 | BG12: 618.3 | BH12: 575.1 | BI12: 543 | BJ12: 487.6 | BK12: 43.1 | BL12: 41.9 | BM12: 41.6 | BN12: 39.7 | BO12: 38.9 | BP12: 38.5 | BQ12: 38.6 | BR12: 146.4 | BS12: 150.6 | BT12: 152.4 | BU12: 161.3 | BV12: 180 | BW12: 180 | BX12: 180 | BY12: 1164.1 | BZ12: 965.3 | CA12: 848.5 | CB12: 781.7 | CC12: 756.4 | CD12: 745.6 | CE12: 738 | CF12: 762.2 | CG12: 640 | CH12: 576.4 | CI12: 550 | CJ12: 537.6 | CK12: 532.5 | CL12: 529.7 | CM12: 721.5 | CN12: 609.4 | CO12: 559.9 | CP12: 537.4 | CQ12: 524 | CR12: 517 | CS12: 512.5 | CT12: 690.7 | CU12: 588.9 | CV12: 548.3 | CW12: 526.1 | CX12: 508.7 | CY12: 494.5 | CZ12: 480.7 | DA12: 684 | DB12: 573.4 | DC12: 532.3 | DD12: 509.2 | DE12: 494.5 | DF12: 483.9 | DG12: 454.3 | DH12: 681.4 | DI12: 570.2 | DJ12: 528.4 | DK12: 499.8 | DL12: 473.2 | DM12: 451 | DN12: 424.3 | DO12: 703.2 | DP12: 582.2 | DQ12: 534.6 | DR12: 505.7 | DS12: 476.8 | DT12: 450.3 | DU12: 407.1 | DV12: 774.6 | DW12: 630.7 | DX12: 557.2 | DY12: 524.3 | DZ12: 497.1 | EA12: 469.5 | EB12: 417.6 | EC12: 910 | ED12: 722.8 | EE12: 613.6 | EF12: 553.2 | EG12: 523.5 | EH12: 498.1 | EI12: 448.3 | EJ12: 1050.8 | EK12: 834.7 | EL12: 706.1 | EM12: 622.9 | EN12: 564.4 | EO12: 531.5 | EP12: 482.3 | EQ12: 0.867 | ER12: 1.1276 | ES12: 1.2722 | ET12: 0.6725 | EU12: 0.9205 | EV12: 1.0657 | EW12: 0 | EX12: 0 | EY12: 0 | EZ12: 0 | FA12: 0.9146 | FB12: 0 | FC12: 0 | FD12: 656 | FE12: ARG00006450 | FF12: 7.742 | FG12: 3840 | FH12: 19.2 | FI12: 27.6 | FJ12: 21.8 | FK12: 59.4 | FL12: 53.5 | FM12: 778.5 | FN12: 598.6 | FO12: 530.6 | FP12: 1003.7 | FQ12: 733.3 | FR12: 633.4 | FS12: 686.4 | FT12: 0.8741 | FU12: 710.7 | FV12: 0.8442 | FW12: 0 | FX12: 0
B13: ARG388802 | C13: ARG3888 | D13: ARG-3888 | E13: AZZAM | F13: PANDORA 34 | G13: AST, MARCO | H13: NESTOR VOLKER | I13: 1992 | L13: CLUB | M13: C | N13: 589 | O13: 18 01 2018 12:34:12 | P13: 10.43 | Q13: 8.772 | R13: 1.76 | S13: 3.54 | T13: 4689 | U13: 111.1 | V13: 0.13 | W13: 658.2 | X13: 0.9488 | Y13: 711.4 | Z13: 0 | AA13: 0 | AB13: 1062.7 | AC13: 867.4 | AD13: 752.2 | AE13: 687.5 | AF13: 649.1 | AG13: 627.3 | AH13: 608.4 | AI13: 1015.2 | AJ13: 831 | AK13: 730.2 | AL13: 676.8 | AM13: 648 | AN13: 630.5 | AO13: 613.9 | AP13: 903.1 | AQ13: 730.5 | AR13: 638.6 | AS13: 585.9 | AT13: 554.1 | AU13: 534 | AV13: 510.3 | AW13: 950.4 | AX13: 764 | AY13: 663.5 | AZ13: 605.2 | BA13: 569.8 | BB13: 547.3 | BC13: 520.5 | BD13: 1060.9 | BE13: 815.8 | BF13: 680.4 | BG13: 604.3 | BH13: 564.6 | BI13: 534.2 | BJ13: 486.2 | BK13: 42.6 | BL13: 41.7 | BM13: 41.3 | BN13: 40.1 | BO13: 39 | BP13: 39.2 | BQ13: 40.2 | BR13: 146.6 | BS13: 150.6 | BT13: 152 | BU13: 157.9 | BV13: 180 | BW13: 180 | BX13: 180 | BY13: 1080.4 | BZ13: 905.2 | CA13: 801.4 | CB13: 756.4 | CC13: 738.8 | CD13: 731.5 | CE13: 737.8 | CF13: 712.7 | CG13: 602.6 | CH13: 550.1 | CI13: 530.8 | CJ13: 523.1 | CK13: 519.3 | CL13: 518 | CM13: 677.7 | CN13: 577 | CO13: 536.4 | CP13: 518.9 | CQ13: 509.5 | CR13: 504.9 | CS13: 502.1 | CT13: 653 | CU13: 561.5 | CV13: 526.9 | CW13: 507.8 | CX13: 494 | CY13: 483.5 | CZ13: 473.8 | DA13: 660.1 | DB13: 563.5 | DC13: 525.8 | DD13: 504.3 | DE13: 488.1 | DF13: 472.7 | DG13: 450.2 | DH13: 685.8 | DI13: 565.7 | DJ13: 518.8 | DK13: 493 | DL13: 470.8 | DM13: 452.3 | DN13: 433.5 | DO13: 704.7 | DP13: 578.7 | DQ13: 524.8 | DR13: 497.4 | DS13: 472.7 | DT13: 450.4 | DU13: 416.6 | DV13: 773.3 | DW13: 629.4 | DX13: 549 | DY13: 514 | DZ13: 490 | EA13: 466.2 | EB13: 422.9 | EC13: 905 | ED13: 718.5 | EE13: 610 | EF13: 544.6 | EG13: 513.6 | EH13: 491.2 | EI13: 448 | EJ13: 1045.1 | EK13: 829.7 | EL13: 703 | EM13: 618.6 | EN13: 559.4 | EO13: 523.1 | EP13: 478.9 | EQ13: 0.898 | ER13: 1.157 | ES13: 1.2873 | ET13: 0.6994 | EU13: 0.9448 | EV13: 1.0789 | EW13: 0 | EX13: 0 | EY13: 0 | EZ13: 0 | FA13: 0.938 | FB13: 0 | FC13: 0 | FD13: 639.7 | FE13: ARG00006451 | FF13: 8.284 | FG13: 5430 | FH13: 23.7 | FI13: 27.2 | FJ13: 39.7 | FK13: 76.1 | FL13: 0 | FM13: 751.7 | FN13: 583.4 | FO13: 524.4 | FP13: 965.1 | FQ13: 714.4 | FR13: 625.6 | FS13: 664.5 | FT13: 0.903 | FU13: 684.6 | FV13: 0.8764 | FW13: 0 | FX13: 0
B14: ARG486701 | C14: ARG4867 | D14: ARG-4867 | E14: AZZURRO | F14: MYSTIC 290 | G14: OCEANTECH | H14: OCEANTECH | I14: 2002 | L14: CLUB | M14: C | N14: 462 | O14: 18 01 2018 12:34:18 | P14: 8.55 | Q14: 8.207 | R14: 1.78 | S14: 3 | T14: 3052 | U14: 121.1 | V14: 0.2 | W14: 676.6 | X14: 0.9296 | Y14: 726.1 | Z14: 0 | AA14: 0 | AB14: 1092.6 | AC14: 889.8 | AD14: 768.6 | AE14: 698.6 | AF14: 660.1 | AG14: 640.5 | AH14: 611.4 | AI14: 1046.1 | AJ14: 854.2 | AK14: 748.6 | AL14: 690.8 | AM14: 660.3 | AN14: 642 | AO14: 611.9 | AP14: 929.7 | AQ14: 751.5 | AR14: 656.4 | AS14: 601.6 | AT14: 568 | AU14: 545.8 | AV14: 516.2 | AW14: 990 | AX14: 794 | AY14: 688 | AZ14: 626.1 | BA14: 588.1 | BB14: 563.2 | BC14: 531.1 | BD14: 1088.9 | BE14: 836.9 | BF14: 697.2 | BG14: 618.9 | BH14: 579.2 | BI14: 548 | BJ14: 495.3 | BK14: 41.8 | BL14: 40.4 | BM14: 39.8 | BN14: 37.8 | BO14: 37.1 | BP14: 36.9 | BQ14: 36.7 | BR14: 146.6 | BS14: 150.9 | BT14: 152.5 | BU14: 162 | BV14: 180 | BW14: 180 | BX14: 180 | BY14: 1130.4 | BZ14: 940 | CA14: 826.1 | CB14: 769.5 | CC14: 750.9 | CD14: 743.9 | CE14: 734.5 | CF14: 752.1 | CG14: 633 | CH14: 575.6 | CI14: 553 | CJ14: 543.2 | CK14: 539.1 | CL14: 535.1 | CM14: 716.7 | CN14: 607.3 | CO14: 562 | CP14: 541.7 | CQ14: 529.9 | CR14: 524.5 | CS14: 521.5 | CT14: 690.3 | CU14: 590.7 | CV14: 552.4 | CW14: 531.1 | CX14: 514.8 | CY14: 501.9 | CZ14: 490.7 | DA14: 692.6 | DB14: 579.6 | DC14: 539.7 | DD14: 521.1 | DE14: 509.3 | DF14: 490.4 | DG14: 462.1 | DH14: 685.7 | DI14: 574.1 | DJ14: 533.7 | DK14: 505.9 | DL14: 480.2 | DM14: 462.7 | DN14: 441.1 | DO14: 706.4 | DP14: 586.1 | DQ14: 539.9 | DR14: 511.5 | DS14: 482.9 | DT14: 456.7 | DU14: 419.7 | DV14: 777.2 | DW14: 635.3 | DX14: 562.8 | DY14: 530.4 | DZ14: 503.7 | EA14: 475.6 | EB14: 422 | EC14: 913.6 | ED14: 727.1 | EE14: 618.3 | EF14: 558.7 | EG14: 529.5 | EH14: 504.5 | EI14: 453.5 | EJ14: 1054.9 | EK14: 839.7 | EL14: 711.2 | EM14: 627.8 | EN14: 569.4 | EO14: 537.2 | EP14: 488.3 | EQ14: 0.8724 | ER14: 1.1258 | ES14: 1.2601 | ET14: 0.681 | EU14: 0.9269 | EV14: 1.0638 | EW14: 0 | EX14: 0 | EY14: 0 | EZ14: 0 | FA14: 0.9151 | FB14: 0 | FC14: 0 | FD14: 655.7 | FE14: ARG00006452 | FF14: 7.869 | FG14: 3736 | FH14: 18.6 | FI14: 26.8 | FJ14: 20.5 | FK14: 56.4 | FL14: 0 | FM14: 773.7 | FN14: 599.6 | FO14: 535.7 | FP14: 991.2 | FQ14: 728.2 | FR14: 634.5 | FS14: 685.6 | FT14: 0.8752 | FU14: 710.1 | FV14: 0.845 | FW14: 0 | FX14: 0
B15: ARG460009 | C15: ARG4600 | D15: ARG-4600 | E15: BIZARRO | F15: PETERSON 42 | G15: NEW ORLEANS MARINE | H15: D, PETERSON | I15: 1980 | L15: CLUB | M15: C | N15: 500 | O15: 18 01 2018 12:34:32 | P15: 12.75 | Q15: 10.426 | R15: 1.919 | S15: 4.05 | T15: 8648 | U15: 117.6 | V15: 0.18 | W15: 620.4 | X15: 0.9982 | Y15: 676.2 | Z15: 0 | AA15: 0 | AB15: 1001.7 | AC15: 821.7 | AD15: 717.9 | AE15: 656.7 | AF15: 619.5 | AG15: 594.6 | AH15: 571.3 | AI15: 959.7 | AJ15: 789 | AK15: 696.5 | AL15: 646 | AM15: 617.2 | AN15: 598.4 | AO15: 577.7 | AP15: 850.9 | AQ15: 688.5 | AR15: 602 | AS15: 552.4 | AT15: 522.3 | AU15: 503.1 | AV15: 480.3 | AW15: 905.9 | AX15: 727.6 | AY15: 631 | AZ15: 574.4 | BA15: 539.5 | BB15: 517 | BC15: 489.8 | BD15: 998.7 | BE15: 771.6 | BF15: 645.3 | BG15: 571.3 | BH15: 532.3 | BI15: 502.4 | BJ15: 457.8 | BK15: 43.3 | BL15: 42 | BM15: 42.5 | BN15: 42 | BO15: 41.4 | BP15: 41 | BQ15: 40.9 | BR15: 145.6 | BS15: 150.3 | BT15: 150.9 | BU15: 155.1 | BV15: 170.1 | BW15: 180 | BX15: 180 | BY15: 1031.4 | BZ15: 867 | CA15: 776.5 | CB15: 733.9 | CC15: 713.1 | CD15: 702.6 | CE15: 696.9 | CF15: 676.7 | CG15: 573 | CH15: 518.3 | CI15: 497.6 | CJ15: 489.6 | CK15: 485.2 | CL15: 481.9 | CM15: 642.3 | CN15: 544.4 | CO15: 500.8 | CP15: 483.8 | CQ15: 475.7 | CR15: 471.2 | CS15: 467.3 | CT15: 617.5 | CU15: 525.9 | CV15: 488.7 | CW15: 472.2 | CX15: 461.2 | CY15: 453.1 | CZ15: 444.2 | DA15: 623.6 | DB15: 528.7 | DC15: 487.4 | DD15: 468.3 | DE15: 454.8 | DF15: 443.1 | DG15: 424.6 | DH15: 640.8 | DI15: 526.4 | DJ15: 479.5 | DK15: 458.1 | DL15: 441.8 | DM15: 432.1 | DN15: 416.2 | DO15: 656.4 | DP15: 538.9 | DQ15: 484.1 | DR15: 459.6 | DS15: 439.9 | DT15: 421.7 | DU15: 400.4 | DV15: 718.9 | DW15: 587.3 | DX15: 508.4 | DY15: 473.9 | DZ15: 452.5 | EA15: 432.2 | EB15: 395.5 | EC15: 841.8 | ED15: 672.3 | EE15: 571.3 | EF15: 506 | EG15: 474.6 | EH15: 454.4 | EI15: 416.8 | EJ15: 972 | EK15: 776.4 | EL15: 659.4 | EM15: 579.5 | EN15: 525.8 | EO15: 486.6 | EP15: 445.6 | EQ15: 0.9529 | ER15: 1.2269 | ES15: 1.3659 | ET15: 0.7404 | EU15: 0.9904 | EV15: 1.1401 | EW15: 0 | EX15: 0 | EY15: 0 | EZ15: 0 | FA15: 0.9931 | FB15: 0 | FC15: 0 | FD15: 604.2 | FE15: ARG00006455 | FF15: 9.353 | FG15: 9659 | FH15: 34 | FI15: 41.4 | FJ15: 54.9 | FK15: 121.5 | FL15: 0 | FM15: 708.4 | FN15: 550.2 | FO15: 494.2 | FP15: 911.7 | FQ15: 681.5 | FR15: 592.1 | FS15: 633.6 | FT15: 0.9469 | FU15: 651 | FV15: 0.9217 | FW15: 0 | FX15: 0
B16: ARG377306 | C16: ARG3773 | D16: ARG-3773 | E16: CALIFA 3 | F16: FARR 44 | G16: AST, DEL ESTUARIO | H16: BRUCE FARR | I16: 1991 | L16: INTL | M16: R | N16: 815 | O16: 18 01 2018 12:34:42 | P16: 13.51 | Q16: 11.383 | R16: 2.413 | S16: 4.14 | T16: 6950 | U16: 121.6 | V16: 0 | W16: 545.1 | X16: 1.1306 | Y16: 597 | Z16: 0 | AA16: 0 | AB16: 880.3 | AC16: 713.7 | AD16: 628 | AE16: 582 | AF16: 554.6 | AG16: 530.9 | AH16: 504 | AI16: 834.5 | AJ16: 680.2 | AK16: 606.5 | AL16: 569.9 | AM16: 546.6 | AN16: 526.4 | AO16: 502.3 | AP16: 743.8 | AQ16: 603.4 | AR16: 529.3 | AS16: 486.8 | AT16: 460.1 | AU16: 441.8 | AV16: 416.7 | AW16: 789.5 | AX16: 636 | AY16: 553.7 | AZ16: 505.5 | BA16: 475.3 | BB16: 454.8 | BC16: 427.7 | BD16: 880.3 | BE16: 671.3 | BF16: 566.7 | BG16: 506.4 | BH16: 472.2 | BI16: 442.4 | BJ16: 397 | BK16: 42.9 | BL16: 41.4 | BM16: 39.9 | BN16: 39.4 | BO16: 39.1 | BP16: 38.5 | BQ16: 38.9 | BR16: 142.1 | BS16: 145.9 | BT16: 149 | BU16: 155.6 | BV16: 167.9 | BW16: 180 | BX16: 180 | BY16: 879.9 | BZ16: 725.7 | CA16: 664.9 | CB16: 642.1 | CC16: 631.7 | CD16: 618.9 | CE16: 614.8 | CF16: 576.1 | CG16: 486.2 | CH16: 458.5 | CI16: 449.6 | CJ16: 445.1 | CK16: 441.1 | CL16: 434 | CM16: 544.6 | CN16: 468.7 | CO16: 445.5 | CP16: 436.1 | CQ16: 430.7 | CR16: 427.5 | CS16: 417.3 | CT16: 521.5 | CU16: 457.7 | CV16: 433.4 | CW16: 417.4 | CX16: 408.2 | CY16: 402.4 | CZ16: 394.1 | DA16: 528 | DB16: 459.6 | DC16: 432.1 | DD16: 410.7 | DE16: 393.1 | DF16: 380.8 | DG16: 369.3 | DH16: 557 | DI16: 463.1 | DJ16: 427.6 | DK16: 401.6 | DL16: 385.8 | DM16: 372.1 | DN16: 348.8 | DO16: 575.1 | DP16: 472.4 | DQ16: 432.7 | DR16: 403.1 | DS16: 376.6 | DT16: 357.2 | DU16: 331.4 | DV16: 640.5 | DW16: 515.2 | DX16: 454.7 | DY16: 424.8 | DZ16: 396.5 | EA16: 369.5 | EB16: 315.2 | EC16: 762.6 | ED16: 607.6 | EE16: 511.9 | EF16: 457.1 | EG16: 428 | EH16: 401.6 | EI16: 351.8 | EJ16: 880.6 | EK16: 701.6 | EL16: 591.1 | EM16: 521.9 | EN16: 477.4 | EO16: 443 | EP16: 393.1 | EQ16: 1.0966 | ER16: 1.3896 | ES16: 1.5558 | ET16: 0.847 | EU16: 1.1223 | EV16: 1.2815 | EW16: 0 | EX16: 0 | EY16: 0 | EZ16: 0 | FA16: 1.1286 | FB16: 0 | FC16: 0 | FD16: 531.6 | FE16: ARG00006457 | FF16: 11.1 | FG16: 8024 | FH16: 34.9 | FI16: 72.2 | FJ16: 49.1 | FK16: 132.2 | FL16: 0 | FM16: 615.5 | FN16: 485.8 | FO16: 433.9 | FP16: 796.9 | FQ16: 601.4 | FR16: 526.7 | FS16: 557.6 | FT16: 1.0761 | FU16: 570.8 | FV16: 1.0512 | FW16: 0 | FX16: 0
B17: ARG210101 | C17: ARG2101 | D17: ARG-2101 | E17: CROSSBOW 2 | F17: D'ANGELO 30 R | G17: AST, D'ANGELO | H17: GERMAN FRERS | I17: 1981 | L17: CLUB | M17: C | N17: 568 | O17: 18 01 2018 12:34:58 | P17: 9.05 | Q17: 7.638 | R17: 1.777 | S17: 3.19 | T17: 3190 | U17: 108.3 | V17: 0.14 | W17: 690 | X17: 0.9118 | Y17: 740.3 | Z17: 0 | AA17: 0 | AB17: 1117.4 | AC17: 912.4 | AD17: 789.9 | AE17: 713.1 | AF17: 670 | AG17: 648.5 | AH17: 627 | AI17: 1064.7 | AJ17: 873.2 | AK17: 765.2 | AL17: 703.5 | AM17: 670.5 | AN17: 651.8 | AO17: 632.8 | AP17: 949.6 | AQ17: 767.4 | AR17: 669.6 | AS17: 612.6 | AT17: 577.7 | AU17: 555.1 | AV17: 527.5 | AW17: 989.6 | AX17: 795.8 | AY17: 690.9 | AZ17: 629.4 | BA17: 591.4 | BB17: 567 | BC17: 538.1 | BD17: 1116.7 | BE17: 858.7 | BF17: 715.4 | BG17: 630.4 | BH17: 587.4 | BI17: 556.2 | BJ17: 504.8 | BK17: 41.6 | BL17: 40.9 | BM17: 40.4 | BN17: 38.4 | BO17: 37.7 | BP17: 37.4 | BQ17: 38.2 | BR17: 147.8 | BS17: 152.5 | BT17: 154.6 | BU17: 167 | BV17: 180 | BW17: 180 | BX17: 180 | BY17: 1123.7 | BZ17: 944.5 | CA17: 835.9 | CB17: 776.3 | CC17: 754.7 | CD17: 746.2 | CE17: 750.9 | CF17: 750.5 | CG17: 635.4 | CH17: 580.9 | CI17: 557.4 | CJ17: 545.3 | CK17: 539.9 | CL17: 537.4 | CM17: 716.8 | CN17: 611.2 | CO17: 567.9 | CP17: 546.3 | CQ17: 532.4 | CR17: 523.7 | CS17: 518.2 | CT17: 692.6 | CU17: 595.9 | CV17: 558.8 | CW17: 537 | CX17: 518.4 | CY17: 503.3 | CZ17: 487.8 | DA17: 700.6 | DB17: 591.8 | DC17: 547.7 | DD17: 521.9 | DE17: 501.6 | DF17: 490.6 | DG17: 467.4 | DH17: 709.9 | DI17: 592.4 | DJ17: 547.9 | DK17: 519.9 | DL17: 492.9 | DM17: 469.7 | DN17: 438.6 | DO17: 736.5 | DP17: 609.1 | DQ17: 555.9 | DR17: 527.9 | DS17: 501.8 | DT17: 477.1 | DU17: 435.4 | DV17: 818.8 | DW17: 670.8 | DX17: 584.6 | DY17: 547.5 | DZ17: 521.6 | EA17: 496.2 | EB17: 451.2 | EC17: 962.2 | ED17: 763.4 | EE17: 648.1 | EF17: 578.2 | EG17: 545.5 | EH17: 521.1 | EI17: 474.8 | EJ17: 1111.1 | EK17: 880.3 | EL17: 744 | EM17: 649.9 | EN17: 585.4 | EO17: 550.7 | EP17: 503.1 | EQ17: 0.8531 | ER17: 1.1041 | ES17: 1.2398 | ET17: 0.6651 | EU17: 0.9066 | EV17: 1.0452 | EW17: 0 | EX17: 0 | EY17: 0 | EZ17: 0 | FA17: 0.8969 | FB17: 0 | FC17: 0 | FD17: 668.9 | FE17: ARG00006460 | FF17: 7.519 | FG17: 3787 | FH17: 18.1 | FI17: 27.5 | FJ17: 22.7 | FK17: 46.2 | FL17: 0 | FM17: 791.2 | FN17: 611.4 | FO17: 544.4 | FP17: 1014.9 | FQ17: 744.5 | FR17: 645.8 | FS17: 688.6 | FT17: 0.8713 | FU17: 712.6 | FV17: 0.842 | FW17: 0 | FX17: 0
B18: ARG572001 | C18: ARG5720 | D18: ARG-5720 | E18: CUIQUE SUUM VI | F18: 32DUE | G18: AST, PIERMARINE | H18: S, CARLINI | I18: 2015 | L18: INTL | M18: C | N18: 597 | O18: 18 01 2018 12:35:02 | P18: 9.762 | Q18: 9.262 | R18: 1.674 | S18: 3.29 | T18: 4414 | U18: 115.4 | V18: 0.16 | W18: 642.3 | X18: 0.9652 | Y18: 699.4 | Z18: 0 | AA18: 0 | AB18: 1046.6 | AC18: 850.8 | AD18: 736.6 | AE18: 673.7 | AF18: 639.1 | AG18: 620.5 | AH18: 594.5 | AI18: 1003.1 | AJ18: 818.1 | AK18: 718.5 | AL18: 666.3 | AM18: 639.4 | AN18: 623.3 | AO18: 596.7 | AP18: 883.1 | AQ18: 713.4 | AR18: 623 | AS18: 571.2 | AT18: 540 | AU18: 519.7 | AV18: 493.2 | AW18: 942.9 | AX18: 755.7 | AY18: 654.5 | AZ18: 595.7 | BA18: 560 | BB18: 537.1 | BC18: 508.7 | BD18: 1041.6 | BE18: 798.2 | BF18: 664.2 | BG18: 589.9 | BH18: 551 | BI18: 520.3 | BJ18: 468.6 | BK18: 43.4 | BL18: 42.1 | BM18: 41.5 | BN18: 40.8 | BO18: 40.3 | BP18: 40.3 | BQ18: 41.4 | BR18: 145.6 | BS18: 149.9 | BT18: 151.5 | BU18: 158.5 | BV18: 180 | BW18: 180 | BX18: 180 | BY18: 1097.4 | BZ18: 910.1 | CA18: 803.6 | CB18: 756.3 | CC18: 741.6 | CD18: 738.2 | CE18: 732.7 | CF18: 716.1 | CG18: 601.9 | CH18: 542.9 | CI18: 520.2 | CJ18: 512.5 | CK18: 509.6 | CL18: 505.8 | CM18: 676.9 | CN18: 572.4 | CO18: 525.7 | CP18: 506.2 | CQ18: 497.2 | CR18: 493.6 | CS18: 491.1 | CT18: 647.4 | CU18: 552.5 | CV18: 513.9 | CW18: 493.9 | CX18: 479.7 | CY18: 470 | CZ18: 463.9 | DA18: 653.3 | DB18: 545.9 | DC18: 505.3 | DD18: 489.6 | DE18: 473.6 | DF18: 456.8 | DG18: 432.9 | DH18: 645.6 | DI18: 537.2 | DJ18: 496.6 | DK18: 470.9 | DL18: 448 | DM18: 434.4 | DN18: 413.2 | DO18: 662.7 | DP18: 548 | DQ18: 502.1 | DR18: 474.6 | DS18: 448.1 | DT18: 423.7 | DU18: 392.5 | DV18: 728.8 | DW18: 594.1 | DX18: 524.6 | DY18: 492.9 | DZ18: 467.5 | EA18: 441.2 | EB18: 390.7 | EC18: 862.5 | ED18: 685.5 | EE18: 581 | EF18: 521.8 | EG18: 493 | EH18: 469.3 | EI18: 421.6 | EJ18: 995.9 | EK18: 791.5 | EL18: 669.7 | EM18: 591.1 | EN18: 536.5 | EO18: 502.8 | EP18: 456.4 | EQ18: 0.9183 | ER18: 1.1872 | ES18: 1.3226 | ET18: 0.7115 | EU18: 0.9632 | EV18: 1.0969 | EW18: 0 | EX18: 0 | EY18: 0 | EZ18: 0 | FA18: 0.9606 | FB18: 0 | FC18: 0 | FD18: 624.6 | FE18: ARG00006461 | FF18: 8.53 | FG18: 5211 | FH18: 23.3 | FI18: 34.2 | FJ18: 27.9 | FK18: 78.5 | FL18: 0 | FM18: 735.1 | FN18: 568.6 | FO18: 510.4 | FP18: 948.7 | FQ18: 700.8 | FR18: 615.4 | FS18: 655.3 | FT18: 0.9156 | FU18: 675.7 | FV18: 0.888 | FW18: 0 | FX18: 0
B19: ARG390901 | C19: ARG3909 | D19: A-3909 | E19: DIVA | F19: BORA BORA 42 | G19: AST, BORA BORA | H19: NESTOR VOLKER | I19: 1993 | L19: CLUB | M19: C | N19: 825 | O19: 18 01 2018 12:35:08 | P19: 12.81 | Q19: 10.535 | R19: 2.403 | S19: 4.12 | T19: 7341 | U19: 116.4 | V19: 0.03 | W19: 592.4 | X19: 1.0555 | Y19: 639.5 | Z19: 0 | AA19: 0 | AB19: 962.8 | AC19: 782.2 | AD19: 677.1 | AE19: 619 | AF19: 584.6 | AG19: 561 | AH19: 539 | AI19: 913.8 | AJ19: 744.5 | AK19: 653 | AL19: 605 | AM19: 578 | AN19: 559.8 | AO19: 540.9 | AP19: 815.6 | AQ19: 658.6 | AR19: 574.7 | AS19: 526.3 | AT19: 496.7 | AU19: 477.4 | AV19: 454.2 | AW19: 862.7 | AX19: 692.4 | AY19: 600.1 | AZ19: 546 | BA19: 512.6 | BB19: 491 | BC19: 465 | BD19: 963.2 | BE19: 736.5 | BF19: 612.5 | BG19: 543.1 | BH19: 506.2 | BI19: 477.5 | BJ19: 434.3 | BK19: 41.9 | BL19: 40.9 | BM19: 39.9 | BN19: 38.7 | BO19: 37.9 | BP19: 37.5 | BQ19: 37.9 | BR19: 145.1 | BS19: 149.1 | BT19: 150.2 | BU19: 154.9 | BV19: 167.8 | BW19: 180 | BX19: 180 | BY19: 957.9 | BZ19: 796.7 | CA19: 706.1 | CB19: 668.7 | CC19: 651.1 | CD19: 642.5 | CE19: 642.4 | CF19: 636.2 | CG19: 535.2 | CH19: 492 | CI19: 475.3 | CJ19: 467.9 | CK19: 463.8 | CL19: 461 | CM19: 606 | CN19: 515.6 | CO19: 480.8 | CP19: 465.1 | CQ19: 455.9 | CR19: 450.8 | CS19: 446.5 | CT19: 585.5 | CU19: 504 | CV19: 472.8 | CW19: 455.5 | CX19: 442.1 | CY19: 431.8 | CZ19: 421.9 | DA19: 593.7 | DB19: 506.9 | DC19: 472.6 | DD19: 453.2 | DE19: 436.9 | DF19: 422.6 | DG19: 402.3 | DH19: 629.4 | DI19: 515.2 | DJ19: 468.9 | DK19: 444.8 | DL19: 424.4 | DM19: 410 | DN19: 392.9 | DO19: 645.4 | DP19: 527.2 | DQ19: 474.6 | DR19: 448.2 | DS19: 424.8 | DT19: 404.4 | DU19: 376.3 | DV19: 710.4 | DW19: 574.9 | DX19: 498.7 | DY19: 464.7 | DZ19: 441.5 | EA19: 418.6 | EB19: 377.6 | EC19: 838 | ED19: 664.9 | EE19: 561.3 | EF19: 498.7 | EG19: 465.9 | EH19: 444.2 | EI19: 403.1 | EJ19: 967.6 | EK19: 767.8 | EL19: 648.1 | EM19: 569.3 | EN19: 518.2 | EO19: 479.5 | EP19: 435.6 | EQ19: 0.9941 | ER19: 1.2864 | ES19: 1.4406 | ET19: 0.7736 | EU19: 1.0491 | EV19: 1.2083 | EW19: 0 | EX19: 0 | EY19: 0 | EZ19: 0 | FA19: 1.0434 | FB19: 0 | FC19: 0 | FD19: 575.1 | FE19: ARG00006462 | FF19: 10.254 | FG19: 8327 | FH19: 32 | FI19: 40.3 | FJ19: 58.6 | FK19: 118.3 | FL19: 0 | FM19: 679 | FN19: 524.7 | FO19: 468.6 | FP19: 872.5 | FQ19: 643.4 | FR19: 558.6 | FS19: 601.4 | FT19: 0.9976 | FU19: 619.2 | FV19: 0.969 | FW19: 0 | FX19: 0
B20: ARG466402 | C20: arg4664 | D20: ARG-4664 | E20: DON IGNAZIO | F20: MARTINOLI 31 | G20: AST, MARTINOLI | H20: E, MARTINOLI | I20: 2001 | L20: INTL | M20: C | N20: 545 | O20: 18 01 2018 12:35:12 | P20: 9.77 | Q20: 9.145 | R20: 1.879 | S20: 3.13 | T20: 3158 | U20: 127.3 | V20: 0 | W20: 623.1 | X20: 0.9952 | Y20: 678.2 | Z20: 0 | AA20: 0 | AB20: 1004.2 | AC20: 812.7 | AD20: 709.3 | AE20: 657.4 | AF20: 625.7 | AG20: 606 | AH20: 576.6 | AI20: 954 | AJ20: 777.3 | AK20: 690 | AL20: 647.6 | AM20: 622.5 | AN20: 603.6 | AO20: 573.5 | AP20: 851.2 | AQ20: 690.1 | AR20: 605 | AS20: 556 | AT20: 525.6 | AU20: 504.7 | AV20: 475.4 | AW20: 900.7 | AX20: 725 | AY20: 631.1 | AZ20: 576.7 | BA20: 543 | BB20: 520.2 | BC20: 489.1 | BD20: 1003.1 | BE20: 765.2 | BF20: 643.2 | BG20: 577.2 | BH20: 538.7 | BI20: 505.5 | BJ20: 451.4 | BK20: 42.4 | BL20: 41.2 | BM20: 39.7 | BN20: 38.7 | BO20: 38.4 | BP20: 38.1 | BQ20: 39.1 | BR20: 144.6 | BS20: 148.9 | BT20: 151.6 | BU20: 159.5 | BV20: 180 | BW20: 180 | BX20: 180 | BY20: 1015.3 | BZ20: 839.2 | CA20: 756.1 | CB20: 729.2 | CC20: 719.2 | CD20: 712.3 | CE20: 709.5 | CF20: 669.5 | CG20: 564.4 | CH20: 527.5 | CI20: 515.2 | CJ20: 509.8 | CK20: 507.4 | CL20: 500.8 | CM20: 635.7 | CN20: 545.2 | CO20: 514.8 | CP20: 500.8 | CQ20: 494.2 | CR20: 490.7 | CS20: 482.5 | CT20: 611 | CU20: 533.3 | CV20: 503.9 | CW20: 484.2 | CX20: 469 | CY20: 460.4 | CZ20: 453.3 | DA20: 617.8 | DB20: 534.1 | DC20: 501 | DD20: 478.6 | DE20: 455.5 | DF20: 436.8 | DG20: 415.8 | DH20: 630.6 | DI20: 529.8 | DJ20: 491.9 | DK20: 460.5 | DL20: 435.9 | DM20: 420 | DN20: 394.4 | DO20: 650.3 | DP20: 540.3 | DQ20: 498.5 | DR20: 464.8 | DS20: 431.8 | DT20: 402.4 | DU20: 369.3 | DV20: 721.8 | DW20: 584.7 | DX20: 521.4 | DY20: 489.2 | DZ20: 457 | EA20: 424.2 | EB20: 357.5 | EC20: 860 | ED20: 680.8 | EE20: 575 | EF20: 519.4 | EG20: 489.4 | EH20: 459.6 | EI20: 399.3 | EJ20: 993.1 | EK20: 786.2 | EL20: 662.6 | EM20: 585.6 | EN20: 532.1 | EO20: 499.7 | EP20: 443.7 | EQ20: 0.957 | ER20: 1.2173 | ES20: 1.3624 | ET20: 0.743 | EU20: 0.9931 | EV20: 1.1252 | EW20: 0 | EX20: 0 | EY20: 0 | EZ20: 0 | FA20: 0.9897 | FB20: 0 | FC20: 0 | FD20: 606.3 | FE20: ARG00006463 | FF20: 8.766 | FG20: 3942 | FH20: 20.6 | FI20: 36.9 | FJ20: 24 | FK20: 64.8 | FL20: 0 | FM20: 705.3 | FN20: 554.5 | FO20: 495.4 | FP20: 908.5 | FQ20: 679.7 | FR20: 599.9 | FS20: 632.5 | FT20: 0.9486 | FU20: 650.9 | FV20: 0.9218 | FW20: 0 | FX20: 0
B21: ARG525301 | C21: ARG5253 | D21: ARG-5253 | E21: ESTELA | F21: LOTZ 270 | G21: ASTILLERO LOTZ | H21: N, VOLKER | I21: 1997 | L21: CLUB | M21: C | N21: 464 | O21: 18 01 2018 12:35:16 | P21: 8.23 | Q21: 7.825 | R21: 1.578 | S21: 2.82 | T21: 2216 | U21: 107.2 | V21: 0.19 | W21: 682.9 | X21: 0.9123 | Y21: 739.9 | Z21: 0 | AA21: 0 | AB21: 1107.9 | AC21: 900.1 | AD21: 779.2 | AE21: 710.7 | AF21: 675.9 | AG21: 658.9 | AH21: 632.2 | AI21: 1061.5 | AJ21: 866.1 | AK21: 760.7 | AL21: 704.2 | AM21: 675.7 | AN21: 659.6 | AO21: 631.7 | AP21: 938.4 | AQ21: 758.7 | AR21: 662.7 | AS21: 607.2 | AT21: 573.2 | AU21: 550.7 | AV21: 520.9 | AW21: 998 | AX21: 800.9 | AY21: 694.5 | AZ21: 632.6 | BA21: 594.9 | BB21: 570.5 | BC21: 539.6 | BD21: 1103.3 | BE21: 845.7 | BF21: 705.7 | BG21: 626.3 | BH21: 585.7 | BI21: 551.7 | BJ21: 492.5 | BK21: 42.6 | BL21: 41.5 | BM21: 40.6 | BN21: 38.8 | BO21: 38.4 | BP21: 38.7 | BQ21: 40.4 | BR21: 146.5 | BS21: 150.8 | BT21: 153.2 | BU21: 164 | BV21: 180 | BW21: 180 | BX21: 180 | BY21: 1154.9 | BZ21: 957.9 | CA21: 845.2 | CB21: 791.6 | CC21: 779.6 | CD21: 779.1 | CE21: 782.9 | CF21: 760.3 | CG21: 640 | CH21: 583 | CI21: 559.8 | CJ21: 552.2 | CK21: 549.7 | CL21: 546.8 | CM21: 721.2 | CN21: 613.2 | CO21: 567.9 | CP21: 546 | CQ21: 535.3 | CR21: 531.5 | CS21: 528.9 | CT21: 691.9 | CU21: 595.2 | CV21: 556.9 | CW21: 532.5 | CX21: 512.5 | CY21: 500 | CZ21: 494.1 | DA21: 690.8 | DB21: 581.9 | DC21: 540.9 | DD21: 519.4 | DE21: 504.5 | DF21: 482.3 | DG21: 455.3 | DH21: 684.8 | DI21: 577.1 | DJ21: 535.1 | DK21: 500 | DL21: 469.7 | DM21: 449.9 | DN21: 422.9 | DO21: 705.9 | DP21: 588.9 | DQ21: 542.4 | DR21: 508.1 | DS21: 474 | DT21: 442 | DU21: 394.8 | DV21: 779.4 | DW21: 636.8 | DX21: 566.5 | DY21: 531.7 | DZ21: 498.8 | EA21: 466.7 | EB21: 399.9 | EC21: 918.9 | ED21: 729.3 | EE21: 621 | EF21: 562.3 | EG21: 530.4 | EH21: 499.9 | EI21: 440.9 | EJ21: 1061 | EK21: 842.3 | EL21: 713.2 | EM21: 629.8 | EN21: 572.1 | EO21: 538.8 | EP21: 481.5 | EQ21: 0.8646 | ER21: 1.115 | ES21: 1.249 | ET21: 0.6723 | EU21: 0.9114 | EV21: 1.0335 | EW21: 0 | EX21: 0 | EY21: 0 | EZ21: 0 | FA21: 0.9056 | FB21: 0 | FC21: 0 | FD21: 662.5 | FE21: ARG00006464 | FF21: 7.471 | FG21: 2827 | FH21: 17 | FI21: 23.9 | FJ21: 18.2 | FK21: 49.9 | FL21: 0 | FM21: 780.7 | FN21: 605.4 | FO21: 540.4 | FP21: 1004 | FQ21: 740.6 | FR21: 653.1 | FS21: 692.7 | FT21: 0.8662 | FU21: 716.7 | FV21: 0.8372 | FW21: 0 | FX21: 0
B22: ARG26601 | C22: FALUA | D22: URU-266 | E22: FALUA | F22: DUFOUR 34 | G22: CANTIERI DEL PARDO | H22: UMBERTO FELCI | I22: 2003 | L22: CLUB | M22: C | N22: 662 | O22: 18 01 2018 12:35:24 | P22: 10.3 | Q22: 9.434 | R22: 1.922 | S22: 3.48 | T22: 5300 | U22: 119.4 | V22: 0.33 | W22: 665 | X22: 0.9416 | Y22: 716.8 | Z22: 0 | AA22: 0 | AB22: 1116 | AC22: 898.9 | AD22: 774.8 | AE22: 691.3 | AF22: 642.4 | AG22: 616 | AH22: 594.3 | AI22: 1069.5 | AJ22: 865.5 | AK22: 750.6 | AL22: 680.3 | AM22: 640.7 | AN22: 619.4 | AO22: 598.5 | AP22: 930.7 | AQ22: 745.3 | AR22: 644.3 | AS22: 584.7 | AT22: 547.9 | AU22: 524.4 | AV22: 497 | AW22: 993.5 | AX22: 789.8 | AY22: 677.3 | AZ22: 610.2 | BA22: 568.5 | BB22: 542 | BC22: 512 | BD22: 1110.5 | BE22: 842.8 | BF22: 694.8 | BG22: 602.2 | BH22: 555 | BI22: 523.3 | BJ22: 473.4 | BK22: 43.4 | BL22: 41.7 | BM22: 41.6 | BN22: 40.6 | BO22: 39.4 | BP22: 39 | BQ22: 40 | BR22: 146.3 | BS22: 150.4 | BT22: 152.4 | BU22: 156.5 | BV22: 174 | BW22: 180 | BX22: 180 | BY22: 1171.1 | BZ22: 962.3 | CA22: 844.4 | CB22: 765.4 | CC22: 729 | CD22: 717.2 | CE22: 718 | CF22: 764.1 | CG22: 638.8 | CH22: 564.1 | CI22: 527.8 | CJ22: 511.7 | CK22: 505.3 | CL22: 502.6 | CM22: 722.4 | CN22: 606.9 | CO22: 542.6 | CP22: 514 | CQ22: 499.5 | CR22: 491.2 | CS22: 486.9 | CT22: 691.8 | CU22: 582.7 | CV22: 528.2 | CW22: 503.7 | CX22: 487.6 | CY22: 475.1 | CZ22: 460.3 | DA22: 686.5 | DB22: 566.1 | DC22: 511.4 | DD22: 487.4 | DE22: 471.1 | DF22: 463 | DG22: 441 | DH22: 683.1 | DI22: 560.8 | DJ22: 508 | DK22: 481.9 | DL22: 459.5 | DM22: 439.2 | DN22: 410.5 | DO22: 704.4 | DP22: 576.6 | DQ22: 515.2 | DR22: 487.2 | DS22: 464.4 | DT22: 441.5 | DU22: 402.3 | DV22: 779.3 | DW22: 631.9 | DX22: 545.4 | DY22: 505.1 | DZ22: 481.5 | EA22: 459.1 | EB22: 415.5 | EC22: 918.8 | ED22: 723.5 | EE22: 611.8 | EF22: 540.3 | EG22: 504.8 | EH22: 482.5 | EI22: 440.6 | EJ22: 1060.9 | EK22: 835.4 | EL22: 705.2 | EM22: 617.2 | EN22: 555.8 | EO22: 514.8 | EP22: 470.6 | EQ22: 0.8661 | ER22: 1.1546 | ES22: 1.3151 | ET22: 0.67 | EU22: 0.9321 | EV22: 1.0985 | EW22: 0 | EX22: 0 | EY22: 0 | EZ22: 0 | FA22: 0.9337 | FB22: 0 | FC22: 0 | FD22: 642.6 | FE22: ARG00006465 | FF22: 8.523 | FG22: 6128 | FH22: 26 | FI22: 33.4 | FJ22: 26.1 | FK22: 70.6 | FL22: 57.8 | FM22: 779.4 | FN22: 584.6 | FO22: 513.3 | FP22: 1007.5 | FQ22: 724.2 | FR22: 614.5 | FS22: 674.1 | FT22: 0.89 | FU22: 700 | FV22: 0.8571 | FW22: 0 | FX22: 0
B23: ARG440005 | C23: arg4400 | D23: ARG-4400 | E23: GAUCHO | F23: SOTO 40 | G23: AST, OCEANTECH | H23: JAVIER SOTO | I23: 1998 | L23: INTL | M23: R | N23: 820 | O23: 18 01 2018 12:35:36 | P23: 12.54 | Q23: 11.51 | R23: 2.673 | S23: 3.91 | T23: 5798 | U23: 132.2 | V23: 0 | W23: 542.9 | X23: 1.1403 | Y23: 591.9 | Z23: 0 | AA23: 0 | AB23: 884.3 | AC23: 713.9 | AD23: 620 | AE23: 573.3 | AF23: 545.6 | AG23: 526.2 | AH23: 493.2 | AI23: 838.3 | AJ23: 679 | AK23: 599.7 | AL23: 560.3 | AM23: 536.5 | AN23: 518.4 | AO23: 483.6 | AP23: 745.2 | AQ23: 602.8 | AR23: 527.1 | AS23: 483 | AT23: 455 | AU23: 435.2 | AV23: 405.8 | AW23: 802.2 | AX23: 643.2 | AY23: 557.1 | AZ23: 506.3 | BA23: 474.1 | BB23: 451.8 | BC23: 420.3 | BD23: 883.6 | BE23: 671.7 | BF23: 561.9 | BG23: 501.3 | BH23: 466.4 | BI23: 437.2 | BJ23: 387.9 | BK23: 42.3 | BL23: 41.1 | BM23: 38.9 | BN23: 37.8 | BO23: 37.3 | BP23: 37 | BQ23: 36.5 | BR23: 142 | BS23: 145.4 | BT23: 149.1 | BU23: 155.9 | BV23: 168.9 | BW23: 180 | BX23: 180 | BY23: 890.8 | BZ23: 728.7 | CA23: 651.5 | CB23: 624.6 | CC23: 612.3 | CD23: 606.6 | CE23: 592.9 | CF23: 587 | CG23: 490.3 | CH23: 458.2 | CI23: 446.7 | CJ23: 441 | CK23: 437.7 | CL23: 428.7 | CM23: 555.8 | CN23: 473.6 | CO23: 447.3 | CP23: 434 | CQ23: 426.6 | CR23: 422 | CS23: 412 | CT23: 532.5 | CU23: 463.4 | CV23: 437.6 | CW23: 418.2 | CX23: 402.9 | CY23: 394.3 | CZ23: 387 | DA23: 541 | DB23: 464.3 | DC23: 439.1 | DD23: 415.9 | DE23: 393.9 | DF23: 376.1 | DG23: 355.6 | DH23: 548.3 | DI23: 461 | DJ23: 427.5 | DK23: 399.9 | DL23: 383.4 | DM23: 367.5 | DN23: 341.8 | DO23: 567.5 | DP23: 469.6 | DQ23: 433.4 | DR23: 401.8 | DS23: 372.1 | DT23: 351.4 | DU23: 322.5 | DV23: 636.2 | DW23: 511.5 | DX23: 455.6 | DY23: 426.1 | DZ23: 395.1 | EA23: 364.3 | EB23: 302.6 | EC23: 760.1 | ED23: 605.4 | EE23: 509.7 | EF23: 458 | EG23: 429.8 | EH23: 401.5 | EI23: 344.8 | EJ23: 877.7 | EK23: 699.1 | EL23: 588.6 | EM23: 522 | EN23: 479 | EO23: 445.7 | EP23: 393.6 | EQ23: 1.0922 | ER23: 1.3987 | ES23: 1.5816 | ET23: 0.8447 | EU23: 1.137 | EV23: 1.3013 | EW23: 0 | EX23: 0 | EY23: 0 | EZ23: 0 | FA23: 1.1366 | FB23: 0 | FC23: 0 | FD23: 527.9 | FE23: ARG00006467 | FF23: 11.471 | FG23: 6901 | FH23: 31.1 | FI23: 59.9 | FJ23: 39.8 | FK23: 123.5 | FL23: 122 | FM23: 618 | FN23: 482.6 | FO23: 426.8 | FP23: 799.1 | FQ23: 593.7 | FR23: 518.7 | FS23: 559.4 | FT23: 1.0725 | FU23: 574.7 | FV23: 1.044 | FW23: 0 | FX23: 0
B24: ARG202 | C24: GauchoS33 | D24: ARG-002 | E24: GAUCHO | F24: S 33 | H24: JAVIER SOTO ACEBAL | I24: 2011 | L24: INTL | M24: R | N24: 656 | O24: 18 01 2018 12:35:42 | P24: 10.16 | Q24: 9.999 | R24: 2.164 | S24: 3.13 | T24: 2354 | U24: 123.3 | V24: 0 | W24: 542.9 | X24: 1.1314 | Y24: 596.6 | Z24: 0 | AA24: 0 | AB24: 870.6 | AC24: 700 | AD24: 628.8 | AE24: 592.3 | AF24: 560.3 | AG24: 527.6 | AH24: 480.9 | AI24: 830.3 | AJ24: 676.5 | AK24: 609.6 | AL24: 573.1 | AM24: 544.1 | AN24: 519 | AO24: 494 | AP24: 740.7 | AQ24: 602 | AR24: 528 | AS24: 483.7 | AT24: 453.7 | AU24: 430.9 | AV24: 396 | AW24: 818.2 | AX24: 657.6 | AY24: 570.3 | AZ24: 517.8 | BA24: 483.4 | BB24: 458.7 | BC24: 424.2 | BD24: 867.8 | BE24: 660.6 | BF24: 567.7 | BG24: 510.5 | BH24: 470.2 | BI24: 432.4 | BJ24: 373.1 | BK24: 43.2 | BL24: 40.9 | BM24: 38.6 | BN24: 38.3 | BO24: 37.7 | BP24: 37.3 | BQ24: 38.2 | BR24: 142.8 | BS24: 145.1 | BT24: 151.7 | BU24: 150.1 | BV24: 146.6 | BW24: 144.8 | BX24: 144 | BY24: 898.4 | BZ24: 735.2 | CA24: 684.5 | CB24: 666.3 | CC24: 655.1 | CD24: 643.2 | CE24: 647 | CF24: 587.3 | CG24: 502.3 | CH24: 480.7 | CI24: 471.5 | CJ24: 466.3 | CK24: 457.8 | CL24: 451.3 | CM24: 554.2 | CN24: 487.9 | CO24: 463.8 | CP24: 451.4 | CQ24: 443.9 | CR24: 436.5 | CS24: 423.8 | CT24: 533 | CU24: 477.9 | CV24: 441.6 | CW24: 418.3 | CX24: 406.4 | CY24: 399.3 | CZ24: 380.7 | DA24: 539.1 | DB24: 479.6 | DC24: 440.2 | DD24: 401.8 | DE24: 376.6 | DF24: 363.4 | DG24: 349 | DH24: 534 | DI24: 464.8 | DJ24: 427.6 | DK24: 399.9 | DL24: 374.4 | DM24: 353.1 | DN24: 303.4 | DO24: 547.8 | DP24: 468.5 | DQ24: 417.4 | DR24: 384.9 | DS24: 360.1 | DT24: 336.4 | DU24: 295.5 | DV24: 612.8 | DW24: 495.7 | DX24: 444.6 | DY24: 392.9 | DZ24: 345.3 | EA24: 309.8 | EB24: 268.8 | EC24: 729.9 | ED24: 575.8 | EE24: 494.3 | EF24: 448 | EG24: 403.2 | EH24: 356.7 | EI24: 272.6 | EJ24: 842.8 | EK24: 664.8 | EL24: 573 | EM24: 518.3 | EN24: 465.6 | EO24: 411.9 | EP24: 314.7 | EQ24: 1.1027 | ER24: 1.388 | ES24: 1.6008 | ET24: 0.8595 | EU24: 1.1149 | EV24: 1.3025 | EW24: 0 | EX24: 0 | EY24: 0 | EZ24: 0 | FA24: 1.1353 | FB24: 0 | FC24: 0 | FD24: 528.5 | FE24: ARG00006468 | FF24: 10.021 | FG24: 3234 | FH24: 21.5 | FI24: 41.6 | FJ24: 26.1 | FK24: 0 | FL24: 122.8 | FM24: 612.1 | FN24: 486.3 | FO24: 421.7 | FP24: 785.3 | FQ24: 605.4 | FR24: 518.2 | FS24: 573.5 | FT24: 1.0462 | FU24: 587.7 | FV24: 1.0209 | FW24: 0 | FX24: 0
B25: ARG474101 | C25: ARG4741 | D25: ARG-4741 | E25: GHOST | F25: FM 980 | G25: AST, FMA | H25: R, ROVERE | I25: 1995 | L25: CLUB | M25: C | N25: 598 | O25: 18 01 2018 12:35:46 | P25: 9.78 | Q25: 8.282 | R25: 1.413 | S25: 3.27 | T25: 4102 | U25: 111.7 | V25: 0.07 | W25: 677.1 | X25: 0.9201 | Y25: 733.6 | Z25: 0 | AA25: 0 | AB25: 1079.7 | AC25: 887 | AD25: 770.9 | AE25: 708.3 | AF25: 671.8 | AG25: 653.1 | AH25: 633.2 | AI25: 1036.9 | AJ25: 853.2 | AK25: 753.3 | AL25: 701.1 | AM25: 673.4 | AN25: 657 | AO25: 639 | AP25: 923.4 | AQ25: 749.4 | AR25: 657.3 | AS25: 604.9 | AT25: 573.7 | AU25: 554.1 | AV25: 531 | AW25: 979.6 | AX25: 789.1 | AY25: 686.9 | AZ25: 628 | BA25: 592.5 | BB25: 570.1 | BC25: 543.4 | BD25: 1075.6 | BE25: 834 | BF25: 698.2 | BG25: 624.3 | BH25: 584.7 | BI25: 554.1 | BJ25: 505.8 | BK25: 42.9 | BL25: 42 | BM25: 41.9 | BN25: 40.8 | BO25: 39.9 | BP25: 39.7 | BQ25: 40.2 | BR25: 147.1 | BS25: 150.9 | BT25: 151.7 | BU25: 160.7 | BV25: 180 | BW25: 180 | BX25: 180 | BY25: 1120.9 | BZ25: 943.8 | CA25: 837 | CB25: 792.6 | CC25: 776.6 | CD25: 771.4 | CE25: 778.5 | CF25: 738 | CG25: 626 | CH25: 571.9 | CI25: 552.3 | CJ25: 545.6 | CK25: 542.9 | CL25: 543.7 | CM25: 701.6 | CN25: 598.8 | CO25: 557.5 | CP25: 539.4 | CQ25: 531.2 | CR25: 527.4 | CS25: 526.3 | CT25: 675.9 | CU25: 582.7 | CV25: 547.7 | CW25: 527.7 | CX25: 513.5 | CY25: 504.2 | CZ25: 497.7 | DA25: 682.5 | DB25: 584.4 | DC25: 541.9 | DD25: 524.7 | DE25: 507.4 | DF25: 490.8 | DG25: 469.3 | DH25: 689.5 | DI25: 574.6 | DJ25: 532.5 | DK25: 506 | DL25: 484 | DM25: 469.6 | DN25: 452.2 | DO25: 706.3 | DP25: 584.9 | DQ25: 537.7 | DR25: 509.5 | DS25: 482.5 | DT25: 460 | DU25: 432.7 | DV25: 770.3 | DW25: 630.3 | DX25: 558.3 | DY25: 526.3 | DZ25: 500.3 | EA25: 474.2 | EB25: 428.1 | EC25: 899.4 | ED25: 719 | EE25: 612.2 | EF25: 554.3 | EG25: 525.7 | EH25: 501.6 | EI25: 454.9 | EJ25: 1038.5 | EK25: 830.2 | EL25: 704.9 | EM25: 623.9 | EN25: 567.1 | EO25: 534.8 | EP25: 488 | EQ25: 0.8793 | ER25: 1.1219 | ES25: 1.2391 | ET25: 0.6864 | EU25: 0.9184 | EV25: 1.0379 | EW25: 0 | EX25: 0 | EY25: 0 | EZ25: 0 | FA25: 0.9102 | FB25: 0 | FC25: 0 | FD25: 659.2 | FE25: ARG00006469 | FF25: 7.69 | FG25: 4804 | FH25: 21.3 | FI25: 24.2 | FJ25: 35.7 | FK25: 77.8 | FL25: 0 | FM25: 767.7 | FN25: 601.7 | FO25: 544.8 | FP25: 983.4 | FQ25: 735 | FR25: 650.4 | FS25: 688.1 | FT25: 0.872 | FU25: 708.6 | FV25: 0.8467 | FW25: 0 | FX25: 0
B26: ARG411105 | C26: ARG4111o | D26: ARG-4111 | E26: GREEN PEPPER | F26: PANDORA 31 | G26: AST, MARCO | H26: GERMAN FRERS | I26: 1994 | J26: PCIA, BUENOS AIRES | L26: CLUB | M26: C | N26: 475 | O26: 18 01 2018 12:35:52 | P26: 9.57 | Q26: 8.813 | R26: 1.924 | S26: 3.29 | T26: 3772 | U26: 120.3 | V26: 0.17 | W26: 647.7 | X26: 0.9677 | Y26: 697.6 | Z26: 0 | AA26: 0 | AB26: 1047.3 | AC26: 851.9 | AD26: 737.9 | AE26: 673 | AF26: 635.4 | AG26: 615.4 | AH26: 585.4 | AI26: 997.8 | AJ26: 814.9 | AK26: 716.3 | AL26: 663.5 | AM26: 634.8 | AN26: 616.8 | AO26: 585.9 | AP26: 888.5 | AQ26: 718.9 | AR26: 628.6 | AS26: 576.5 | AT26: 544.5 | AU26: 523.2 | AV26: 494.1 | AW26: 943.6 | AX26: 757.1 | AY26: 656.2 | AZ26: 597.5 | BA26: 561.4 | BB26: 537.9 | BC26: 507.4 | BD26: 1045.4 | BE26: 801.3 | BF26: 668.6 | BG26: 594.4 | BH26: 556 | BI26: 525.7 | BJ26: 474.3 | BK26: 41.5 | BL26: 40.2 | BM26: 39.4 | BN26: 37.8 | BO26: 37.1 | BP26: 37.3 | BQ26: 37 | BR26: 145.5 | BS26: 150.6 | BT26: 152.4 | BU26: 160.6 | BV26: 180 | BW26: 180 | BX26: 180 | BY26: 1066.4 | BZ26: 886.6 | CA26: 785 | CB26: 738.1 | CC26: 721.2 | CD26: 714.1 | CE26: 701.1 | CF26: 711.6 | CG26: 599.1 | CH26: 548.8 | CI26: 529.2 | CJ26: 520.5 | CK26: 516.4 | CL26: 511.2 | CM26: 678.5 | CN26: 576.5 | CO26: 535.8 | CP26: 517.9 | CQ26: 507.4 | CR26: 502.1 | CS26: 499.1 | CT26: 654.4 | CU26: 562 | CV26: 526.5 | CW26: 507 | CX26: 492.1 | CY26: 480.1 | CZ26: 468.5 | DA26: 650.5 | DB26: 549.4 | DC26: 514.7 | DD26: 497.2 | DE26: 485.8 | DF26: 468.4 | DG26: 441.9 | DH26: 653.3 | DI26: 548.5 | DJ26: 510.3 | DK26: 484.3 | DL26: 459.8 | DM26: 442.5 | DN26: 421.4 | DO26: 676.2 | DP26: 561.8 | DQ26: 517.2 | DR26: 490.2 | DS26: 463.6 | DT26: 438.8 | DU26: 401.3 | DV26: 751.1 | DW26: 613.5 | DX26: 541.6 | DY26: 509.6 | DZ26: 484.4 | EA26: 458.1 | EB26: 407.7 | EC26: 890.5 | ED26: 707.6 | EE26: 600 | EF26: 538.7 | EG26: 509.2 | EH26: 485.4 | EI26: 437.1 | EJ26: 1028.3 | EK26: 817.3 | EL26: 690.8 | EM26: 607.9 | EN26: 549.6 | EO26: 516.6 | EP26: 469.7 | EQ26: 0.9138 | ER26: 1.1747 | ES26: 1.3145 | ET26: 0.7108 | EU26: 0.9641 | EV26: 1.1081 | EW26: 0 | EX26: 0 | EY26: 0 | EZ26: 0 | FA26: 0.954 | FB26: 0 | FC26: 0 | FD26: 628.9 | FE26: ARG00006470 | FF26: 8.499 | FG26: 4527 | FH26: 20.4 | FI26: 34.5 | FJ26: 19.5 | FK26: 60.1 | FL26: 0 | FM26: 738.7 | FN26: 574.6 | FO26: 513.5 | FP26: 949.6 | FQ26: 700.1 | FR26: 609.2 | FS26: 656.1 | FT26: 0.9145 | FU26: 677.3 | FV26: 0.8859 | FW26: 0 | FX26: 0
B27: ARG1202 | C27: ARG012 | D27: ARG-012 | E27: GUASON | F27: MATCH 30 | G27: AST, SPEED CRAFT | H27: GERMAN FRERS | I27: 1993 | L27: INTL | M27: R | N27: 510 | O27: 18 01 2018 12:35:56 | P27: 9.12 | Q27: 8.093 | R27: 1.722 | S27: 3.11 | T27: 2149 | U27: 109.4 | V27: 0.02 | W27: 627.8 | X27: 0.9796 | Y27: 689.1 | Z27: 0 | AA27: 0 | AB27: 1015 | AC27: 822.5 | AD27: 714.1 | AE27: 667.4 | AF27: 638.9 | AG27: 618.5 | AH27: 578.7 | AI27: 971.1 | AJ27: 789.3 | AK27: 696.3 | AL27: 650.1 | AM27: 623.4 | AN27: 603.4 | AO27: 562.9 | AP27: 858.6 | AQ27: 696.1 | AR27: 609.7 | AS27: 559.5 | AT27: 527.5 | AU27: 504.6 | AV27: 469 | AW27: 933.8 | AX27: 748.3 | AY27: 647.9 | AZ27: 589 | BA27: 551.9 | BB27: 526.7 | BC27: 491.7 | BD27: 1010.6 | BE27: 773.3 | BF27: 647.6 | BG27: 581.3 | BH27: 541.5 | BI27: 506.5 | BJ27: 445 | BK27: 42.5 | BL27: 41.3 | BM27: 39.4 | BN27: 37.8 | BO27: 37.2 | BP27: 37.3 | BQ27: 37.5 | BR27: 144 | BS27: 147.6 | BT27: 149.4 | BU27: 151.7 | BV27: 175.9 | BW27: 177.6 | BX27: 140.4 | BY27: 1058.6 | BZ27: 871.3 | CA27: 768.6 | CB27: 730.3 | CC27: 717.2 | CD27: 712.9 | CE27: 707.3 | CF27: 698 | CG27: 585.7 | CH27: 541.7 | CI27: 523.9 | CJ27: 516.1 | CK27: 512 | CL27: 504.2 | CM27: 662.5 | CN27: 565.6 | CO27: 529.4 | CP27: 509.2 | CQ27: 497.5 | CR27: 491.3 | CS27: 483.7 | CT27: 636.5 | CU27: 553.1 | CV27: 519.9 | CW27: 492.4 | CX27: 471.3 | CY27: 458.5 | CZ27: 448.7 | DA27: 618.3 | DB27: 533.8 | DC27: 502 | DD27: 484.1 | DE27: 462.1 | DF27: 438.7 | DG27: 410.7 | DH27: 612.2 | DI27: 528.7 | DJ27: 485.9 | DK27: 450.9 | DL27: 427.6 | DM27: 410 | DN27: 378.2 | DO27: 631.2 | DP27: 537 | DQ27: 494.5 | DR27: 453.4 | DS27: 416.6 | DT27: 387.1 | DU27: 348.8 | DV27: 710.4 | DW27: 574.7 | DX27: 520 | DY27: 481.6 | DZ27: 444.1 | EA27: 406.1 | EB27: 321.9 | EC27: 841.3 | ED27: 670.1 | EE27: 571.3 | EF27: 525.1 | EG27: 495.7 | EH27: 467 | EI27: 389.8 | EJ27: 971.4 | EK27: 773.7 | EL27: 659.6 | EM27: 604.5 | EN27: 560.6 | EO27: 524.1 | EP27: 450.1 | EQ27: 0.9469 | ER27: 1.2082 | ES27: 1.3635 | ET27: 0.7347 | EU27: 0.98 | EV27: 1.1089 | EW27: 0 | EX27: 0 | EY27: 0 | EZ27: 0 | FA27: 0.9826 | FB27: 0 | FC27: 0 | FD27: 610.6 | FE27: ARG00006471 | FF27: 8.227 | FG27: 2766 | FH27: 16.7 | FI27: 30.2 | FJ27: 17.1 | FK27: 0 | FL27: 72.8 | FM27: 712.9 | FN27: 558.7 | FO27: 495 | FP27: 918.7 | FQ27: 688.8 | FR27: 608.7 | FS27: 646.9 | FT27: 0.9275 | FU27: 668.6 | FV27: 0.8974 | FW27: 0 | FX27: 0
B28: ARG259501 | C28: ARG2595 | D28: ARG-2595 | E28: INDIA | F28: PLENAMAR 36 | G28: AST, PLENAMAR | H28: GERMAN FRERS | I28: 1987 | L28: CLUB | M28: C | N28: 600 | O28: 18 01 2018 12:36:06 | P28: 10.78 | Q28: 8.783 | R28: 1.974 | S28: 3.47 | T28: 6182 | U28: 114.1 | V28: 0.32 | W28: 667.1 | X28: 0.9385 | Y28: 719.3 | Z28: 0 | AA28: 0 | AB28: 1074.8 | AC28: 884.3 | AD28: 768.6 | AE28: 695.7 | AF28: 653.6 | AG28: 628.3 | AH28: 605.7 | AI28: 1029.8 | AJ28: 848.2 | AK28: 744.5 | AL28: 684.7 | AM28: 651.7 | AN28: 631.8 | AO28: 612 | AP28: 917.9 | AQ28: 741.9 | AR28: 647.3 | AS28: 592.3 | AT28: 558.8 | AU28: 537.5 | AV28: 512.6 | AW28: 970.1 | AX28: 779.2 | AY28: 675.3 | AZ28: 614.1 | BA28: 576.2 | BB28: 551.9 | BC28: 523 | BD28: 1072.1 | BE28: 831.8 | BF28: 693.4 | BG28: 610.2 | BH28: 568.5 | BI28: 537.5 | BJ28: 490.5 | BK28: 42 | BL28: 40.6 | BM28: 41.4 | BN28: 40.4 | BO28: 39.5 | BP28: 39 | BQ28: 39.3 | BR28: 147.1 | BS28: 151.2 | BT28: 151.3 | BU28: 156.7 | BV28: 180 | BW28: 180 | BX28: 180 | BY28: 1101.4 | BZ28: 930.2 | CA28: 824.4 | CB28: 765.9 | CC28: 741.6 | CD28: 729.8 | CE28: 726.8 | CF28: 733.4 | CG28: 623.5 | CH28: 560.2 | CI28: 535 | CJ28: 523.1 | CK28: 517.7 | CL28: 514.4 | CM28: 700.6 | CN28: 595 | CO28: 544.2 | CP28: 523.1 | CQ28: 510.9 | CR28: 504 | CS28: 498.9 | CT28: 677.1 | CU28: 576.4 | CV28: 533.7 | CW28: 513.1 | CX28: 499.1 | CY28: 487.7 | CZ28: 474.2 | DA28: 684.2 | DB28: 580.1 | DC28: 530.7 | DD28: 507.6 | DE28: 495.1 | DF28: 481.2 | DG28: 458.5 | DH28: 696.6 | DI28: 573.8 | DJ28: 521.9 | DK28: 496.9 | DL28: 476.9 | DM28: 460.4 | DN28: 445.1 | DO28: 713.8 | DP28: 587 | DQ28: 527.8 | DR28: 500.5 | DS28: 478.3 | DT28: 458.4 | DU28: 429.2 | DV28: 777.5 | DW28: 638.5 | DX28: 553.1 | DY28: 516.3 | DZ28: 493.3 | EA28: 472.1 | EB28: 434.1 | EC28: 907.7 | ED28: 726.1 | EE28: 618.1 | EF28: 548.6 | EG28: 516.2 | EH28: 494.9 | EI28: 456.3 | EJ28: 1048.2 | EK28: 838.3 | EL28: 712.9 | EM28: 625.6 | EN28: 565.6 | EO28: 526.9 | EP28: 484.6 | EQ28: 0.881 | ER28: 1.1427 | ES28: 1.28 | ET28: 0.6891 | EU28: 0.9308 | EV28: 1.078 | EW28: 0 | EX28: 0 | EY28: 0 | EZ28: 0 | FA28: 0.9267 | FB28: 0 | FC28: 0 | FD28: 647.4 | FE28: ARG00006473 | FF28: 8.193 | FG28: 6948 | FH28: 25.2 | FI28: 26.9 | FJ28: 44.3 | FK28: 88.7 | FL28: 0 | FM28: 766.2 | FN28: 590.7 | FO28: 527.3 | FP28: 979.5 | FQ28: 725.2 | FR28: 626.2 | FS28: 675 | FT28: 0.8888 | FU28: 696.7 | FV28: 0.8612 | FW28: 0 | FX28: 0
B29: ARG11001 | C29: ARG110o | D29: ARG-110 | E29: JABEQUE Reloaded | F29: G 28 | G29: ARTESANAL - HOOD | H29: PGAN | I29: 2006 | L29: CLUB | M29: S | N29: 440 | O29: 18 01 2018 12:36:10 | P29: 8.61 | Q29: 7.635 | R29: 1.871 | S29: 2.2 | T29: 1891 | U29: 129.9 | V29: 0.07 | W29: 647 | X29: 0.9634 | Y29: 700.7 | Z29: 0 | AA29: 0 | AB29: 1050.6 | AC29: 844 | AD29: 729 | AE29: 677.9 | AF29: 646.5 | AG29: 624.3 | AH29: 593.6 | AI29: 998.5 | AJ29: 807 | AK29: 710.9 | AL29: 666.7 | AM29: 641.2 | AN29: 620.1 | AO29: 587.9 | AP29: 888 | AQ29: 717.9 | AR29: 627.8 | AS29: 576.1 | AT29: 544 | AU29: 522.2 | AV29: 491.5 | AW29: 945 | AX29: 758.2 | AY29: 658 | AZ29: 600 | BA29: 564.2 | BB29: 540.1 | BC29: 507.7 | BD29: 1048.8 | BE29: 795 | BF29: 663.2 | BG29: 596.8 | BH29: 557.1 | BI29: 522.9 | BJ29: 469.1 | BK29: 42.1 | BL29: 41.1 | BM29: 38.4 | BN29: 37.3 | BO29: 37.1 | BP29: 36.7 | BQ29: 37.3 | BR29: 145.1 | BS29: 148.9 | BT29: 152.2 | BU29: 161.2 | BV29: 180 | BW29: 180 | BX29: 180 | BY29: 1068.1 | BZ29: 872.9 | CA29: 772.2 | CB29: 748 | CC29: 740 | CD29: 730.1 | CE29: 729.8 | CF29: 706.4 | CG29: 590.9 | CH29: 549.5 | CI29: 538.8 | CJ29: 534.4 | CK29: 531.1 | CL29: 524.3 | CM29: 670.8 | CN29: 572.5 | CO29: 537.2 | CP29: 523.7 | CQ29: 518.1 | CR29: 515.5 | CS29: 504.7 | CT29: 644.9 | CU29: 560.9 | CV29: 527.3 | CW29: 502.8 | CX29: 490.6 | CY29: 484.5 | CZ29: 474.6 | DA29: 653.1 | DB29: 555.2 | DC29: 522.3 | DD29: 497.9 | DE29: 471.3 | DF29: 453.5 | DG29: 441.2 | DH29: 655.3 | DI29: 552 | DJ29: 509.6 | DK29: 474.2 | DL29: 453.9 | DM29: 435.5 | DN29: 410 | DO29: 676.8 | DP29: 562.7 | DQ29: 517.9 | DR29: 478.6 | DS29: 442 | DT29: 414.6 | DU29: 381.2 | DV29: 752.8 | DW29: 607.5 | DX29: 543.4 | DY29: 506.6 | DZ29: 470.6 | EA29: 435.7 | EB29: 356.5 | EC29: 894.7 | ED29: 705.8 | EE29: 596 | EF29: 540.8 | EG29: 506.6 | EH29: 473.5 | EI29: 406.8 | EJ29: 1033.1 | EK29: 815 | EL29: 685.9 | EM29: 607.9 | EN29: 553.1 | EO29: 518.5 | EP29: 457.3 | EQ29: 0.916 | ER29: 1.1756 | ES29: 1.3169 | ET29: 0.7126 | EU29: 0.963 | EV29: 1.0917 | EW29: 0 | EX29: 0 | EY29: 0 | EZ29: 0 | FA29: 0.9556 | FB29: 0 | FC29: 0 | FD29: 627.9 | FE29: ARG00006474 | FF29: 7.803 | FG29: 2446 | FH29: 15.8 | FI29: 25 | FJ29: 18.2 | FK29: 49.1 | FL29: 0 | FM29: 736.9 | FN29: 574.2 | FO29: 512.6 | FP29: 947.2 | FQ29: 700.9 | FR29: 618.3 | FS29: 657.9 | FT29: 0.912 | FU29: 679.1 | FV29: 0.8835 | FW29: 0 | FX29: 0
B30: ARG358008 | C30: ARG3580 | D30: ARG-3580 | E30: LLANERO | F30: ROY 38 | G30: AST, NAUTIVELA | H30: GERMAN FRERS | I30: 1990 | J30: PCIA, BUENOS AIRES | L30: CLUB | M30: C | N30: 660 | O30: 18 01 2018 12:36:30 | P30: 11.58 | Q30: 9.607 | R30: 1.804 | S30: 3.75 | T30: 6942 | U30: 115.6 | V30: 0.1 | W30: 624 | X30: 0.9946 | Y30: 678.7 | Z30: 0 | AA30: 0 | AB30: 994.3 | AC30: 819.5 | AD30: 716.3 | AE30: 658.8 | AF30: 623.2 | AG30: 600.9 | AH30: 580.6 | AI30: 952.2 | AJ30: 785.7 | AK30: 696.2 | AL30: 648.9 | AM30: 622.2 | AN30: 604.6 | AO30: 586.4 | AP30: 849 | AQ30: 690 | AR30: 606 | AS30: 558.1 | AT30: 529.2 | AU30: 510.8 | AV30: 488.9 | AW30: 891.9 | AX30: 720.7 | AY30: 628.9 | AZ30: 575.8 | BA30: 543.4 | BB30: 522.6 | BC30: 497.4 | BD30: 992.1 | BE30: 770.1 | BF30: 646.7 | BG30: 577.1 | BH30: 540 | BI30: 510.9 | BJ30: 466.1 | BK30: 43.1 | BL30: 42.6 | BM30: 42.1 | BN30: 40.8 | BO30: 40.3 | BP30: 39.9 | BQ30: 40 | BR30: 146 | BS30: 150.4 | BT30: 151.3 | BU30: 156.9 | BV30: 174.8 | BW30: 180 | BX30: 180 | BY30: 1016.6 | BZ30: 859.2 | CA30: 769.7 | CB30: 731.7 | CC30: 714.1 | CD30: 704.7 | CE30: 704.2 | CF30: 667.4 | CG30: 567.1 | CH30: 521.5 | CI30: 505.5 | CJ30: 498.8 | CK30: 495.5 | CL30: 493.9 | CM30: 632.9 | CN30: 542.5 | CO30: 507.6 | CP30: 493.2 | CQ30: 486.2 | CR30: 482.2 | CS30: 479.4 | CT30: 606.8 | CU30: 527.2 | CV30: 497.6 | CW30: 482.2 | CX30: 470.9 | CY30: 462.9 | CZ30: 455.3 | DA30: 611.3 | DB30: 527.6 | DC30: 495.6 | DD30: 478 | DE30: 463.9 | DF30: 451.3 | DG30: 431.9 | DH30: 644.4 | DI30: 533.7 | DJ30: 491.2 | DK30: 469.3 | DL30: 450.7 | DM30: 436.8 | DN30: 420.3 | DO30: 659.3 | DP30: 544.5 | DQ30: 496 | DR30: 471.8 | DS30: 450.6 | DT30: 430.8 | DU30: 404 | DV30: 720.1 | DW30: 589.6 | DX30: 517.1 | DY30: 486.3 | DZ30: 464.9 | EA30: 443.7 | EB30: 404.9 | EC30: 841.9 | ED30: 675.2 | EE30: 574.8 | EF30: 514.7 | EG30: 486.6 | EH30: 466.6 | EI30: 427.8 | EJ30: 972.1 | EK30: 779.8 | EL30: 662.9 | EM30: 585.8 | EN30: 532.3 | EO30: 497.1 | EP30: 457 | EQ30: 0.9572 | ER30: 1.2151 | ES30: 1.3441 | ET30: 0.7443 | EU30: 0.9891 | EV30: 1.1272 | EW30: 0 | EX30: 0 | EY30: 0 | EZ30: 0 | FA30: 0.9855 | FB30: 0 | FC30: 0 | FD30: 608.8 | FE30: ARG00006478 | FF30: 8.968 | FG30: 7825 | FH30: 27.4 | FI30: 37 | FJ30: 54.3 | FK30: 106.5 | FL30: 0 | FM30: 705.2 | FN30: 555.5 | FO30: 502.2 | FP30: 906.9 | FQ30: 682.4 | FR30: 598.8 | FS30: 632.5 | FT30: 0.9486 | FU30: 648.2 | FV30: 0.9256 | FW30: 0 | FX30: 0
B31: ARG555501 | C31: URU5555 | D31: URU-5555 | E31: PROMETEO | F31: IRC 305 | G31: AST, ROSENDO | H31: PGYD | I31: 2012 | L31: INTL | M31: R | N31: 570 | O31: 18 01 2018 12:37:06 | P31: 9.312 | Q31: 8.907 | R31: 1.996 | S31: 3.11 | T31: 3911 | U31: 132.2 | V31: 0.12 | W31: 639.9 | X31: 0.9838 | Y31: 686.1 | Z31: 0 | AA31: 0 | AB31: 1038.8 | AC31: 844.8 | AD31: 728.3 | AE31: 661 | AF31: 622.8 | AG31: 601.5 | AH31: 572.6 | AI31: 995.3 | AJ31: 810.6 | AK31: 709.2 | AL31: 652.6 | AM31: 621.1 | AN31: 601.1 | AO31: 570.9 | AP31: 881.8 | AQ31: 711.9 | AR31: 620.9 | AS31: 567.9 | AT31: 535.1 | AU31: 513 | AV31: 483 | AW31: 948 | AX31: 758.6 | AY31: 655.5 | AZ31: 594.8 | BA31: 557 | BB31: 532 | BC31: 499.7 | BD31: 1034.2 | BE31: 794.1 | BF31: 660.2 | BG31: 585 | BH31: 545.8 | BI31: 514.6 | BJ31: 463.9 | BK31: 42.1 | BL31: 40.6 | BM31: 40.1 | BN31: 38 | BO31: 37.2 | BP31: 36.8 | BQ31: 36.3 | BR31: 145.7 | BS31: 149.8 | BT31: 151.5 | BU31: 159.4 | BV31: 180 | BW31: 180 | BX31: 180 | BY31: 1084.3 | BZ31: 897.7 | CA31: 786.5 | CB31: 728 | CC31: 704.9 | CD31: 694 | CE31: 683 | CF31: 718.6 | CG31: 602.6 | CH31: 545.8 | CI31: 522.7 | CJ31: 510.7 | CK31: 505.2 | CL31: 501.4 | CM31: 683.7 | CN31: 577.4 | CO31: 532.8 | CP31: 512.4 | CQ31: 499.3 | CR31: 491.5 | CS31: 485.7 | CT31: 657.8 | CU31: 561.3 | CV31: 523.9 | CW31: 503.3 | CX31: 487 | CY31: 472.9 | CZ31: 456.2 | DA31: 658.3 | DB31: 549.6 | DC31: 511.7 | DD31: 495.5 | DE31: 483 | DF31: 465 | DG31: 433.6 | DH31: 648.3 | DI31: 541.8 | DJ31: 503.5 | DK31: 477.6 | DL31: 453.6 | DM31: 439.5 | DN31: 416.2 | DO31: 665.1 | DP31: 551.5 | DQ31: 508.7 | DR31: 481.1 | DS31: 453.4 | DT31: 427.7 | DU31: 394.9 | DV31: 729.6 | DW31: 593.1 | DX31: 529.1 | DY31: 499.1 | DZ31: 473.1 | EA31: 446 | EB31: 392.1 | EC31: 860.1 | ED31: 685.9 | EE31: 581.5 | EF31: 526.5 | EG31: 499.1 | EH31: 475.1 | EI31: 425.7 | EJ31: 993.2 | EK31: 792 | EL31: 670 | EM31: 594 | EN31: 540.8 | EO31: 509 | EP31: 462.2 | EQ31: 0.9194 | ER31: 1.1909 | ES31: 1.3419 | ET31: 0.7167 | EU31: 0.9794 | EV31: 1.1325 | EW31: 0 | EX31: 0 | EY31: 0 | EZ31: 0 | FA31: 0.9682 | FB31: 0 | FC31: 0 | FD31: 619.7 | FE31: ARG00006484 | FF31: 8.661 | FG31: 4670 | FH31: 21.3 | FI31: 31.8 | FJ31: 23.1 | FK31: 73.6 | FL31: 0 | FM31: 734.2 | FN31: 566.8 | FO31: 503 | FP31: 941.8 | FQ31: 689.2 | FR31: 596 | FS31: 653.4 | FT31: 0.9182 | FU31: 676.7 | FV31: 0.8867 | FW31: 0 | FX31: 0
B32: ARG211902 | C32: ARG2119 | D32: ARG-2119 | E32: PURA CEPA | F32: MIURA 31 | G32: CESPEDES Y PEONA | H32: ROBERTO ROVERE | I32: 1973 | L32: CLUB | M32: C | N32: 514 | O32: 18 01 2018 12:37:12 | P32: 9.1 | Q32: 7.424 | R32: 1.732 | S32: 2.61 | T32: 3328 | U32: 123.6 | V32: 0.11 | W32: 687.3 | X32: 0.9107 | Y32: 741.2 | Z32: 0 | AA32: 0 | AB32: 1070 | AC32: 884.5 | AD32: 774.1 | AE32: 718 | AF32: 683.7 | AG32: 665.4 | AH32: 640.9 | AI32: 1026.5 | AJ32: 849.3 | AK32: 756.9 | AL32: 711.1 | AM32: 685.9 | AN32: 669.5 | AO32: 647.1 | AP32: 927.6 | AQ32: 756.9 | AR32: 667.7 | AS32: 617.7 | AT32: 588 | AU32: 569.1 | AV32: 545.7 | AW32: 975.6 | AX32: 790.8 | AY32: 692.9 | AZ32: 637.2 | BA32: 603.7 | BB32: 582.4 | BC32: 555.4 | BD32: 1067.8 | BE32: 834.1 | BF32: 705.2 | BG32: 637.6 | BH32: 600.1 | BI32: 570.5 | BJ32: 524.1 | BK32: 41.3 | BL32: 40.9 | BM32: 39.8 | BN32: 38.8 | BO32: 38.4 | BP32: 38.2 | BQ32: 38.2 | BR32: 147.9 | BS32: 151.5 | BT32: 153.1 | BU32: 166.5 | BV32: 180 | BW32: 180 | BX32: 180 | BY32: 1091.5 | BZ32: 923.9 | CA32: 829.9 | CB32: 798.5 | CC32: 785.8 | CD32: 779.3 | CE32: 776.9 | CF32: 732.6 | CG32: 624 | CH32: 583.2 | CI32: 568.7 | CJ32: 563 | CK32: 560.4 | CL32: 559.2 | CM32: 699.6 | CN32: 604.6 | CO32: 571.4 | CP32: 556.3 | CQ32: 549.4 | CR32: 545.9 | CS32: 544.2 | CT32: 676.2 | CU32: 593 | CV32: 562.4 | CW32: 544.3 | CX32: 531.3 | CY32: 523.8 | CZ32: 517.7 | DA32: 683.9 | DB32: 593.9 | DC32: 558.8 | DD32: 540.6 | DE32: 522.8 | DF32: 508 | DG32: 490 | DH32: 700.1 | DI32: 589.5 | DJ32: 550.4 | DK32: 524.6 | DL32: 503.6 | DM32: 492.2 | DN32: 475.4 | DO32: 719.2 | DP32: 599.8 | DQ32: 555.9 | DR32: 528 | DS32: 502.1 | DT32: 480.8 | DU32: 457.7 | DV32: 784.2 | DW32: 643.3 | DX32: 576 | DY32: 545.1 | DZ32: 519.2 | EA32: 493.8 | EB32: 451.6 | EC32: 908 | ED32: 732 | EE32: 625.8 | EF32: 571.6 | EG32: 543.9 | EH32: 519.8 | EI32: 474.7 | EJ32: 1048.5 | EK32: 845.2 | EL32: 718.3 | EM32: 637.6 | EN32: 581.5 | EO32: 551.4 | EP32: 504.9 | EQ32: 0.8783 | ER32: 1.0997 | ES32: 1.2048 | ET32: 0.6907 | EU32: 0.9097 | EV32: 1.0215 | EW32: 0 | EX32: 0 | EY32: 0 | EZ32: 0 | FA32: 0.8956 | FB32: 0 | FC32: 0 | FD32: 670 | FE32: ARG00006485 | FF32: 7.209 | FG32: 3911 | FH32: 17.1 | FI32: 22.6 | FJ32: 30.8 | FK32: 62.1 | FL32: 0 | FM32: 768.5 | FN32: 613.8 | FO32: 560.3 | FP32: 977.3 | FQ32: 742 | FR32: 660.8 | FS32: 694.2 | FT32: 0.8644 | FU32: 714 | FV32: 0.8403 | FW32: 0 | FX32: 0
B33: ARG460701 | C33: ARG4607 | D33: ARG-4607 | E33: SAN GREGORIO | F33: SOTO 45 | G33: E, ANZOLA | H33: J, SOTO A, | I33: 2001 | L33: INTL | M33: R | N33: 910 | O33: 18 01 2018 12:37:16 | P33: 13.698 | Q33: 12.081 | R33: 2.723 | S33: 3.93 | T33: 6808 | U33: 137.1 | V33: 0 | W33: 527.7 | X33: 1.1652 | Y33: 579.3 | Z33: 0 | AA33: 0 | AB33: 857.6 | AC33: 692.9 | AD33: 609.7 | AE33: 565 | AF33: 538.8 | AG33: 514.5 | AH33: 486.8 | AI33: 811.5 | AJ33: 659.4 | AK33: 588 | AL33: 552.3 | AM33: 528.7 | AN33: 507 | AO33: 481.7 | AP33: 721.7 | AQ33: 584.8 | AR33: 512.4 | AS33: 470.5 | AT33: 443.8 | AU33: 424.9 | AV33: 397.6 | AW33: 766.3 | AX33: 616.8 | AY33: 536.4 | AZ33: 489 | BA33: 458.9 | BB33: 438.1 | BC33: 410.3 | BD33: 858.2 | BE33: 651.6 | BF33: 549.7 | BG33: 490.3 | BH33: 456.5 | BI33: 426.7 | BJ33: 379.7 | BK33: 43.8 | BL33: 41.6 | BM33: 39.8 | BN33: 39.3 | BO33: 39 | BP33: 38.2 | BQ33: 38.6 | BR33: 142.3 | BS33: 141.6 | BT33: 147.2 | BU33: 154.6 | BV33: 164.2 | BW33: 180 | BX33: 180 | BY33: 851.7 | BZ33: 700.2 | CA33: 644.1 | CB33: 622.6 | CC33: 612.2 | CD33: 596.8 | CE33: 593.3 | CF33: 556 | CG33: 468.4 | CH33: 444.7 | CI33: 436.2 | CJ33: 431.7 | CK33: 426.3 | CL33: 419.9 | CM33: 523.5 | CN33: 451.6 | CO33: 431.2 | CP33: 422.5 | CQ33: 417.2 | CR33: 413.8 | CS33: 402.4 | CT33: 499.1 | CU33: 440.3 | CV33: 417.3 | CW33: 402 | CX33: 392.9 | CY33: 387.1 | CZ33: 375.8 | DA33: 505.8 | DB33: 442.6 | DC33: 416 | DD33: 393 | DE33: 375.4 | DF33: 364.2 | DG33: 352.1 | DH33: 542.8 | DI33: 449.3 | DJ33: 414.4 | DK33: 389.5 | DL33: 372.7 | DM33: 358.3 | DN33: 323.6 | DO33: 561.8 | DP33: 458 | DQ33: 419.2 | DR33: 387.7 | DS33: 360.8 | DT33: 343.8 | DU33: 312.8 | DV33: 627.4 | DW33: 500.3 | DX33: 440.9 | DY33: 410.2 | DZ33: 379.7 | EA33: 350.3 | EB33: 289.6 | EC33: 747.8 | ED33: 593.8 | EE33: 498.3 | EF33: 443.6 | EG33: 414.8 | EH33: 386.6 | EI33: 331.1 | EJ33: 863.5 | EK33: 685.7 | EL33: 575.4 | EM33: 507.4 | EN33: 465.5 | EO33: 432.2 | EP33: 380.2 | EQ33: 1.1306 | ER33: 1.4356 | ES33: 1.6189 | ET33: 0.8707 | EU33: 1.1557 | EV33: 1.3231 | EW33: 0 | EX33: 0 | EY33: 0 | EZ33: 0 | FA33: 1.1656 | FB33: 0 | FC33: 0 | FD33: 514.7 | FE33: ARG00006486 | FF33: 11.792 | FG33: 7973 | FH33: 35.4 | FI33: 76.1 | FJ33: 48.1 | FK33: 135.4 | FL33: 0 | FM33: 597 | FN33: 470.2 | FO33: 416.9 | FP33: 775.2 | FQ33: 584.1 | FR33: 510.2 | FS33: 540.8 | FT33: 1.1095 | FU33: 552.9 | FV33: 1.0852 | FW33: 0 | FX33: 0
B34: ARG308202 | C34: TERAPIA | D34: ARG-3082 | E34: TERAPIA | F34: HOLLAND 34 | G34: AST, DEL ESTUARIO | H34: RON HOLLAND | I34: 1980 | L34: CLUB | M34: C | N34: 620 | O34: 18 01 2018 12:37:36 | P34: 10.26 | Q34: 8.36 | R34: 1.755 | S34: 3.38 | T34: 4858 | U34: 108.4 | V34: 0.32 | W34: 679.5 | X34: 0.9206 | Y34: 733.2 | Z34: 0 | AA34: 0 | AB34: 1098.9 | AC34: 901.3 | AD34: 783.3 | AE34: 708 | AF34: 665.9 | AG34: 642 | AH34: 621 | AI34: 1053.2 | AJ34: 865.9 | AK34: 760 | AL34: 698.5 | AM34: 665.4 | AN34: 646.1 | AO34: 627.8 | AP34: 934.9 | AQ34: 755.6 | AR34: 659.3 | AS34: 603.4 | AT34: 569.4 | AU34: 547.9 | AV34: 522.8 | AW34: 985.8 | AX34: 791.8 | AY34: 686.4 | AZ34: 624.5 | BA34: 586.5 | BB34: 562.3 | BC34: 533.9 | BD34: 1095.6 | BE34: 847.2 | BF34: 706.4 | BG34: 621.4 | BH34: 579.5 | BI34: 548 | BJ34: 499 | BK34: 42.6 | BL34: 41.6 | BM34: 41.9 | BN34: 40.4 | BO34: 39.7 | BP34: 39.4 | BQ34: 39.9 | BR34: 147.2 | BS34: 151.1 | BT34: 151.8 | BU34: 157.8 | BV34: 180 | BW34: 180 | BX34: 180 | BY34: 1131.9 | BZ34: 953.3 | CA34: 845.9 | CB34: 783 | CC34: 759.5 | CD34: 748.9 | CE34: 749.8 | CF34: 747.2 | CG34: 634.7 | CH34: 571.8 | CI34: 545.8 | CJ34: 534.2 | CK34: 529.2 | CL34: 526.7 | CM34: 710.9 | CN34: 604.7 | CO34: 555 | CP34: 533.3 | CQ34: 521.1 | CR34: 514.7 | CS34: 510.4 | CT34: 684.7 | CU34: 584.9 | CV34: 543.6 | CW34: 522.6 | CX34: 507.9 | CY34: 496.3 | CZ34: 483.7 | DA34: 691.2 | DB34: 587.5 | DC34: 538.9 | DD34: 515.4 | DE34: 503.2 | DF34: 488.7 | DG34: 465 | DH34: 705.2 | DI34: 582 | DJ34: 531.5 | DK34: 505.3 | DL34: 483.9 | DM34: 465.4 | DN34: 445.9 | DO34: 723.1 | DP34: 595 | DQ34: 537.3 | DR34: 509.7 | DS34: 486.6 | DT34: 464.9 | DU34: 431.5 | DV34: 789 | DW34: 646.4 | DX34: 561.8 | DY34: 525.7 | DZ34: 502.2 | EA34: 480.2 | EB34: 439.9 | EC34: 923.1 | ED34: 735.7 | EE34: 625.3 | EF34: 557 | EG34: 525.2 | EH34: 503.4 | EI34: 463.3 | EJ34: 1065.9 | EK34: 849.4 | EL34: 720.7 | EM34: 633.1 | EN34: 572.4 | EO34: 535.1 | EP34: 492.3 | EQ34: 0.8655 | ER34: 1.122 | ES34: 1.2555 | ET34: 0.6749 | EU34: 0.9138 | EV34: 1.0545 | EW34: 0 | EX34: 0 | EY34: 0 | EZ34: 0 | FA34: 0.9098 | FB34: 0 | FC34: 0 | FD34: 659.5 | FE34: ARG00006490 | FF34: 7.817 | FG34: 5558 | FH34: 22.5 | FI34: 23.7 | FJ34: 37.4 | FK34: 74.5 | FL34: 0 | FM34: 779.9 | FN34: 601.6 | FO34: 537.6 | FP34: 1000.1 | FQ34: 738.7 | FR34: 640.1 | FS34: 686 | FT34: 0.8746 | FU34: 708.1 | FV34: 0.8473 | FW34: 0 | FX34: 0
B35: ARG416603 | C35: ARG4166o | D35: ARG-4166 | E35: TOO MATCH | F35: MATCH 42 | G35: AST, SPEEDCRAFT | H35: GERMAN FRERS | I35: 1995 | L35: CLUB | M35: C | N35: 830 | O35: 18 01 2018 12:37:46 | P35: 12.64 | Q35: 11.455 | R35: 2.19 | S35: 3.56 | T35: 5750 | U35: 129.9 | V35: 0 | W35: 555.3 | X35: 1.1149 | Y35: 605.4 | Z35: 0 | AA35: 0 | AB35: 914.2 | AC35: 736.5 | AD35: 637.5 | AE35: 585.4 | AF35: 555.7 | AG35: 534.6 | AH35: 502.1 | AI35: 867.4 | AJ35: 699.8 | AK35: 615.6 | AL35: 572.7 | AM35: 546.8 | AN35: 527.7 | AO35: 493.2 | AP35: 766.5 | AQ35: 618 | AR35: 538.7 | AS35: 492.6 | AT35: 463.5 | AU35: 443.2 | AV35: 414.2 | AW35: 819 | AX35: 655.5 | AY35: 566.9 | AZ35: 514.6 | BA35: 481.5 | BB35: 458.8 | BC35: 427.8 | BD35: 913.6 | BE35: 692.2 | BF35: 575.7 | BG35: 510.9 | BH35: 474.8 | BI35: 444.5 | BJ35: 396.5 | BK35: 43.9 | BL35: 42.2 | BM35: 40.3 | BN35: 39.1 | BO35: 38.2 | BP35: 37.9 | BQ35: 37.2 | BR35: 141.2 | BS35: 146.2 | BT35: 147.4 | BU35: 154.8 | BV35: 163.8 | BW35: 180 | BX35: 180 | BY35: 920.7 | BZ35: 750.1 | CA35: 672.8 | CB35: 641.7 | CC35: 625.7 | CD35: 618.2 | CE35: 604 | CF35: 600.9 | CG35: 498.7 | CH35: 464.2 | CI35: 452.7 | CJ35: 446.6 | CK35: 442.9 | CL35: 436.1 | CM35: 566.5 | CN35: 479.8 | CO35: 452.2 | CP35: 440.2 | CQ35: 433.1 | CR35: 428.6 | CS35: 422 | CT35: 541.8 | CU35: 468.6 | CV35: 442.2 | CW35: 424.2 | CX35: 411 | CY35: 402.8 | CZ35: 394.6 | DA35: 549.3 | DB35: 470.5 | DC35: 441.4 | DD35: 419.4 | DE35: 399 | DF35: 382.4 | DG35: 364.1 | DH35: 579.6 | DI35: 474.7 | DJ35: 436.7 | DK35: 409.5 | DL35: 389.7 | DM35: 374.4 | DN35: 349.6 | DO35: 597.5 | DP35: 484.6 | DQ35: 441.3 | DR35: 411 | DS35: 382.4 | DT35: 358.3 | DU35: 330.1 | DV35: 662.3 | DW35: 527.7 | DX35: 461.6 | DY35: 430.8 | DZ35: 400.7 | EA35: 370.6 | EB35: 310 | EC35: 786.1 | ED35: 626 | EE35: 521.6 | EF35: 462.8 | EG35: 433.8 | EH35: 406.6 | EI35: 351.8 | EJ35: 907.8 | EK35: 722.9 | EL35: 602.3 | EM35: 529.2 | EN35: 485.8 | EO35: 451.1 | EP35: 400.2 | EQ35: 1.0601 | ER35: 1.3719 | ES35: 1.5536 | ET35: 0.8178 | EU35: 1.1103 | EV35: 1.2791 | EW35: 0 | EX35: 0 | EY35: 0 | EZ35: 0 | FA35: 1.1119 | FB35: 0 | FC35: 0 | FD35: 539.6 | FE35: ARG00006492 | FF35: 11.143 | FG35: 6832 | FH35: 30.2 | FI35: 48.8 | FJ35: 48.4 | FK35: 121.4 | FL35: 109.7 | FM35: 636.7 | FN35: 492 | FO35: 434.5 | FP35: 825.4 | FQ35: 607.9 | FR35: 527.7 | FS35: 569.6 | FT35: 1.0533 | FU35: 585 | FV35: 1.0256 | FW35: 0 | FX35: 0
B36: ARG401 | C36: FRA04 | D36: FRA-004 | E36: XE | F36: S 33 | H36: JAVIER SOTO ACEBAL | I36: 2011 | L36: INTL | M36: R | N36: 652 | O36: 18 01 2018 12:37:58 | P36: 10.16 | Q36: 9.965 | R36: 2.161 | S36: 3.13 | T36: 2317 | U36: 123.4 | V36: 0 | W36: 541.7 | X36: 1.1329 | Y36: 595.8 | Z36: 0 | AA36: 0 | AB36: 867.6 | AC36: 698.5 | AD36: 628.7 | AE36: 592 | AF36: 559.3 | AG36: 526.8 | AH36: 480.8 | AI36: 827.3 | AJ36: 675.1 | AK36: 609.2 | AL36: 572.7 | AM36: 543.5 | AN36: 518.8 | AO36: 493.8 | AP36: 738.3 | AQ36: 600.5 | AR36: 526.9 | AS36: 482.8 | AT36: 452.9 | AU36: 430.3 | AV36: 395.5 | AW36: 814.5 | AX36: 655.2 | AY36: 568.6 | AZ36: 516.6 | BA36: 482.5 | BB36: 458.2 | BC36: 424.8 | BD36: 865 | BE36: 659.2 | BF36: 567.3 | BG36: 510.1 | BH36: 469.4 | BI36: 431.6 | BJ36: 372.3 | BK36: 43.7 | BL36: 40.9 | BM36: 38.6 | BN36: 38.3 | BO36: 37.7 | BP36: 37.4 | BQ36: 38.7 | BR36: 142.7 | BS36: 145.2 | BT36: 151.7 | BU36: 150 | BV36: 146.4 | BW36: 144.6 | BX36: 144.3 | BY36: 893.7 | BZ36: 733.3 | CA36: 685.1 | CB36: 667.3 | CC36: 655.2 | CD36: 644.2 | CE36: 649.8 | CF36: 583.6 | CG36: 501.2 | CH36: 480.7 | CI36: 471.6 | CJ36: 466.5 | CK36: 457.2 | CL36: 451.2 | CM36: 550.7 | CN36: 486.7 | CO36: 463.5 | CP36: 451.2 | CQ36: 443.8 | CR36: 435.4 | CS36: 423.5 | CT36: 530 | CU36: 476.1 | CV36: 439.7 | CW36: 417.7 | CX36: 406.1 | CY36: 399.2 | CZ36: 379.9 | DA36: 535.6 | DB36: 477.8 | DC36: 437.3 | DD36: 399.4 | DE36: 375.7 | DF36: 363 | DG36: 348.7 | DH36: 532.9 | DI36: 464.1 | DJ36: 427.1 | DK36: 398.8 | DL36: 373.4 | DM36: 351.3 | DN36: 301.6 | DO36: 546.6 | DP36: 467.6 | DQ36: 416.2 | DR36: 384.1 | DS36: 359.3 | DT36: 335.6 | DU36: 293.9 | DV36: 611.6 | DW36: 494.9 | DX36: 443.2 | DY36: 391 | DZ36: 343.5 | EA36: 308.8 | EB36: 265.8 | EC36: 728.8 | ED36: 574.8 | EE36: 493.6 | EF36: 447.6 | EG36: 401.3 | EH36: 354.6 | EI36: 270 | EJ36: 841.5 | EK36: 663.7 | EL36: 572.4 | EM36: 516.8 | EN36: 463.4 | EO36: 409.5 | EP36: 311.8 | EQ36: 1.1063 | ER36: 1.3903 | ES36: 1.6033 | ET36: 0.862 | EU36: 1.1158 | EV36: 1.3039 | EW36: 0 | EX36: 0 | EY36: 0 | EZ36: 0 | FA36: 1.1369 | FB36: 0 | FC36: 0 | FD36: 527.7 | FE36: ARG00006494 | FF36: 9.991 | FG36: 3191 | FH36: 21.4 | FI36: 42 | FJ36: 26.6 | FK36: 0 | FL36: 123.4 | FM36: 610.1 | FN36: 485.5 | FO36: 421 | FP36: 783.1 | FQ36: 604.9 | FR36: 517.7 | FS36: 572.1 | FT36: 1.0488 | FU36: 585.9 | FV36: 1.0241 | FW36: 0 | FX36: 0
B37: ARG567601 | C37: ARG5676 | D37: ARG-5676 | E37: ZAFIRO | F37: CORUM 280 CR | G37: Ast, CORUM | H37: PGYD | I37: 2007 | L37: CLUB | M37: C | N37: 517 | O37: 18 01 2018 12:38:04 | P37: 8.751 | Q37: 8.309 | R37: 1.667 | S37: 3.15 | T37: 3454 | U37: 117 | V37: 0.24 | W37: 686.8 | X37: 0.9136 | Y37: 738.8 | Z37: 0 | AA37: 0 | AB37: 1128.5 | AC37: 917 | AD37: 793.5 | AE37: 712.6 | AF37: 664.6 | AG37: 641.4 | AH37: 616.4 | AI37: 1085.6 | AJ37: 885.2 | AK37: 773.3 | AL37: 705.6 | AM37: 666.4 | AN37: 644.6 | AO37: 619 | AP37: 951.4 | AQ37: 766.2 | AR37: 666.1 | AS37: 607.4 | AT37: 571 | AU37: 547.3 | AV37: 517.4 | AW37: 1019.8 | AX37: 814.4 | AY37: 701.8 | AZ37: 634.8 | BA37: 593 | BB37: 566 | BC37: 534.3 | BD37: 1121.6 | BE37: 859.9 | BF37: 715 | BG37: 626.5 | BH37: 580.4 | BI37: 547.9 | BJ37: 493.9 | BK37: 43.2 | BL37: 41.6 | BM37: 41.5 | BN37: 40.3 | BO37: 39 | BP37: 38.6 | BQ37: 39.1 | BR37: 146.7 | BS37: 151 | BT37: 152.5 | BU37: 160.7 | BV37: 180 | BW37: 180 | BX37: 180 | BY37: 1197.6 | BZ37: 992.1 | CA37: 873.9 | CB37: 797.2 | CC37: 760.9 | CD37: 747.9 | CE37: 744.7 | CF37: 785 | CG37: 660 | CH37: 588.6 | CI37: 556.6 | CJ37: 541.3 | CK37: 534.1 | CL37: 530.2 | CM37: 743.8 | CN37: 627.5 | CO37: 569.4 | CP37: 543.7 | CQ37: 528.9 | CR37: 519.3 | CS37: 513.2 | CT37: 713.1 | CU37: 604.1 | CV37: 556.4 | CW37: 533.3 | CX37: 515.9 | CY37: 501.3 | CZ37: 483.2 | DA37: 700.1 | DB37: 582.4 | DC37: 537.5 | DD37: 515.4 | DE37: 504.3 | DF37: 493.4 | DG37: 462.8 | DH37: 689.8 | DI37: 574.5 | DJ37: 531.6 | DK37: 504.2 | DL37: 478.7 | DM37: 457.8 | DN37: 436.8 | DO37: 709.7 | DP37: 586.9 | DQ37: 537.6 | DR37: 509.9 | DS37: 482.9 | DT37: 457.5 | DU37: 416.8 | DV37: 780.5 | DW37: 637.9 | DX37: 561.3 | DY37: 527.9 | DZ37: 502.3 | EA37: 476 | EB37: 426.9 | EC37: 917.4 | ED37: 729.2 | EE37: 619.7 | EF37: 556.9 | EG37: 527 | EH37: 503.2 | EI37: 455.2 | EJ37: 1059.3 | EK37: 842 | EL37: 713.1 | EM37: 628.1 | EN37: 568.4 | EO37: 534.9 | EP37: 488 | EQ37: 0.8504 | ER37: 1.1122 | ES37: 1.2592 | ET37: 0.66 | EU37: 0.9065 | EV37: 1.0583 | EW37: 0 | EX37: 0 | EY37: 0 | EZ37: 0 | FA37: 0.902 | FB37: 0 | FC37: 0 | FD37: 665.2 | FE37: ARG00006495 | FF37: 7.664 | FG37: 4138 | FH37: 19.8 | FI37: 26.6 | FJ37: 20.2 | FK37: 60.6 | FL37: 0 | FM37: 793.7 | FN37: 606.9 | FO37: 536.1 | FP37: 1022.7 | FQ37: 744.6 | FR37: 637.8 | FS37: 698.5 | FT37: 0.859 | FU37: 724.6 | FV37: 0.828 | FW37: 0 | FX37: 0
B38: ARG314902 | C38: SOL3 | D38: ARG-3149 | E38: DOLPHIN III | F38: F&C 37 | G38: AST, F & C | H38: G, FRERS | I38: 1988 | L38: CLUB | M38: C | N38: 380 | O38: 23 01 2018 17:08:48 | P38: 11.11 | Q38: 8.957 | R38: 1.461 | S38: 3.67 | T38: 7267 | U38: 109.7 | V38: 0.67 | W38: 735.3 | X38: 0.8362 | Y38: 807.2 | Z38: 0 | AA38: 0 | AB38: 1244.1 | AC38: 1002.2 | AD38: 872.4 | AE38: 784.8 | AF38: 727.8 | AG38: 693.6 | AH38: 667.7 | AI38: 1205.8 | AJ38: 977.5 | AK38: 853.1 | AL38: 777.1 | AM38: 730.9 | AN38: 704 | AO38: 680.9 | AP38: 1031.5 | AQ38: 825.3 | AR38: 712.3 | AS38: 645.4 | AT38: 604 | AU38: 577.8 | AV38: 549.3 | AW38: 1098.7 | AX38: 873.1 | AY38: 748 | AZ38: 672.6 | BA38: 625.2 | BB38: 594.8 | BC38: 560.7 | BD38: 1231.7 | BE38: 936.5 | BF38: 775.3 | BG38: 670 | BH38: 612.2 | BI38: 571.8 | BJ38: 513.2 | BK38: 46.3 | BL38: 44.7 | BM38: 44.3 | BN38: 45.2 | BO38: 46.1 | BP38: 46 | BQ38: 46.4 | BR38: 147.3 | BS38: 151.2 | BT38: 153.5 | BU38: 155.3 | BV38: 173 | BW38: 180 | BX38: 180 | BY38: 1367.9 | BZ38: 1122.5 | CA38: 997.3 | CB38: 916.5 | CC38: 870.7 | CD38: 849.3 | CE38: 843.4 | CF38: 868.1 | CG38: 725.2 | CH38: 643.6 | CI38: 587.5 | CJ38: 559.5 | CK38: 548.2 | CL38: 542.6 | CM38: 807.2 | CN38: 681.4 | CO38: 601.4 | CP38: 555.3 | CQ38: 534 | CR38: 523.2 | CS38: 517 | CT38: 763.3 | CU38: 645.7 | CV38: 569.9 | CW38: 533.7 | CX38: 515.6 | CY38: 503.4 | CZ38: 488.9 | DA38: 762.1 | DB38: 627.2 | DC38: 549.7 | DD38: 518.6 | DE38: 507.9 | DF38: 495.1 | DG38: 472 | DH38: 739.4 | DI38: 607.4 | DJ38: 536.1 | DK38: 506.4 | DL38: 486.3 | DM38: 469.7 | DN38: 453.7 | DO38: 758.4 | DP38: 622.2 | DQ38: 543.4 | DR38: 510 | DS38: 488.2 | DT38: 468.7 | DU38: 437.9 | DV38: 830.4 | DW38: 675.7 | DX38: 578.2 | DY38: 528 | DZ38: 502.5 | EA38: 481.9 | EB38: 443.8 | EC38: 970.2 | ED38: 764.2 | EE38: 649.3 | EF38: 569.5 | EG38: 526.9 | EH38: 503.4 | EI38: 465.2 | EJ38: 1120.3 | EK38: 881.9 | EL38: 747.6 | EM38: 653.1 | EN38: 584.9 | EO38: 537.8 | EP38: 492 | EQ38: 0.7804 | ER38: 1.0448 | ES38: 1.1944 | ET38: 0.601 | EU38: 0.8253 | EV38: 0.9749 | EW38: 0 | EX38: 0 | EY38: 0 | EZ38: 0 | FA38: 0.8426 | FB38: 0 | FC38: 0 | FD38: 712.1 | FE38: ARG00006499 | FF38: 7.133 | FG38: 8046 | FH38: 27.5 | FI38: 32 | FJ38: 33.9 | FK38: 82 | FL38: 0 | FM38: 864.9 | FN38: 646.1 | FO38: 565.1 | FP38: 1123.1 | FQ38: 817.9 | FR38: 692.4 | FS38: 745.9 | FT38: 0.8044 | FU38: 772.9 | FV38: 0.7763 | FW38: 0 | FX38: 0
B39: ARG544801 | C39: 2ARG5448 | D39: ARG-5448 | E39: PERICLES II | F39: PANDORA 31 | G39: AST, MARCO | H39: GERMAN FRERS | I39: 1994 | L39: CLUB | M39: C | N39: 170 | O39: 08 02 2018 20:01:22 | P39: 9.58 | Q39: 8.893 | R39: 1.646 | S39: 3.29 | T39: 4233 | U39: 120.1 | V39: 0.14 | W39: 661.5 | X39: 0.9329 | Y39: 723.5 | Z39: 0 | AA39: 0 | AB39: 1051.9 | AC39: 863.2 | AD39: 758.1 | AE39: 704.5 | AF39: 672 | AG39: 645.5 | AH39: 621.2 | AI39: 1007.9 | AJ39: 829.2 | AK39: 737.5 | AL39: 690.1 | AM39: 662.6 | AN39: 642.8 | AO39: 620.6 | AP39: 898 | AQ39: 730.2 | AR39: 642.3 | AS39: 592.8 | AT39: 563.3 | AU39: 544.3 | AV39: 520.5 | AW39: 961.1 | AX39: 773.5 | AY39: 672.8 | AZ39: 614.5 | BA39: 579.1 | BB39: 556.6 | BC39: 529.5 | BD39: 1048.3 | BE39: 811 | BF39: 684.1 | BG39: 614 | BH39: 575.5 | BI39: 543.7 | BJ39: 495.9 | BK39: 42.3 | BL39: 40.9 | BM39: 41 | BN39: 40.3 | BO39: 39.5 | BP39: 39.2 | BQ39: 39 | BR39: 145.4 | BS39: 148.1 | BT39: 147.7 | BU39: 150.1 | BV39: 175.2 | BW39: 177.6 | BX39: 178.4 | BY39: 1087.8 | BZ39: 912.3 | CA39: 823.9 | CB39: 780.9 | CC39: 761.2 | CD39: 751.9 | CE39: 747.4 | CF39: 719.3 | CG39: 611.8 | CH39: 560.7 | CI39: 540.6 | CJ39: 532.7 | CK39: 528.7 | CL39: 527 | CM39: 684.3 | CN39: 585.1 | CO39: 544.2 | CP39: 526.8 | CQ39: 518.4 | CR39: 514 | CS39: 511.1 | CT39: 658.7 | CU39: 567.2 | CV39: 532.1 | CW39: 514.7 | CX39: 502.5 | CY39: 493.7 | CZ39: 485.6 | DA39: 658.5 | DB39: 558.2 | DC39: 523.3 | DD39: 509.9 | DE39: 494.8 | DF39: 481.2 | DG39: 459.2 | DH39: 651.3 | DI39: 548.9 | DJ39: 513 | DK39: 490.6 | DL39: 474.4 | DM39: 462.7 | DN39: 443.3 | DO39: 672.3 | DP39: 559.5 | DQ39: 517.3 | DR39: 492.6 | DS39: 468.9 | DT39: 447.2 | DU39: 423.7 | DV39: 748.5 | DW39: 609.4 | DX39: 538 | DY39: 508.1 | DZ39: 484.2 | EA39: 459.5 | EB39: 414 | EC39: 879.9 | ED39: 705.1 | EE39: 599.6 | EF39: 544.2 | EG39: 518.4 | EH39: 500.2 | EI39: 460.8 | EJ39: 1016.1 | EK39: 814.1 | EL39: 692.4 | EM39: 628.2 | EN39: 582.9 | EO39: 539.1 | EP39: 494.9 | EQ39: 0.907 | ER39: 1.1454 | ES39: 1.2603 | ET39: 0.7049 | EU39: 0.9278 | EV39: 1.0497 | EW39: 0 | EX39: 0 | EY39: 0 | EZ39: 0 | FA39: 0.9292 | FB39: 0 | FC39: 0 | FD39: 645.7 | FE39: ARG00006603 | FF39: 8.103 | FG39: 5008 | FH39: 21 | FI39: 31.6 | FJ39: 26.5 | FK39: 0 | FL39: 78.7 | FM39: 744.2 | FN39: 589.3 | FO39: 535.6 | FP39: 957.6 | FQ39: 727.5 | FR39: 643 | FS39: 673.9 | FT39: 0.8903 | FU39: 694 | FV39: 0.8646 | FW39: 0 | FX39: 0
B40: ARG365201 | C40: 2ARG3652 | D40: ARG-3652 | E40: SAN SALVADOR | F40: VICTORY 43 | G40: NAUTICA INTEGRAL | H40: HECTOR DOMATO | I40: 1979 | L40: CLUB | M40: C | N40: 170 | O40: 08 02 2018 20:01:28 | P40: 12.98 | Q40: 10.281 | R40: 2.007 | S40: 4.17 | T40: 10909 | U40: 117.2 | V40: 0.57 | W40: 648.5 | X40: 0.9549 | Y40: 706.9 | Z40: 0 | AA40: 0 | AB40: 1046.7 | AC40: 859.4 | AD40: 756.3 | AE40: 688.2 | AF40: 647 | AG40: 619.3 | AH40: 595.4 | AI40: 1006.8 | AJ40: 829.5 | AK40: 734.5 | AL40: 679 | AM40: 646.2 | AN40: 625.2 | AO40: 605 | AP40: 891 | AQ40: 720.6 | AR40: 629.3 | AS40: 576.3 | AT40: 544.1 | AU40: 523.7 | AV40: 500.7 | AW40: 956 | AX40: 767 | AY40: 663.7 | AZ40: 602.5 | BA40: 564.3 | BB40: 539.6 | BC40: 510.7 | BD40: 1041.5 | BE40: 807.4 | BF40: 678 | BG40: 596.6 | BH40: 553.1 | BI40: 521.3 | BJ40: 476.3 | BK40: 43.3 | BL40: 41.4 | BM40: 41.7 | BN40: 43.1 | BO40: 42.7 | BP40: 42.3 | BQ40: 42.2 | BR40: 146.3 | BS40: 150.8 | BT40: 150.6 | BU40: 154.7 | BV40: 169.7 | BW40: 180 | BX40: 180 | BY40: 1099 | BZ40: 922.7 | CA40: 834.4 | CB40: 782.1 | CC40: 754.7 | CD40: 740.1 | CE40: 733.1 | CF40: 720.8 | CG40: 616.7 | CH40: 552 | CI40: 520.7 | CJ40: 507.2 | CK40: 500.9 | CL40: 496.4 | CM40: 684.4 | CN40: 585.7 | CO40: 527.7 | CP40: 503 | CQ40: 490.6 | CR40: 484.6 | CS40: 479.9 | CT40: 658.4 | CU40: 561.5 | CV40: 510.9 | CW40: 489.5 | CX40: 476.8 | CY40: 467.6 | CZ40: 457.8 | DA40: 664.2 | DB40: 565.5 | DC40: 510 | DD40: 486.2 | DE40: 471.7 | DF40: 460.4 | DG40: 442.3 | DH40: 661.1 | DI40: 545.9 | DJ40: 493.7 | DK40: 471 | DL40: 459.1 | DM40: 451.3 | DN40: 437.8 | DO40: 675 | DP40: 556.9 | DQ40: 497.2 | DR40: 471.6 | DS40: 453.2 | DT40: 438.3 | DU40: 422.9 | DV40: 734.6 | DW40: 603.6 | DX40: 521.8 | DY40: 484.8 | DZ40: 463.6 | EA40: 445.2 | EB40: 412.3 | EC40: 861.2 | ED40: 689.2 | EE40: 587.5 | EF40: 520.1 | EG40: 485.4 | EH40: 465.4 | EI40: 431 | EJ40: 994.5 | EK40: 796 | EL40: 678.2 | EM40: 594.2 | EN40: 539.3 | EO40: 498.6 | EP40: 457.6 | EQ40: 0.9085 | ER40: 1.1746 | ES40: 1.3132 | ET40: 0.7083 | EU40: 0.9443 | EV40: 1.0935 | EW40: 0 | EX40: 0 | EY40: 0 | EZ40: 0 | FA40: 0.9517 | FB40: 0 | FC40: 0 | FD40: 630.5 | FE40: ARG00006604 | FF40: 8.786 | FG40: 11913 | FH40: 35.8 | FI40: 37.7 | FJ40: 54.4 | FK40: 134.6 | FL40: 0 | FM40: 743 | FN40: 574.7 | FO40: 514 | FP40: 953 | FQ40: 714.8 | FR40: 617.3 | FS40: 664.7 | FT40: 0.9026 | FU40: 684.7 | FV40: 0.8763 | FW40: 0 | FX40: 0
B41: ARG340701 | C41: BWANA | D41: ARG-3407 | E41: BWANA | F41: HOLLAND 44 | G41: AST, DEL ESTUARIO | H41: RON HOLLAND | I41: 1990 | L41: CLUB | M41: C | N41: 770 | O41: 08 02 2018 20:07:18 | P41: 13.4 | Q41: 10.959 | R41: 2.335 | S41: 4.08 | T41: 10962 | U41: 122.6 | V41: 0.24 | W41: 602.3 | X41: 1.0363 | Y41: 651.4 | Z41: 0 | AA41: 0 | AB41: 975.3 | AC41: 798.7 | AD41: 694.7 | AE41: 631.4 | AF41: 594.3 | AG41: 569 | AH41: 546.1 | AI41: 930 | AJ41: 763.1 | AK41: 670.6 | AL41: 618.8 | AM41: 589.5 | AN41: 570.5 | AO41: 550.4 | AP41: 827.9 | AQ41: 669.3 | AR41: 584.4 | AS41: 535.3 | AT41: 505.3 | AU41: 486 | AV41: 463 | AW41: 875.4 | AX41: 703.4 | AY41: 609.9 | AZ41: 554.9 | BA41: 520.9 | BB41: 498.8 | BC41: 472.1 | BD41: 974.1 | BE41: 750.9 | BF41: 626.1 | BG41: 552.4 | BH41: 514.5 | BI41: 486.2 | BJ41: 443.8 | BK41: 42.6 | BL41: 41.2 | BM41: 41.5 | BN41: 40.6 | BO41: 39.3 | BP41: 38.7 | BQ41: 38.8 | BR41: 145.3 | BS41: 149.8 | BT41: 150.4 | BU41: 154.6 | BV41: 167.7 | BW41: 180 | BX41: 180 | BY41: 987 | BZ41: 828.7 | CA41: 736.9 | CB41: 690.8 | CC41: 668.1 | CD41: 656.5 | CE41: 650.6 | CF41: 652.5 | CG41: 553.5 | CH41: 500.8 | CI41: 481.1 | CJ41: 472.3 | CK41: 467.6 | CL41: 463.8 | CM41: 621.4 | CN41: 528.1 | CO41: 487.4 | CP41: 470.4 | CQ41: 461 | CR41: 455.9 | CS41: 451.5 | CT41: 599.1 | CU41: 512.4 | CV41: 478.1 | CW41: 461.6 | CX41: 449.9 | CY41: 440.8 | CZ41: 431 | DA41: 604.9 | DB41: 514.9 | DC41: 477.2 | DD41: 457.9 | DE41: 445.3 | DF41: 433.7 | DG41: 414.3 | DH41: 631.3 | DI41: 519.3 | DJ41: 471.8 | DK41: 450 | DL41: 433.1 | DM41: 418.7 | DN41: 401.4 | DO41: 646.6 | DP41: 531.4 | DQ41: 477 | DR41: 452.6 | DS41: 433.7 | DT41: 416 | DU41: 389.5 | DV41: 708.3 | DW41: 578.6 | DX41: 500.8 | DY41: 466.9 | DZ41: 446.6 | EA41: 428 | EB41: 392.6 | EC41: 834.5 | ED41: 665.6 | EE41: 565.1 | EF41: 500.6 | EG41: 468.2 | EH41: 448.9 | EI41: 414.3 | EJ41: 963.6 | EK41: 768.6 | EL41: 652.5 | EM41: 572 | EN41: 520.4 | EO41: 481.5 | EP41: 441.7 | EQ41: 0.9784 | ER41: 1.2647 | ES41: 1.4152 | ET41: 0.761 | EU41: 1.0272 | EV41: 1.191 | EW41: 0 | EX41: 0 | EY41: 0 | EZ41: 0 | FA41: 1.0248 | FB41: 0 | FC41: 0 | FD41: 585.5 | FE41: ARG00006605 | FF41: 10.152 | FG41: 12005 | FH41: 36.7 | FI41: 47.7 | FJ41: 67.3 | FK41: 140.4 | FL41: 125.4 | FM41: 689.9 | FN41: 533.7 | FO41: 477 | FP41: 887 | FQ41: 657.1 | FR41: 566.8 | FS41: 611.8 | FT41: 0.9807 | FU41: 629.2 | FV41: 0.9536 | FW41: 0 | FX41: 0
B42: ARG27602 | C42: URU276i | D42: URU-276 | E42: LADY MARILINE | F42: DUFOUR 40 | G42: DUFOUR | H42: FELCI | I42: 2002 | J42: MONTEVIDEO | L42: INTL | M42: C | N42: 700 | O42: 20 02 2018 17:32:54 | P42: 12.06 | Q42: 10.835 | R42: 2.162 | S42: 3.89 | T42: 7849 | U42: 126.8 | V42: 0.3 | W42: 618.1 | X42: 1.0066 | Y42: 670.6 | Z42: 0 | AA42: 0 | AB42: 1035.7 | AC42: 836.5 | AD42: 720.1 | AE42: 646.5 | AF42: 605.9 | AG42: 579.6 | AH42: 557.1 | AI42: 986.6 | AJ42: 800.1 | AK42: 694.6 | AL42: 633.6 | AM42: 600.7 | AN42: 581 | AO42: 561.8 | AP42: 861.8 | AQ42: 691.5 | AR42: 599 | AS42: 544.8 | AT42: 511.6 | AU42: 490.3 | AV42: 465.3 | AW42: 911.7 | AX42: 726.8 | AY42: 625.3 | AZ42: 565.1 | BA42: 527.8 | BB42: 503.8 | BC42: 475.3 | BD42: 1033 | BE42: 784.5 | BF42: 645.4 | BG42: 561.7 | BH42: 520.4 | BI42: 489.7 | BJ42: 441.9 | BK42: 43.4 | BL42: 41.9 | BM42: 41.7 | BN42: 40.8 | BO42: 39.9 | BP42: 40 | BQ42: 40.4 | BR42: 145 | BS42: 149.6 | BT42: 151.1 | BU42: 154.5 | BV42: 167.3 | BW42: 180 | BX42: 180 | BY42: 1062.5 | BZ42: 877.6 | CA42: 769.6 | CB42: 707.9 | CC42: 683.5 | CD42: 673.1 | CE42: 672.2 | CF42: 692.7 | CG42: 580.3 | CH42: 515.1 | CI42: 487.4 | CJ42: 475.6 | CK42: 470.9 | CL42: 468 | CM42: 654.4 | CN42: 550.4 | CO42: 496.7 | CP42: 474.6 | CQ42: 463 | CR42: 457.4 | CS42: 453.5 | CT42: 625.7 | CU42: 528.4 | CV42: 484.5 | CW42: 464 | CX42: 450.4 | CY42: 439.9 | CZ42: 429 | DA42: 631 | DB42: 526.2 | DC42: 476.4 | DD42: 454.9 | DE42: 444.8 | DF42: 431.7 | DG42: 408.5 | DH42: 636.9 | DI42: 522.4 | DJ42: 472.9 | DK42: 448.9 | DL42: 428.7 | DM42: 410.4 | DN42: 390.6 | DO42: 658.2 | DP42: 539.7 | DQ42: 481.1 | DR42: 454.4 | DS42: 433.3 | DT42: 412.6 | DU42: 376.5 | DV42: 734.2 | DW42: 596.1 | DX42: 512.4 | DY42: 472.4 | DZ42: 449.7 | EA42: 429 | EB42: 388.8 | EC42: 873.7 | ED42: 688.9 | EE42: 581 | EF42: 511.5 | EG42: 473.4 | EH42: 451.7 | EI42: 412.9 | EJ42: 1008.8 | EK42: 795.4 | EL42: 670.7 | EM42: 585.2 | EN42: 528.4 | EO42: 486.1 | EP42: 442.1 | EQ42: 0.9359 | ER42: 1.2404 | ES42: 1.4053 | ET42: 0.7211 | EU42: 0.9974 | EV42: 1.1683 | EW42: 0 | EX42: 0 | EY42: 0 | EZ42: 0 | FA42: 1.001 | FB42: 0 | FC42: 0 | FD42: 599.4 | FE42: ARG00006615 | FF42: 9.867 | FG42: 8890 | FH42: 32.9 | FI42: 46.5 | FJ42: 41.6 | FK42: 96.1 | FL42: 95.5 | FM42: 721.2 | FN42: 544.2 | FO42: 480.3 | FP42: 936.1 | FQ42: 676.8 | FR42: 577.8 | FS42: 625.3 | FT42: 0.9595 | FU42: 645.9 | FV42: 0.9289 | FW42: 0 | FX42: 0
B43: ARG418503 | C43: ARG4185 | D43: ARG-4185 | E43: BIG MATCH | F43: MATCH 42 | G43: AST, SPEEDCRAFT | H43: GERMAN FRERS | I43: 1995 | L43: CLUB | M43: C | N43: 804 | O43: 23 02 2018 11:46:50 | P43: 12.64 | Q43: 11.523 | R43: 1.964 | S43: 3.56 | T43: 5917 | U43: 126.1 | V43: 0.09 | W43: 565.2 | X43: 1.0961 | Y43: 615.8 | Z43: 0 | AA43: 0 | AB43: 936.1 | AC43: 752.2 | AD43: 647.1 | AE43: 594.1 | AF43: 564.5 | AG43: 543.2 | AH43: 510.7 | AI43: 892.6 | AJ43: 718.4 | AK43: 627.9 | AL43: 582.7 | AM43: 556.9 | AN43: 537.7 | AO43: 503.5 | AP43: 782.9 | AQ43: 629.8 | AR43: 548 | AS43: 500.6 | AT43: 471 | AU43: 450.6 | AV43: 421.5 | AW43: 846.1 | AX43: 674.6 | AY43: 581.2 | AZ43: 526.1 | BA43: 491.5 | BB43: 467.9 | BC43: 435.5 | BD43: 932.9 | BE43: 705.9 | BF43: 583.8 | BG43: 518.2 | BH43: 482 | BI43: 452.4 | BJ43: 403.2 | BK43: 43.5 | BL43: 42.4 | BM43: 41.1 | BN43: 39.6 | BO43: 39.2 | BP43: 38.9 | BQ43: 38.6 | BR43: 142.5 | BS43: 146.1 | BT43: 148.4 | BU43: 154.9 | BV43: 164.3 | BW43: 180 | BX43: 180 | BY43: 967.4 | BZ43: 787 | CA43: 693.1 | CB43: 658 | CC43: 642.4 | CD43: 634.6 | CE43: 619.3 | CF43: 629.1 | CG43: 518.3 | CH43: 473.1 | CI43: 458.4 | CJ43: 452 | CK43: 448.7 | CL43: 441 | CM43: 592.4 | CN43: 494.6 | CO43: 459.6 | CP43: 445.3 | CQ43: 438.4 | CR43: 434.3 | CS43: 427.4 | CT43: 565.1 | CU43: 479.8 | CV43: 449.2 | CW43: 431.6 | CX43: 417.7 | CY43: 409.3 | CZ43: 401.2 | DA43: 572.2 | DB43: 482.3 | DC43: 448.9 | DD43: 427.8 | DE43: 408.2 | DF43: 391.2 | DG43: 370.4 | DH43: 582.8 | DI43: 476.7 | DJ43: 439 | DK43: 414.6 | DL43: 398.7 | DM43: 383.4 | DN43: 357.7 | DO43: 597.5 | DP43: 485.1 | DQ43: 442.3 | DR43: 413.5 | DS43: 385.9 | DT43: 367.1 | DU43: 338.7 | DV43: 661.1 | DW43: 528.2 | DX43: 462.6 | DY43: 432.2 | DZ43: 403.1 | EA43: 373.5 | EB43: 314.7 | EC43: 783.5 | ED43: 621.2 | EE43: 520.6 | EF43: 464.1 | EG43: 435.2 | EH43: 408.9 | EI43: 354.9 | EJ43: 904.7 | EK43: 717.3 | EL43: 601.1 | EM43: 530.3 | EN43: 486.5 | EO43: 451.8 | EP43: 402.2 | EQ43: 1.0361 | ER43: 1.3516 | ES43: 1.5275 | ET43: 0.7996 | EU43: 1.093 | EV43: 1.2585 | EW43: 0 | EX43: 0 | EY43: 0 | EZ43: 0 | FA43: 1.0936 | FB43: 0 | FC43: 0 | FD43: 548.7 | FE43: ARG00006619 | FF43: 10.912 | FG43: 7010 | FH43: 30.8 | FI43: 48 | FJ43: 40.6 | FK43: 121.6 | FL43: 0 | FM43: 651.5 | FN43: 499.4 | FO43: 441.9 | FP43: 844.2 | FQ43: 617.6 | FR43: 536.4 | FS43: 583.6 | FT43: 1.0281 | FU43: 600.3 | FV43: 0.9995 | FW43: 0 | FX43: 0
B44: ARG566401 | C44: 2ARG5664 | D44: ARG-5664 | E44: BRIBON | F44: MALBEC 410 | G44: OCEANTECH | H44: GERMAN FRERS | I44: 2008 | L44: CLUB | M44: C | N44: 170 | O44: 28 02 2018 19:01:40 | P44: 11.99 | Q44: 11.593 | R44: 1.944 | S44: 3.39 | T44: 9207 | U44: 130.7 | V44: 0.25 | W44: 607.8 | X44: 1.0188 | Y44: 662.5 | Z44: 0 | AA44: 0 | AB44: 992.3 | AC44: 806.8 | AD44: 706.1 | AE44: 644.1 | AF44: 606.1 | AG44: 580.6 | AH44: 551.2 | AI44: 947.9 | AJ44: 775 | AK44: 683.6 | AL44: 632.5 | AM44: 603.1 | AN44: 583.8 | AO44: 554.9 | AP44: 836 | AQ44: 675.5 | AR44: 589.7 | AS44: 540.2 | AT44: 509.9 | AU44: 490.2 | AV44: 465.4 | AW44: 892.3 | AX44: 714.9 | AY44: 618.5 | AZ44: 561.8 | BA44: 526.7 | BB44: 503.6 | BC44: 474.4 | BD44: 988.9 | BE44: 757.6 | BF44: 633.7 | BG44: 559.2 | BH44: 519.5 | BI44: 490 | BJ44: 445.4 | BK44: 43.8 | BL44: 41.5 | BM44: 41.4 | BN44: 41.5 | BO44: 40.8 | BP44: 40.3 | BQ44: 39.7 | BR44: 144.1 | BS44: 149.4 | BT44: 151.6 | BU44: 154.7 | BV44: 168.5 | BW44: 180 | BX44: 180 | BY44: 1025.8 | BZ44: 851.2 | CA44: 763.7 | CB44: 718.2 | CC44: 695.8 | CD44: 684.9 | CE44: 667.2 | CF44: 668.3 | CG44: 567.3 | CH44: 510.4 | CI44: 486.5 | CJ44: 477.5 | CK44: 473 | CL44: 466.9 | CM44: 632.4 | CN44: 539.2 | CO44: 490.9 | CP44: 471.2 | CQ44: 462.9 | CR44: 458.8 | CS44: 455.5 | CT44: 605.8 | CU44: 517.8 | CV44: 477.3 | CW44: 459.1 | CX44: 448.3 | CY44: 441.4 | CZ44: 435.5 | DA44: 611.1 | DB44: 521 | DC44: 475.4 | DD44: 456.6 | DE44: 443.2 | DF44: 432.1 | DG44: 414.9 | DH44: 617.3 | DI44: 511.5 | DJ44: 465.8 | DK44: 444.8 | DL44: 431.8 | DM44: 422.5 | DN44: 407.2 | DO44: 633.7 | DP44: 524.2 | DQ44: 471 | DR44: 447.1 | DS44: 428.7 | DT44: 411.1 | DU44: 390.5 | DV44: 698.7 | DW44: 572.8 | DX44: 497.9 | DY44: 462.4 | DZ44: 441.9 | EA44: 422.9 | EB44: 383.4 | EC44: 830.3 | ED44: 660.2 | EE44: 561.9 | EF44: 498.7 | EG44: 463.8 | EH44: 443.9 | EI44: 407 | EJ44: 958.8 | EK44: 762.3 | EL44: 648.5 | EM44: 570 | EN44: 516.5 | EO44: 476.3 | EP44: 435.3 | EQ44: 0.9695 | ER44: 1.2537 | ES44: 1.4028 | ET44: 0.7504 | EU44: 1.0092 | EV44: 1.172 | EW44: 0 | EX44: 0 | EY44: 0 | EZ44: 0 | FA44: 1.0144 | FB44: 0 | FC44: 0 | FD44: 591.5 | FE44: ARG00006622 | FF44: 10.12 | FG44: 10362 | FH44: 36.1 | FI44: 52.2 | FJ44: 42.5 | FK44: 114.5 | FL44: 0 | FM44: 696.2 | FN44: 538.4 | FO44: 481.2 | FP44: 899.5 | FQ44: 668.8 | FR44: 575.9 | FS44: 620.4 | FT44: 0.9671 | FU44: 638.4 | FV44: 0.9398 | FW44: 0 | FX44: 0
B45: ARG476101 | C45: AHOI | D45: ARG-4761 | E45: AHOI | F45: ROY 32 | G45: AST, NAUTIVELA | H45: GERMAN FRERS | I45: 1983 | L45: CLUB | M45: C | N45: 509 | O45: 02 03 2018 17:03:02 | P45: 9.7 | Q45: 8.018 | R45: 1.617 | S45: 3.19 | T45: 4894 | U45: 112.8 | V45: 0.41 | W45: 698.4 | X45: 0.8924 | Y45: 756.4 | Z45: 0 | AA45: 0 | AB45: 1113.6 | AC45: 921.2 | AD45: 803.4 | AE45: 731.6 | AF45: 689.8 | AG45: 667.1 | AH45: 646.7 | AI45: 1072.2 | AJ45: 887.3 | AK45: 783.2 | AL45: 724.3 | AM45: 692.1 | AN45: 673.1 | AO45: 655.5 | AP45: 954.9 | AQ45: 774.3 | AR45: 677.9 | AS45: 622.5 | AT45: 589.1 | AU45: 568.1 | AV45: 544.1 | AW45: 1010.7 | AX45: 814 | AY45: 707.7 | AZ45: 645.5 | BA45: 607.5 | BB45: 583.5 | BC45: 555.5 | BD45: 1108.9 | BE45: 865.7 | BF45: 724.8 | BG45: 642.2 | BH45: 599.7 | BI45: 567.7 | BJ45: 518.5 | BK45: 42.5 | BL45: 41.5 | BM45: 42.3 | BN45: 41.4 | BO45: 40.8 | BP45: 40.4 | BQ45: 41.1 | BR45: 147.8 | BS45: 151.9 | BT45: 151.7 | BU45: 159.4 | BV45: 180 | BW45: 180 | BX45: 180 | BY45: 1161.2 | BZ45: 985.8 | CA45: 877.9 | CB45: 821.4 | CC45: 798.8 | CD45: 788.1 | CE45: 790.5 | CF45: 768.4 | CG45: 655.7 | CH45: 590.6 | CI45: 565.3 | CJ45: 554.4 | CK45: 549.4 | CL45: 547.1 | CM45: 732.3 | CN45: 623.7 | CO45: 572.7 | CP45: 551.4 | CQ45: 539.6 | CR45: 533.8 | CS45: 530.2 | CT45: 706 | CU45: 603 | CV45: 560.7 | CW45: 539.7 | CX45: 525.3 | CY45: 514 | CZ45: 502.7 | DA45: 712.5 | DB45: 605.9 | DC45: 554.2 | DD45: 533.8 | DE45: 520.5 | DF45: 505.6 | DG45: 482.5 | DH45: 714.7 | DI45: 592.2 | DJ45: 544.4 | DK45: 519.1 | DL45: 498.2 | DM45: 483.2 | DN45: 467.8 | DO45: 731.7 | DP45: 603.9 | DQ45: 549.6 | DR45: 522.3 | DS45: 498.8 | DT45: 477.9 | DU45: 451 | DV45: 794.1 | DW45: 654.9 | DX45: 572.3 | DY45: 538 | DZ45: 514.2 | EA45: 491.2 | EB45: 451.8 | EC45: 923.2 | ED45: 742.3 | EE45: 632.7 | EF45: 567.3 | EG45: 537.3 | EH45: 515.3 | EI45: 473.9 | EJ45: 1066 | EK45: 856.5 | EL45: 728.9 | EM45: 641.7 | EN45: 580.8 | EO45: 546.1 | EP45: 503 | EQ45: 0.8483 | ER45: 1.0888 | ES45: 1.2096 | ET45: 0.6635 | EU45: 0.8871 | EV45: 1.0148 | EW45: 0 | EX45: 0 | EY45: 0 | EZ45: 0 | FA45: 0.883 | FB45: 0 | FC45: 0 | FD45: 679.5 | FE45: ARG00006625 | FF45: 7.313 | FG45: 5567 | FH45: 21.9 | FI45: 23.4 | FJ45: 35.9 | FK45: 76.4 | FL45: 0 | FM45: 795.7 | FN45: 619.9 | FO45: 558 | FP45: 1017.3 | FQ45: 760.9 | FR45: 665.2 | FS45: 708 | FT45: 0.8474 | FU45: 729.8 | FV45: 0.8221 | FW45: 0 | FX45: 0
B46: ARG563201 | C46: ARG5632o | D46: ARG-5632 | E46: BAGUAL | F46: MAXI 33 | G46: NOVATECNIA | H46: S, MAZZA CAMPOS | I46: 2009 | L46: CLUB | M46: C | N46: 582 | O46: 02 03 2018 17:03:12 | P46: 9.97 | Q46: 9.178 | R46: 1.647 | S46: 3.32 | T46: 4116 | U46: 116.9 | V46: 0.19 | W46: 650.5 | X46: 0.9556 | Y46: 706.4 | Z46: 0 | AA46: 0 | AB46: 1078.3 | AC46: 871.7 | AD46: 751.2 | AE46: 679.1 | AF46: 641 | AG46: 619.5 | AH46: 594.1 | AI46: 1033.3 | AJ46: 838.3 | AK46: 731.1 | AL46: 671.3 | AM46: 639.8 | AN46: 621.1 | AO46: 596.2 | AP46: 902.3 | AQ46: 725.8 | AR46: 630.7 | AS46: 575.3 | AT46: 541.4 | AU46: 519.3 | AV46: 491.3 | AW46: 963 | AX46: 768.9 | AY46: 663.1 | AZ46: 600.8 | BA46: 562.5 | BB46: 537.9 | BC46: 508.1 | BD46: 1072.3 | BE46: 817 | BF46: 675.8 | BG46: 593.6 | BH46: 552 | BI46: 519.4 | BJ46: 465.7 | BK46: 44 | BL46: 42.8 | BM46: 42.2 | BN46: 40.9 | BO46: 40.2 | BP46: 40.8 | BQ46: 41 | BR46: 145.6 | BS46: 149.6 | BT46: 150.7 | BU46: 157.6 | BV46: 180 | BW46: 180 | BX46: 180 | BY46: 1137.4 | BZ46: 937.1 | CA46: 822.9 | CB46: 760.8 | CC46: 739.8 | CD46: 732.7 | CE46: 730.3 | CF46: 736.6 | CG46: 615.8 | CH46: 551 | CI46: 523.7 | CJ46: 512.8 | CK46: 508.5 | CL46: 506.5 | CM46: 693.4 | CN46: 583.6 | CO46: 532.2 | CP46: 509.8 | CQ46: 497.7 | CR46: 492.5 | CS46: 490.1 | CT46: 661.1 | CU46: 561.3 | CV46: 519.3 | CW46: 497.5 | CX46: 481.5 | CY46: 468.5 | CZ46: 457.7 | DA46: 666 | DB46: 556.1 | DC46: 509.3 | DD46: 488.9 | DE46: 475.5 | DF46: 456.8 | DG46: 429 | DH46: 659.5 | DI46: 544.8 | DJ46: 500.3 | DK46: 472.7 | DL46: 447.6 | DM46: 429.6 | DN46: 407.2 | DO46: 676.3 | DP46: 555.8 | DQ46: 505.8 | DR46: 476.8 | DS46: 448.6 | DT46: 423.4 | DU46: 385.4 | DV46: 743.3 | DW46: 602.9 | DX46: 528.5 | DY46: 495.1 | DZ46: 468.4 | EA46: 441.3 | EB46: 389.3 | EC46: 882.6 | ED46: 698.2 | EE46: 588.9 | EF46: 525.7 | EG46: 495.3 | EH46: 470.6 | EI46: 421.7 | EJ46: 1019.1 | EK46: 806.2 | EL46: 679.5 | EM46: 597.3 | EN46: 542.1 | EO46: 506.3 | EP46: 458 | EQ46: 0.8965 | ER46: 1.1759 | ES46: 1.3259 | ET46: 0.6923 | EU46: 0.9512 | EV46: 1.097 | EW46: 0 | EX46: 0 | EY46: 0 | EZ46: 0 | FA46: 0.951 | FB46: 0 | FC46: 0 | FD46: 630.9 | FE46: ARG00006627 | FF46: 8.441 | FG46: 4891 | FH46: 23.1 | FI46: 31.6 | FJ46: 28.7 | FK46: 77.2 | FL46: 0 | FM46: 752.9 | FN46: 574 | FO46: 509.1 | FP46: 975 | FQ46: 709.6 | FR46: 615.3 | FS46: 662.9 | FT46: 0.9052 | FU46: 684.9 | FV46: 0.876 | FW46: 0 | FX46: 0
B47: ARG556002 | C47: ARG5560 | D47: ARG-5560 | E47: FAROLERO | F47: REGGE 35 | G47: AST, REGGE | H47: REGGE HNOS, | I47: 1975 | L47: CLUB | M47: C | N47: 591 | O47: 02 03 2018 17:03:22 | P47: 10.7 | Q47: 9.292 | R47: 1.388 | S47: 3.2 | T47: 6020 | U47: 122.5 | V47: 0.45 | W47: 723.1 | X47: 0.8549 | Y47: 789.6 | Z47: 0 | AA47: 0 | AB47: 1244.8 | AC47: 994.6 | AD47: 858.7 | AE47: 766.5 | AF47: 707.3 | AG47: 669.5 | AH47: 637.5 | AI47: 1200.6 | AJ47: 966.1 | AK47: 836.3 | AL47: 755.7 | AM47: 706.5 | AN47: 676.7 | AO47: 647.4 | AP47: 1022.6 | AQ47: 814.7 | AR47: 700.1 | AS47: 631.4 | AT47: 588.5 | AU47: 560.8 | AV47: 528.9 | AW47: 1072.5 | AX47: 850 | AY47: 726.2 | AZ47: 651.4 | BA47: 604.3 | BB47: 573.7 | BC47: 538.2 | BD47: 1234.7 | BE47: 929.7 | BF47: 763 | BG47: 655.2 | BH47: 596.5 | BI47: 556.8 | BJ47: 498.9 | BK47: 46.8 | BL47: 45.3 | BM47: 45 | BN47: 45.5 | BO47: 45.2 | BP47: 44.5 | BQ47: 43.9 | BR47: 147.3 | BS47: 150.5 | BT47: 153.1 | BU47: 154.5 | BV47: 169.5 | BW47: 180 | BX47: 180 | BY47: 1345.6 | BZ47: 1097.4 | CA47: 966.7 | CB47: 878.4 | CC47: 829 | CD47: 803.2 | CE47: 786.8 | CF47: 850.7 | CG47: 704.5 | CH47: 620.9 | CI47: 565.1 | CJ47: 540.7 | CK47: 530.4 | CL47: 523.6 | CM47: 789.1 | CN47: 660.2 | CO47: 580.7 | CP47: 538.7 | CQ47: 520 | CR47: 511.2 | CS47: 504.7 | CT47: 743.6 | CU47: 624.3 | CV47: 552.8 | CW47: 521 | CX47: 503.8 | CY47: 492.3 | CZ47: 479.9 | DA47: 745.5 | DB47: 623.2 | DC47: 545.1 | DD47: 510.6 | DE47: 494.1 | DF47: 483.7 | DG47: 460.8 | DH47: 747.9 | DI47: 609.3 | DJ47: 533.2 | DK47: 501.3 | DL47: 480.5 | DM47: 462 | DN47: 436.8 | DO47: 767.8 | DP47: 623.9 | DQ47: 541 | DR47: 505.5 | DS47: 483.9 | DT47: 464.2 | DU47: 427.7 | DV47: 846 | DW47: 680.1 | DX47: 579.8 | DY47: 525.3 | DZ47: 498.7 | EA47: 478.5 | EB47: 438.7 | EC47: 990.6 | ED47: 772.5 | EE47: 651.8 | EF47: 572.2 | EG47: 523.9 | EH47: 499.4 | EI47: 461.7 | EJ47: 1143.9 | EK47: 891.9 | EL47: 750.6 | EM47: 654.7 | EN47: 585.6 | EO47: 535.8 | EP47: 488.3 | EQ47: 0.7854 | ER47: 1.0657 | ES47: 1.2325 | ET47: 0.6028 | EU47: 0.8422 | EV47: 1.012 | EW47: 0 | EX47: 0 | EY47: 0 | EZ47: 0 | FA47: 0.8581 | FB47: 0 | FC47: 0 | FD47: 699.2 | FE47: ARG00006629 | FF47: 7.536 | FG47: 6808 | FH47: 28.9 | FI47: 28.5 | FJ47: 36.4 | FK47: 64.7 | FL47: 0 | FM47: 859.4 | FN47: 633.4 | FO47: 547.7 | FP47: 1119.8 | FQ47: 801.5 | FR47: 667 | FS47: 725 | FT47: 0.8276 | FU47: 750.7 | FV47: 0.7993 | FW47: 0 | FX47: 0
B48: ARG80901 | C48: 2ARG809 | D48: ARG-809 | E48: CONFIANZA CIEGA | F48: RG 650 | G48: RIOTECNA | H48: Nicolas Goldenberg | I48: 2011 | L48: CLUB | M48: S | N48: 170 | O48: 03 03 2018 20:06:44 | P48: 6.482 | Q48: 6.497 | R48: 1.582 | S48: 2.97 | T48: 1185 | U48: 63.6 | V48: 0.08 | W48: 702 | X48: 0.8702 | Y48: 775.7 | Z48: 0 | AA48: 0 | AB48: 1070.4 | AC48: 893.4 | AD48: 809.2 | AE48: 762.2 | AF48: 736.5 | AG48: 707.1 | AH48: 655.7 | AI48: 1029.1 | AJ48: 868.4 | AK48: 795.6 | AL48: 757.1 | AM48: 730.5 | AN48: 701.6 | AO48: 668.6 | AP48: 930.4 | AQ48: 768.1 | AR48: 684.2 | AS48: 636 | AT48: 604.6 | AU48: 581 | AV48: 543.8 | AW48: 1051.3 | AX48: 849.1 | AY48: 741.7 | AZ48: 679.9 | BA48: 641.4 | BB48: 615.1 | BC48: 578 | BD48: 1066.2 | BE48: 841.5 | BF48: 732.8 | BG48: 667.1 | BH48: 627.3 | BI48: 586.8 | BJ48: 515.1 | BK48: 43.9 | BL48: 40.5 | BM48: 38.8 | BN48: 38.6 | BO48: 40.1 | BP48: 40.1 | BQ48: 41.1 | BR48: 147.1 | BS48: 151.4 | BT48: 156 | BU48: 180 | BV48: 180 | BW48: 180 | BX48: 141.6 | BY48: 1111.5 | BZ48: 961 | CA48: 905.9 | CB48: 887.6 | CC48: 885.9 | CD48: 868.3 | CE48: 868.2 | CF48: 725.3 | CG48: 652.2 | CH48: 627.3 | CI48: 646.5 | CJ48: 611.1 | CK48: 603.5 | CL48: 597.2 | CM48: 685.7 | CN48: 624.2 | CO48: 606.1 | CP48: 596.2 | CQ48: 590 | CR48: 588.2 | CS48: 573.5 | CT48: 654 | CU48: 599.6 | CV48: 581.6 | CW48: 570.9 | CX48: 555.6 | CY48: 549.2 | CZ48: 532.8 | DA48: 651.9 | DB48: 594.6 | DC48: 560 | DD48: 541.5 | DE48: 526.5 | DF48: 518 | DG48: 497.6 | DH48: 680.5 | DI48: 593.4 | DJ48: 549.4 | DK48: 513.4 | DL48: 486.5 | DM48: 471.5 | DN48: 443.7 | DO48: 694.7 | DP48: 601.8 | DQ48: 548.2 | DR48: 505.1 | DS48: 479.7 | DT48: 450.3 | DU48: 410.8 | DV48: 755.1 | DW48: 634 | DX48: 579.2 | DY48: 530.7 | DZ48: 483.9 | EA48: 433.6 | EB48: 360.3 | EC48: 891.3 | ED48: 715.1 | EE48: 623 | EF48: 573.4 | EG48: 529.5 | EH48: 487.3 | EI48: 383.8 | EJ48: 1029.2 | EK48: 825.8 | EL48: 712.6 | EM48: 636.8 | EN48: 587.1 | EO48: 546 | EP48: 443.2 | EQ48: 0.8803 | ER48: 1.0611 | ES48: 1.1818 | ET48: 0.6875 | EU48: 0.8628 | EV48: 0.971 | EW48: 0 | EX48: 0 | EY48: 0 | EZ48: 0 | FA48: 0.8688 | FB48: 0 | FC48: 0 | FD48: 690.6 | FE48: ARG00006636 | FF48: 6.079 | FG48: 1680 | FH48: 14.5 | FI48: 22.7 | FJ48: 13.5 | FK48: 0 | FL48: 59.3 | FM48: 766.8 | FN48: 636.1 | FO48: 571.2 | FP48: 981.8 | FQ48: 782.3 | FR48: 695.2 | FS48: 741.5 | FT48: 0.8092 | FU48: 764.5 | FV48: 0.7848 | FW48: 0 | FX48: 0
B49: ARG533301 | C49: ARG5665o | D49: ARG-5665 | E49: USHUAIA | F49: CORUM 280 CR | G49: Ast, CORUM | H49: PGYD | I49: 2007 | L49: CLUB | M49: C | N49: 512 | O49: 08 03 2018 16:02:54 | P49: 8.751 | Q49: 8.167 | R49: 1.649 | S49: 3.15 | T49: 3152 | U49: 118 | V49: 0.2 | W49: 679.5 | X49: 0.9228 | Y49: 731.5 | Z49: 0 | AA49: 0 | AB49: 1117.7 | AC49: 906.9 | AD49: 782.4 | AE49: 704 | AF49: 659.8 | AG49: 637.6 | AH49: 610.6 | AI49: 1073.6 | AJ49: 873.8 | AK49: 762.6 | AL49: 697.2 | AM49: 660.5 | AN49: 639.6 | AO49: 612.2 | AP49: 940.9 | AQ49: 757.8 | AR49: 659 | AS49: 601.1 | AT49: 565.3 | AU49: 541.6 | AV49: 511.4 | AW49: 1005.1 | AX49: 803.2 | AY49: 692.8 | AZ49: 627.6 | BA49: 587 | BB49: 560.6 | BC49: 527.7 | BD49: 1111.3 | BE49: 850.5 | BF49: 705.9 | BG49: 619.8 | BH49: 575.5 | BI49: 542.5 | BJ49: 487.4 | BK49: 43.2 | BL49: 41.9 | BM49: 41.7 | BN49: 39.7 | BO49: 38.9 | BP49: 38.5 | BQ49: 38.4 | BR49: 146.5 | BS49: 150.6 | BT49: 152.1 | BU49: 161.1 | BV49: 180 | BW49: 180 | BX49: 180 | BY49: 1181.6 | BZ49: 977.4 | CA49: 858.2 | CB49: 785.6 | CC49: 755.3 | CD49: 744 | CE49: 739.2 | CF49: 773.1 | CG49: 648 | CH49: 580.7 | CI49: 551.5 | CJ49: 537.7 | CK49: 531.8 | CL49: 528.9 | CM49: 731.6 | CN49: 616.3 | CO49: 563.1 | CP49: 539 | CQ49: 524.5 | CR49: 516.2 | CS49: 511.3 | CT49: 700.2 | CU49: 594.5 | CV49: 551 | CW49: 528.2 | CX49: 510.1 | CY49: 495.1 | CZ49: 479.5 | DA49: 692.2 | DB49: 577 | DC49: 534.1 | DD49: 511.9 | DE49: 500.9 | DF49: 485.7 | DG49: 454.8 | DH49: 682.7 | DI49: 569.9 | DJ49: 528.1 | DK49: 499.3 | DL49: 472.4 | DM49: 452 | DN49: 429.9 | DO49: 702.9 | DP49: 581.9 | DQ49: 534.3 | DR49: 505.2 | DS49: 476 | DT49: 449.3 | DU49: 407.1 | DV49: 774.3 | DW49: 630.4 | DX49: 556.6 | DY49: 523.7 | DZ49: 496.4 | EA49: 468.7 | EB49: 416.5 | EC49: 912.6 | ED49: 724.3 | EE49: 613.8 | EF49: 552.7 | EG49: 522.9 | EH49: 497.5 | EI49: 447.5 | EJ49: 1053.8 | EK49: 836.5 | EL49: 706.7 | EM49: 622.5 | EN49: 564.3 | EO49: 531.3 | EP49: 482 | EQ49: 0.8603 | ER49: 1.1241 | ES49: 1.2719 | ET49: 0.6668 | EU49: 0.9171 | EV49: 1.0663 | EW49: 0 | EX49: 0 | EY49: 0 | EZ49: 0 | FA49: 0.9117 | FB49: 0 | FC49: 0 | FD49: 658.1 | FE49: ARG00006642 | FF49: 7.697 | FG49: 3815 | FH49: 19.1 | FI49: 27.4 | FJ49: 20.3 | FK49: 60 | FL49: 0 | FM49: 784.6 | FN49: 600.5 | FO49: 530.7 | FP49: 1012.3 | FQ49: 736 | FR49: 633 | FS49: 690 | FT49: 0.8696 | FU49: 715.4 | FV49: 0.8387 | FW49: 0 | FX49: 0
B50: ARG483701 | C50: ARG4837O | D50: ARG-4837 | E50: BADULAQUE | F50: PND31 | G50: AST, MARCO | H50: G, FRERS | I50: 1994 | L50: CLUB | M50: C | N50: 533 | O50: 08 03 2018 18:58:04 | P50: 9.58 | Q50: 8.917 | R50: 1.652 | S50: 3.3 | T50: 3954 | U50: 122 | V50: 0.2 | W50: 665.1 | X50: 0.9377 | Y50: 719.8 | Z50: 0 | AA50: 0 | AB50: 1086.8 | AC50: 881.7 | AD50: 762.4 | AE50: 694.8 | AF50: 654.5 | AG50: 632.8 | AH50: 612.6 | AI50: 1035.8 | AJ50: 844.5 | AK50: 739.8 | AL50: 684.3 | AM50: 654.5 | AN50: 636.8 | AO50: 617.1 | AP50: 916 | AQ50: 739.4 | AR50: 645.1 | AS50: 590.8 | AT50: 557.9 | AU50: 536.9 | AV50: 511.3 | AW50: 958.9 | AX50: 769.5 | AY50: 667.4 | AZ50: 608.2 | BA50: 572.2 | BB50: 549.3 | BC50: 521.5 | BD50: 1085 | BE50: 828.5 | BF50: 688.1 | BG50: 609.4 | BH50: 568.8 | BI50: 537.7 | BJ50: 485.7 | BK50: 43 | BL50: 41.7 | BM50: 41.5 | BN50: 40.1 | BO50: 39.2 | BP50: 39.1 | BQ50: 39.3 | BR50: 146.5 | BS50: 151 | BT50: 152.9 | BU50: 158.7 | BV50: 180 | BW50: 180 | BX50: 180 | BY50: 1105 | BZ50: 920 | CA50: 812.3 | CB50: 765.9 | CC50: 747.3 | CD50: 740.3 | CE50: 744.8 | CF50: 725.8 | CG50: 610.8 | CH50: 554.9 | CI50: 534.7 | CJ50: 526.8 | CK50: 523 | CL50: 522.3 | CM50: 688.7 | CN50: 582.9 | CO50: 539.8 | CP50: 522 | CQ50: 512.6 | CR50: 508.1 | CS50: 505.9 | CT50: 661.6 | CU50: 565.6 | CV50: 529.3 | CW50: 510.3 | CX50: 496.6 | CY50: 486.1 | CZ50: 476.7 | DA50: 668.1 | DB50: 567.5 | DC50: 524.6 | DD50: 503.1 | DE50: 489.5 | DF50: 473.6 | DG50: 448.9 | DH50: 685.6 | DI50: 566 | DJ50: 520.2 | DK50: 494.1 | DL50: 470.4 | DM50: 448.7 | DN50: 425.3 | DO50: 707.6 | DP50: 580.8 | DQ50: 526.9 | DR50: 500 | DS50: 475.8 | DT50: 451.3 | DU50: 408 | DV50: 783.8 | DW50: 638.7 | DX50: 555 | DY50: 518.6 | DZ50: 494.5 | EA50: 470.1 | EB50: 421.7 | EC50: 925.5 | ED50: 730.6 | EE50: 618.7 | EF50: 549.9 | EG50: 517.6 | EH50: 494.8 | EI50: 449 | EJ50: 1068.6 | EK50: 843.5 | EL50: 712.4 | EM50: 623.8 | EN50: 561.8 | EO50: 525.3 | EP50: 480.3 | EQ50: 0.8846 | ER50: 1.1472 | ES50: 1.2808 | ET50: 0.6858 | EU50: 0.9338 | EV50: 1.0703 | EW50: 0 | EX50: 0 | EY50: 0 | EZ50: 0 | FA50: 0.9284 | FB50: 0 | FC50: 0 | FD50: 646.3 | FE50: ARG00006646 | FF50: 8.26 | FG50: 4723 | FH50: 20.9 | FI50: 29.9 | FJ50: 28.2 | FK50: 56 | FL50: 0 | FM50: 763.1 | FN50: 588.4 | FO50: 527 | FP50: 984.3 | FQ50: 722.9 | FR50: 630.7 | FS50: 667.9 | FT50: 0.8983 | FU50: 688.9 | FV50: 0.871 | FW50: 0 | FX50: 0
B51: ARG405601 | C51: BANZAIo | D51: ARG-4056 | E51: BANZAI | F51: PANDORA 31 | G51: AST, MARCO | H51: GERMAN FRERS | I51: 1994 | L51: CLUB | M51: C | N51: 572 | O51: 08 03 2018 18:58:08 | P51: 9.5 | Q51: 8.833 | R51: 1.922 | S51: 3.29 | T51: 3814 | U51: 122.1 | V51: 0.07 | W51: 646 | X51: 0.9705 | Y51: 695.5 | Z51: 0 | AA51: 0 | AB51: 1045.5 | AC51: 849.5 | AD51: 734.8 | AE51: 671.6 | AF51: 633.8 | AG51: 612.9 | AH51: 588.3 | AI51: 993.4 | AJ51: 810.5 | AK51: 712 | AL51: 660.5 | AM51: 632.1 | AN51: 614 | AO51: 589.4 | AP51: 886.6 | AQ51: 717.2 | AR51: 626.9 | AS51: 574.9 | AT51: 543 | AU51: 522 | AV51: 494.9 | AW51: 932.3 | AX51: 749.4 | AY51: 651 | AZ51: 593.8 | BA51: 558.7 | BB51: 535.7 | BC51: 506.2 | BD51: 1045.1 | BE51: 799.9 | BF51: 666.4 | BG51: 592.9 | BH51: 554.2 | BI51: 523.8 | BJ51: 472.8 | BK51: 41.9 | BL51: 40.9 | BM51: 39.6 | BN51: 38.2 | BO51: 37.2 | BP51: 37.3 | BQ51: 37.1 | BR51: 145.8 | BS51: 150.5 | BT51: 151.9 | BU51: 159.6 | BV51: 180 | BW51: 180 | BX51: 180 | BY51: 1049.9 | BZ51: 874 | CA51: 773.6 | CB51: 731.9 | CC51: 714.9 | CD51: 707.4 | CE51: 704.8 | CF51: 697.8 | CG51: 588.4 | CH51: 542.6 | CI51: 524.8 | CJ51: 517.2 | CK51: 513.3 | CL51: 511.6 | CM51: 665.1 | CN51: 567.7 | CO51: 530.8 | CP51: 514 | CQ51: 504.2 | CR51: 499.3 | CS51: 496 | CT51: 641.8 | CU51: 555 | CV51: 522.4 | CW51: 503.3 | CX51: 488.4 | CY51: 476.7 | CZ51: 466.3 | DA51: 649.7 | DB51: 557.1 | DC51: 517.2 | DD51: 496.6 | DE51: 481.8 | DF51: 464.5 | DG51: 439.2 | DH51: 665.4 | DI51: 553.8 | DJ51: 512.7 | DK51: 486 | DL51: 461 | DM51: 440.6 | DN51: 418.5 | DO51: 687.1 | DP51: 567.2 | DQ51: 519.4 | DR51: 492 | DS51: 465.1 | DT51: 439.7 | DU51: 397.8 | DV51: 760.9 | DW51: 619.4 | DX51: 543.7 | DY51: 510.6 | DZ51: 485.4 | EA51: 459.2 | EB51: 408.7 | EC51: 901.6 | ED51: 714.3 | EE51: 604.1 | EF51: 540.4 | EG51: 510.3 | EH51: 486.6 | EI51: 438.4 | EJ51: 1041.1 | EK51: 824.9 | EL51: 696.1 | EM51: 611.3 | EN51: 552.6 | EO51: 518.4 | EP51: 471.7 | EQ51: 0.9153 | ER51: 1.178 | ES51: 1.3174 | ET51: 0.7124 | EU51: 0.967 | EV51: 1.1086 | EW51: 0 | EX51: 0 | EY51: 0 | EZ51: 0 | FA51: 0.9564 | FB51: 0 | FC51: 0 | FD51: 627.4 | FE51: ARG00006647 | FF51: 8.579 | FG51: 4575 | FH51: 21.3 | FI51: 31.9 | FJ51: 28.5 | FK51: 63.2 | FL51: 0 | FM51: 737.5 | FN51: 573 | FO51: 512.4 | FP51: 947.5 | FQ51: 698 | FR51: 608.9 | FS51: 650.8 | FT51: 0.922 | FU51: 671.6 | FV51: 0.8934 | FW51: 0 | FX51: 0
B52: ARG410702 | C52: ARG4107 | D52: ARG-4107 | E52: COMPLICE | F52: VAN 30 | G52: AST, DEL SUR | H52: NESTOR VOLKER | I52: 1988 | J52: BUENOS AIRES | L52: CLUB | M52: C | N52: 489 | O52: 08 03 2018 18:58:12 | P52: 9.25 | Q52: 7.971 | R52: 1.613 | S52: 3.32 | T52: 3595 | U52: 110.1 | V52: 0.15 | W52: 688.9 | X52: 0.9057 | Y52: 745.3 | Z52: 0 | AA52: 0 | AB52: 1109.9 | AC52: 907.9 | AD52: 788.3 | AE52: 720.5 | AF52: 679.7 | AG52: 657.5 | AH52: 633.6 | AI52: 1065.3 | AJ52: 873.6 | AK52: 768.8 | AL52: 712.3 | AM52: 681.1 | AN52: 661.7 | AO52: 639.5 | AP52: 944.8 | AQ52: 764.7 | AR52: 668.6 | AS52: 613.2 | AT52: 579.6 | AU52: 558 | AV52: 531.5 | AW52: 996.7 | AX52: 801.3 | AY52: 695.9 | AZ52: 634.5 | BA52: 596.9 | BB52: 572.7 | BC52: 543.1 | BD52: 1105.9 | BE52: 853.3 | BF52: 712.6 | BG52: 633.4 | BH52: 591.2 | BI52: 558.6 | BJ52: 506.3 | BK52: 42.9 | BL52: 42 | BM52: 41.9 | BN52: 40.8 | BO52: 40.1 | BP52: 40 | BQ52: 40.2 | BR52: 147.2 | BS52: 150.9 | BT52: 152.2 | BU52: 160.1 | BV52: 180 | BW52: 180 | BX52: 180 | BY52: 1150 | BZ52: 964.4 | CA52: 854.8 | CB52: 804.4 | CC52: 783.3 | CD52: 773.1 | CE52: 771.6 | CF52: 756 | CG52: 639.4 | CH52: 580.6 | CI52: 558.6 | CJ52: 548.6 | CK52: 543.6 | CL52: 540.4 | CM52: 717.7 | CN52: 609.9 | CO52: 564.6 | CP52: 545.2 | CQ52: 533.9 | CR52: 527.8 | CS52: 522.8 | CT52: 689.9 | CU52: 591.5 | CV52: 553.4 | CW52: 532.8 | CX52: 517.8 | CY52: 505.8 | CZ52: 493.3 | DA52: 696.5 | DB52: 593.2 | DC52: 548.5 | DD52: 526.3 | DE52: 511.7 | DF52: 495.1 | DG52: 470.6 | DH52: 707.8 | DI52: 586.5 | DJ52: 540.3 | DK52: 513.2 | DL52: 489.5 | DM52: 470.4 | DN52: 452.1 | DO52: 726.8 | DP52: 598.7 | DQ52: 546 | DR52: 517.5 | DS52: 490.9 | DT52: 467.6 | DU52: 433.2 | DV52: 794.9 | DW52: 648.2 | DX52: 568.7 | DY52: 534.4 | DZ52: 508.7 | EA52: 483.3 | EB52: 438.4 | EC52: 926.5 | ED52: 737.5 | EE52: 627 | EF52: 563.7 | EG52: 533.4 | EH52: 509.6 | EI52: 464 | EJ52: 1069.8 | EK52: 851.5 | EL52: 721.8 | EM52: 636.5 | EN52: 576.1 | EO52: 541.9 | EP52: 495.5 | EQ52: 0.8583 | ER52: 1.1047 | ES52: 1.2321 | ET52: 0.669 | EU52: 0.9018 | EV52: 1.032 | EW52: 0 | EX52: 0 | EY52: 0 | EZ52: 0 | FA52: 0.896 | FB52: 0 | FC52: 0 | FD52: 669.7 | FE52: ARG00006648 | FF52: 7.431 | FG52: 4240 | FH52: 20.1 | FI52: 22.1 | FJ52: 32.9 | FK52: 65.7 | FL52: 0 | FM52: 786.4 | FN52: 611 | FO52: 547.8 | FP52: 1009 | FQ52: 748.5 | FR52: 654.1 | FS52: 696.3 | FT52: 0.8617 | FU52: 717.9 | FV52: 0.8358 | FW52: 0 | FX52: 0
B53: ARG337401 | C53: ARG3374 | D53: ARG-3374 | E53: GRULLA | F53: COBRA 1000 | G53: AST, CESPEDES | H53: GERMAN FRERS | I53: 1988 | L53: CLUB | M53: C | N53: 587 | O53: 08 03 2018 18:58:28 | P53: 9.8 | Q53: 8.731 | R53: 1.893 | S53: 3.49 | T53: 4612 | U53: 110.9 | V53: 0.15 | W53: 656.6 | X53: 0.9563 | Y53: 705.8 | Z53: 0 | AA53: 0 | AB53: 1054.9 | AC53: 863 | AD53: 748.1 | AE53: 682.1 | AF53: 643 | AG53: 620.7 | AH53: 599.6 | AI53: 1007 | AJ53: 825.5 | AK53: 725 | AL53: 670.6 | AM53: 641 | AN53: 622.7 | AO53: 603.4 | AP53: 900.1 | AQ53: 728.7 | AR53: 637.2 | AS53: 584.5 | AT53: 552.5 | AU53: 531.9 | AV53: 507 | AW53: 947.7 | AX53: 762.3 | AY53: 662.3 | AZ53: 604 | BA53: 568.4 | BB53: 545.5 | BC53: 517.5 | BD53: 1053.8 | BE53: 812.6 | BF53: 678.2 | BG53: 602 | BH53: 562.9 | BI53: 533 | BJ53: 485.4 | BK53: 41.9 | BL53: 40.7 | BM53: 40.2 | BN53: 38.6 | BO53: 37.6 | BP53: 37.4 | BQ53: 37.9 | BR53: 146.5 | BS53: 150.7 | BT53: 151.9 | BU53: 158.2 | BV53: 180 | BW53: 180 | BX53: 180 | BY53: 1066.1 | BZ53: 894.6 | CA53: 790.5 | CB53: 742.3 | CC53: 723.5 | CD53: 714.7 | CE53: 715.9 | CF53: 709.6 | CG53: 600.8 | CH53: 550.5 | CI53: 530.7 | CJ53: 522 | CK53: 517.7 | CL53: 515.3 | CM53: 676.9 | CN53: 577.7 | CO53: 538 | CP53: 520.3 | CQ53: 509.7 | CR53: 504.4 | CS53: 500.6 | CT53: 653.6 | CU53: 563.6 | CV53: 529.6 | CW53: 510.6 | CX53: 496.3 | CY53: 484.8 | CZ53: 473.6 | DA53: 661.2 | DB53: 566.1 | DC53: 528.1 | DD53: 506.4 | DE53: 491.7 | DF53: 476 | DG53: 451.9 | DH53: 685.7 | DI53: 567.6 | DJ53: 521.9 | DK53: 496.5 | DL53: 474.1 | DM53: 455 | DN53: 436.6 | DO53: 704.6 | DP53: 580.7 | DQ53: 528 | DR53: 501.2 | DS53: 476.7 | DT53: 453.8 | DU53: 418.9 | DV53: 772.8 | DW53: 630.9 | DX53: 551.6 | DY53: 517.6 | DZ53: 494 | EA53: 470.4 | EB53: 426.7 | EC53: 904 | ED53: 720 | EE53: 612.5 | EF53: 547.8 | EG53: 517.4 | EH53: 495.5 | EI53: 452.3 | EJ53: 1043.8 | EK53: 831.3 | EL53: 705.8 | EM53: 621.9 | EN53: 562.5 | EO53: 526.7 | EP53: 483.3 | EQ53: 0.9009 | ER53: 1.1589 | ES53: 1.2925 | ET53: 0.7039 | EU53: 0.9515 | EV53: 1.0916 | EW53: 0 | EX53: 0 | EY53: 0 | EZ53: 0 | FA53: 0.9413 | FB53: 0 | FC53: 0 | FD53: 637.4 | FE53: ARG00006651 | FF53: 8.412 | FG53: 5394 | FH53: 23.5 | FI53: 26.5 | FJ53: 39.2 | FK53: 75.9 | FL53: 0 | FM53: 749.3 | FN53: 582.4 | FO53: 522.2 | FP53: 958.9 | FQ53: 709.4 | FR53: 618.4 | FS53: 662.3 | FT53: 0.9059 | FU53: 683.2 | FV53: 0.8782 | FW53: 0 | FX53: 0
B54: ARG456302 | C54: ARG4563 | D54: ARG-4563 | E54: HAPPY HOUR | F54: PANDORA 34 | G54: AST, MARCO | H54: N, VOLKER | I54: 1992 | L54: CLUB | M54: C | N54: 620 | O54: 08 03 2018 18:58:32 | P54: 10.43 | Q54: 8.732 | R54: 1.843 | S54: 3.52 | T54: 4826 | U54: 113.5 | V54: 0.05 | W54: 650.5 | X54: 0.9614 | Y54: 702.1 | Z54: 0 | AA54: 0 | AB54: 1042.1 | AC54: 853.5 | AD54: 740.8 | AE54: 678.8 | AF54: 641.5 | AG54: 620.6 | AH54: 601.5 | AI54: 995.8 | AJ54: 817.2 | AK54: 719.6 | AL54: 668.4 | AM54: 640.5 | AN54: 623.3 | AO54: 606.6 | AP54: 889.7 | AQ54: 721 | AR54: 631.3 | AS54: 580 | AT54: 549.1 | AU54: 529.5 | AV54: 506.2 | AW54: 938.5 | AX54: 755.5 | AY54: 657.1 | AZ54: 600 | BA54: 565.3 | BB54: 543.2 | BC54: 516.7 | BD54: 1040.4 | BE54: 803.3 | BF54: 671.3 | BG54: 598.2 | BH54: 559.6 | BI54: 530 | BJ54: 483.2 | BK54: 42.2 | BL54: 41.3 | BM54: 40.8 | BN54: 39.4 | BO54: 38.7 | BP54: 38.5 | BQ54: 39.4 | BR54: 146.5 | BS54: 150.6 | BT54: 151.7 | BU54: 158.5 | BV54: 180 | BW54: 180 | BX54: 180 | BY54: 1058.2 | BZ54: 889.1 | CA54: 788 | CB54: 745.8 | CC54: 728.8 | CD54: 721.6 | CE54: 727.3 | CF54: 702.1 | CG54: 594.2 | CH54: 545.7 | CI54: 527.4 | CJ54: 519.8 | CK54: 516.1 | CL54: 514.6 | CM54: 669 | CN54: 571.1 | CO54: 533 | CP54: 516.1 | CQ54: 506.7 | CR54: 502 | CS54: 498.9 | CT54: 645.7 | CU54: 557.4 | CV54: 524.3 | CW54: 505.6 | CX54: 491.7 | CY54: 481 | CZ54: 471.1 | DA54: 652.9 | DB54: 559.2 | DC54: 522.5 | DD54: 501.9 | DE54: 485.9 | DF54: 470.6 | DG54: 448.3 | DH54: 675.1 | DI54: 559 | DJ54: 515.3 | DK54: 489.9 | DL54: 468.1 | DM54: 450.5 | DN54: 433.5 | DO54: 693.3 | DP54: 571.1 | DQ54: 521 | DR54: 494.1 | DS54: 469.4 | DT54: 447.6 | DU54: 415.9 | DV54: 760 | DW54: 619.8 | DX54: 543.5 | DY54: 510.5 | DZ54: 486.5 | EA54: 462.8 | EB54: 420.4 | EC54: 888.5 | ED54: 708.3 | EE54: 601.9 | EF54: 539.8 | EG54: 510.2 | EH54: 487.9 | EI54: 445 | EJ54: 1025.9 | EK54: 817.9 | EL54: 693.6 | EM54: 611.8 | EN54: 554.2 | EO54: 519.6 | EP54: 475.6 | EQ54: 0.9123 | ER54: 1.1689 | ES54: 1.2978 | ET54: 0.7122 | EU54: 0.9578 | EV54: 1.0911 | EW54: 0 | EX54: 0 | EY54: 0 | EZ54: 0 | FA54: 0.9487 | FB54: 0 | FC54: 0 | FD54: 632.4 | FE54: ARG00006652 | FF54: 8.375 | FG54: 5560 | FH54: 23.7 | FI54: 29 | FJ54: 39.6 | FK54: 80.6 | FL54: 0 | FM54: 739.9 | FN54: 577.5 | FO54: 520.1 | FP54: 947.8 | FQ54: 704.7 | FR54: 618.6 | FS54: 658 | FT54: 0.9119 | FU54: 677.8 | FV54: 0.8852 | FW54: 0 | FX54: 0
B55: ARG521001 | C55: ARG5210 | D55: ARG-5210 | E55: LEJOS 2 | F55: PANDORA 31 | G55: ASTILLERO MARCO | H55: GERMAN FRERS | I55: 1994 | L55: CLUB | M55: C | N55: 588 | O55: 08 03 2018 18:58:42 | P55: 9.5 | Q55: 8.991 | R55: 1.668 | S55: 3.29 | T55: 4344 | U55: 120.1 | V55: 0.32 | W55: 671.1 | X55: 0.9319 | Y55: 724.3 | Z55: 0 | AA55: 0 | AB55: 1100.7 | AC55: 895.2 | AD55: 774.1 | AE55: 698.3 | AF55: 655.6 | AG55: 632 | AH55: 611.7 | AI55: 1050.4 | AJ55: 858.1 | AK55: 749.9 | AL55: 688.3 | AM55: 655.4 | AN55: 636.3 | AO55: 617.1 | AP55: 927 | AQ55: 747.4 | AR55: 650.8 | AS55: 594.8 | AT55: 560.6 | AU55: 538.8 | AV55: 512.5 | AW55: 972.7 | AX55: 779.8 | AY55: 675 | AZ55: 613.6 | BA55: 576.1 | BB55: 552.1 | BC55: 523.6 | BD55: 1098 | BE55: 840.8 | BF55: 697.3 | BG55: 612.5 | BH55: 570.6 | BI55: 539.5 | BJ55: 488.4 | BK55: 42.9 | BL55: 41.4 | BM55: 41.5 | BN55: 40.2 | BO55: 39.1 | BP55: 38.7 | BQ55: 39.2 | BR55: 146.6 | BS55: 151.4 | BT55: 152.5 | BU55: 158.6 | BV55: 180 | BW55: 180 | BX55: 180 | BY55: 1128 | BZ55: 941.3 | CA55: 830 | CB55: 769.4 | CC55: 746.4 | CD55: 736.5 | CE55: 738.7 | CF55: 740.8 | CG55: 625.8 | CH55: 562.4 | CI55: 537.7 | CJ55: 526.9 | CK55: 522.2 | CL55: 519.9 | CM55: 703.2 | CN55: 595.6 | CO55: 545.8 | CP55: 525.2 | CQ55: 513.7 | CR55: 507.9 | CS55: 504.2 | CT55: 675.4 | CU55: 575.5 | CV55: 534.6 | CW55: 514.1 | CX55: 500.1 | CY55: 488.9 | CZ55: 476.5 | DA55: 681.6 | DB55: 575.1 | DC55: 526.3 | DD55: 504.6 | DE55: 491.6 | DF55: 479.5 | DG55: 453.7 | DH55: 688.7 | DI55: 569.9 | DJ55: 522.6 | DK55: 497.6 | DL55: 475 | DM55: 453.9 | DN55: 428.5 | DO55: 710.4 | DP55: 585.3 | DQ55: 529.6 | DR55: 503.3 | DS55: 480.4 | DT55: 456.4 | DU55: 415.1 | DV55: 784.9 | DW55: 642.5 | DX55: 557 | DY55: 520.3 | DZ55: 497.3 | EA55: 474.7 | EB55: 429.2 | EC55: 929.6 | ED55: 735.5 | EE55: 623.3 | EF55: 552.2 | EG55: 519.6 | EH55: 497.9 | EI55: 455.1 | EJ55: 1073.4 | EK55: 849.2 | EL55: 718.1 | EM55: 627.1 | EN55: 564.7 | EO55: 527.5 | EP55: 484.6 | EQ55: 0.8725 | ER55: 1.1382 | ES55: 1.2771 | ET55: 0.6764 | EU55: 0.9256 | EV55: 1.071 | EW55: 0 | EX55: 0 | EY55: 0 | EZ55: 0 | FA55: 0.9212 | FB55: 0 | FC55: 0 | FD55: 651.3 | FE55: ARG00006654 | FF55: 8.262 | FG55: 5130 | FH55: 21.3 | FI55: 29.9 | FJ55: 26.3 | FK55: 58.8 | FL55: 0 | FM55: 773.6 | FN55: 593 | FO55: 528.5 | FP55: 997.9 | FQ55: 729.3 | FR55: 630.3 | FS55: 674.3 | FT55: 0.8898 | FU55: 696.7 | FV55: 0.8612 | FW55: 0 | FX55: 0
B56: ARG470101 | C56: ARG4701O | D56: ARG-4701 | E56: PATAGONIA 3 | F56: BNT367 | G56: AST, BENETEAU | H56: B, FARR | I56: 2001 | L56: CLUB | M56: C | N56: 662 | O56: 08 03 2018 18:59:18 | P56: 10.64 | Q56: 9.644 | R56: 1.829 | S56: 3.46 | T56: 5837 | U56: 121.9 | V56: 0.03 | W56: 627.9 | X56: 0.9921 | Y56: 680.4 | Z56: 0 | AA56: 0 | AB56: 1016.1 | AC56: 830.1 | AD56: 719.6 | AE56: 657.1 | AF56: 620.9 | AG56: 600 | AH56: 579.3 | AI56: 969.4 | AJ56: 794.1 | AK56: 697.9 | AL56: 646.5 | AM56: 619.2 | AN56: 602.5 | AO56: 583.3 | AP56: 860.7 | AQ56: 696.7 | AR56: 609.3 | AS56: 559 | AT56: 528.7 | AU56: 509.3 | AV56: 485.7 | AW56: 905 | AX56: 728 | AY56: 632.7 | AZ56: 577.3 | BA56: 543.6 | BB56: 521.9 | BC56: 495.6 | BD56: 1014.3 | BE56: 780.2 | BF56: 650.2 | BG56: 576.8 | BH56: 539.1 | BI56: 509.9 | BJ56: 462.6 | BK56: 42.8 | BL56: 41.7 | BM56: 41.2 | BN56: 39.8 | BO56: 39 | BP56: 39.2 | BQ56: 39.5 | BR56: 145.5 | BS56: 150.2 | BT56: 151.8 | BU56: 157.7 | BV56: 180 | BW56: 180 | BX56: 180 | BY56: 1034.7 | BZ56: 866 | CA56: 766.4 | CB56: 721.9 | CC56: 705.6 | CD56: 699.4 | CE56: 700.8 | CF56: 680.6 | CG56: 575.5 | CH56: 525.1 | CI56: 505.8 | CJ56: 498.8 | CK56: 495.7 | CL56: 495 | CM56: 645.9 | CN56: 550.7 | CO56: 511.6 | CP56: 494.5 | CQ56: 486.2 | CR56: 482.3 | CS56: 480.1 | CT56: 620 | CU56: 535.1 | CV56: 502.3 | CW56: 484.2 | CX56: 471 | CY56: 461.9 | CZ56: 454.7 | DA56: 624.6 | DB56: 536 | DC56: 499.1 | DD56: 479.3 | DE56: 464.7 | DF56: 449.6 | DG56: 428.3 | DH56: 646.1 | DI56: 536.2 | DJ56: 493.7 | DK56: 469.3 | DL56: 447.4 | DM56: 429.9 | DN56: 410.9 | DO56: 664.5 | DP56: 548.8 | DQ56: 499.8 | DR56: 474.1 | DS56: 450.6 | DT56: 428.1 | DU56: 393.4 | DV56: 732 | DW56: 598 | DX56: 523.7 | DY56: 490.9 | DZ56: 468 | EA56: 445 | EB56: 401.8 | EC56: 863.9 | ED56: 687.7 | EE56: 583.7 | EF56: 521.1 | EG56: 491.1 | EH56: 469.6 | EI56: 427.3 | EJ56: 997.5 | EK56: 794.1 | EL56: 672.9 | EM56: 592.3 | EN56: 536.2 | EO56: 500.6 | EP56: 457.8 | EQ56: 0.9421 | ER56: 1.2123 | ES56: 1.3497 | ET56: 0.7312 | EU56: 0.9878 | EV56: 1.1298 | EW56: 0 | EX56: 0 | EY56: 0 | EZ56: 0 | FA56: 0.9821 | FB56: 0 | FC56: 0 | FD56: 610.9 | FE56: ARG00006660 | FF56: 9.101 | FG56: 6706 | FH56: 26.8 | FI56: 40.2 | FJ56: 40.5 | FK56: 86.7 | FL56: 0 | FM56: 716.5 | FN56: 556.8 | FO56: 500.1 | FP56: 923.1 | FQ56: 683.3 | FR56: 597.5 | FS56: 634.2 | FT56: 0.9461 | FU56: 652.7 | FV56: 0.9193 | FW56: 0 | FX56: 0
B57: ARG575701 | C57: ARG5757 | D57: ARG-5757 | E57: SANDOKAN | F57: FAST 40+ | G57: M BOATS | H57: SOTO ACEBAL | I57: 2017 | L57: INTL | M57: R | N57: 825 | O57: 08 03 2018 18:59:30 | P57: 12.291 | Q57: 12.194 | R57: 2.732 | S57: 3.85 | T57: 4766 | U57: 121.4 | V57: 0 | W57: 506.5 | X57: 1.211 | Y57: 557.4 | Z57: 0 | AA57: 0 | AB57: 817.1 | AC57: 658.5 | AD57: 586.3 | AE57: 550.2 | AF57: 523.5 | AG57: 493.3 | AH57: 452.5 | AI57: 776.9 | AJ57: 632 | AK57: 567.9 | AL57: 533.7 | AM57: 507.4 | AN57: 483.6 | AO57: 460.6 | AP57: 691.3 | AQ57: 561.5 | AR57: 492.5 | AS57: 451.5 | AT57: 424.2 | AU57: 403.8 | AV57: 372.8 | AW57: 758.9 | AX57: 610.3 | AY57: 529.6 | AZ57: 481.2 | BA57: 449.5 | BB57: 427 | BC57: 395.6 | BD57: 815.4 | BE57: 620.2 | BF57: 529.1 | BG57: 474.9 | BH57: 440 | BI57: 405.6 | BJ57: 352.9 | BK57: 43.8 | BL57: 41.3 | BM57: 39.2 | BN57: 38.3 | BO57: 38.2 | BP57: 37.6 | BQ57: 38.1 | BR57: 142.2 | BS57: 141 | BT57: 148.4 | BU57: 152.2 | BV57: 148.4 | BW57: 145.5 | BX57: 143.7 | BY57: 834.2 | BZ57: 686.1 | CA57: 635.5 | CB57: 616.2 | CC57: 603.9 | CD57: 590.1 | CE57: 588.7 | CF57: 544.2 | CG57: 463.1 | CH57: 442.1 | CI57: 433.5 | CJ57: 428.6 | CK57: 420.9 | CL57: 414.2 | CM57: 512.4 | CN57: 447.9 | CO57: 427.3 | CP57: 417.4 | CQ57: 410.7 | CR57: 403.5 | CS57: 390.7 | CT57: 490.1 | CU57: 437.3 | CV57: 408.8 | CW57: 389.3 | CX57: 378.6 | CY57: 371.9 | CZ57: 354.4 | DA57: 495 | DB57: 438.1 | DC57: 405.9 | DD57: 374.6 | DE57: 353.2 | DF57: 341.6 | DG57: 328.6 | DH57: 500.4 | DI57: 431.7 | DJ57: 401.5 | DK57: 377 | DL57: 354.9 | DM57: 335.2 | DN57: 291.2 | DO57: 515.6 | DP57: 434.7 | DQ57: 392.6 | DR57: 365 | DS57: 343.2 | DT57: 322.4 | DU57: 286.4 | DV57: 579.6 | DW57: 459.2 | DX57: 415.2 | DY57: 372.6 | DZ57: 331.6 | EA57: 299.9 | EB57: 263.2 | EC57: 692.8 | ED57: 546.4 | EE57: 465.1 | EF57: 417.1 | EG57: 383.7 | EH57: 343.5 | EI57: 273.9 | EJ57: 800 | EK57: 631 | EL57: 537.1 | EM57: 484.1 | EN57: 443.1 | EO57: 396.6 | EP57: 316.3 | EQ57: 1.1818 | ER57: 1.4893 | ES57: 1.7068 | ET57: 0.9149 | EU57: 1.1956 | EV57: 1.3901 | EW57: 0 | EX57: 0 | EY57: 0 | EZ57: 0 | FA57: 1.2149 | FB57: 0 | FC57: 0 | FD57: 493.9 | FE57: ARG00006662 | FF57: 11.969 | FG57: 5991 | FH57: 32.4 | FI57: 65.2 | FJ57: 44.9 | FK57: 0 | FL57: 197.7 | FM57: 571.2 | FN57: 453.2 | FO57: 395.5 | FP57: 737.8 | FQ57: 564.6 | FR57: 485.6 | FS57: 533.9 | FT57: 1.1238 | FU57: 545.7 | FV57: 1.0995 | FW57: 0 | FX57: 0
B58: ARG307301 | C58: ARG3073 | D58: ARG-3073 | E58: TIMIDO II | F58: RESCH 32 | G58: AST,RESCH Y GONZ, | H58: J, GONZALEZ | I58: 1987 | L58: CLUB | M58: C | N58: 564 | O58: 08 03 2018 18:59:34 | P58: 9.61 | Q58: 8.465 | R58: 1.561 | S58: 3.37 | T58: 3531 | U58: 101.4 | V58: 0.32 | W58: 692.6 | X58: 0.9019 | Y58: 748.4 | Z58: 0 | AA58: 0 | AB58: 1141.9 | AC58: 927.5 | AD58: 804.2 | AE58: 721.9 | AF58: 675.3 | AG58: 650.8 | AH58: 630.1 | AI58: 1093.8 | AJ58: 893 | AK58: 780.3 | AL58: 712.6 | AM58: 675.2 | AN58: 654.5 | AO58: 635.5 | AP58: 960.6 | AQ58: 773.2 | AR58: 671.6 | AS58: 611.9 | AT58: 575.1 | AU58: 551.4 | AV58: 522.8 | AW58: 1010.3 | AX58: 808.5 | AY58: 698.2 | AZ58: 632.9 | BA58: 592.4 | BB58: 566.4 | BC58: 535.5 | BD58: 1137.6 | BE58: 870.7 | BF58: 723.1 | BG58: 631.3 | BH58: 584.6 | BI58: 551.4 | BJ58: 496.3 | BK58: 43.4 | BL58: 42.2 | BM58: 42.2 | BN58: 40.9 | BO58: 39.9 | BP58: 39.5 | BQ58: 41.1 | BR58: 147.2 | BS58: 151.1 | BT58: 153 | BU58: 158.6 | BV58: 180 | BW58: 180 | BX58: 180 | BY58: 1184.9 | BZ58: 987.3 | CA58: 874.6 | CB58: 801.2 | CC58: 771.9 | CD58: 761.4 | CE58: 767.4 | CF58: 773.3 | CG58: 653 | CH58: 585 | CI58: 553.5 | CJ58: 539 | CK58: 533.3 | CL58: 531.5 | CM58: 731.5 | CN58: 619.9 | CO58: 564.9 | CP58: 539.6 | CQ58: 525 | CR58: 517.1 | CS58: 513.2 | CT58: 701 | CU58: 596.5 | CV58: 551.1 | CW58: 528.3 | CX58: 510.4 | CY58: 495.7 | CZ58: 480.6 | DA58: 706.9 | DB58: 598.6 | DC58: 541.8 | DD58: 515.7 | DE58: 498 | DF58: 487.6 | DG58: 457.2 | DH58: 713.8 | DI58: 589 | DJ58: 536.7 | DK58: 508.4 | DL58: 481.5 | DM58: 458.2 | DN58: 429 | DO58: 734.8 | DP58: 603.7 | DQ58: 543.6 | DR58: 514.3 | DS58: 488.1 | DT58: 462.2 | DU58: 417.8 | DV58: 809.4 | DW58: 660.3 | DX58: 571.9 | DY58: 532.6 | DZ58: 506.8 | EA58: 481.1 | EB58: 433.1 | EC58: 951.7 | ED58: 751.7 | EE58: 637.4 | EF58: 565.7 | EG58: 531.5 | EH58: 507.4 | EI58: 460.5 | EJ58: 1098.9 | EK58: 867.7 | EL58: 733.8 | EM58: 642.7 | EN58: 578.8 | EO58: 540.2 | EP58: 492.9 | EQ58: 0.8412 | ER58: 1.1039 | ES58: 1.2498 | ET58: 0.6524 | EU58: 0.8942 | EV58: 1.0398 | EW58: 0 | EX58: 0 | EY58: 0 | EZ58: 0 | FA58: 0.894 | FB58: 0 | FC58: 0 | FD58: 671.2 | FE58: ARG00006663 | FF58: 7.706 | FG58: 4233 | FH58: 20.2 | FI58: 24.4 | FJ58: 27.1 | FK58: 56.6 | FL58: 0 | FM58: 802.4 | FN58: 611.5 | FO58: 540.1 | FP58: 1034.6 | FQ58: 754.9 | FR58: 649.2 | FS58: 696.6 | FT58: 0.8613 | FU58: 720.7 | FV58: 0.8325 | FW58: 0 | FX58: 0
B59: ARG1303 | C59: ARG013 | D59: ARG-013 | E59: TOLERANCIA CERO | F59: MATCH 30 | G59: AST, SPEED CRAFT | H59: GERMAN FRERS | I59: 1993 | L59: INTL | M59: R | N59: 464 | O59: 08 03 2018 18:59:38 | P59: 9.12 | Q59: 8.048 | R59: 1.715 | S59: 3.11 | T59: 2068 | U59: 113.7 | V59: 0 | W59: 627 | X59: 0.9855 | Y59: 684.9 | Z59: 0 | AA59: 0 | AB59: 1015.9 | AC59: 825.5 | AD59: 715.1 | AE59: 661 | AF59: 630.4 | AG59: 611.8 | AH59: 578 | AI59: 967.2 | AJ59: 788 | AK59: 696.4 | AL59: 650.2 | AM59: 623.8 | AN59: 605 | AO59: 567.7 | AP59: 859.2 | AQ59: 696.1 | AR59: 608.9 | AS59: 558 | AT59: 525.5 | AU59: 502.6 | AV59: 468.7 | AW59: 922.6 | AX59: 741.1 | AY59: 643.2 | AZ59: 585.9 | BA59: 549.9 | BB59: 525.2 | BC59: 490.4 | BD59: 1012.9 | BE59: 776.5 | BF59: 648.6 | BG59: 579.8 | BH59: 538.6 | BI59: 503.8 | BJ59: 444.5 | BK59: 42.6 | BL59: 41.6 | BM59: 39.5 | BN59: 38.4 | BO59: 38.1 | BP59: 38.2 | BQ59: 38.5 | BR59: 138.7 | BS59: 148.5 | BT59: 150.7 | BU59: 160 | BV59: 180 | BW59: 180 | BX59: 180 | BY59: 1046 | BZ59: 862.8 | CA59: 767 | CB59: 735.7 | CC59: 725.2 | CD59: 722.3 | CE59: 718.4 | CF59: 688.8 | CG59: 579.7 | CH59: 539.6 | CI59: 523.8 | CJ59: 517 | CK59: 513.5 | CL59: 505.4 | CM59: 653.3 | CN59: 560.5 | CO59: 526.7 | CP59: 507.6 | CQ59: 497.3 | CR59: 491.6 | CS59: 483.2 | CT59: 627.2 | CU59: 548.5 | CV59: 515.9 | CW59: 488.7 | CX59: 468.6 | CY59: 457.4 | CZ59: 448.2 | DA59: 629 | DB59: 538 | DC59: 505.4 | DD59: 484.5 | DE59: 457.1 | DF59: 434.4 | DG59: 408.5 | DH59: 622.3 | DI59: 532.4 | DJ59: 489.5 | DK59: 454 | DL59: 430.8 | DM59: 412.5 | DN59: 381.2 | DO59: 640.5 | DP59: 540.6 | DQ59: 497.2 | DR59: 456.1 | DS59: 419.4 | DT59: 390.5 | DU59: 354 | DV59: 711.2 | DW59: 577.1 | DX59: 521.9 | DY59: 483.2 | DZ59: 445.6 | EA59: 407.6 | EB59: 325.5 | EC59: 853.8 | ED59: 682.6 | EE59: 575 | EF59: 520.6 | EG59: 485 | EH59: 450.8 | EI59: 378.7 | EJ59: 985.9 | EK59: 788.2 | EL59: 663.2 | EM59: 586.4 | EN59: 535.7 | EO59: 501.3 | EP59: 437.7 | EQ59: 0.9457 | ER59: 1.2103 | ES59: 1.3702 | ET59: 0.7331 | EU59: 0.9852 | EV59: 1.1179 | EW59: 0 | EX59: 0 | EY59: 0 | EZ59: 0 | FA59: 0.9837 | FB59: 0 | FC59: 0 | FD59: 610 | FE59: ARG00006664 | FF59: 8.144 | FG59: 2679 | FH59: 16.5 | FI59: 30.2 | FJ59: 17.8 | FK59: 64.9 | FL59: 0 | FM59: 713.8 | FN59: 557.7 | FO59: 492.6 | FP59: 920.7 | FQ59: 685.1 | FR59: 603.8 | FS59: 643.6 | FT59: 0.9322 | FU59: 663.5 | FV59: 0.9043 | FW59: 0 | FX59: 0
B60: ARG477101 | C60: ARG4771 | D60: ARG-4771 | E60: ZARATUSTRA | F60: MAGIC 33 | G60: MORETI | H60: J, SOTO | I60: 2001 | L60: INTL | M60: C | N60: 605 | O60: 09 03 2018 07:25:32 | P60: 10.2 | Q60: 9.303 | R60: 1.95 | S60: 3.33 | T60: 3971 | U60: 107.5 | V60: 0 | W60: 625 | X60: 0.9914 | Y60: 680.9 | Z60: 0 | AA60: 0 | AB60: 1003.3 | AC60: 815.4 | AD60: 711.8 | AE60: 659.9 | AF60: 628.5 | AG60: 608.8 | AH60: 582.6 | AI60: 955 | AJ60: 780.4 | AK60: 692.8 | AL60: 650.7 | AM60: 627.1 | AN60: 609.6 | AO60: 583.9 | AP60: 851.6 | AQ60: 691.1 | AR60: 606.7 | AS60: 558.9 | AT60: 529.9 | AU60: 510.7 | AV60: 484.9 | AW60: 901.8 | AX60: 726.5 | AY60: 633 | AZ60: 579.3 | BA60: 546.7 | BB60: 525.3 | BC60: 497.6 | BD60: 1001.6 | BE60: 767 | BF60: 644.5 | BG60: 579 | BH60: 542.4 | BI60: 511.5 | BJ60: 461.3 | BK60: 42.5 | BL60: 41.4 | BM60: 40.1 | BN60: 39.2 | BO60: 39 | BP60: 38.8 | BQ60: 40 | BR60: 144.7 | BS60: 149.2 | BT60: 151.5 | BU60: 159.2 | BV60: 180 | BW60: 180 | BX60: 180 | BY60: 1020.4 | BZ60: 847.1 | CA60: 762 | CB60: 735.3 | CC60: 726.4 | CD60: 719.8 | CE60: 717.3 | CF60: 673.2 | CG60: 567.5 | CH60: 527.7 | CI60: 515.4 | CJ60: 510.6 | CK60: 508.7 | CL60: 502 | CM60: 639 | CN60: 546.6 | CO60: 514.2 | CP60: 501.3 | CQ60: 496 | CR60: 493.4 | CS60: 485.7 | CT60: 613.7 | CU60: 533.4 | CV60: 503.2 | CW60: 486.2 | CX60: 474.6 | CY60: 468.3 | CZ60: 463.3 | DA60: 619.1 | DB60: 531.5 | DC60: 498.7 | DD60: 479.9 | DE60: 461.2 | DF60: 446 | DG60: 429.8 | DH60: 628.4 | DI60: 527.3 | DJ60: 489.9 | DK60: 463.4 | DL60: 442.1 | DM60: 429 | DN60: 408.4 | DO60: 647.9 | DP60: 538.3 | DQ60: 496.1 | DR60: 466.9 | DS60: 438.8 | DT60: 414.2 | DU60: 385.2 | DV60: 718.2 | DW60: 583.9 | DX60: 518.8 | DY60: 487.8 | DZ60: 460.2 | EA60: 432 | EB60: 375.9 | EC60: 854 | ED60: 678.6 | EE60: 574.1 | EF60: 517.1 | EG60: 488.1 | EH60: 462.4 | EI60: 410.8 | EJ60: 986.2 | EK60: 783.6 | EL60: 661.7 | EM60: 584.5 | EN60: 530.7 | EO60: 497.8 | EP60: 448 | EQ60: 0.9564 | ER60: 1.2138 | ES60: 1.3445 | ET60: 0.7423 | EU60: 0.9893 | EV60: 1.1177 | EW60: 0 | EX60: 0 | EY60: 0 | EZ60: 0 | FA60: 0.985 | FB60: 0 | FC60: 0 | FD60: 609.2 | FE60: ARG00006666 | FF60: 8.776 | FG60: 4769 | FH60: 22.1 | FI60: 38.5 | FJ60: 27.8 | FK60: 72.5 | FL60: 0 | FM60: 705.8 | FN60: 556.1 | FO60: 502 | FP60: 909.3 | FQ60: 682.3 | FR60: 603.9 | FS60: 635.1 | FT60: 0.9447 | FU60: 652.9 | FV60: 0.919 | FW60: 0 | FX60: 0
B61: ARG552002 | C61: ARG5520 | D61: ARG-5520 | E61: FICCION | F61: PANDORA 34 | G61: AST, MARCO | H61: N, VOLKER | I61: 1992 | L61: CLUB | M61: C | N61: 580 | O61: 09 03 2018 16:40:36 | P61: 10.43 | Q61: 8.854 | R61: 1.69 | S61: 3.54 | T61: 5077 | U61: 111.7 | V61: 0.24 | W61: 664.6 | X61: 0.9389 | Y61: 718.9 | Z61: 0 | AA61: 0 | AB61: 1078 | AC61: 880.7 | AD61: 764.1 | AE61: 694.6 | AF61: 654.3 | AG61: 631.2 | AH61: 610.9 | AI61: 1031.9 | AJ61: 845.4 | AK61: 741.8 | AL61: 684.5 | AM61: 653.6 | AN61: 635.2 | AO61: 617.1 | AP61: 914.1 | AQ61: 738.7 | AR61: 644.8 | AS61: 590.6 | AT61: 557.8 | AU61: 537 | AV61: 512.6 | AW61: 963.8 | AX61: 773.8 | AY61: 670.9 | AZ61: 610.8 | BA61: 574.1 | BB61: 550.8 | BC61: 523.1 | BD61: 1075.1 | BE61: 827.5 | BF61: 689.3 | BG61: 609 | BH61: 568.1 | BI61: 537.2 | BJ61: 488.4 | BK61: 42.9 | BL61: 41.9 | BM61: 42.1 | BN61: 40.9 | BO61: 40 | BP61: 39.9 | BQ61: 40.3 | BR61: 146.7 | BS61: 150.8 | BT61: 152.1 | BU61: 157.5 | BV61: 180 | BW61: 180 | BX61: 180 | BY61: 1106.8 | BZ61: 928 | CA61: 821.3 | CB61: 768 | CC61: 747.4 | CD61: 738.4 | CE61: 741.1 | CF61: 727.2 | CG61: 615.5 | CH61: 556.1 | CI61: 533.8 | CJ61: 524.4 | CK61: 520 | CL61: 517.8 | CM61: 690.3 | CN61: 585.9 | CO61: 540.4 | CP61: 521.2 | CQ61: 510.7 | CR61: 505.5 | CS61: 502.1 | CT61: 663.7 | CU61: 567.3 | CV61: 529.6 | CW61: 509.9 | CX61: 496.2 | CY61: 485.4 | CZ61: 474.5 | DA61: 670.3 | DB61: 569.6 | DC61: 527.1 | DD61: 505.1 | DE61: 491 | DF61: 476 | DG61: 452.8 | DH61: 689.6 | DI61: 568.3 | DJ61: 519.8 | DK61: 494.5 | DL61: 473.1 | DM61: 454.8 | DN61: 436 | DO61: 708.3 | DP61: 581.8 | DQ61: 525.8 | DR61: 498.7 | DS61: 475.3 | DT61: 453.6 | DU61: 420 | DV61: 776.4 | DW61: 633.4 | DX61: 550.8 | DY61: 515 | DZ61: 491.6 | EA61: 468.9 | EB61: 426.9 | EC61: 908.7 | ED61: 721.8 | EE61: 613.5 | EF61: 546.2 | EG61: 514.5 | EH61: 492.7 | EI61: 451 | EJ61: 1049.2 | EK61: 833.4 | EL61: 706.9 | EM61: 621.2 | EN61: 561.2 | EO61: 524 | EP61: 480.7 | EQ61: 0.886 | ER61: 1.1471 | ES61: 1.2805 | ET61: 0.6892 | EU61: 0.9334 | EV61: 1.0725 | EW61: 0 | EX61: 0 | EY61: 0 | EZ61: 0 | FA61: 0.9293 | FB61: 0 | FC61: 0 | FD61: 645.7 | FE61: ARG00006667 | FF61: 8.208 | FG61: 5836 | FH61: 24.5 | FI61: 28.3 | FJ61: 38.1 | FK61: 76.4 | FL61: 0 | FM61: 761.9 | FN61: 588.4 | FO61: 527.1 | FP61: 979.4 | FQ61: 723.2 | FR61: 629.4 | FS61: 671.5 | FT61: 0.8935 | FU61: 692.3 | FV61: 0.8667 | FW61: 0 | FX61: 0
B62: ARG308311 | C62: 2ARG3087 | D62: ARG-3087 | E62: LARA | F62: ARIES 37 | G62: AST, ARIES | H62: GERMAN FRERS | I62: 1988 | L62: CLUB | M62: C | N62: 170 | O62: 12 03 2018 16:33:58 | P62: 11.3 | Q62: 9.52 | R62: 1.904 | S62: 3.61 | T62: 6290 | U62: 112 | V62: 0.16 | W62: 639.2 | X62: 0.9735 | Y62: 693.3 | Z62: 0 | AA62: 0 | AB62: 1019.4 | AC62: 836 | AD62: 733.3 | AE62: 673.3 | AF62: 637 | AG62: 614.4 | AH62: 592 | AI62: 973.8 | AJ62: 801.6 | AK62: 711.1 | AL62: 662.8 | AM62: 635.6 | AN62: 618.1 | AO62: 598.1 | AP62: 871.6 | AQ62: 707.2 | AR62: 620.4 | AS62: 571.1 | AT62: 541.7 | AU62: 523 | AV62: 500.9 | AW62: 925.3 | AX62: 745.2 | AY62: 648.4 | AZ62: 592.3 | BA62: 558.1 | BB62: 536.2 | BC62: 509.9 | BD62: 1017.9 | BE62: 786.5 | BF62: 662 | BG62: 589.7 | BH62: 551.9 | BI62: 522.7 | BJ62: 479 | BK62: 42.1 | BL62: 41 | BM62: 41.6 | BN62: 40.4 | BO62: 39.7 | BP62: 39.3 | BQ62: 39.2 | BR62: 145.8 | BS62: 150.1 | BT62: 151.1 | BU62: 156.5 | BV62: 175.4 | BW62: 180 | BX62: 180 | BY62: 1034.5 | BZ62: 870.7 | CA62: 786.1 | CB62: 747.3 | CC62: 730.4 | CD62: 722.1 | CE62: 719.1 | CF62: 686 | CG62: 583.2 | CH62: 535.3 | CI62: 517.8 | CJ62: 510.7 | CK62: 507.2 | CL62: 505.8 | CM62: 653.8 | CN62: 558.1 | CO62: 520.8 | CP62: 504.6 | CQ62: 497 | CR62: 493 | CS62: 490.5 | CT62: 631.3 | CU62: 542.7 | CV62: 510 | CW62: 493.4 | CX62: 481.9 | CY62: 473.9 | CZ62: 467 | DA62: 638.7 | DB62: 545.2 | DC62: 508.4 | DD62: 489.7 | DE62: 475.6 | DF62: 463.4 | DG62: 444.4 | DH62: 660.2 | DI62: 545.3 | DJ62: 501.4 | DK62: 479.2 | DL62: 464 | DM62: 454.8 | DN62: 438.2 | DO62: 676.8 | DP62: 557 | DQ62: 505.7 | DR62: 480.8 | DS62: 460.2 | DT62: 441.5 | DU62: 422.3 | DV62: 741.7 | DW62: 605.6 | DX62: 528.5 | DY62: 495.2 | DZ62: 473 | EA62: 451.8 | EB62: 413.2 | EC62: 869.7 | ED62: 693.8 | EE62: 589.9 | EF62: 525.9 | EG62: 495.7 | EH62: 474.9 | EI62: 435.2 | EJ62: 1004.3 | EK62: 801.2 | EL62: 680.5 | EM62: 599.2 | EN62: 543.6 | EO62: 506.8 | EP62: 465 | EQ62: 0.9329 | ER62: 1.188 | ES62: 1.3125 | ET62: 0.7276 | EU62: 0.9674 | EV62: 1.1035 | EW62: 0 | EX62: 0 | EY62: 0 | EZ62: 0 | FA62: 0.9644 | FB62: 0 | FC62: 0 | FD62: 622.2 | FE62: ARG00006673 | FF62: 8.753 | FG62: 7142 | FH62: 27.3 | FI62: 30.9 | FJ62: 45.9 | FK62: 97.4 | FL62: 0 | FM62: 723.6 | FN62: 568.2 | FO62: 514.3 | FP62: 927.7 | FQ62: 697.7 | FR62: 611.7 | FS62: 650.6 | FT62: 0.9223 | FU62: 668.7 | FV62: 0.8973 | FW62: 0 | FX62: 0
B63: ARG545401 | C63: 2ARG5454 | D63: ARG-5454 | E63: FUERZA DELTA | F63: PANDORA 31 | G63: AST, CONNORS | H63: GERMAN FRERS | I63: 1994 | L63: CLUB | M63: C | N63: 170 | O63: 14 03 2018 18:19:54 | P63: 9.5 | Q63: 8.846 | R63: 1.702 | S63: 3.29 | T63: 3815 | U63: 118 | V63: 0.17 | W63: 658 | X63: 0.9423 | Y63: 716.4 | Z63: 0 | AA63: 0 | AB63: 1052.3 | AC63: 861 | AD63: 755 | AE63: 693.7 | AF63: 658.4 | AG63: 638.9 | AH63: 614.1 | AI63: 1004.5 | AJ63: 825.9 | AK63: 734.1 | AL63: 686.5 | AM63: 659.9 | AN63: 642.9 | AO63: 618.7 | AP63: 895.1 | AQ63: 727.2 | AR63: 638.8 | AS63: 588.8 | AT63: 558.8 | AU63: 539.4 | AV63: 514.5 | AW63: 954 | AX63: 768.3 | AY63: 669 | AZ63: 611.7 | BA63: 577 | BB63: 554.8 | BC63: 527.8 | BD63: 1049.3 | BE63: 808.9 | BF63: 681.5 | BG63: 609.2 | BH63: 570.6 | BI63: 540 | BJ63: 490.9 | BK63: 42.3 | BL63: 40.9 | BM63: 40.8 | BN63: 40.1 | BO63: 39.7 | BP63: 39.4 | BQ63: 39.8 | BR63: 144.9 | BS63: 147.9 | BT63: 149.9 | BU63: 159.4 | BV63: 180 | BW63: 180 | BX63: 180 | BY63: 1081.7 | BZ63: 905.2 | CA63: 818.1 | CB63: 782.2 | CC63: 767.3 | CD63: 761.2 | CE63: 758.2 | CF63: 714.6 | CG63: 606.3 | CH63: 558.5 | CI63: 541.2 | CJ63: 534.4 | CK63: 531.4 | CL63: 529.1 | CM63: 679.5 | CN63: 580.6 | CO63: 542.2 | CP63: 526.2 | CQ63: 519.3 | CR63: 515.6 | CS63: 514.2 | CT63: 653.8 | CU63: 563.4 | CV63: 529.8 | CW63: 512.8 | CX63: 500.9 | CY63: 493.2 | CZ63: 487 | DA63: 653.9 | DB63: 555.5 | DC63: 521.5 | DD63: 507.5 | DE63: 491.9 | DF63: 477.8 | DG63: 456.9 | DH63: 649.4 | DI63: 547.6 | DJ63: 512.1 | DK63: 489.1 | DL63: 471 | DM63: 458.9 | DN63: 438.9 | DO63: 670.1 | DP63: 559.1 | DQ63: 516.8 | DR63: 491.3 | DS63: 466.5 | DT63: 443.7 | DU63: 418.5 | DV63: 744.2 | DW63: 610.1 | DX63: 538.2 | DY63: 507.5 | DZ63: 482.3 | EA63: 456.3 | EB63: 407.9 | EC63: 885.8 | ED63: 707.4 | EE63: 599.2 | EF63: 535.7 | EG63: 507.3 | EH63: 483.6 | EI63: 435.5 | EJ63: 1022.8 | EK63: 816.8 | EL63: 691.9 | EM63: 605.3 | EN63: 549.5 | EO63: 516.5 | EP63: 470 | EQ63: 0.9097 | ER63: 1.1525 | ES63: 1.2725 | ET63: 0.7056 | EU63: 0.9385 | EV63: 1.0639 | EW63: 0 | EX63: 0 | EY63: 0 | EZ63: 0 | FA63: 0.9348 | FB63: 0 | FC63: 0 | FD63: 641.8 | FE63: ARG00006685 | FF63: 8.068 | FG63: 4575 | FH63: 20.6 | FI63: 30.3 | FJ63: 25.5 | FK63: 60 | FL63: 70.9 | FM63: 742 | FN63: 585.7 | FO63: 530.5 | FP63: 956.6 | FQ63: 719.2 | FR63: 634.5 | FS63: 670.8 | FT63: 0.8944 | FU63: 690 | FV63: 0.8696 | FW63: 0 | FX63: 0
B64: ARG341011 | C64: BIGBANG | D64: ARG-3410 | E64: BIG BANG | F64: F&C 40 | G64: AST, F&C | H64: GERMAN FRERS | I64: 1986 | L64: CLUB | M64: C | N64: 740 | O64: 16 03 2018 18:59:42 | P64: 12.31 | Q64: 10.195 | R64: 2.219 | S64: 3.8 | T64: 7185 | U64: 116.3 | V64: 0.03 | W64: 603.6 | X64: 1.0358 | Y64: 651.7 | Z64: 0 | AA64: 0 | AB64: 970.3 | AC64: 791.4 | AD64: 687.9 | AE64: 631.3 | AF64: 597.5 | AG64: 575.1 | AH64: 552.6 | AI64: 922.4 | AJ64: 754.5 | AK64: 665 | AL64: 618.8 | AM64: 593 | AN64: 575.6 | AO64: 555.3 | AP64: 826.1 | AQ64: 669 | AR64: 585.8 | AS64: 538.2 | AT64: 509.5 | AU64: 490.9 | AV64: 468.3 | AW64: 873.5 | AX64: 702.9 | AY64: 611 | AZ64: 557.6 | BA64: 524.9 | BB64: 503.6 | BC64: 477.4 | BD64: 970.5 | BE64: 745.2 | BF64: 623 | BG64: 555 | BH64: 519.4 | BI64: 491.5 | BJ64: 448.8 | BK64: 41.9 | BL64: 40.9 | BM64: 40.3 | BN64: 38.6 | BO64: 38.1 | BP64: 37.6 | BQ64: 37.5 | BR64: 145.3 | BS64: 149.4 | BT64: 150.4 | BU64: 156 | BV64: 172.7 | BW64: 180 | BX64: 180 | BY64: 968.4 | BZ64: 809.1 | CA64: 721.2 | CB64: 686.5 | CC64: 670.7 | CD64: 662.5 | CE64: 659.6 | CF64: 643.3 | CG64: 542.8 | CH64: 502.6 | CI64: 487.5 | CJ64: 481 | CK64: 477.5 | CL64: 475.5 | CM64: 613 | CN64: 523.5 | CO64: 491.5 | CP64: 476.9 | CQ64: 469.2 | CR64: 464.9 | CS64: 461.5 | CT64: 592.4 | CU64: 512.5 | CV64: 483.2 | CW64: 467.1 | CX64: 454.9 | CY64: 446.1 | CZ64: 438 | DA64: 601.1 | DB64: 515.6 | DC64: 483.6 | DD64: 465 | DE64: 450.1 | DF64: 436.8 | DG64: 417.3 | DH64: 635 | DI64: 522.2 | DJ64: 479.3 | DK64: 456.6 | DL64: 437.6 | DM64: 425.2 | DN64: 408.5 | DO64: 650.9 | DP64: 533.6 | DQ64: 484.5 | DR64: 459.1 | DS64: 437.1 | DT64: 417.4 | DU64: 392.1 | DV64: 715.1 | DW64: 581 | DX64: 506.9 | DY64: 474.9 | DZ64: 452.5 | EA64: 430.4 | EB64: 390.2 | EC64: 842 | ED64: 670 | EE64: 567.2 | EF64: 505.1 | EG64: 475.8 | EH64: 454.8 | EI64: 414.6 | EJ64: 972.3 | EK64: 773.7 | EL64: 654.7 | EM64: 576.2 | EN64: 524.2 | EO64: 487.7 | EP64: 445.6 | EQ64: 0.9834 | ER64: 1.2596 | ES64: 1.3994 | ET64: 0.7663 | EU64: 1.0304 | EV64: 1.1795 | EW64: 0 | EX64: 0 | EY64: 0 | EZ64: 0 | FA64: 1.0227 | FB64: 0 | FC64: 0 | FD64: 586.7 | FE64: ARG00006694 | FF64: 9.83 | FG64: 8121 | FH64: 30.6 | FI64: 38.8 | FJ64: 56.2 | FK64: 114.5 | FL64: 0 | FM64: 686.4 | FN64: 535.9 | FO64: 482.3 | FP64: 880.9 | FQ64: 655.1 | FR64: 572.3 | FS64: 612.9 | FT64: 0.979 | FU64: 630.2 | FV64: 0.9521 | FW64: 0 | FX64: 0
B65: ARG6001 | C65: ARG60 | D65: ARG-60 | E65: FJORD VI | F65: FRERS 43 | G65: AST, RATTI | H65: GERMAN FRERS | I65: 1970 | L65: CLUB | M65: C | N65: 730 | O65: 16 03 2018 19:00:20 | P65: 12.964 | Q65: 10.079 | R65: 1.992 | S65: 3.65 | T65: 10727 | U65: 122.2 | V65: 0.51 | W65: 649.5 | X65: 0.954 | Y65: 707.6 | Z65: 0 | AA65: 0 | AB65: 1063.6 | AC65: 869.9 | AD65: 757 | AE65: 686.4 | AF65: 644.5 | AG65: 615.8 | AH65: 591.3 | AI65: 1018.1 | AJ65: 835.3 | AK65: 733.4 | AL65: 675.3 | AM65: 641.8 | AN65: 620.4 | AO65: 599.5 | AP65: 897.7 | AQ65: 723.8 | AR65: 629.9 | AS65: 575.2 | AT65: 541.9 | AU65: 520.9 | AV65: 497.2 | AW65: 948.4 | AX65: 760.2 | AY65: 657.4 | AZ65: 596.5 | BA65: 558.6 | BB65: 534.2 | BC65: 505.5 | BD65: 1059.9 | BE65: 816.8 | BF65: 678.3 | BG65: 594.6 | BH65: 550.8 | BI65: 518.7 | BJ65: 473.1 | BK65: 43.7 | BL65: 42.1 | BM65: 42.5 | BN65: 42.8 | BO65: 42.2 | BP65: 41.6 | BQ65: 41.8 | BR65: 146.6 | BS65: 150.9 | BT65: 149.7 | BU65: 154.2 | BV65: 166.8 | BW65: 180 | BX65: 180 | BY65: 1100.2 | BZ65: 923.4 | CA65: 823.1 | CB65: 771.3 | CC65: 743.5 | CD65: 728.7 | CE65: 721.4 | CF65: 719.2 | CG65: 612.5 | CH65: 543.7 | CI65: 514.6 | CJ65: 502.9 | CK65: 496.8 | CL65: 491.5 | CM65: 683 | CN65: 581.2 | CO65: 521.6 | CP65: 497.9 | CQ65: 486.9 | CR65: 481.2 | CS65: 476.3 | CT65: 657 | CU65: 557.5 | CV65: 507.2 | CW65: 485.9 | CX65: 473.2 | CY65: 464.2 | CZ65: 455.4 | DA65: 663.1 | DB65: 561.9 | DC65: 507.3 | DD65: 483.8 | DE65: 469.2 | DF65: 457.5 | DG65: 439.2 | DH65: 676.4 | DI65: 555.1 | DJ65: 496.3 | DK65: 471.8 | DL65: 455.8 | DM65: 447 | DN65: 432.8 | DO65: 691.2 | DP65: 567.2 | DQ65: 501.2 | DR65: 473.6 | DS65: 454.5 | DT65: 437.6 | DU65: 418.3 | DV65: 753.7 | DW65: 616.6 | DX65: 528.4 | DY65: 488.4 | DZ65: 466.6 | EA65: 448 | EB65: 413.8 | EC65: 889.4 | ED65: 706.9 | EE65: 598.3 | EF65: 525.7 | EG65: 488.9 | EH65: 468.5 | EI65: 434.2 | EJ65: 1027 | EK65: 816.5 | EL65: 690.9 | EM65: 601.5 | EN65: 545.4 | EO65: 502.9 | EP65: 461.1 | EQ65: 0.8991 | ER65: 1.1766 | ES65: 1.3211 | ET65: 0.6982 | EU65: 0.9444 | EV65: 1.0997 | EW65: 0 | EX65: 0 | EY65: 0 | EZ65: 0 | FA65: 0.9506 | FB65: 0 | FC65: 0 | FD65: 631.2 | FE65: ARG00006702 | FF65: 8.788 | FG65: 11664 | FH65: 35.3 | FI65: 39.2 | FJ65: 61.4 | FK65: 126.7 | FL65: 0 | FM65: 750.8 | FN65: 573.7 | FO65: 510.9 | FP65: 966.8 | FQ65: 714.7 | FR65: 613.8 | FS65: 659 | FT65: 0.9105 | FU65: 678.3 | FV65: 0.8846 | FW65: 0 | FX65: 0
B66: ARG453005 | C66: arg4530 | D66: ARG-4530 | E66: LADINO MILLENNIAL | F66: PANDORA 34 | G66: AST, MARCO | H66: NESTOR VOLKER | I66: 1992 | L66: CLUB | M66: C | N66: 535 | O66: 16 03 2018 19:00:28 | P66: 10.43 | Q66: 8.793 | R66: 1.836 | S66: 3.52 | T66: 5093 | U66: 114.5 | V66: 0.16 | W66: 660.6 | X66: 0.9449 | Y66: 714.3 | Z66: 0 | AA66: 0 | AB66: 1067 | AC66: 872.2 | AD66: 756.9 | AE66: 690.7 | AF66: 651.3 | AG66: 628.6 | AH66: 608.3 | AI66: 1020 | AJ66: 836 | AK66: 734.8 | AL66: 680.3 | AM66: 650.5 | AN66: 632.2 | AO66: 614.1 | AP66: 906.7 | AQ66: 733.4 | AR66: 640.9 | AS66: 587.8 | AT66: 555.7 | AU66: 535.4 | AV66: 511.3 | AW66: 955.2 | AX66: 767.8 | AY66: 666.6 | AZ66: 607.7 | BA66: 571.8 | BB66: 548.9 | BC66: 521.6 | BD66: 1064.7 | BE66: 820 | BF66: 683.9 | BG66: 606.5 | BH66: 566.1 | BI66: 535.6 | BJ66: 487.7 | BK66: 42.7 | BL66: 41.7 | BM66: 41.6 | BN66: 40.5 | BO66: 39.4 | BP66: 39.3 | BQ66: 39.9 | BR66: 146.6 | BS66: 150.7 | BT66: 151.5 | BU66: 157.6 | BV66: 180 | BW66: 180 | BX66: 180 | BY66: 1089.5 | BZ66: 913.9 | CA66: 810.3 | CB66: 763.2 | CC66: 743.3 | CD66: 734.3 | CE66: 737.1 | CF66: 718.6 | CG66: 607.8 | CH66: 552.9 | CI66: 532.5 | CJ66: 524.1 | CK66: 519.9 | CL66: 517.7 | CM66: 683.3 | CN66: 580.5 | CO66: 538.3 | CP66: 520.3 | CQ66: 510.5 | CR66: 505.6 | CS66: 502.2 | CT66: 657.9 | CU66: 563.8 | CV66: 527.9 | CW66: 509.2 | CX66: 495.7 | CY66: 485.3 | CZ66: 475 | DA66: 664.6 | DB66: 565.8 | DC66: 526.7 | DD66: 505.4 | DE66: 489.5 | DF66: 474.9 | DG66: 452.5 | DH66: 686 | DI66: 565.7 | DJ66: 518.7 | DK66: 493.7 | DL66: 472.5 | DM66: 454.9 | DN66: 436.7 | DO66: 704.3 | DP66: 578.5 | DQ66: 524.4 | DR66: 497.4 | DS66: 473.7 | DT66: 452.2 | DU66: 420.4 | DV66: 771.6 | DW66: 629.2 | DX66: 548 | DY66: 513.4 | DZ66: 489.8 | EA66: 466.8 | EB66: 425.1 | EC66: 904.6 | ED66: 719.2 | EE66: 610.2 | EF66: 544 | EG66: 513.2 | EH66: 491.2 | EI66: 449.2 | EJ66: 1044.5 | EK66: 830.5 | EL66: 703.6 | EM66: 618.2 | EN66: 559.2 | EO66: 522.9 | EP66: 479.4 | EQ66: 0.8942 | ER66: 1.153 | ES66: 1.284 | ET66: 0.6962 | EU66: 0.9401 | EV66: 1.0772 | EW66: 0 | EX66: 0 | EY66: 0 | EZ66: 0 | FA66: 0.9344 | FB66: 0 | FC66: 0 | FD66: 642.1 | FE66: ARG00006704 | FF66: 8.225 | FG66: 5840 | FH66: 24.7 | FI66: 29.1 | FJ66: 40.1 | FK66: 80.3 | FL66: 0 | FM66: 754.9 | FN66: 585.4 | FO66: 525.7 | FP66: 969.5 | FQ66: 718 | FR66: 626.6 | FS66: 667.6 | FT66: 0.8987 | FU66: 687.7 | FV66: 0.8725 | FW66: 0 | FX66: 0
B67: ARG570503 | C67: ARG5705 | D67: ARG-5705 | E67: OJO DE BALLENA | F67: 32DUE | G67: AST, PIERMARINE | H67: S, CARLINI | I67: 2015 | L67: CLUB | M67: C | N67: 594 | O67: 16 03 2018 19:00:40 | P67: 9.762 | Q67: 9.231 | R67: 1.92 | S67: 3.29 | T67: 4332 | U67: 123.7 | V67: 0.18 | W67: 637.2 | X67: 0.9802 | Y67: 688.6 | Z67: 0 | AA67: 0 | AB67: 1045.2 | AC67: 845.7 | AD67: 728.8 | AE67: 662.5 | AF67: 626.5 | AG67: 606.3 | AH67: 578 | AI67: 1000.1 | AJ67: 811.6 | AK67: 709 | AL67: 653.8 | AM67: 624.7 | AN67: 606.8 | AO67: 577.7 | AP67: 880.8 | AQ67: 709.6 | AR67: 617.8 | AS67: 564.8 | AT67: 532.3 | AU67: 511 | AV67: 482.7 | AW67: 944.2 | AX67: 754.6 | AY67: 651.4 | AZ67: 591 | BA67: 553.9 | BB67: 529.8 | BC67: 499.6 | BD67: 1040.7 | BE67: 794.2 | BF67: 658.3 | BG67: 582.2 | BH67: 543 | BI67: 512 | BJ67: 461.3 | BK67: 42.9 | BL67: 41.4 | BM67: 41 | BN67: 39.3 | BO67: 38.7 | BP67: 39.1 | BQ67: 38.9 | BR67: 145.5 | BS67: 149.5 | BT67: 150.9 | BU67: 158 | BV67: 180 | BW67: 180 | BX67: 180 | BY67: 1090.8 | BZ67: 898.7 | CA67: 788.3 | CB67: 734.7 | CC67: 716.7 | CD67: 710.5 | CE67: 701.2 | CF67: 715.6 | CG67: 598.6 | CH67: 539 | CI67: 515.2 | CJ67: 505.9 | CK67: 502.2 | CL67: 498.6 | CM67: 678 | CN67: 571.1 | CO67: 523.6 | CP67: 503 | CQ67: 492 | CR67: 487.6 | CS67: 485.7 | CT67: 650 | CU67: 552.7 | CV67: 513.1 | CW67: 492.3 | CX67: 476.7 | CY67: 464.8 | CZ67: 456 | DA67: 657.6 | DB67: 546.6 | DC67: 504.4 | DD67: 487.7 | DE67: 472.3 | DF67: 454.6 | DG67: 427.4 | DH67: 647.8 | DI67: 537.2 | DJ67: 495.6 | DK67: 469 | DL67: 445.2 | DM67: 431.1 | DN67: 408.9 | DO67: 664.8 | DP67: 547.9 | DQ67: 501.2 | DR67: 472.8 | DS67: 445.2 | DT67: 419.9 | DU67: 387.7 | DV67: 731.2 | DW67: 593.4 | DX67: 523 | DY67: 491.1 | DZ67: 464.8 | EA67: 437.9 | EB67: 385.8 | EC67: 865.7 | ED67: 686.6 | EE67: 580.1 | EF67: 520.5 | EG67: 491.4 | EH67: 467.1 | EI67: 418.5 | EJ67: 999.6 | EK67: 792.8 | EL67: 669.2 | EM67: 590.3 | EN67: 536.4 | EO67: 502.1 | EP67: 454.7 | EQ67: 0.9196 | ER67: 1.199 | ES67: 1.3467 | ET67: 0.7139 | EU67: 0.977 | EV67: 1.1236 | EW67: 0 | EX67: 0 | EY67: 0 | EZ67: 0 | FA67: 0.9714 | FB67: 0 | FC67: 0 | FD67: 617.7 | FE67: ARG00006706 | FF67: 8.746 | FG67: 5124 | FH67: 23.7 | FI67: 33.1 | FJ67: 28.8 | FK67: 82.4 | FL67: 0 | FM67: 734 | FN67: 563 | FO67: 501.2 | FP67: 945.5 | FQ67: 690.9 | FR67: 600.7 | FS67: 650.6 | FT67: 0.9222 | FU67: 672.8 | FV67: 0.8918 | FW67: 0 | FX67: 0
B68: ARG488802 | C68: 2ARG4888 | D68: ARG-4888 | E68: ALCORNOQUE | F68: FAYD 33 | G68: NOVATECNIA | H68: MARTIN BILLOCH | I68: 1996 | L68: CLUB | M68: C | N68: 170 | O68: 22 03 2018 17:44:04 | P68: 10.2 | Q68: 9.305 | R68: 1.782 | S68: 3.25 | T68: 3983 | U68: 114.3 | V68: 0.07 | W68: 628.5 | X68: 0.9862 | Y68: 684.4 | Z68: 0 | AA68: 0 | AB68: 1014.6 | AC68: 823.4 | AD68: 718.8 | AE68: 663.5 | AF68: 629.3 | AG68: 609.1 | AH68: 579 | AI68: 965.6 | AJ68: 788 | AK68: 698 | AL68: 652.9 | AM68: 627.2 | AN68: 609.9 | AO68: 579.5 | AP68: 859.4 | AQ68: 696.2 | AR68: 610 | AS68: 560.8 | AT68: 530.8 | AU68: 510.8 | AV68: 483.4 | AW68: 914.4 | AX68: 735.1 | AY68: 638.8 | AZ68: 583.2 | BA68: 549.1 | BB68: 526.6 | BC68: 497.2 | BD68: 1012.9 | BE68: 774.4 | BF68: 649.5 | BG68: 581.1 | BH68: 543 | BI68: 512.6 | BJ68: 461.5 | BK68: 42.5 | BL68: 41.2 | BM68: 40.2 | BN68: 39.2 | BO68: 38.7 | BP68: 39.4 | BQ68: 39.6 | BR68: 144.6 | BS68: 149 | BT68: 151.1 | BU68: 157.8 | BV68: 180 | BW68: 180 | BX68: 180 | BY68: 1031.7 | BZ68: 855.1 | CA68: 768.9 | CB68: 737.3 | CC68: 724.3 | CD68: 719.3 | CE68: 708.7 | CF68: 679.9 | CG68: 573.5 | CH68: 529.6 | CI68: 514.7 | CJ68: 508.5 | CK68: 505.5 | CL68: 498.3 | CM68: 645.3 | CN68: 550.8 | CO68: 515 | CP68: 500.4 | CQ68: 494 | CR68: 490.5 | CS68: 483.8 | CT68: 620.1 | CU68: 535.7 | CV68: 503.8 | CW68: 486.2 | CX68: 473.6 | CY68: 466.4 | CZ68: 460.1 | DA68: 627.4 | DB68: 534.5 | DC68: 498.3 | DD68: 482.1 | DE68: 464.1 | DF68: 448.5 | DG68: 429.7 | DH68: 635.9 | DI68: 530.9 | DJ68: 492 | DK68: 466.4 | DL68: 443.3 | DM68: 429.5 | DN68: 408.6 | DO68: 655.3 | DP68: 542.4 | DQ68: 497.1 | DR68: 468.9 | DS68: 442.2 | DT68: 419.9 | DU68: 389.8 | DV68: 726.4 | DW68: 590.3 | DX68: 520.7 | DY68: 488 | DZ68: 460.8 | EA68: 433.6 | EB68: 381.8 | EC68: 863.8 | ED68: 685.6 | EE68: 579.7 | EF68: 519.1 | EG68: 488.7 | EH68: 463.1 | EI68: 413.2 | EJ68: 997.5 | EK68: 791.7 | EL68: 668.6 | EM68: 589.6 | EN68: 534.4 | EO68: 499 | EP68: 449.3 | EQ68: 0.9468 | ER68: 1.2089 | ES68: 1.3455 | ET68: 0.7345 | EU68: 0.983 | EV68: 1.1196 | EW68: 0 | EX68: 0 | EY68: 0 | EZ68: 0 | FA68: 0.9799 | FB68: 0 | FC68: 0 | FD68: 612.3 | FE68: ARG00006728 | FF68: 8.754 | FG68: 4771 | FH68: 22.2 | FI68: 34.9 | FJ68: 27.8 | FK68: 73.2 | FL68: 59 | FM68: 712.9 | FN68: 558.4 | FO68: 501.7 | FP68: 919 | FQ68: 686.7 | FR68: 602.9 | FS68: 640.7 | FT68: 0.9365 | FU68: 659.1 | FV68: 0.9103 | FW68: 0 | FX68: 0
B69: ARG454402 | C69: 2ARG4544 | D69: ARG-4544 | E69: AZUL MARINO | F69: PND 34 | G69: AST, MARCO | H69: N, VOLKER | I69: 1992 | J69: PACHECO | L69: CLUB | M69: C | N69: 170 | O69: 22 03 2018 17:44:18 | P69: 10.43 | Q69: 8.961 | R69: 1.518 | S69: 3.54 | T69: 5566 | U69: 113.1 | V69: 0.36 | W69: 670.5 | X69: 0.9261 | Y69: 728.9 | Z69: 0 | AA69: 0 | AB69: 1077.3 | AC69: 881.3 | AD69: 773.1 | AE69: 708.2 | AF69: 667.6 | AG69: 643.5 | AH69: 620.3 | AI69: 1030.9 | AJ69: 847.7 | AK69: 751.1 | AL69: 698.3 | AM69: 668.1 | AN69: 649.2 | AO69: 628 | AP69: 917.1 | AQ69: 743.1 | AR69: 650.7 | AS69: 597.9 | AT69: 566.3 | AU69: 546.2 | AV69: 522.3 | AW69: 968.4 | AX69: 779.2 | AY69: 677.4 | AZ69: 618.2 | BA69: 582.2 | BB69: 559.2 | BC69: 531.5 | BD69: 1074.6 | BE69: 828.4 | BF69: 696.4 | BG69: 618.5 | BH69: 577.1 | BI69: 545.9 | BJ69: 498.1 | BK69: 42.9 | BL69: 41.3 | BM69: 41.8 | BN69: 41.3 | BO69: 40.6 | BP69: 40.1 | BQ69: 40.1 | BR69: 146.5 | BS69: 150.7 | BT69: 152 | BU69: 157.5 | BV69: 180 | BW69: 180 | BX69: 180 | BY69: 1104.2 | BZ69: 927.5 | CA69: 837.3 | CB69: 793 | CC69: 772.3 | CD69: 762.3 | CE69: 758.5 | CF69: 726.9 | CG69: 617.8 | CH69: 563.5 | CI69: 541.8 | CJ69: 533.2 | CK69: 528.8 | CL69: 526.4 | CM69: 690.7 | CN69: 589 | CO69: 545.2 | CP69: 526.6 | CQ69: 517.9 | CR69: 513.3 | CS69: 510.1 | CT69: 664.3 | CU69: 569.6 | CV69: 531.8 | CW69: 513.8 | CX69: 501.8 | CY69: 493.2 | CZ69: 485.1 | DA69: 671.1 | DB69: 571.9 | DC69: 529.5 | DD69: 509.3 | DE69: 494.8 | DF69: 482.2 | DG69: 461.8 | DH69: 688.6 | DI69: 569.6 | DJ69: 521.5 | DK69: 498.2 | DL69: 479.9 | DM69: 468.7 | DN69: 452 | DO69: 707.3 | DP69: 582.8 | DQ69: 526.4 | DR69: 500.3 | DS69: 479.4 | DT69: 459.6 | DU69: 435.3 | DV69: 775.4 | DW69: 634 | DX69: 552 | DY69: 515.5 | DZ69: 492.8 | EA69: 471.2 | EB69: 431.6 | EC69: 909.7 | ED69: 723.3 | EE69: 615.1 | EF69: 547.7 | EG69: 515.3 | EH69: 493.9 | EI69: 453.5 | EJ69: 1050.4 | EK69: 835.1 | EL69: 708.8 | EM69: 623.5 | EN69: 562.8 | EO69: 524.7 | EP69: 482.2 | EQ69: 0.8856 | ER69: 1.1341 | ES69: 1.2578 | ET69: 0.6893 | EU69: 0.9195 | EV69: 1.0533 | EW69: 0 | EX69: 0 | EY69: 0 | EZ69: 0 | FA69: 0.919 | FB69: 0 | FC69: 0 | FD69: 652.9 | FE69: ARG00006730 | FF69: 8.026 | FG69: 6343 | FH69: 25.7 | FI69: 29.4 | FJ69: 38.4 | FK69: 80 | FL69: 0 | FM69: 762.2 | FN69: 595.2 | FO69: 536.7 | FP69: 979.3 | FQ69: 734.1 | FR69: 640.8 | FS69: 679.1 | FT69: 0.8835 | FU69: 698.7 | FV69: 0.8587 | FW69: 0 | FX69: 0
B70: ARG408201 | C70: 2ARG4082 | D70: ARG-4082 | E70: COCODRILO DADDY | F70: PANDORA 31 | G70: ASTILLERO MARCO | H70: GERMAN FRERS | I70: 1994 | L70: CLUB | M70: C | N70: 170 | O70: 22 03 2018 17:44:28 | P70: 9.5 | Q70: 8.88 | R70: 1.639 | S70: 3.29 | T70: 3922 | U70: 121.8 | V70: 0.17 | W70: 660.3 | X70: 0.9387 | Y70: 719.1 | Z70: 0 | AA70: 0 | AB70: 1053 | AC70: 861.8 | AD70: 756.4 | AE70: 697.5 | AF70: 661.1 | AG70: 641.7 | AH70: 614.6 | AI70: 1007.1 | AJ70: 828.5 | AK70: 737.2 | AL70: 690 | AM70: 663.5 | AN70: 646.6 | AO70: 619.1 | AP70: 898.1 | AQ70: 729.7 | AR70: 641.1 | AS70: 591 | AT70: 560.9 | AU70: 541.3 | AV70: 515.4 | AW70: 952.4 | AX70: 767.7 | AY70: 669 | AZ70: 612.2 | BA70: 577.9 | BB70: 555.7 | BC70: 527.6 | BD70: 1050 | BE70: 810.1 | BF70: 683.1 | BG70: 611.9 | BH70: 572.8 | BI70: 542.2 | BJ70: 491.9 | BK70: 42.4 | BL70: 40.9 | BM70: 41 | BN70: 40.4 | BO70: 40 | BP70: 39.8 | BQ70: 40 | BR70: 145.6 | BS70: 150.5 | BT70: 152.3 | BU70: 160.1 | BV70: 180 | BW70: 180 | BX70: 180 | BY70: 1082.4 | BZ70: 908.1 | CA70: 821.8 | CB70: 785.8 | CC70: 771 | CD70: 765.2 | CE70: 756.7 | CF70: 714.9 | CG70: 607.3 | CH70: 559.3 | CI70: 541.8 | CJ70: 535 | CK70: 532 | CL70: 525.6 | CM70: 679.5 | CN70: 580.9 | CO70: 542.4 | CP70: 526.4 | CQ70: 519.4 | CR70: 515.8 | CS70: 511.5 | CT70: 653 | CU70: 563.1 | CV70: 529.7 | CW70: 512.7 | CX70: 500.9 | CY70: 493 | CZ70: 486.9 | DA70: 659.3 | DB70: 559.9 | DC70: 523.9 | DD70: 507.3 | DE70: 491.6 | DF70: 477.2 | DG70: 455.8 | DH70: 658.8 | DI70: 552.8 | DJ70: 514.8 | DK70: 491.5 | DL70: 474.2 | DM70: 462.4 | DN70: 442.7 | DO70: 679.8 | DP70: 564.9 | DQ70: 519.7 | DR70: 494.3 | DS70: 470.2 | DT70: 447.5 | DU70: 423.9 | DV70: 751.7 | DW70: 614.4 | DX70: 542.3 | DY70: 510.7 | DZ70: 486.3 | EA70: 461 | EB70: 413.4 | EC70: 886.4 | ED70: 706.3 | EE70: 600 | EF70: 539.4 | EG70: 510.3 | EH70: 487.3 | EI70: 440 | EJ70: 1023.5 | EK70: 815.7 | EL70: 690.9 | EM70: 609.3 | EN70: 551.2 | EO70: 518.1 | EP70: 472.4 | EQ70: 0.9067 | ER70: 1.1484 | ES70: 1.2681 | ET70: 0.705 | EU70: 0.9352 | EV70: 1.0607 | EW70: 0 | EX70: 0 | EY70: 0 | EZ70: 0 | FA70: 0.9317 | FB70: 0 | FC70: 0 | FD70: 644 | FE70: ARG00006732 | FF70: 8.051 | FG70: 4690 | FH70: 20.6 | FI70: 33 | FJ70: 22.3 | FK70: 62.9 | FL70: 0 | FM70: 744.5 | FN70: 587.8 | FO70: 532.3 | FP70: 957.4 | FQ70: 721.8 | FR70: 636.4 | FS70: 670.7 | FT70: 0.8946 | FU70: 689.9 | FV70: 0.8697 | FW70: 0 | FX70: 0
B71: ARG491501 | C71: 2ARG4915 | D71: ARG-4915 | E71: DON ANTONIO | F71: FRAN 37 | G71: AST, FRAN | H71: G, SCHROEDER | I71: 1990 | L71: CLUB | M71: C | N71: 170 | O71: 22 03 2018 17:44:34 | P71: 11.18 | Q71: 9.49 | R71: 1.828 | S71: 3.67 | T71: 5814 | U71: 109.6 | V71: 0.21 | W71: 643.4 | X71: 0.9664 | Y71: 698.5 | Z71: 0 | AA71: 0 | AB71: 1039.1 | AC71: 848.4 | AD71: 740.4 | AE71: 677.5 | AF71: 639.1 | AG71: 615.4 | AH71: 590.6 | AI71: 993.8 | AJ71: 814.5 | AK71: 719 | AL71: 667.2 | AM71: 638 | AN71: 619.2 | AO71: 596.2 | AP71: 881.6 | AQ71: 713.7 | AR71: 624.4 | AS71: 573.1 | AT71: 542 | AU71: 522.1 | AV71: 497.4 | AW71: 937 | AX71: 752.7 | AY71: 653.2 | AZ71: 595.1 | BA71: 559.4 | BB71: 536.4 | BC71: 507.9 | BD71: 1036.3 | BE71: 797.3 | BF71: 667.5 | BG71: 592.7 | BH71: 552.9 | BI71: 522.5 | BJ71: 475.1 | BK71: 42.7 | BL71: 41.3 | BM71: 41.4 | BN71: 40.5 | BO71: 40 | BP71: 39.3 | BQ71: 39.1 | BR71: 145.8 | BS71: 150.2 | BT71: 151.7 | BU71: 157.1 | BV71: 180 | BW71: 180 | BX71: 180 | BY71: 1066.7 | BZ71: 891.8 | CA71: 798.3 | CB71: 753.2 | CC71: 733.6 | CD71: 723.8 | CE71: 716.7 | CF71: 701.8 | CG71: 594.4 | CH71: 541.5 | CI71: 519.5 | CJ71: 510.6 | CK71: 506.1 | CL71: 503.3 | CM71: 666.2 | CN71: 567.4 | CO71: 524.7 | CP71: 506 | CQ71: 496.4 | CR71: 491.6 | CS71: 488.1 | CT71: 640.1 | CU71: 549.3 | CV71: 512.5 | CW71: 494.5 | CX71: 481.8 | CY71: 472.1 | CZ71: 462.9 | DA71: 647.3 | DB71: 550.6 | DC71: 507.6 | DD71: 491.4 | DE71: 476.4 | DF71: 462.9 | DG71: 441.1 | DH71: 653.2 | DI71: 543.3 | DJ71: 500.8 | DK71: 478.2 | DL71: 458.9 | DM71: 446.3 | DN71: 430 | DO71: 673.7 | DP71: 557.5 | DQ71: 506.7 | DR71: 481.6 | DS71: 459.9 | DT71: 439.8 | DU71: 413.3 | DV71: 745.6 | DW71: 607.7 | DX71: 531.4 | DY71: 496.8 | DZ71: 474.2 | EA71: 452.2 | EB71: 412.1 | EC71: 876 | ED71: 697.1 | EE71: 592 | EF71: 528.2 | EG71: 496.9 | EH71: 475.6 | EI71: 434.7 | EJ71: 1011.5 | EK71: 805 | EL71: 682.6 | EM71: 601.8 | EN71: 544.6 | EO71: 507.1 | EP71: 464.5 | EQ71: 0.9206 | ER71: 1.1825 | ES71: 1.3166 | ET71: 0.7152 | EU71: 0.96 | EV71: 1.1029 | EW71: 0 | EX71: 0 | EY71: 0 | EZ71: 0 | FA71: 0.958 | FB71: 0 | FC71: 0 | FD71: 626.3 | FE71: ARG00006733 | FF71: 8.675 | FG71: 6658 | FH71: 26.8 | FI71: 35 | FJ71: 37 | FK71: 86.2 | FL71: 84.5 | FM71: 733.2 | FN71: 570.8 | FO71: 512.7 | FP71: 943.8 | FQ71: 703.1 | FR71: 612 | FS71: 654.6 | FT71: 0.9166 | FU71: 673.9 | FV71: 0.8903 | FW71: 0 | FX71: 0
B72: ARG577501 | C72: 2ARG5775 | D72: ARG-5775 | E72: GUALICHO | F72: CORUM 300 CR | G72: Ast, CORUM | H72: PGYD | I72: 2007 | J72: DON BOSCO | L72: CLUB | M72: C | N72: 170 | O72: 22 03 2018 17:44:56 | P72: 8.751 | Q72: 8.233 | R72: 1.659 | S72: 3.15 | T72: 3297 | U72: 118.2 | V72: 0.23 | W72: 682.7 | X72: 0.9141 | Y72: 738.4 | Z72: 0 | AA72: 0 | AB72: 1107.3 | AC72: 899.9 | AD72: 782 | AE72: 713.4 | AF72: 673.1 | AG72: 651.8 | AH72: 619.6 | AI72: 1061.3 | AJ72: 866.5 | AK72: 762.6 | AL72: 706.1 | AM72: 675 | AN72: 655.6 | AO72: 622.7 | AP72: 937.6 | AQ72: 758 | AR72: 662.3 | AS72: 607.4 | AT72: 573.8 | AU72: 551.8 | AV72: 522.4 | AW72: 998.2 | AX72: 800.5 | AY72: 693.7 | AZ72: 631.6 | BA72: 593.5 | BB72: 568.8 | BC72: 537.2 | BD72: 1102.6 | BE72: 845 | BF72: 706.1 | BG72: 627 | BH72: 585.8 | BI72: 553.7 | BJ72: 500.4 | BK72: 42.9 | BL72: 41.3 | BM72: 41.1 | BN72: 40.4 | BO72: 39.6 | BP72: 39.3 | BQ72: 39.1 | BR72: 146.5 | BS72: 150.8 | BT72: 152.7 | BU72: 161 | BV72: 180 | BW72: 180 | BX72: 180 | BY72: 1154.8 | BZ72: 958.2 | CA72: 851.8 | CB72: 799.1 | CC72: 778.7 | CD72: 769.7 | CE72: 753.2 | CF72: 759.3 | CG72: 639.4 | CH72: 579.4 | CI72: 555.8 | CJ72: 546.7 | CK72: 542.4 | CL72: 536.5 | CM72: 720.3 | CN72: 610 | CO72: 562.3 | CP72: 542.1 | CQ72: 531.8 | CR72: 527.1 | CS72: 522.9 | CT72: 691 | CU72: 590.1 | CV72: 549.8 | CW72: 529.7 | CX72: 515.4 | CY72: 504.7 | CZ72: 495.6 | DA72: 688.8 | DB72: 578.5 | DC72: 537.1 | DD72: 519.5 | DE72: 508.2 | DF72: 491.8 | DG72: 467.3 | DH72: 686.7 | DI72: 573.3 | DJ72: 531.5 | DK72: 505.6 | DL72: 482.1 | DM72: 465.9 | DN72: 446.7 | DO72: 707.2 | DP72: 585.5 | DQ72: 536.8 | DR72: 509.4 | DS72: 483.5 | DT72: 459.5 | DU72: 427.9 | DV72: 779.5 | DW72: 636.6 | DX72: 560.9 | DY72: 527.3 | DZ72: 501.3 | EA72: 474.7 | EB72: 425.8 | EC72: 917.8 | ED72: 728.8 | EE72: 619.1 | EF72: 556.6 | EG72: 526.3 | EH72: 501.9 | EI72: 453.3 | EJ72: 1059.8 | EK72: 841.5 | EL72: 712.2 | EM72: 627.7 | EN72: 567.5 | EO72: 533.9 | EP72: 485.9 | EQ72: 0.8657 | ER72: 1.1157 | ES72: 1.246 | ET72: 0.6726 | EU72: 0.91 | EV72: 1.0465 | EW72: 0 | EX72: 0 | EY72: 0 | EZ72: 0 | FA72: 0.9047 | FB72: 0 | FC72: 0 | FD72: 663.2 | FE72: ARG00006737 | FF72: 7.608 | FG72: 3970 | FH72: 19.4 | FI72: 27.2 | FJ72: 21.6 | FK72: 57.9 | FL72: 48.5 | FM72: 779.7 | FN72: 605 | FO72: 541.7 | FP72: 1003.6 | FQ72: 741.8 | FR72: 645 | FS72: 692.9 | FT72: 0.8659 | FU72: 716.1 | FV72: 0.8379 | FW72: 0 | FX72: 0
B73: ARG362818 | C73: 2ARG3628 | D73: ARG-3628 | E73: LIHUEN | F73: PLENAMAR 40 | G73: AST, PLENAMAR | H73: NESTOR VOLKER | I73: 1991 | L73: CLUB | M73: C | N73: 170 | O73: 22 03 2018 17:45:00 | P73: 11.92 | Q73: 10.303 | R73: 2.067 | S73: 3.91 | T73: 7745 | U73: 114.9 | V73: 0.27 | W73: 630.3 | X73: 0.989 | Y73: 682.5 | Z73: 0 | AA73: 0 | AB73: 1019.8 | AC73: 831.4 | AD73: 726.5 | AE73: 662.2 | AF73: 624.3 | AG73: 599.3 | AH73: 578.2 | AI73: 974.9 | AJ73: 798.2 | AK73: 703.7 | AL73: 651 | AM73: 621.4 | AN73: 602.8 | AO73: 584.9 | AP73: 866.3 | AQ73: 700.1 | AR73: 611.4 | AS73: 560.4 | AT73: 529.7 | AU73: 510.3 | AV73: 488 | AW73: 929.2 | AX73: 744.4 | AY73: 644 | AZ73: 585 | BA73: 548.7 | BB73: 525.5 | BC73: 498.3 | BD73: 1017.2 | BE73: 782 | BF73: 654.4 | BG73: 578.2 | BH73: 538.8 | BI73: 509.2 | BJ73: 466 | BK73: 42.4 | BL73: 40.9 | BM73: 40.9 | BN73: 40.6 | BO73: 39.8 | BP73: 39.4 | BQ73: 39.9 | BR73: 145.4 | BS73: 149.8 | BT73: 151.1 | BU73: 155.3 | BV73: 171.7 | BW73: 180 | BX73: 180 | BY73: 1046.2 | BZ73: 873 | CA73: 782.8 | CB73: 734.8 | CC73: 713.6 | CD73: 703.4 | CE73: 702.5 | CF73: 691 | CG73: 585.7 | CH73: 530.2 | CI73: 506.4 | CJ73: 496.2 | CK73: 491.4 | CL73: 488.2 | CM73: 657.9 | CN73: 559.2 | CO73: 512.7 | CP73: 493 | CQ73: 482.7 | CR73: 477.6 | CS73: 473.8 | CT73: 634.8 | CU73: 541.1 | CV73: 500.5 | CW73: 482 | CX73: 470 | CY73: 460.9 | CZ73: 451.1 | DA73: 642.8 | DB73: 545.5 | DC73: 499.4 | DD73: 479 | DE73: 465.1 | DF73: 453.3 | DG73: 433.3 | DH73: 649.5 | DI73: 535.7 | DJ73: 488.3 | DK73: 466.4 | DL73: 451.8 | DM73: 442.9 | DN73: 426.9 | DO73: 666 | DP73: 547.8 | DQ73: 492.8 | DR73: 468 | DS73: 448.6 | DT73: 430.7 | DU73: 410.9 | DV73: 731.5 | DW73: 595.9 | DX73: 517.7 | DY73: 482 | DZ73: 460.7 | EA73: 440.9 | EB73: 403.7 | EC73: 860.4 | ED73: 684 | EE73: 580.8 | EF73: 515.2 | EG73: 482.8 | EH73: 462.5 | EI73: 425.1 | EJ73: 993.5 | EK73: 789.8 | EL73: 670.2 | EM73: 589.6 | EN73: 534.9 | EO73: 495.1 | EP73: 453.8 | EQ73: 0.9358 | ER73: 1.2092 | ES73: 1.3468 | ET73: 0.7292 | EU73: 0.9807 | EV73: 1.1295 | EW73: 0 | EX73: 0 | EY73: 0 | EZ73: 0 | FA73: 0.9806 | FB73: 0 | FC73: 0 | FD73: 611.9 | FE73: ARG00006738 | FF73: 9.281 | FG73: 8700 | FH73: 31.3 | FI73: 35.8 | FJ73: 43.7 | FK73: 107.8 | FL73: 0 | FM73: 721.3 | FN73: 558.2 | FO73: 501.2 | FP73: 925.7 | FQ73: 688.3 | FR73: 597.6 | FS73: 644.6 | FT73: 0.9308 | FU73: 664.7 | FV73: 0.9027 | FW73: 0 | FX73: 0
B74: ARG558601 | C74: 2ARG5586 | D74: ARG-5586 | E74: PEREGRINO | F74: Mastracchio 28,5 | G74: Astilleros Del Sur | H74: Mastracchio P | I74: 2014 | L74: CLUB | M74: C | N74: 170 | O74: 22 03 2018 17:45:10 | P74: 8.881 | Q74: 8.378 | R74: 1.698 | S74: 2.98 | T74: 2921 | U74: 121.8 | V74: 0.27 | W74: 693.9 | X74: 0.897 | Y74: 752.5 | Z74: 0 | AA74: 0 | AB74: 1127.4 | AC74: 909.3 | AD74: 792 | AE74: 726.8 | AF74: 689.2 | AG74: 669.9 | AH74: 640.8 | AI74: 1080.2 | AJ74: 877.3 | AK74: 772.6 | AL74: 719.2 | AM74: 691.2 | AN74: 674.5 | AO74: 644.1 | AP74: 953.6 | AQ74: 770 | AR74: 672.9 | AS74: 617.9 | AT74: 585.2 | AU74: 564.4 | AV74: 537.4 | AW74: 1023.4 | AX74: 818.7 | AY74: 708.4 | AZ74: 644.7 | BA74: 606.3 | BB74: 581.7 | BC74: 550.7 | BD74: 1122.1 | BE74: 854.5 | BF74: 715 | BG74: 637 | BH74: 596.1 | BI74: 565.3 | BJ74: 512.9 | BK74: 42.7 | BL74: 41 | BM74: 40.1 | BN74: 40 | BO74: 39.7 | BP74: 39.9 | BQ74: 40.1 | BR74: 146.2 | BS74: 150.5 | BT74: 152.7 | BU74: 159.6 | BV74: 180 | BW74: 180 | BX74: 180 | BY74: 1179.9 | BZ74: 969.3 | CA74: 864.1 | CB74: 819.7 | CC74: 805.9 | CD74: 803.3 | CE74: 794.5 | CF74: 777.1 | CG74: 653.1 | CH74: 587.9 | CI74: 564.6 | CJ74: 557.8 | CK74: 555.5 | CL74: 548.9 | CM74: 738.2 | CN74: 624 | CO74: 568.8 | CP74: 548.1 | CQ74: 540.7 | CR74: 537.7 | CS74: 533.2 | CT74: 710.3 | CU74: 603 | CV74: 555.3 | CW74: 533.9 | CX74: 521.2 | CY74: 514.3 | CZ74: 510.7 | DA74: 705.7 | DB74: 590 | DC74: 549.7 | DD74: 531.2 | DE74: 513.8 | DF74: 499.1 | DG74: 479.4 | DH74: 695.4 | DI74: 578.8 | DJ74: 534.4 | DK74: 510.3 | DL74: 496.3 | DM74: 484.3 | DN74: 466.5 | DO74: 715.9 | DP74: 591.8 | DQ74: 539.4 | DR74: 511.3 | DS74: 485.6 | DT74: 465.7 | DU74: 442 | DV74: 789.8 | DW74: 643.9 | DX74: 564.2 | DY74: 528.7 | DZ74: 501.9 | EA74: 473.7 | EB74: 419.6 | EC74: 930.8 | ED74: 735.5 | EE74: 625.4 | EF74: 559.9 | EG74: 528.1 | EH74: 503 | EI74: 450.2 | EJ74: 1074.8 | EK74: 849.3 | EL74: 719.9 | EM74: 633.8 | EN74: 572.4 | EO74: 536.6 | EP74: 487.1 | EQ74: 0.8516 | ER74: 1.0995 | ES74: 1.2165 | ET74: 0.6628 | EU74: 0.8949 | EV74: 1.0168 | EW74: 0 | EX74: 0 | EY74: 0 | EZ74: 0 | FA74: 0.8909 | FB74: 0 | FC74: 0 | FD74: 673.5 | FE74: ARG00006740 | FF74: 7.507 | FG74: 3636 | FH74: 19.1 | FI74: 23.3 | FJ74: 19.9 | FK74: 57 | FL74: 0 | FM74: 792.6 | FN74: 613.9 | FO74: 554.9 | FP74: 1018.4 | FQ74: 754.3 | FR74: 663.8 | FS74: 707 | FT74: 0.8486 | FU74: 731.7 | FV74: 0.82 | FW74: 0 | FX74: 0
B75: ARG571801 | C75: 2ARG5718 | D75: ARG-5718 | E75: SAN PATRICIO | F75: N 34,5 | G75: AST, NOVATECNIA | H75: PGYD | I75: 2013 | L75: CLUB | M75: C | N75: 170 | O75: 22 03 2018 17:45:16 | P75: 10.463 | Q75: 9.91 | R75: 1.692 | S75: 3.35 | T75: 5896 | U75: 122 | V75: 0.27 | W75: 650.5 | X75: 0.9564 | Y75: 705.8 | Z75: 0 | AA75: 0 | AB75: 1085.8 | AC75: 875.4 | AD75: 756.1 | AE75: 681.5 | AF75: 638.9 | AG75: 612.5 | AH75: 583.5 | AI75: 1041.5 | AJ75: 843.4 | AK75: 734.8 | AL75: 672.5 | AM75: 637.8 | AN75: 616.3 | AO75: 587.8 | AP75: 905 | AQ75: 726.7 | AR75: 630.4 | AS75: 574.3 | AT75: 539.9 | AU75: 517.7 | AV75: 490.5 | AW75: 968.4 | AX75: 771.4 | AY75: 663.3 | AZ75: 599.2 | BA75: 559.4 | BB75: 533.6 | BC75: 502 | BD75: 1079 | BE75: 820 | BF75: 677.6 | BG75: 592.7 | BH75: 549 | BI75: 516.7 | BJ75: 467.9 | BK75: 44.5 | BL75: 42.6 | BM75: 42.1 | BN75: 42 | BO75: 41.3 | BP75: 40.9 | BQ75: 40.3 | BR75: 145.3 | BS75: 149.7 | BT75: 151 | BU75: 156.2 | BV75: 173.8 | BW75: 180 | BX75: 180 | BY75: 1153.1 | BZ75: 945.1 | CA75: 832.1 | CB75: 766.6 | CC75: 738.3 | CD75: 724.9 | CE75: 710.1 | CF75: 744.4 | CG75: 622.1 | CH75: 551.6 | CI75: 518.5 | CJ75: 505 | CK75: 499.6 | CL75: 495.1 | CM75: 699.7 | CN75: 588.7 | CO75: 528.7 | CP75: 502.8 | CQ75: 490.3 | CR75: 484.9 | CS75: 480.9 | CT75: 666.2 | CU75: 562.9 | CV75: 513.1 | CW75: 490.7 | CX75: 476.7 | CY75: 466.7 | CZ75: 457.3 | DA75: 669.1 | DB75: 553.8 | DC75: 502.3 | DD75: 487.3 | DE75: 471.7 | DF75: 457.7 | DG75: 435 | DH75: 656.7 | DI75: 541 | DJ75: 493 | DK75: 469.3 | DL75: 451.9 | DM75: 441.2 | DN75: 423.7 | DO75: 674.2 | DP75: 553.5 | DQ75: 498.4 | DR75: 472.3 | DS75: 450.7 | DT75: 429.5 | DU75: 405.4 | DV75: 742.3 | DW75: 603.9 | DX75: 524.7 | DY75: 488.7 | DZ75: 466 | EA75: 443.8 | EB75: 400.5 | EC75: 882 | ED75: 697.7 | EE75: 589.5 | EF75: 522 | EG75: 489.2 | EH75: 467.8 | EI75: 426.1 | EJ75: 1018.4 | EK75: 805.6 | EL75: 680.2 | EM75: 596.4 | EN75: 539.5 | EO75: 500.1 | EP75: 457 | EQ75: 0.8926 | ER75: 1.1779 | ES75: 1.3301 | ET75: 0.6884 | EU75: 0.9482 | EV75: 1.1098 | EW75: 0 | EX75: 0 | EY75: 0 | EZ75: 0 | FA75: 0.9516 | FB75: 0 | FC75: 0 | FD75: 630.5 | FE75: ARG00006741 | FF75: 8.749 | FG75: 6799 | FH75: 27.8 | FI75: 37 | FJ75: 29.8 | FK75: 85.6 | FL75: 0 | FM75: 756.2 | FN75: 573.1 | FO75: 507.5 | FP75: 980.5 | FQ75: 711.9 | FR75: 608.2 | FS75: 662.6 | FT75: 0.9055 | FU75: 685.3 | FV75: 0.8755 | FW75: 0 | FX75: 0
B76: ARG551401 | C76: 2ARG5514 | D76: ARG-5514 | E76: TATA | F76: N 34,5 | G76: NUEVO MILENIO | H76: PGYD | I76: 2013 | L76: CLUB | M76: C | N76: 170 | O76: 22 03 2018 17:45:38 | P76: 10.463 | Q76: 9.673 | R76: 1.959 | S76: 3.35 | T76: 5048 | U76: 120.5 | V76: 0.21 | W76: 633.5 | X76: 0.9843 | Y76: 685.8 | Z76: 0 | AA76: 0 | AB76: 1048.7 | AC76: 844.9 | AD76: 728.5 | AE76: 660.9 | AF76: 623.6 | AG76: 600.5 | AH76: 569 | AI76: 1002.5 | AJ76: 810.7 | AK76: 707.1 | AL76: 650.9 | AM76: 620.8 | AN76: 601.6 | AO76: 570.2 | AP76: 878.6 | AQ76: 706.4 | AR76: 614 | AS76: 560.6 | AT76: 528 | AU76: 506.6 | AV76: 478.7 | AW76: 943.8 | AX76: 752.4 | AY76: 648.1 | AZ76: 586.7 | BA76: 548.8 | BB76: 524 | BC76: 492.1 | BD76: 1044.1 | BE76: 792.9 | BF76: 655.7 | BG76: 577.6 | BH76: 538.2 | BI76: 507.9 | BJ76: 458 | BK76: 43.3 | BL76: 41.6 | BM76: 41.1 | BN76: 40.2 | BO76: 39.4 | BP76: 39.1 | BQ76: 38.8 | BR76: 145 | BS76: 149.1 | BT76: 150.7 | BU76: 156.4 | BV76: 174 | BW76: 180 | BX76: 180 | BY76: 1094.4 | BZ76: 896.1 | CA76: 787.9 | CB76: 733.7 | CC76: 714 | CD76: 705.6 | CE76: 688.6 | CF76: 715.5 | CG76: 596.4 | CH76: 533 | CI76: 508 | CJ76: 499.5 | CK76: 495.6 | CL76: 489.5 | CM76: 676.5 | CN76: 567.9 | CO76: 515.8 | CP76: 494.7 | CQ76: 485.5 | CR76: 481.4 | CS76: 477.1 | CT76: 647.5 | CU76: 547.7 | CV76: 504.2 | CW76: 483.4 | CX76: 469.9 | CY76: 461.1 | CZ76: 454.4 | DA76: 651.6 | DB76: 540.5 | DC76: 494.7 | DD76: 477.6 | DE76: 465.2 | DF76: 449.9 | DG76: 428.6 | DH76: 644.6 | DI76: 532.1 | DJ76: 487.8 | DK76: 463.5 | DL76: 443.7 | DM76: 429.4 | DN76: 409.9 | DO76: 662.8 | DP76: 544.2 | DQ76: 493.2 | DR76: 466.3 | DS76: 441.9 | DT76: 421.6 | DU76: 390.6 | DV76: 732.3 | DW76: 593.1 | DX76: 517.4 | DY76: 483.3 | DZ76: 458.6 | EA76: 433.7 | EB76: 386.7 | EC76: 868.6 | ED76: 687.3 | EE76: 579.7 | EF76: 515.5 | EG76: 484.1 | EH76: 461 | EI76: 415.5 | EJ76: 1003 | EK76: 793.6 | EL76: 669.1 | EM76: 588.1 | EN76: 533.2 | EO76: 495.4 | EP76: 449.5 | EQ76: 0.921 | ER76: 1.2081 | ES76: 1.3579 | ET76: 0.7129 | EU76: 0.9791 | EV76: 1.1354 | EW76: 0 | EX76: 0 | EY76: 0 | EZ76: 0 | FA76: 0.9772 | FB76: 0 | FC76: 0 | FD76: 614 | FE76: ARG00006745 | FF76: 8.979 | FG76: 5911 | FH76: 26.3 | FI76: 35.9 | FJ76: 29.4 | FK76: 85.5 | FL76: 65.2 | FM76: 732.9 | FN76: 558.7 | FO76: 497.1 | FP76: 946.8 | FQ76: 689.4 | FR76: 594.5 | FS76: 647.4 | FT76: 0.9268 | FU76: 669.6 | FV76: 0.8961 | FW76: 0 | FX76: 0
B77: ARG140602 | C77: CHANTA | D77: ARG-1406 | E77: CHANTA | F77: CP 30 | G77: CESPEDES Y PEONA | H77: GERMAN FRERS | I77: 1984 | L77: CLUB | M77: C | N77: 470 | O77: 23 03 2018 16:13:54 | P77: 9.12 | Q77: 7.485 | R77: 1.587 | S77: 3.07 | T77: 3547 | U77: 110.7 | V77: 0.18 | W77: 707.2 | X77: 0.8826 | Y77: 764.8 | Z77: 0 | AA77: 0 | AB77: 1123.1 | AC77: 927.9 | AD77: 806.7 | AE77: 738.4 | AF77: 698.7 | AG77: 678.3 | AH77: 660.9 | AI77: 1080 | AJ77: 892 | AK77: 787 | AL77: 730.6 | AM77: 700.7 | AN77: 683.6 | AO77: 669.4 | AP77: 965.5 | AQ77: 783.3 | AR77: 686.5 | AS77: 631.1 | AT77: 598.2 | AU77: 577.8 | AV77: 554.8 | AW77: 1017.4 | AX77: 820.2 | AY77: 714.2 | AZ77: 652.8 | BA77: 615.7 | BB77: 592.5 | BC77: 565.9 | BD77: 1119.5 | BE77: 873 | BF77: 730.3 | BG77: 650.6 | BH77: 609.1 | BI77: 577.5 | BJ77: 528 | BK77: 42.1 | BL77: 41.4 | BM77: 41.6 | BN77: 40.6 | BO77: 39.9 | BP77: 40 | BQ77: 41.1 | BR77: 148 | BS77: 151.8 | BT77: 152 | BU77: 161 | BV77: 180 | BW77: 180 | BX77: 180 | BY77: 1159.2 | BZ77: 983.5 | CA77: 872.7 | CB77: 823.7 | CC77: 805.7 | CD77: 799 | CE77: 810.3 | CF77: 772 | CG77: 655.5 | CH77: 596.5 | CI77: 574.5 | CJ77: 565.9 | CK77: 562 | CL77: 561.7 | CM77: 737 | CN77: 627.4 | CO77: 581.3 | CP77: 561.5 | CQ77: 550.8 | CR77: 545.9 | CS77: 543.7 | CT77: 711.8 | CU77: 610.1 | CV77: 570.9 | CW77: 549.7 | CX77: 534.6 | CY77: 523.3 | CZ77: 513.3 | DA77: 719.6 | DB77: 612.8 | DC77: 565.4 | DD77: 543.6 | DE77: 529.2 | DF77: 512.9 | DG77: 489.8 | DH77: 728.8 | DI77: 604.2 | DJ77: 556.8 | DK77: 529.4 | DL77: 506.5 | DM77: 489.3 | DN77: 473.2 | DO77: 748.1 | DP77: 616.3 | DQ77: 562.5 | DR77: 533.5 | DS77: 507.4 | DT77: 485 | DU77: 455.4 | DV77: 813.9 | DW77: 667 | DX77: 584.9 | DY77: 550.1 | DZ77: 524.3 | EA77: 499.5 | EB77: 457.4 | EC77: 941.4 | ED77: 756 | EE77: 643.5 | EF77: 579.5 | EG77: 549 | EH77: 525.2 | EI77: 481 | EJ77: 1087.1 | EK77: 872.3 | EL77: 740.7 | EM77: 653.2 | EN77: 591.6 | EO77: 557.6 | EP77: 511.4 | EQ77: 0.8397 | ER77: 1.0749 | ES77: 1.1887 | ET77: 0.6582 | EU77: 0.88 | EV77: 0.9973 | EW77: 0 | EX77: 0 | EY77: 0 | EZ77: 0 | FA77: 0.8722 | FB77: 0 | FC77: 0 | FD77: 687.9 | FE77: ARG00006758 | FF77: 7.029 | FG77: 4166 | FH77: 18.6 | FI77: 19.3 | FJ77: 32.6 | FK77: 63.7 | FL77: 0 | FM77: 803.9 | FN77: 628 | FO77: 567.8 | FP77: 1025.5 | FQ77: 767 | FR77: 676.8 | FS77: 714.6 | FT77: 0.8397 | FU77: 736.5 | FV77: 0.8147 | FW77: 0 | FX77: 0
B78: ARG222403 | C78: 2ARG2224 | D78: ARG-2224 | E78: ASTARTE | F78: NAVALTEC 37 | G78: AST, NAVALTEC | H78: ING, TETTAMANTI | I78: 1984 | L78: CLUB | M78: C | N78: 170 | O78: 23 03 2018 16:41:40 | P78: 11.21 | Q78: 9.308 | R78: 1.719 | S78: 3.68 | T78: 7019 | U78: 109.3 | V78: 0.43 | W78: 667.4 | X78: 0.9262 | Y78: 728.8 | Z78: 0 | AA78: 0 | AB78: 1077.2 | AC78: 881.4 | AD78: 773.3 | AE78: 707.8 | AF78: 668 | AG78: 643.7 | AH78: 619.3 | AI78: 1034.7 | AJ78: 850.1 | AK78: 753 | AL78: 699.6 | AM78: 669.2 | AN78: 650.4 | AO78: 628.1 | AP78: 914.7 | AQ78: 740.3 | AR78: 647.5 | AS78: 594.6 | AT78: 562.9 | AU78: 543.1 | AV78: 520.1 | AW78: 977.1 | AX78: 784.5 | AY78: 680.2 | AZ78: 619.3 | BA78: 582.1 | BB78: 558.3 | BC78: 530.1 | BD78: 1072.1 | BE78: 827.5 | BF78: 694.2 | BG78: 614.8 | BH78: 572.6 | BI78: 541.4 | BJ78: 494.5 | BK78: 43.7 | BL78: 41.9 | BM78: 42.6 | BN78: 43.1 | BO78: 42.4 | BP78: 41.9 | BQ78: 41.8 | BR78: 146.5 | BS78: 150.6 | BT78: 150.8 | BU78: 156.2 | BV78: 174.7 | BW78: 180 | BX78: 180 | BY78: 1128.5 | BZ78: 944.9 | CA78: 852.7 | CB78: 806.3 | CC78: 783.6 | CD78: 773.7 | CE78: 766.6 | CF78: 737.1 | CG78: 626.6 | CH78: 563.8 | CI78: 538.1 | CJ78: 528.5 | CK78: 524 | CL78: 522.4 | CM78: 698.5 | CN78: 594.6 | CO78: 541.5 | CP78: 520.2 | CQ78: 511 | CR78: 506.6 | CS78: 504 | CT78: 670.9 | CU78: 571.2 | CV78: 526.1 | CW78: 506.3 | CX78: 494.4 | CY78: 486.6 | CZ78: 480.1 | DA78: 677 | DB78: 574.6 | DC78: 524.6 | DD78: 502.3 | DE78: 487.8 | DF78: 476.1 | DG78: 458.2 | DH78: 677.7 | DI78: 559 | DJ78: 510 | DK78: 487.7 | DL78: 474.8 | DM78: 466.3 | DN78: 451.4 | DO78: 693.1 | DP78: 570.1 | DQ78: 513.7 | DR78: 488.1 | DS78: 468.3 | DT78: 451.8 | DU78: 434.9 | DV78: 755.9 | DW78: 618.3 | DX78: 537.3 | DY78: 502 | DZ78: 479.8 | EA78: 459.3 | EB78: 422.9 | EC78: 888.5 | ED78: 708.2 | EE78: 601.2 | EF78: 533.7 | EG78: 502.3 | EH78: 481.5 | EI78: 443.3 | EJ78: 1025.9 | EK78: 817.9 | EL78: 693.8 | EM78: 609.2 | EN78: 552.4 | EO78: 513.8 | EP78: 472 | EQ78: 0.8866 | ER78: 1.1409 | ES78: 1.2647 | ET78: 0.6893 | EU78: 0.9195 | EV78: 1.0537 | EW78: 0 | EX78: 0 | EY78: 0 | EZ78: 0 | FA78: 0.9236 | FB78: 0 | FC78: 0 | FD78: 649.6 | FE78: ARG00006760 | FF78: 8.083 | FG78: 7859 | FH78: 27.8 | FI78: 30.3 | FJ78: 42.8 | FK78: 102.2 | FL78: 0 | FM78: 761.3 | FN78: 591.6 | FO78: 533.7 | FP78: 979.3 | FQ78: 734.1 | FR78: 640.6 | FS78: 682.1 | FT78: 0.8796 | FU78: 701.9 | FV78: 0.8548 | FW78: 0 | FX78: 0
B79: ARG448501 | C79: 2ARG4485 | D79: ARG-4485 | E79: RECKLESS TOO | F79: PANDORA 34 | G79: AST, MARCO | H79: NESTOR VOLKER | I79: 1992 | L79: CLUB | M79: C | N79: 170 | O79: 23 03 2018 16:42:00 | P79: 10.43 | Q79: 8.896 | R79: 1.647 | S79: 3.54 | T79: 5301 | U79: 109.1 | V79: 0.32 | W79: 675.8 | X79: 0.9179 | Y79: 735.4 | Z79: 0 | AA79: 0 | AB79: 1089.2 | AC79: 890.9 | AD79: 780.3 | AE79: 713.1 | AF79: 672.9 | AG79: 649.9 | AH79: 627.5 | AI79: 1045.6 | AJ79: 858.8 | AK79: 759.6 | AL79: 704.8 | AM79: 674.4 | AN79: 656.3 | AO79: 635.8 | AP79: 925.7 | AQ79: 749.4 | AR79: 655.7 | AS79: 602.1 | AT79: 570.1 | AU79: 550 | AV79: 526.4 | AW79: 985.2 | AX79: 791.4 | AY79: 686.7 | AZ79: 625.7 | BA79: 588.6 | BB79: 565.1 | BC79: 537.3 | BD79: 1084.6 | BE79: 836.7 | BF79: 702 | BG79: 622.3 | BH79: 580.5 | BI79: 549.2 | BJ79: 501.1 | BK79: 43.2 | BL79: 41.6 | BM79: 42 | BN79: 42 | BO79: 41.2 | BP79: 40.9 | BQ79: 41 | BR79: 146.4 | BS79: 150.7 | BT79: 151.6 | BU79: 157.5 | BV79: 180 | BW79: 180 | BX79: 180 | BY79: 1135.3 | BZ79: 950.8 | CA79: 855.1 | CB79: 805.2 | CC79: 784.4 | CD79: 775.8 | CE79: 773.4 | CF79: 743.8 | CG79: 631.3 | CH79: 571.3 | CI79: 546.3 | CJ79: 536.8 | CK79: 532.3 | CL79: 530.7 | CM79: 705.1 | CN79: 599.7 | CO79: 550.7 | CP79: 530.2 | CQ79: 520.4 | CR79: 515.9 | CS79: 513.2 | CT79: 676.6 | CU79: 577.6 | CV79: 535.9 | CW79: 516.8 | CX79: 504.5 | CY79: 495.6 | CZ79: 487.3 | DA79: 682.8 | DB79: 580.3 | DC79: 532.5 | DD79: 512.5 | DE79: 497.7 | DF79: 485 | DG79: 464.4 | DH79: 686.2 | DI79: 568.1 | DJ79: 521.2 | DK79: 498.2 | DL79: 480.8 | DM79: 470.8 | DN79: 453.4 | DO79: 703.9 | DP79: 580.4 | DQ79: 525.6 | DR79: 499.8 | DS79: 478.8 | DT79: 459.1 | DU79: 436.7 | DV79: 770.5 | DW79: 630.1 | DX79: 549.5 | DY79: 514.3 | DZ79: 491.6 | EA79: 469.9 | EB79: 430.6 | EC79: 903.3 | ED79: 719.7 | EE79: 612 | EF79: 545.6 | EG79: 514.2 | EH79: 492.8 | EI79: 452.4 | EJ79: 1043 | EK79: 831.1 | EL79: 705.5 | EM79: 620.9 | EN79: 561.4 | EO79: 524 | EP79: 481.6 | EQ79: 0.8766 | ER79: 1.1266 | ES79: 1.249 | ET79: 0.6818 | EU79: 0.9119 | EV79: 1.0429 | EW79: 0 | EX79: 0 | EY79: 0 | EZ79: 0 | FA79: 0.9124 | FB79: 0 | FC79: 0 | FD79: 657.6 | FE79: ARG00006764 | FF79: 7.887 | FG79: 6069 | FH79: 24.4 | FI79: 28 | FJ79: 33.8 | FK79: 79.9 | FL79: 0 | FM79: 770 | FN79: 599.1 | FO79: 540.4 | FP79: 990 | FQ79: 740.2 | FR79: 647.2 | FS79: 687.9 | FT79: 0.8723 | FU79: 708.5 | FV79: 0.8469 | FW79: 0 | FX79: 0
B80: ARG562601 | C80: ARG5626 | D80: ARG-5626 | E80: PULSION | F80: MM 35 | G80: MILLENIUM MARINE | H80: Javier Soto Acebal | I80: 2012 | L80: INTL | M80: C | N80: 620 | O80: 29 03 2018 19:04:14 | P80: 10.53 | Q80: 9.563 | R80: 1.595 | S80: 3.37 | T80: 4445 | U80: 124.5 | V80: 0 | W80: 618.4 | X80: 0.9913 | Y80: 680.9 | Z80: 0 | AA80: 0 | AB80: 1005.3 | AC80: 815.7 | AD80: 711.6 | AE80: 659.2 | AF80: 629.6 | AG80: 609.5 | AH80: 586.2 | AI80: 963.1 | AJ80: 784.6 | AK80: 695.8 | AL80: 652.8 | AM80: 628.5 | AN80: 610.6 | AO80: 588.3 | AP80: 845.5 | AQ80: 684.9 | AR80: 600.1 | AS80: 552 | AT80: 522.9 | AU80: 503.8 | AV80: 478.8 | AW80: 900 | AX80: 723.4 | AY80: 628.9 | AZ80: 574.5 | BA80: 541.5 | BB80: 520.1 | BC80: 493.3 | BD80: 1000.1 | BE80: 764.5 | BF80: 640.5 | BG80: 573.4 | BH80: 535.4 | BI80: 503 | BJ80: 451.2 | BK80: 45 | BL80: 43.8 | BM80: 42.9 | BN80: 42.1 | BO80: 41.8 | BP80: 42.3 | BQ80: 43.6 | BR80: 140.7 | BS80: 148.4 | BT80: 150.2 | BU80: 157.8 | BV80: 180 | BW80: 180 | BX80: 180 | BY80: 1057.9 | BZ80: 873 | CA80: 784.9 | CB80: 755 | CC80: 744.6 | CD80: 737 | CE80: 741.5 | CF80: 680.8 | CG80: 569.1 | CH80: 522.7 | CI80: 508.9 | CJ80: 503.4 | CK80: 501.3 | CL80: 495.6 | CM80: 637.9 | CN80: 540.4 | CO80: 504.5 | CP80: 491.7 | CQ80: 486.2 | CR80: 483.7 | CS80: 476.2 | CT80: 605.3 | CU80: 521.9 | CV80: 490.9 | CW80: 473.5 | CX80: 462.5 | CY80: 456.4 | CZ80: 451.2 | DA80: 607.3 | DB80: 520.6 | DC80: 487.4 | DD80: 465.7 | DE80: 446.7 | DF80: 431 | DG80: 415.7 | DH80: 616.4 | DI80: 513.4 | DJ80: 475.7 | DK80: 449.5 | DL80: 431.4 | DM80: 416.8 | DN80: 394.2 | DO80: 630.8 | DP80: 521.5 | DQ80: 479.6 | DR80: 449.3 | DS80: 420.9 | DT80: 398.8 | DU80: 371.3 | DV80: 694.1 | DW80: 560.9 | DX80: 499 | DY80: 468.2 | DZ80: 438.7 | EA80: 409.9 | EB80: 350.6 | EC80: 825.1 | ED80: 656.8 | EE80: 552.8 | EF80: 497.6 | EG80: 469.1 | EH80: 441.9 | EI80: 389.4 | EJ80: 952.8 | EK80: 758.4 | EL80: 638.2 | EM80: 563.5 | EN80: 514.6 | EO80: 482 | EP80: 430.9 | EQ80: 0.9627 | ER80: 1.2288 | ES80: 1.3633 | ET80: 0.7413 | EU80: 0.9893 | EV80: 1.1143 | EW80: 0 | EX80: 0 | EY80: 0 | EZ80: 0 | FA80: 0.9941 | FB80: 0 | FC80: 0 | FD80: 603.6 | FE80: ARG00006781 | FF80: 8.693 | FG80: 5274 | FH80: 24.6 | FI80: 42.3 | FJ80: 32.5 | FK80: 94.2 | FL80: 0 | FM80: 701.2 | FN80: 549.3 | FO80: 495.1 | FP80: 910.6 | FQ80: 682.3 | FR80: 605.8 | FS80: 632.8 | FT80: 0.9482 | FU80: 648.9 | FV80: 0.9246 | FW80: 0 | FX80: 0
B81: ARG102 | C81: ARG0001 | D81: ARG-001 | E81: MAC | F81: S 40 OD | G81: M BOATS | H81: SOTO ACEBAL | I81: 2008 | L81: INTL | M81: R | N81: 900 | O81: 04 04 2018 18:19:38 | P81: 12.3 | Q81: 12.196 | R81: 2.614 | S81: 3.8 | T81: 4454 | U81: 126.4 | V81: 0 | W81: 508.2 | X81: 1.2072 | Y81: 559.2 | Z81: 0 | AA81: 0 | AB81: 819.2 | AC81: 659.3 | AD81: 589.2 | AE81: 552.9 | AF81: 523.8 | AG81: 494.9 | AH81: 452.7 | AI81: 778.7 | AJ81: 633.3 | AK81: 570.3 | AL81: 535.9 | AM81: 508.9 | AN81: 487 | AO81: 462.2 | AP81: 692.6 | AQ81: 563 | AR81: 494.2 | AS81: 453.5 | AT81: 426.4 | AU81: 406.1 | AV81: 375.3 | AW81: 759.1 | AX81: 611 | AY81: 530.8 | AZ81: 482.8 | BA81: 451.5 | BB81: 429.3 | BC81: 398.6 | BD81: 817.6 | BE81: 620.8 | BF81: 531.4 | BG81: 477.5 | BH81: 442.3 | BI81: 408.1 | BJ81: 355.7 | BK81: 43.8 | BL81: 41.4 | BM81: 39.3 | BN81: 38.4 | BO81: 38.2 | BP81: 37.8 | BQ81: 38.3 | BR81: 142.1 | BS81: 140.7 | BT81: 148.3 | BU81: 152.2 | BV81: 148.1 | BW81: 145.1 | BX81: 144.8 | BY81: 835.7 | BZ81: 687.1 | CA81: 640.7 | CB81: 621.9 | CC81: 606.8 | CD81: 595.9 | CE81: 596.1 | CF81: 543.7 | CG81: 463.6 | CH81: 445.3 | CI81: 437.3 | CJ81: 431.9 | CK81: 423.6 | CL81: 419.8 | CM81: 510.6 | CN81: 448 | CO81: 430.6 | CP81: 421.6 | CQ81: 415.8 | CR81: 406.4 | CS81: 397.3 | CT81: 487.9 | CU81: 436.4 | CV81: 409.6 | CW81: 394.1 | CX81: 384.6 | CY81: 378.6 | CZ81: 360.4 | DA81: 492.4 | DB81: 437.1 | DC81: 403.8 | DD81: 374.6 | DE81: 358 | DF81: 347.8 | DG81: 335.4 | DH81: 500.5 | DI81: 432.4 | DJ81: 404.7 | DK81: 379.4 | DL81: 358.5 | DM81: 334 | DN81: 293.8 | DO81: 516 | DP81: 434.7 | DQ81: 393.8 | DR81: 368.4 | DS81: 346.8 | DT81: 324.6 | DU81: 288.1 | DV81: 581.4 | DW81: 459.1 | DX81: 414.5 | DY81: 370.3 | DZ81: 330 | EA81: 302 | EB81: 264.9 | EC81: 695.2 | ED81: 546.8 | EE81: 465.6 | EF81: 416.1 | EG81: 381.7 | EH81: 341.1 | EI81: 267.8 | EJ81: 802.8 | EK81: 631.4 | EL81: 537.6 | EM81: 483.8 | EN81: 440.8 | EO81: 393.8 | EP81: 309.2 | EQ81: 1.181 | ER81: 1.483 | ES81: 1.6967 | ET81: 0.9131 | EU81: 1.1914 | EV81: 1.3881 | EW81: 0 | EX81: 0 | EY81: 0 | EZ81: 0 | FA81: 1.2098 | FB81: 0 | FC81: 0 | FD81: 496 | FE81: ARG00006785 | FF81: 11.862 | FG81: 5677 | FH81: 30.9 | FI81: 64.2 | FJ81: 42.5 | FK81: 0 | FL81: 187.2 | FM81: 571.5 | FN81: 455.2 | FO81: 397.8 | FP81: 739.2 | FQ81: 566.6 | FR81: 486.3 | FS81: 535.5 | FT81: 1.1205 | FU81: 546.9 | FV81: 1.0971 | FW81: 0 | FX81: 0
B82: ARG530001 | C82: ARG5300 | D82: ARG-5300 | E82: MAD MAX | F82: MUMM 36 | G82: AST, DEL SUR | H82: BRUCE FARR | I82: 1993 | L82: INTL | M82: R | N82: 650 | O82: 04 04 2018 18:19:46 | P82: 10.9 | Q82: 9.845 | R82: 2.303 | S82: 3.61 | T82: 3767 | U82: 118.3 | V82: 0.1 | W82: 595.2 | X82: 1.0413 | Y82: 648.2 | Z82: 0 | AA82: 0 | AB82: 979.7 | AC82: 787.2 | AD82: 678.3 | AE82: 625.4 | AF82: 594.8 | AG82: 575.1 | AH82: 540.7 | AI82: 930.6 | AJ82: 750.7 | AK82: 658.3 | AL82: 613.2 | AM82: 587.7 | AN82: 569.5 | AO82: 532.9 | AP82: 823 | AQ82: 662.9 | AR82: 577.3 | AS82: 527.5 | AT82: 496.2 | AU82: 474.4 | AV82: 442.8 | AW82: 885.3 | AX82: 707.1 | AY82: 610.5 | AZ82: 553.8 | BA82: 518.3 | BB82: 494.2 | BC82: 460.8 | BD82: 978 | BE82: 740.1 | BF82: 613.8 | BG82: 546.6 | BH82: 508.8 | BI82: 476.4 | BJ82: 419.9 | BK82: 42.4 | BL82: 41.2 | BM82: 39.5 | BN82: 38.5 | BO82: 38.1 | BP82: 38.1 | BQ82: 37.9 | BR82: 141.6 | BS82: 147.4 | BT82: 150 | BU82: 156.8 | BV82: 173.7 | BW82: 180 | BX82: 180 | BY82: 996.7 | BZ82: 814.5 | CA82: 718.9 | CB82: 687.4 | CC82: 675.7 | CD82: 671.6 | CE82: 658.7 | CF82: 656.6 | CG82: 545.2 | CH82: 501.9 | CI82: 487.4 | CJ82: 481.7 | CK82: 478.8 | CL82: 469.9 | CM82: 622.5 | CN82: 524.5 | CO82: 489.5 | CP82: 473.5 | CQ82: 465.8 | CR82: 461.5 | CS82: 452.3 | CT82: 597.8 | CU82: 511.7 | CV82: 479.6 | CW82: 457.4 | CX82: 440.4 | CY82: 431.1 | CZ82: 423.7 | DA82: 606.7 | DB82: 507.8 | DC82: 472.6 | DD82: 451.3 | DE82: 430.4 | DF82: 410.9 | DG82: 388.7 | DH82: 611.6 | DI82: 505.7 | DJ82: 465.5 | DK82: 433.2 | DL82: 404.4 | DM82: 385.8 | DN82: 358.5 | DO82: 629.6 | DP82: 515.7 | DQ82: 472 | DR82: 436.5 | DS82: 403.9 | DT82: 376.1 | DU82: 333.7 | DV82: 699.6 | DW82: 560.6 | DX82: 495.5 | DY82: 462.3 | DZ82: 429.1 | EA82: 396.6 | EB82: 331.2 | EC82: 833.7 | ED82: 658.1 | EE82: 552.2 | EF82: 495.3 | EG82: 464.3 | EH82: 433.8 | EI82: 374.9 | EJ82: 962.7 | EK82: 760 | EL82: 637.7 | EM82: 563.3 | EN82: 513.8 | EO82: 478.7 | EP82: 422.7 | EQ82: 0.9864 | ER82: 1.2816 | ES82: 1.4514 | ET82: 0.7641 | EU82: 1.0403 | EV82: 1.1902 | EW82: 0 | EX82: 0 | EY82: 0 | EZ82: 0 | FA82: 1.0391 | FB82: 0 | FC82: 0 | FD82: 577.4 | FE82: ARG00006786 | FF82: 9.642 | FG82: 4638 | FH82: 24.8 | FI82: 38.4 | FJ82: 30.4 | FK82: 87.7 | FL82: 71.9 | FM82: 684.3 | FN82: 526.7 | FO82: 465.1 | FP82: 883.4 | FQ82: 648.9 | FR82: 567.1 | FS82: 611.4 | FT82: 0.9814 | FU82: 630.5 | FV82: 0.9516 | FW82: 0 | FX82: 0
B83: ARG517001 | C83: 2ARG5170 | D83: ARG-5170 | E83: MAX POWER | F83: MATCH 30 | G83: AST, SPEEDCRAFT | H83: GERMAN FRERS | I83: 1993 | L83: CLUB | M83: R | N83: 170 | O83: 04 04 2018 18:19:54 | P83: 9.12 | Q83: 8.06 | R83: 1.99 | S83: 3.11 | T83: 2095 | U83: 107.2 | V83: 0.1 | W83: 640.8 | X83: 0.9687 | Y83: 696.8 | Z83: 0 | AA83: 0 | AB83: 1022.9 | AC83: 827.8 | AD83: 727.6 | AE83: 678.7 | AF83: 647.6 | AG83: 624 | AH83: 592.3 | AI83: 972.6 | AJ83: 793.5 | AK83: 708.9 | AL83: 668.2 | AM83: 642.4 | AN83: 620.2 | AO83: 591.9 | AP83: 871.7 | AQ83: 708.2 | AR83: 622.4 | AS83: 573.4 | AT83: 543 | AU83: 522 | AV83: 492.4 | AW83: 932.9 | AX83: 750.9 | AY83: 653.7 | AZ83: 597.3 | BA83: 562.2 | BB83: 538.6 | BC83: 507.7 | BD83: 1021.5 | BE83: 780 | BF83: 660.5 | BG83: 595.7 | BH83: 557.1 | BI83: 524.6 | BJ83: 470.8 | BK83: 41.6 | BL83: 40.3 | BM83: 38.5 | BN83: 38.2 | BO83: 38.1 | BP83: 37.6 | BQ83: 38.5 | BR83: 144.4 | BS83: 148.1 | BT83: 151.8 | BU83: 160.2 | BV83: 180 | BW83: 180 | BX83: 180 | BY83: 1037.2 | BZ83: 856.9 | CA83: 781.5 | CB83: 759.3 | CC83: 750.8 | CD83: 738 | CE83: 736.4 | CF83: 689 | CG83: 582.7 | CH83: 548.8 | CI83: 538.3 | CJ83: 533.5 | CK83: 529.9 | CL83: 522.6 | CM83: 655.2 | CN83: 563.7 | CO83: 534.7 | CP83: 522.4 | CQ83: 516.2 | CR83: 514.9 | CS83: 502.3 | CT83: 630.6 | CU83: 550.9 | CV83: 521.2 | CW83: 501.2 | CX83: 488 | CY83: 481.2 | CZ83: 473.9 | DA83: 639.7 | DB83: 549.4 | DC83: 519.2 | DD83: 493.5 | DE83: 471.2 | DF83: 454.7 | DG83: 440.1 | DH83: 638.1 | DI83: 541.8 | DJ83: 504 | DK83: 478.6 | DL83: 460.9 | DM83: 445.2 | DN83: 415.9 | DO83: 658.7 | DP83: 550.9 | DQ83: 508.5 | DR83: 472.1 | DS83: 443.5 | DT83: 426.2 | DU83: 395.3 | DV83: 733.6 | DW83: 593.3 | DX83: 532.3 | DY83: 495.8 | DZ83: 459.7 | EA83: 425 | EB83: 359.7 | EC83: 873.5 | ED83: 691.7 | EE83: 584.9 | EF83: 530.9 | EG83: 497 | EH83: 463.5 | EI83: 398.8 | EJ83: 1008.6 | EK83: 798.7 | EL83: 673.7 | EM83: 598.1 | EN83: 544.5 | EO83: 509.9 | EP83: 448.2 | EQ83: 0.9368 | ER83: 1.1809 | ES83: 1.3163 | ET83: 0.7295 | EU83: 0.9648 | EV83: 1.0922 | EW83: 0 | EX83: 0 | EY83: 0 | EZ83: 0 | FA83: 0.9616 | FB83: 0 | FC83: 0 | FD83: 624 | FE83: ARG00006788 | FF83: 7.898 | FG83: 2711 | FH83: 17.2 | FI83: 27.4 | FJ83: 19.4 | FK83: 57.5 | FL83: 0 | FM83: 720.5 | FN83: 571.6 | FO83: 512.8 | FP83: 925.3 | FQ83: 699.6 | FR83: 618 | FS83: 655.2 | FT83: 0.9158 | FU83: 674.1 | FV83: 0.8901 | FW83: 0 | FX83: 0
B84: ARG483603 | C84: arg4836 | D84: ARG-4836 | E84: MERCENARIO 4 | F84: SOTO 44 C/R | G84: E, ANZOLA | H84: J, SOTO A, | I84: 2004 | L84: INTL | M84: C | N84: 876 | O84: 04 04 2018 18:20:02 | P84: 13.48 | Q84: 12.011 | R84: 2.778 | S84: 3.55 | T84: 7812 | U84: 146.4 | V84: 0 | W84: 532 | X84: 1.1609 | Y84: 581.4 | Z84: 0 | AA84: 0 | AB84: 864.3 | AC84: 696.9 | AD84: 610.4 | AE84: 566.2 | AF84: 540.1 | AG84: 516.4 | AH84: 488.7 | AI84: 820.5 | AJ84: 664.7 | AK84: 590.2 | AL84: 554 | AM84: 531 | AN84: 510.2 | AO84: 484.7 | AP84: 728.4 | AQ84: 589.6 | AR84: 516.4 | AS84: 474.3 | AT84: 448 | AU84: 429.6 | AV84: 403.9 | AW84: 780.3 | AX84: 626.8 | AY84: 544.2 | AZ84: 495.8 | BA84: 465.4 | BB84: 444.7 | BC84: 417.5 | BD84: 863.4 | BE84: 655.3 | BF84: 551.2 | BG84: 493.1 | BH84: 460.3 | BI84: 430.8 | BJ84: 386 | BK84: 42.9 | BL84: 41.8 | BM84: 40.1 | BN84: 39.1 | BO84: 38.6 | BP84: 38 | BQ84: 38 | BR84: 142.3 | BS84: 145.2 | BT84: 148.5 | BU84: 155.2 | BV84: 164.4 | BW84: 180 | BX84: 180 | BY84: 872.8 | BZ84: 712.5 | CA84: 646.9 | CB84: 623.9 | CC84: 613.3 | CD84: 599 | CE84: 592.6 | CF84: 570.9 | CG84: 474.9 | CH84: 447.1 | CI84: 438.4 | CJ84: 434.1 | CK84: 429.8 | CL84: 423.1 | CM84: 538.8 | CN84: 458 | CO84: 434.4 | CP84: 426 | CQ84: 421.2 | CR84: 418.5 | CS84: 408.5 | CT84: 514.7 | CU84: 448.3 | CV84: 423.4 | CW84: 408.9 | CX84: 401 | CY84: 395.8 | CZ84: 385.9 | DA84: 520.4 | DB84: 449.8 | DC84: 422.8 | DD84: 401.7 | DE84: 384.5 | DF84: 372.9 | DG84: 361.6 | DH84: 542.9 | DI84: 450.6 | DJ84: 416.7 | DK84: 391.7 | DL84: 376.1 | DM84: 362.6 | DN84: 337.1 | DO84: 560.5 | DP84: 459 | DQ84: 421.2 | DR84: 392.5 | DS84: 367.6 | DT84: 346.7 | DU84: 319.4 | DV84: 623.1 | DW84: 499.9 | DX84: 441.9 | DY84: 413 | DZ84: 384.9 | EA84: 356.8 | EB84: 300.7 | EC84: 741 | ED84: 590 | EE84: 497.1 | EF84: 445 | EG84: 417 | EH84: 391.1 | EI84: 340.1 | EJ84: 855.7 | EK84: 681.2 | EL84: 574 | EM84: 508.6 | EN84: 467 | EO84: 433.7 | EP84: 384.7 | EQ84: 1.1196 | ER84: 1.4262 | ES84: 1.6001 | ET84: 0.8648 | EU84: 1.1532 | EV84: 1.3186 | EW84: 0 | EX84: 0 | EY84: 0 | EZ84: 0 | FA84: 1.158 | FB84: 0 | FC84: 0 | FD84: 518.1 | FE84: ARG00006789 | FF84: 11.734 | FG84: 8971 | FH84: 37.5 | FI84: 77.6 | FJ84: 50.5 | FK84: 153.9 | FL84: 119.7 | FM84: 602.9 | FN84: 473.3 | FO84: 421.8 | FP84: 780.5 | FQ84: 585.3 | FR84: 511.9 | FS84: 547.9 | FT84: 1.0951 | FU84: 561.3 | FV84: 1.0689 | FW84: 0 | FX84: 0
B85: ARG462101 | C85: 2MISSLILY | D85: ARG-4621 | E85: MISS LILY | F85: PANDORA 31 | G85: AST,MARCO | H85: GERMAN FRERS | I85: 1994 | L85: CLUB | M85: C | N85: 170 | O85: 04 04 2018 18:20:08 | P85: 9.5 | Q85: 8.998 | R85: 1.666 | S85: 3.29 | T85: 4331 | U85: 120.4 | V85: 0.29 | W85: 673.8 | X85: 0.9218 | Y85: 732.3 | Z85: 0 | AA85: 0 | AB85: 1092.7 | AC85: 890.1 | AD85: 777.7 | AE85: 708.6 | AF85: 668.5 | AG85: 646.6 | AH85: 624.3 | AI85: 1044.3 | AJ85: 855.9 | AK85: 756 | AL85: 700.8 | AM85: 670.4 | AN85: 652.4 | AO85: 630.6 | AP85: 923.1 | AQ85: 747.2 | AR85: 653.8 | AS85: 600.4 | AT85: 568.4 | AU85: 548.2 | AV85: 523.7 | AW85: 980.6 | AX85: 787.6 | AY85: 683.5 | AZ85: 623 | BA85: 586.3 | BB85: 563 | BC85: 535.1 | BD85: 1088.7 | BE85: 835.3 | BF85: 699.9 | BG85: 620.2 | BH85: 579 | BI85: 548 | BJ85: 499 | BK85: 43 | BL85: 41 | BM85: 41.1 | BN85: 40.9 | BO85: 40.3 | BP85: 40 | BQ85: 40.1 | BR85: 146.1 | BS85: 151.1 | BT85: 151.6 | BU85: 158.5 | BV85: 180 | BW85: 180 | BX85: 180 | BY85: 1132.5 | BZ85: 944.1 | CA85: 847.7 | CB85: 797.2 | CC85: 776.7 | CD85: 768.6 | CE85: 766.8 | CF85: 743.8 | CG85: 630.7 | CH85: 571.3 | CI85: 546.9 | CJ85: 537.6 | CK85: 533.3 | CL85: 532.1 | CM85: 705.6 | CN85: 600.2 | CO85: 551.7 | CP85: 531.6 | CQ85: 521.9 | CR85: 517.4 | CS85: 515 | CT85: 676.9 | CU85: 578.4 | CV85: 537.5 | CW85: 518.6 | CX85: 506.2 | CY85: 497.1 | CZ85: 489 | DA85: 673.2 | DB85: 567 | DC85: 526.4 | DD85: 513.4 | DE85: 499.3 | DF85: 486 | DG85: 464 | DH85: 669.1 | DI85: 559.7 | DJ85: 519.3 | DK85: 496.8 | DL85: 478.2 | DM85: 466.8 | DN85: 448.5 | DO85: 691 | DP85: 574.1 | DQ85: 525 | DR85: 500.3 | DS85: 478.2 | DT85: 456.3 | DU85: 430.1 | DV85: 765.8 | DW85: 629.3 | DX85: 550 | DY85: 516.2 | DZ85: 493.4 | EA85: 470.3 | EB85: 425.6 | EC85: 911.8 | ED85: 723.9 | EE85: 613.9 | EF85: 546.5 | EG85: 515.9 | EH85: 494.4 | EI85: 450.8 | EJ85: 1052.9 | EK85: 836.1 | EL85: 707.7 | EM85: 620.1 | EN85: 560.3 | EO85: 524.6 | EP85: 481.7 | EQ85: 0.8796 | ER85: 1.1297 | ES85: 1.2533 | ET85: 0.6809 | EU85: 0.9162 | EV85: 1.0486 | EW85: 0 | EX85: 0 | EY85: 0 | EZ85: 0 | FA85: 0.9147 | FB85: 0 | FC85: 0 | FD85: 655.9 | FE85: ARG00006790 | FF85: 8.008 | FG85: 5116 | FH85: 21.3 | FI85: 29.2 | FJ85: 25.5 | FK85: 61.4 | FL85: 66.1 | FM85: 767.4 | FN85: 597.5 | FO85: 538.6 | FP85: 991.3 | FQ85: 736.7 | FR85: 643.7 | FS85: 684 | FT85: 0.8772 | FU85: 705.3 | FV85: 0.8507 | FW85: 0 | FX85: 0
B86: ARG505502 | C86: arg5055 | D86: ARG-5055 | E86: MONARCA | F86: MONARCA 33 | G86: CORUM YACHTS | H86: H, SALERNO | I86: 2007 | L86: CLUB | M86: C | N86: 585 | O86: 04 04 2018 18:20:14 | P86: 9.997 | Q86: 9.322 | R86: 2.157 | S86: 3.09 | T86: 4025 | U86: 124 | V86: 0.11 | W86: 621.8 | X86: 1.0057 | Y86: 671.2 | Z86: 0 | AA86: 0 | AB86: 1013.7 | AC86: 819.2 | AD86: 706.5 | AE86: 647.5 | AF86: 612.8 | AG86: 592.4 | AH86: 561.9 | AI86: 963.4 | AJ86: 781.4 | AK86: 684.5 | AL86: 635.5 | AM86: 609 | AN86: 591.2 | AO86: 559.3 | AP86: 856.3 | AQ86: 691.2 | AR86: 603.1 | AS86: 552.4 | AT86: 521.2 | AU86: 500.3 | AV86: 471.7 | AW86: 910 | AX86: 729.1 | AY86: 631.4 | AZ86: 574.5 | BA86: 539.4 | BB86: 516.3 | BC86: 485.7 | BD86: 1012.7 | BE86: 771.1 | BF86: 640.3 | BG86: 570.1 | BH86: 532.5 | BI86: 502 | BJ86: 451.8 | BK86: 41.9 | BL86: 40.6 | BM86: 39.2 | BN86: 37.5 | BO86: 37.3 | BP86: 37.3 | BQ86: 37 | BR86: 144.8 | BS86: 149.3 | BT86: 151.3 | BU86: 158 | BV86: 180 | BW86: 180 | BX86: 180 | BY86: 1024.4 | BZ86: 843.8 | CA86: 742.7 | CB86: 704.7 | CC86: 691 | CD86: 685.3 | CE86: 673.3 | CF86: 679.7 | CG86: 568.9 | CH86: 520.8 | CI86: 504 | CJ86: 498.1 | CK86: 495.2 | CL86: 488.2 | CM86: 646.6 | CN86: 547.8 | CO86: 509.1 | CP86: 492.2 | CQ86: 485 | CR86: 481.3 | CS86: 475.2 | CT86: 622.4 | CU86: 534.3 | CV86: 500.6 | CW86: 480.7 | CX86: 466.1 | CY86: 457.8 | CZ86: 451.1 | DA86: 632 | DB86: 534.4 | DC86: 496.3 | DD86: 480.6 | DE86: 460.5 | DF86: 442.5 | DG86: 421 | DH86: 639.4 | DI86: 531.3 | DJ86: 490.7 | DK86: 463.1 | DL86: 438.8 | DM86: 424.7 | DN86: 401.7 | DO86: 659.9 | DP86: 543.9 | DQ86: 497.6 | DR86: 468.5 | DS86: 440.1 | DT86: 413.5 | DU86: 380 | DV86: 732.4 | DW86: 593.9 | DX86: 521.9 | DY86: 489 | DZ86: 462.1 | EA86: 434.4 | EB86: 379.3 | EC86: 868.7 | ED86: 688.1 | EE86: 581.2 | EF86: 520 | EG86: 489.5 | EH86: 464.4 | EI86: 414 | EJ86: 1003.1 | EK86: 794.6 | EL86: 670.2 | EM86: 590.3 | EN86: 534.7 | EO86: 499.5 | EP86: 450.5 | EQ86: 0.9474 | ER86: 1.2263 | ES86: 1.3749 | ET86: 0.7365 | EU86: 1.0033 | EV86: 1.1517 | EW86: 0 | EX86: 0 | EY86: 0 | EZ86: 0 | FA86: 0.9945 | FB86: 0 | FC86: 0 | FD86: 603.3 | FE86: ARG00006791 | FF86: 9.151 | FG86: 4826 | FH86: 22.9 | FI86: 36 | FJ86: 27 | FK86: 70.9 | FL86: 0 | FM86: 712.5 | FN86: 550.4 | FO86: 490.9 | FP86: 916.5 | FQ86: 672.8 | FR86: 586.1 | FS86: 631.2 | FT86: 0.9505 | FU86: 651.8 | FV86: 0.9205 | FW86: 0 | FX86: 0
